Workbook

Sheet Caratula
F28: =IF(Calculos!$DH$3=TRUE,"Asesor Hipotecario:","Promotor:") -> Promotor:
F30: Teléfono Oficina: | O30: Celular:
F32: Correo Eletrónico:
AN33: Versión v.20251101
F34: Última Actualización: | G34: 2025-10-24 | AN34: =PROPER("vigencia: "&TEXT(G34,"mmmm")&" "&TEXT(G34,"aaaa")) -> Vigencia: Octubre 2025

Sheet CompIngresos (hidden)
M2: Cálculo de Ingresos
BF5: =Caratula!AN33 -> Versión v.20251101
AO6: =TODAY() -> 2025-11-05
A8: Selecciona el tipo de ingreso con el que el cliente puede comprobar sus ingresos: | AL8: =IF(Calculos!$A$2="","",IF(OR(Calculos!$A$2=1,Calculos!$A$2=3),"Se considerarán las percepciones constantes que especifiquen su monto. Podrían ser: -Sueldos Base -Séptimo Día -Despensa -Premio de Asistencia y Puntualidad -Vales de Gasolina y Alimentos","")) ->  | AX8: =IF(Calculos!$A$2="","",IF(OR(Calculos!$A$2=1,Calculos!$A$2=3),"Percepciones No Válidas: - Pensiones Alimenticias - Aguinaldo - Prima Vacacional - Ayuda Lactancia - Fondo de Ahorro - Viáticos - Otros Pagos Extraordinarios Anuales","")) -> 
B10: Tipo de Ingreso | G10: Tipo de Actividad | N10: Tipo de Comprobación | Y10: =IF(Calculos!$A$2=2,"","Periodicidad") -> Periodicidad | AD10: =IFERROR(IF(AND($AF$20<>"",Calculos!$A$2>1),"Opciones para Independientes",""),"") -> 
B15: =+IF(AND(Calculos!G2=TRUE,Calculos!A2=1,Calculos!D2=2), "Esta Comprobación NO aplica para ingresos en dólares","") ->  | AU15: =+IF(Calculos!G2=TRUE,"El tipo de cambio puede variar al momento de captura en ingreso a dictaminación","") -> 
AJ16: =IF(AND(Calculos!$G$2=TRUE,Calculos!$A$2=1),"Tipo de Cambio:","") -> 
B18: =IFERROR(IF(Calculos!$A$2=3,"Documentación requerida como Asalariado:","Documentación requerida:"),"") -> Documentación requerida:
B20: =IFERROR(IF(HLOOKUP(ABS(CONCATENATE(Calculos!$A$3,Calculos!$B$2,Calculos!$D$2)),Calculos!$B$99:$AB$104,Calculos!$A$100,FALSE)="","",HLOOKUP(ABS(CONCATENATE(Calculos!$A$3,Calculos!$B$2,Calculos!$D$2)),Calculos!$B$99:$AB$104,Calculos!$A$100,FALSE)),"") ->  | AD20: =IF(AF20="","","#") ->  | AF20: =IF(Calculos!$A$2="","","Ingreso Fijo") ->  | AM20: =IF($AF$20="","",IF(OR(ABS(CONCATENATE(Calculos!$A$3,Calculos!$B$2,Calculos!$D$2))=121,ABS(CONCATENATE(Calculos!$A$3,Calculos!$B$2,Calculos!$D$2))=122),"Comisiones","")) ->  | AT20: =IF($AF$20="","",IF(AND(Calculos!A3=1,Calculos!$H$2=TRUE),IF(OR(HEXTRA=112,HEXTRA=122,AND(HEXTRA=111,Calculos!$G$2=TRUE)),"","Horas Extras"),IF(AND(Calculos!A3=3,Calculos!$H$2=TRUE),"Horas Extras",""))) ->  | BA20: =IF($AF$20="","",IF(AND(Calculos!A3=1,Calculos!$I$3=TRUE),IF(OR(HEXTRA=112,HEXTRA=122,AND(HEXTRA=111,Calculos!$G$2=TRUE)),"","Bonos"),IF(AND(Calculos!A3=3,Calculos!$I$3=TRUE),"Bonos",""))) -> 
AF21: =IF(Calculos!$A$2="","",IF(Calculos!$A$2=2,"Mensual",VLOOKUP(Calculos!$F$2,Calculos!$A$35:$B$38,2,FALSE))) ->  | AI21: =IF(Calculos!$G$2=TRUE,"Dólares","") ->  | AM21: =IF(AF20="","",IF(OR(ABS(CONCATENATE(Calculos!$A$3,Calculos!$B$2,Calculos!$D$2))=121,ABS(CONCATENATE(Calculos!$A$3,Calculos!$B$2,Calculos!$D$2))=122),"Mensuales","")) ->  | AT21: =IF(AF20="","",IF(AND(HEXTRA<200,Calculos!$H$2=TRUE),IF(OR(HEXTRA=112,HEXTRA=122,AND(HEXTRA=111,Calculos!$G$2=TRUE)),"","Mensuales"),IF(AND(Calculos!A3=3,Calculos!$H$2=TRUE),"Mensuales",""))) ->  | BA21: =IF(AF20="","",IF(AND(Calculos!A3=1,Calculos!$I$3=TRUE),IF(OR(HEXTRA=112,HEXTRA=122,AND(HEXTRA=111,Calculos!$G$2=TRUE)),"",VLOOKUP(Calculos!$I$2,Calculos!$S$35:$T$40,2,FALSE)),IF(AND(Calculos!A3=3,Calculos!$I$3=TRUE),VLOOKUP(Calculos!$I$2,Calculos!$S$35:$T$40,2,FALSE),""))) -> 
AD22: =+IF(AF20="","",1) ->  | AE22: =IF(AF20="","",IF(OR(AF22="",AF22<15000),1,0)) ->  | AZ22: =IF(BA22=0,1,0) -> 1
B23: =IFERROR(IF(HLOOKUP(ABS(CONCATENATE(Calculos!$A$3,Calculos!$B$2,Calculos!$D$2)),Calculos!$B$99:$AB$104,Calculos!$A$101,FALSE)="","",HLOOKUP(ABS(CONCATENATE(Calculos!$A$3,Calculos!$B$2,Calculos!$D$2)),Calculos!$B$99:$AB$104,Calculos!$A$101,FALSE)),"") ->  | AD23: =+IF(AF20="","",IF(AK23="","",2)) ->  | AE23: =IF(AF20="","",IF(OR(AF23="",AF23<15000),1+IF(Calculos!$A$2=2,AE22,0),0)) ->  | AK23: =+IF(AF20="","",IF(OR(Calculos!$A$3=1,Calculos!$A$3=3),IF(Calculos!$F$2<2,"",1),1)) ->  | AL23: =+IF(AM23=0,1,0) -> 1 | AS23: =+IF(AT23=0,1,0) -> 1 | AZ23: =IF(BA23=0,1,0) -> 1 | BF23: =+IF(BA20="","",1) -> 
AD24: =+IF(AF20="","",IF(AK24="","",3)) ->  | AE24: =IF(AF20="","",IF(OR(AF24="",AF24<15000),1+IF(Calculos!$A$2=2,AE23,0),0)) ->  | AK24: =+IF(AF20="","",IF(OR(Calculos!$A$3=1,Calculos!$A$3=3),IF(Calculos!$F$2<4,"",1),1)) ->  | AL24: =+IF(AM24=0,IF(SUM(AM23:AQ24)=0,3,1),0) -> 3 | AS24: =+IF(AT24=0,IF(SUM(AT23:AX24)=0,3,1),0) -> 3 | AZ24: =IF(OR(Calculos!$I$2=3,Calculos!$I$2=7),0,IF($BA$24=0,IF(SUM($BA$23:$BE$24)=0,3,1),0)) -> 3 | BF24: =+IF(OR(BA20="",Calculos!$I$2=3,Calculos!$I$2=6,Calculos!$I$2=7),"",1) -> 
AD25: =+IF(AF20="","",IF(AK25="","",4)) ->  | AE25: =IF(AF20="","",IF(OR(AF25="",AF25<15000),1+IF(Calculos!$A$2=2,AE24,0),0)) ->  | AK25: =+IF(AF20="","",IF(OR(Calculos!$A$3=1,Calculos!$A$3=3),IF(Calculos!$F$2<4,"",1),1)) ->  | AL25: =+IF(AM25=0,IF(SUM(AM24:AQ25)=0,3,1),0) -> 3 | AS25: =+IF(AT25=0,IF(SUM(AT24:AX25)=0,3,1),0) -> 3 | AZ25: =IF(Calculos!$I$2=1,IF(BA25=0,IF(SUM(BA24:BE25)=0,3,1),0),0) -> 3 | BF25: =+IF(OR(AND(BA20<>"",Calculos!$I$2=1),AND(BA20<>"",Calculos!$I$2=5)),1,"") -> 
B26: =IFERROR(IF(HLOOKUP(ABS(CONCATENATE(Calculos!$A$3,Calculos!$B$2,Calculos!$D$2)),Calculos!$B$99:$AB$104,Calculos!$A$102,FALSE)="","",HLOOKUP(ABS(CONCATENATE(Calculos!$A$3,Calculos!$B$2,Calculos!$D$2)),Calculos!$B$99:$AB$104,Calculos!$A$102,FALSE)),"") ->  | AD26: =+IF(AF20="","",IF(AK26="","",5)) ->  | AE26: =IF(AF20="","",IF(OR(AF26="",AF26<15000),1+IF(Calculos!$A$2=2,AE25,0),0)) ->  | AK26: =+IF(AF20="","",IF(OR(Calculos!$A$3=1,Calculos!$A$3=3,AND(Calculos!$B$2=6,Calculos!$D$2=1)),"",1)) ->  | AL26: =+IF(AM26=0,IF(SUM(AM25:AQ26)=0,3,1),0) -> 3 | AS26: =+IF(AT26=0,IF(SUM(AT25:AX26)=0,3,1),0) -> 3 | AZ26: =IF(Calculos!$I$2=1,IF(BA26=0,IF(SUM(BA25:BE26)=0,3,1),0),0) -> 3 | BF26: =+IF(AND(BA20<>"",Calculos!$I$2=1),1,"") -> 
AD27: =+IF(AF20="","",IF(AK27="","",6)) ->  | AE27: =IF(AF20="","",IF(OR(AF27="",AF27<15000),1+IF(Calculos!$A$2=2,AE26,0),0)) ->  | AK27: =+IF(AF21="","",IF(OR(Calculos!$A$3=1,Calculos!$A$3=3,AND(Calculos!$B$2=6,Calculos!$D$2=1)),"",1)) ->  | AL27: =+IF(AM27=0,IF(SUM(AM26:AQ27)=0,3,1),0) -> 3 | AS27: =+IF(AT27=0,IF(SUM(AT26:AX27)=0,3,1),0) -> 3 | AZ27: =IF(Calculos!$I$2=1,IF($BA$27=0,IF(SUM(BA26:BE27)=0,3,1),0),0) -> 3 | BF27: =+IF(AND(BA20<>"",Calculos!$I$2=1),1,"") -> 
AE28: =IF(AF20="","",Calculos!$AD$35) ->  | AL28: =IF(AM20="","",IF(AM22=0,"El mas reciente no puede ser cero",IF(SUM(AL23:AL27)>2,"No puede tener 2 meses consecutivos o más de 2 meses en CERO",""))) ->  | AS28: =IF(AT20="","",IF(SUM(AS23:AS27)>2,"No puede tener 2 meses consecutivos o más de 2 meses en CERO","")) ->  | AZ28: =IF(BA20="","",IF(SUM(AZ23:AZ27)>3,"No puede tener 2 bonos consecutivos o más de 2 meses en CERO","")) -> 
B29: =IFERROR(IF(HLOOKUP(ABS(CONCATENATE(Calculos!$A$3,Calculos!$B$2,Calculos!$D$2)),Calculos!$B$99:$AB$104,Calculos!$A$103,FALSE)="","",HLOOKUP(ABS(CONCATENATE(Calculos!$A$3,Calculos!$B$2,Calculos!$D$2)),Calculos!$B$99:$AB$104,Calculos!$A$103,FALSE)),"") -> 
B32: =IFERROR(IF(HLOOKUP(ABS(CONCATENATE(Calculos!$A$3,Calculos!$B$2,Calculos!$D$2)),Calculos!$B$99:$AB$104,Calculos!$A$104,FALSE)="","",HLOOKUP(ABS(CONCATENATE(Calculos!$A$3,Calculos!$B$2,Calculos!$D$2)),Calculos!$B$99:$AB$104,Calculos!$A$104,FALSE)),"") -> 
AE35: =+IF($AF$20="","","Total:") ->  | AF35: =IF(AF20="","",IF(OR(Calculos!$A$3=1,Calculos!$A$3=3),VLOOKUP(Calculos!$F$2,Calculos!$A$35:$E$38,5,FALSE),Calculos!$AC$35)) ->  | AM35: =+IF(OR(AM20="",AM22="",SUM(AL23:AL27)>2),"",(SUM(AM22:AQ27)/6)) ->  | AT35: =+IF(OR(AT20="",AT22=0,SUM(AS23:AS27)>2),"",SUM(AT22:AX27)/6) ->  | BA35: =+IF(OR(BA20="",BA22=0,SUM(AZ23:AZ27)>2),"",VLOOKUP(Calculos!$I$2,Calculos!S35:W41,5,FALSE)) -> 
B37: Considera los siguientes puntos para la comprobación de tu cliente. Estos puntos son INFORMACION CONFIDENCIAL solo utilizalos para un mejor perfilamiento de tu cliente con respecto a los documentos que debe presentar:
B39: =IFERROR(IF(AND(OR(Calculos!$B$3<>"",Calculos!$D$4<>""),Calculos!$A$2=2),HLOOKUP(ABS(CONCATENATE(Calculos!$A$3,Calculos!B2,Calculos!D2)),Calculos!$B$99:$AB$106,8,FALSE),HLOOKUP(ABS(CONCATENATE(Calculos!$A$3,Calculos!B2,Calculos!D2)),Calculos!$B$99:$AB$106,7,FALSE)),"") ->  | AE39: =IFERROR(IF(AR31="","","#"),"") ->  | AY39: =+IF(OR(AND(Calculos!$A$2=2,Calculos!$B$2=5),AND(Calculos!$A$2=3,Calculos!$C$2=5)),"Porcentaje Accionario","") -> 
AE40: =IFERROR(IF(AG40="","","#"),"") ->  | AG40: =IFERROR(IF(Calculos!A2=3,"2a Comprobación",""),"") -> 
AE41: =+IF(AG40="","",1) ->  | AO41: =IFERROR(IF(AND($AF$20<>"",Calculos!$A$2>1),"Actividad:",""),"") -> 
AE42: =+IF(AG40="","",2) -> 
AE43: =+IF(AG40="","",3) -> 
AE44: =+IF(AG40="","",4) ->  | AM44: =IF(Calculos!G2=TRUE,IFERROR(IF($AF$20="","",IF(OR(AND($AU$45<>"",$AU$47>=45000),AND($AU$45="",$AU$47>=45000)),"","No cumple con el ingreso mensual mínimo requerido, revise el ingreso fijo o ingrese Comprobación Adicional")),""),IF(Calculos!G6=TRUE,IFERROR(IF($AF$20="","",IF(OR(AND($AU$45<>"",$AU$47>=15000),AND($AU$45="",$AU$47>=45000)),"","No cumple con el ingreso mensual mínimo requerido, revise el ingreso fijo o ingrese Comprobación Adicional")),""),IFERROR(IF($AF$20="","",IF(OR(AND($AU$45<>"",$AU$45+$AU$47>=20000),AND($AU$45<>"",$AU$45>=15000),AND($AU$45="",$AU$47>=15000)),"","No cumple con el ingreso mensual mínimo requerido")),""))) -> 
AE45: =+IF(AG40="","",IF(AL45="","",5)) ->  | AL45: =+IF(AG40="","",IF(Calculos!$C$2=6,"",1)) ->  | AT45: =IF(AND($AF$20<>"",$AU$45<>""),"1er Participante:","") -> 
AE46: =+IF(AG40="","",IF(AL46="","",6)) ->  | AL46: =+IF(AG40="","",IF(Calculos!$C$2=6,"",1)) ->  | AU46: =IFERROR(IF($AF$20="","",IF(Calculos!$A$3=1,VLOOKUP(Calculos!$F$2,Calculos!$A$35:$E$38,5,FALSE)+SUM($AM$35,$AT$35,BA35)+Calculos!$AC$36,Calculos!$AC$36)+IF(AND(Calculos!$A$2=3,Calculos!$P$2=3),0,BA47)),"") -> 
AT47: =IF($AF$20="","",IF(AU45="","1er Participante:","2do Participante:")) ->  | AU47: =IFERROR(IF(Calculos!G2=TRUE,IFERROR(IF(OR($AF$35=0,$AF$35=""),"",IF(OR(Calculos!$A$3=1,Calculos!$A$3=3),VLOOKUP(Calculos!$F$2,Calculos!$A$35:$E$38,5,FALSE)+SUM($AM$35,$AT$35,$BA$35)+Calculos!$AC$35,Calculos!$AC$35)*AO16*0.774+IF(AND(Calculos!$A$25=3,Calculos!$P$2=3),0,BA47)),""),IFERROR(IF(OR($AF$35=0,$AF$35=""),"",IF(OR(Calculos!$A$3=1,Calculos!$A$3=3),VLOOKUP(Calculos!$F$2,Calculos!$A$35:$E$38,5,FALSE)+SUM($AM$35,$AT$35,$BA$35)+Calculos!$AC$35,Calculos!$AC$35)+IF(AND(Calculos!$A$25=3,Calculos!$P$2=3),0,BA47)),"")),"") -> 
AF48: =+IF($AG$40="","","Total:") ->  | AG48: =IF(AG40="","",IF(Calculos!$A$2=3,Calculos!$AD$35,"")) ->  | AL48: =IF(AR31="","",IF(Calculos!A2=3,Calculos!AC36,"")) -> 
AT49: Ingreso Mensual Total: | AU49: =IF(OR(AF35="",AF35=0),"",IF(AM44="",IF(Calculos!G2=TRUE,SUM(AU45,AU47),SUM(AU45,AU47)),"")) -> 
AD52: Elige el destino que deseas simular con este ingreso:
B55: =IFERROR(IF(Calculos!$A$2=3,"2a Comprobación",""),"") -> 
B57: =IFERROR(IF(Calculos!A2=3,"Documentación requerida como Independiente:",""),"") -> 
B59: =IF($B$57="","",HLOOKUP(ABS(CONCATENATE(Calculos!$A$4,Calculos!C2,Calculos!E2)),Calculos!$B$99:$R$104,Calculos!A100,FALSE)) -> 
B62: =IF($B$57="","",HLOOKUP(ABS(CONCATENATE(Calculos!$A$4,Calculos!B2,Calculos!D2)),Calculos!$B$99:$R$104,Calculos!A101,FALSE)) -> 
B65: =IF($B$57="","",HLOOKUP(ABS(CONCATENATE(Calculos!$A$4,Calculos!B2,Calculos!D2)),Calculos!$B$99:$R$104,Calculos!A102,FALSE)) -> 
B68: =IF($B$57="","",HLOOKUP(ABS(CONCATENATE(Calculos!$A$4,Calculos!B2,Calculos!D2)),Calculos!$B$99:$R$104,Calculos!A103,FALSE)) -> 
B71: =IF($B$57="","",HLOOKUP(ABS(CONCATENATE(Calculos!$A$4,Calculos!B2,Calculos!D2)),Calculos!$B$99:$R$104,Calculos!A104,FALSE)) -> 
B75: =IF($B$57="","","Considera los siguientes puntos para la comprobación de tu cliente. Estos puntos son información confidencial, sólo utilizalos para un mejor perfilamiento de tu cliente con respecto a los documentos que debe presentar:") -> 
B79: =IF($B$57="","",HLOOKUP(ABS(CONCATENATE(Calculos!$A$4,Calculos!B2,Calculos!D2)),Calculos!$B$99:$R$106,8,FALSE)) -> 

Sheet Calculos (hidden)
A1: Comprobante de Ingresos | AW1: Cambia Tu Hipoteca | CH1: ADQUISICION | DG1: VALIDACION ASESOR HIPOTECARIO O PROMOTOR | DP1: Liquidez | EU1: Cambia Tu Hipoteca más Liquidez
B2: 1 | C2: 1 | D2: 1 | E2: 2 | F2: 1 | I2: 1 | M2: 1 | BC2: 1 | BD2: 2 | BE2: 3 | BF2: 4 | EZ2: =+IF(EY4<=EZ26,IF(FD26-EY4<FB26,FD26-EY4,FB26),IF(EY4<=EZ25,IF(FD25-EY4<=FB25,FD25-EY4,FB25),IF(EY4<=EZ24,IF(FD24-EY4<=FB24,FD24-EY4,FB24),IF(EY4<=EZ23,IF(FD23-EY4<=FB23,FD23-EY4,FB23),0)))) -> 0.4 | FA2: 1 | FB2: 2 | FC2: 3 | FD2: 4
A3: =IF(A2=3,1,IF(A2=4,3,A2)) -> 0 | D3: =ABS(CONCATENATE(A2,B2,D2)) -> 11 | AW3: POLITICAS | AX3: AÑOS | AY3: MESES | BB3: CTH | BC3: MUY BAJO | BD3: BAJO | BE3: MEDIO | BF3: ALTO | BH3: MERCADO ABIERTO | BI3: AFORO MIN | BJ3: AFORO MAX | BK3: TASA | BN3: VALOR MIN | BO3: VALOR MAX | BP3: COSTO CIVA | BQ3: COSTO SIVA | BR3: OFE VALOR CIVA | BS3: OFE VALOR SIVA | BZ3: < 8MM | CA3: 8 - 14 MM | CB3: >14MM | CK3: =FACTORDAÑOS -> 0.0003 | DH3: =AND(LEN(DG3)=7,ISERROR(VALUE(MID(DG3,1,1))),ISERROR(VALUE(MID(DG3,2,1))),ISERROR(VALUE(MID(DG3,3,5)))=FALSE)=TRUE -> FALSE | DK3: Producto solicitado | EU3: POLITICAS | EV3: AÑOS | EW3: MESES | EZ3: CTH | FA3: MUY BAJO | FB3: BAJO | FC3: MEDIO | FD3: ALTO | FF3: MERCADO ABIERTO | FG3: AFORO MIN | FH3: AFORO MAX | FI3: TASA | FL3: VALOR MIN | FM3: VALOR MAX | FN3: COSTO CIVA | FO3: COSTO SIVA | FP3: OFE VALOR CIVA | FQ3: OFE VALOR SIVA | FX3: < 8MM | FY3: 8 - 14 MM | FZ3: >14MM
A4: =IF(A2=3,2,"") ->  | AW4: EDAD MIN ASALARIADO <6MM | AX4: 23 | AY4: =AX4*12 -> 276 | BB4: DTI | BC4: 0.5 | BD4: 0.5 | BE4: =IF(BK28=1,BD4,45%) -> 0.5 | BF4: 0 | BI4: 0 | BJ4: =IF(OR(AND(AW28>1,AY28=3,AX28=2),AND(AW28=1,AY28=2,AX28=2)),0.75,IF(AND(AW28=1,AY28=3,AX28=2),0.7,0.79999999)) -> 0.79999999 | BK4: =IF(AND($BK$28=2,AW28=1),IF($AY$28<3,10%,11%),IF(AND($BK$28=2,OR($AW$28=2,$AW$28=3)),IF($AY$28<3,9.8%,10.75%),IF(AND($BK$28=2,$AW$28>3),IF($AY$28<3,8.95%,10%),IF(OR($AW$28=4,AND($BK$28=1,$AX$59>=3000000)),IF($AY$28<3,8.95%,10%),IF(OR($AW$28=2,$AW$28=3),IF($AY$28<3,9.8%,10.75%)))))) -> 0.098 | BN4: 500000 | BO4: 1000000 | BP4: 3500 | BQ4: =IFERROR(BP4/1.16,BP4) -> 3017.241379 | BR4: =IFERROR(BP4/2,BP4) -> 1750 | BS4: =IFERROR(BQ4/2,BP4) -> 1508.62069 | BX4: ASALARIADO | BY4: MUY BAJO | BZ4: 85%/90% | CA4: 0.75 | CB4: 0.6 | DD4: =+IF(OR(Calculos!CZ5=1,Calculos!CZ5=4),"Financiados","") -> Financiados | DK4: Adquisición | EU4: EDAD MIN ASALARIADO <6MM | EV4: 30 | EW4: =EV4*12 -> 360 | EZ4: DTI | FA4: 0.5 | FB4: 0.5 | FC4: 0.45 | FD4: 0 | FG4: 0 | FH4: =IF(AND(EU28=1,EW28>1),"",IF(EW28<2,0.69999999,0.5)) -> 0.69999999 | FI4: =IF(AND($FI$28=2,$EU$28=1),IF($EW$28<3,10%,11%),IF(AND($FI$28=2,OR($EU$28=2,$EU$28=3)),IF($EW$28<3,9.9%,10.75%),IF(AND($FI$28=2,$EU$28>3),IF($EW$28<3,8.95%,10%),IF(OR($EU$28=4,AND($FI$28=1,$EY$57>=3000000)),IF($EW$28<3,8.95%,10%),IF(OR($EU$28=2,$EU$28=3),IF($EW$28<3,9.9%,10.75%)))))) -> 0.099 | FL4: 500000 | FM4: 1000000 | FN4: 0 | FO4: =IFERROR(FN4/1.16,FN4) -> 0 | FP4: =IFERROR(FN4/2,FN4) -> 0 | FQ4: =IFERROR(FO4/2,FN4) -> 0 | FV4: ASALARIADO | FW4: MUY BAJO | FX4: 85%/90% | FY4: 0.75 | FZ4: 0.6
A5: Tipo de Ingreso | B5: Segmento | C5: Segmento 2 | D5: Comprobacion | E5: Comprobacion 2 | F5: Periodicidad | G5: Asalariado en USA | H5: Horas Extras | I5: Bonos | J5: Independiente | K5: Actividad | L5: Porcentaje | M5: Actividad Prof | P5: OTROINGRESO | AW5: EDAD MIN INDEPENDI <6MM | AX5: 28 | AY5: =AX5*12 -> 336 | BB5: PTI | BC5: 0.45 | BD5: 0.45 | BE5: =IF(BK28=1,BD5,40%) -> 0.45 | BF5: 0 | BI5: =IF(OR(BJ4=0.75,BJ4=0.7),"",0.8) -> 0.8 | BJ5: =IF(BI5="","",IF(BK28=1,0.9,IF(AX28=1,IF(AY28<3,0.9,0.8),IF(AY28=1,0.9,0.85)))) -> 0.9 | BK5: =IF(BJ5="","",IF(AND($BK$28=2,AW28=1),IF($AY$28<3,10.75%,11.5%),IF(AND($BK$28=2,OR($AW$28=2,$AW$28=3)),IF($AY$28<3,10.2%,11%),IF(AND($BK$28=2,$AW$28>3),IF($AY$28<3,9.5%,10.5%),IF(OR($AW$28=4,AND($BK$28=1,$AX$59>=3000000)),IF($AY$28<3,9.5%,10.5%),IF(OR($AW$28=2,$AW$28=3),IF($AY$28<3,10.2%,11%))))))) -> 0.102 | BN5: 1000001 | BO5: 3000000 | BP5: 5500 | BQ5: 4741.37931 | BR5: 2750 | BS5: 2370.689655 | BY5: BAJO | BZ5: 85%/90% | CA5: 0.75 | CB5: 0.6 | CO5: 3 | CP5: 1 | CQ5: 1 | CR5: 1 | CS5: 1 | CT5: 1 | CU5: 1 | CV5: 1 | CW5: 1 | CX5: 9 | CY5: 2 | CZ5: 1 | DA5: 1 | DC5: 1 | DD5: 2 | DF5: 1 | DT5: 2 | DV5: 2 | DW5: 1 | DX5: 1 | DY5: 1 | DZ5: 1 | EA5: 1 | EB5: 1 | EC5: 1 | ED5: 1 | EE5: 10 | EF5: 2 | EG5: 1 | EH5: 2 | EJ5: 1 | EK5: 2 | EU5: EDAD MIN INDEPENDI <6MM | EV5: 30 | EW5: =EV5*12 -> 360 | EZ5: PTI | FA5: 0.45 | FB5: 0.45 | FC5: 0.4 | FD5: 0 | FG5: =IF(OR(EW28>2),"",0.7) -> 0.7 | FH5: =IF(AND(EU28=1,EW28=2),"",IF(OR(EW28>2),"",IF(OR(EU28=1,EW28=2),0.7,0.8))) -> 0.8 | FI5: =IF(FH5="","",IF(AND($FI$28=2,$EU$28=1),IF($EW$28<3,10.95%,""),IF(AND($FI$28=2,OR($EU$28=2,$EU$28=3)),IF($EW$28<3,10.45%,""),IF(AND($FI$28=2,$EU$28>3),IF($EW$28<3,9.55%,""),IF(OR($EU$28=4,AND($FI$28=1,$EY$57>=3000000)),IF($EW$28<3,9.55%,""),IF(OR($EU$28=2,$EU$28=3),IF($EW$28<3,10.45%,""))))))) -> 0.1045 | FL5: 1000001 | FM5: 3000000 | FN5: 0 | FO5: 0 | FP5: 0 | FQ5: 0 | FW5: BAJO | FX5: 85%/90% | FY5: 0.75 | FZ5: 0.6
A6: =VLOOKUP($A$2,$A$64:$B$67,2,0) ->  | B6: =IFERROR(INDEX($D$64:$D$73,MATCH($A$3&0,$C$64:$C$73&INDEX(COUNTIF($B$5:B5,$D$64:$D$73),0,0),0)),"") ->  | C6: =IF($A$2=3,IFERROR(INDEX($D$64:$D$73,MATCH($A$4&0,$C$64:$C$73&INDEX(COUNTIF($C$5:C5,$D$64:$D$73),0,0),0)),""),"") ->  | D6: =IF(A2="","",IFERROR(IF($A$3=1,VLOOKUP($B$2,$E$64:$H$65,2,0),IF($A$3=2,VLOOKUP($B$2,$E$66:$H$71,2,0),VLOOKUP($B$2,$E$72:$H$73,2,0))),"")) ->  | E6: =IFERROR(IF($A$2=3,VLOOKUP($C$2,$E$66:$G$71,2,FALSE),""),"") ->  | M6: 1 | N6: =IFERROR(IF(AND($A$2>1,$A$2<4),INDEX($AL$35:$AL$72,MATCH(IF($A$2=2,$B$2,$C$2)&0,$AK$35:$AK$72&INDEX(COUNTIF($N$5:N5,$AL$35:$AL$72),0,0),0)),""),"") ->  | O6: =IFERROR(IF(AND($A$2>1,$A$2<4),INDEX($AM$35:$AM$72,MATCH($N6,$AL$35:$AL$72,0)),""),"") ->  | AW6: EDAD MINIMA >6MM | AX6: 30 | AY6: =AX6*12 -> 360 | BN6: 3000001 | BO6: 5000000 | BP6: 7500 | BQ6: 6465.517241 | BR6: 3750 | BS6: 3232.758621 | BY6: MEDIO | BZ6: 80%/85% | CA6: 0.65 | CB6: 0.5 | CI6: POLITICAS | CJ6: AÑOS | CO6: SEGMENTO | CP6: SOLICITADO | CQ6: RIESGO | CR6: INGRESO | CS6: SEGUROS | CT6: SEG VIDA | CU6: EXTRAPRIMA | CV6: PLAZO PF | CW6: PLAZO ATM | CX6: GASTOS NOT | CY6: AMARRA | CZ6: Adquisicion | DA6: DEUDAS | DB6: DESARROLLO | DC6: PLAZA | DD6: GASTOS | DE6: Asalariado en USA | DF6: Cliente nómina Banamex | DQ6: POLITICAS | DR6: AÑOS | DT6: Tu Hipoteca sin Comisión | DV6: SEGMENTO | DW6: SOLICITADO | DX6: RIESGO | DY6: INGRESO | DZ6: SEGUROS | EA6: SEG VIDA | EB6: EXTRAPRIMA | EC6: PLAZO PF | ED6: PLAZO ATM | EE6: GASTOS NOT | EF6: AMARRA | EG6: Adquisicion | EH6: DEUDAS | EI6: DESARROLLO | EJ6: PLAZA | EK6: GASTOS | EL6: Asalariado en USA | EU6: EDAD MINIMA >6MM | EV6: 30 | EW6: =EV6*12 -> 360 | FL6: 3000001 | FM6: 5000000 | FN6: 0 | FO6: 0 | FP6: 0 | FQ6: 0 | FW6: MEDIO | FX6: 80%/85% | FY6: 0.65 | FZ6: 0.5
B7: =IFERROR(INDEX($D$64:$D$73,MATCH($A$3&0,$C$64:$C$73&INDEX(COUNTIF($B$5:B6,$D$64:$D$73),0,0),0)),"") ->  | C7: =IF($A$2=3,IFERROR(INDEX($D$64:$D$73,MATCH($A$4&0,$C$64:$C$73&INDEX(COUNTIF($C$5:C6,$D$64:$D$73),0,0),0)),""),"") ->  | D7: =IF(A2="","",IFERROR(IF($A$3=1,VLOOKUP($B$2,$E$64:$H$65,3,0),IF($A$3=2,IF(VLOOKUP($B$2,$E$66:$H$71,3,0)=0,"",VLOOKUP($B$2,$E$66:$H$71,3,0)),IF(VLOOKUP($B$2,$E$72:$H$73,3,0)=0,"",VLOOKUP($B$2,$E$72:$H$73,3,0)))),"")) ->  | E7: =+IFERROR(IF($A$2=3,IF(VLOOKUP($C$2,$E$66:$G$71,3,FALSE)=0,"",VLOOKUP($C$2,$E$66:$G$71,3,FALSE)),""),"") ->  | M7: 2 | N7: =IFERROR(IF(AND($A$2>1,$A$2<4),INDEX($AL$35:$AL$72,MATCH(IF($A$2=2,$B$2,$C$2)&0,$AK$35:$AK$72&INDEX(COUNTIF($N$5:N6,$AL$35:$AL$72),0,0),0)),""),"") ->  | O7: =IFERROR(IF($A$2>1,INDEX($AM$35:$AM$72,MATCH($N7,$AL$35:$AL$72,0)),""),"") ->  | AW7: EDAD MAXIMA | AX7: 74 | AY7: =(69*12)+11 -> 839 | BN7: 5000001 | BO7: 8000000 | BP7: 10500 | BQ7: 9051.724138 | BR7: 5250 | BS7: 4525.862069 | BY7: ALTO | BZ7: 0.75 | CA7: 0.5 | CB7: 0.5 | CI7: EDAD MIN ASALARIADO <6MM | CJ7: =$AX$4 -> 23 | CN7: 1 | CO7: =IF(DF5=2,"No Cliente","") ->  | CP7: Monto Solicitado | CQ7: Muy Bajo | CR7: Asalariado | CS7: Vida Y Daños | CT7: Saldo Insoluto | CU7: Sin Extraprima | CV7: 20 | CW7: 20 | CX7: 0.01 | CY7: Si | CZ7: Adquisicion | DA7: Saldos Totales | DB7: Si | DC7: MacroPlaza(CDMX, GDL, MTY) | DD7: =+IF(OR(Calculos!CZ5=1,Calculos!CZ5=4),"Financiados","") -> Financiados | DF7: Si | DQ7: EDAD MIN ASALARIADO | DR7: 30 | DT7: Si | DU7: 1 | DV7: Cliente Blue | DW7: Monto Solicitado | DX7: Muy Bajo | DY7: Asalariado | DZ7: Vida Y Daños | EA7: Saldo Insoluto | EB7: Sin Extraprima | EC7: 20 | ED7: 20 | EE7: 0.01 | EF7: Si | EG7: Adquisicion | EH7: Saldos Totales | EI7: Si | EJ7: MacroPlaza(CDMX, GDL, MTY) | EK7: Financiados | EU7: EDAD MAXIMA | EV7: 74 | EW7: =(69*12)+11 -> 839 | FL7: 5000001 | FM7: 8000000 | FN7: 0 | FO7: 0 | FP7: 0 | FQ7: 0 | FW7: ALTO | FX7: 0.75 | FY7: 0.5 | FZ7: 0.5
B8: =IFERROR(INDEX($D$64:$D$73,MATCH($A$3&0,$C$64:$C$73&INDEX(COUNTIF($B$5:B7,$D$64:$D$73),0,0),0)),"") ->  | C8: =IF($A$2=3,IFERROR(INDEX($D$64:$D$73,MATCH($A$4&0,$C$64:$C$73&INDEX(COUNTIF($C$5:C7,$D$64:$D$73),0,0),0)),""),"") ->  | D8: =IF(A2="","",IFERROR(IF($A$3=1,IF(VLOOKUP($B$2,$E$64:$H$65,4,0)=0,"",VLOOKUP($B$2,$E$64:$H$65,4,0)),IF($A$3=2,IF(VLOOKUP($B$2,$E$66:$H$71,4,0)=0,"",VLOOKUP($B$2,$E$66:$H$71,4,0)),IF(VLOOKUP($B$2,$E$72:$H$73,4,0)=0,"",VLOOKUP($B$2,$E$72:$H$73,4,0)))),"")) ->  | E8: =+IFERROR(IF($A$2=3,IF(VLOOKUP($C$2,$E$66:$G$71,4,FALSE)=0,"",VLOOKUP($C$2,$E$66:$G$71,4,FALSE)),""),"") ->  | M8: 3 | N8: =IFERROR(IF(AND($A$2>1,$A$2<4),INDEX($AL$35:$AL$72,MATCH(IF($A$2=2,$B$2,$C$2)&0,$AK$35:$AK$72&INDEX(COUNTIF($N$5:N7,$AL$35:$AL$72),0,0),0)),""),"") ->  | AW8: EDAD + PLAZO | AX8: 84 | AY8: =(84*12)+11 -> 1019 | BH8: SEGMENTO PREFERENTE | BI8: AFORO MIN | BJ8: AFORO MAX | BK8: TASA | BN8: 8000001 | BO8: 15000000 | BP8: 15500 | BQ8: 13362.06897 | BR8: 7750 | BS8: 6681.034483 | BX8: INDEPENDIENTE | BY8: MUY BAJO | BZ8: 0.8 | CA8: 0.7 | CB8: 0.55 | CI8: EDAD MIN INDEPENDIENTE >6MM | CJ8: =$AX$5 -> 28 | CN8: 2 | CO8: =IF(DF5=1,"","Cliente Blue") ->  | CP8: Enganche | CQ8: Bajo | CR8: Independiente | CS8: Solo Vida | CT8: Monto Original | CU8: Medica | CV8: 15 | CX8: 0.015 | CY8: No | CZ8: Cofinavit | DA8: Pagos Mensuales | DB8: No | DC8: Resto de la República | DD8: Contado | DF8: No | DQ8: EDAD MIN INDEPENDIENTE | DR8: 30 | DT8: No | DU8: 2 | DV8: Cliente Priority | DW8: Enganche | DX8: Bajo | DY8: Independiente | DZ8: Solo Vida | EA8: Monto Original | EB8: Medica | EC8: 15 | EE8: 0.015 | EF8: No | EG8: Cofinavit | EH8: Pagos Mensuales | EI8: No | EJ8: Resto de la República | EK8: Contado | EU8: EDAD + PLAZO | EV8: 84 | EW8: =(84*12)+11 -> 1019 | EZ8: Liquidez | FF8: SEGMENTO PREFERENTE | FG8: AFORO MIN | FH8: AFORO MAX | FI8: TASA | FL8: 8000001 | FM8: 15000000 | FN8: 0 | FO8: 0 | FP8: 0 | FQ8: 0 | FV8: INDEPENDIENTE | FW8: MUY BAJO | FX8: 0.8 | FY8: 0.7 | FZ8: 0.55
B9: =IFERROR(INDEX($D$64:$D$73,MATCH($A$3&0,$C$64:$C$73&INDEX(COUNTIF($B$5:B8,$D$64:$D$73),0,0),0)),"") ->  | C9: =IF($A$2=3,IFERROR(INDEX($D$64:$D$73,MATCH($A$4&0,$C$64:$C$73&INDEX(COUNTIF($C$5:C8,$D$64:$D$73),0,0),0)),""),"") ->  | M9: 4 | N9: =IFERROR(IF(AND($A$2>1,$A$2<4),INDEX($AL$35:$AL$72,MATCH(IF($A$2=2,$B$2,$C$2)&0,$AK$35:$AK$72&INDEX(COUNTIF($N$5:N8,$AL$35:$AL$72),0,0),0)),""),"") ->  | AW9: CONTINUIDAD LAB ASALARIADO | AX9: 1 | BI9: 0 | BJ9: =IF(OR(AND(AW28>1,AY28=3,AX28=2),AND(AW28=1,AY28=2,AX28=2)),0.75,IF(AND(AW28=1,AY28=3,AX28=2),0.7,0.79999999)) -> 0.79999999 | BK9: =IF(AND($BK$28=2,AW28=1),IF($AY$28<3,10%,11%),IF(AND($BK$28=2,OR($AW$28=2,$AW$28=3)),IF($AY$28<3,9.8%,10.75%),IF(AND($BK$28=2,$AW$28>3),IF($AY$28<3,8.95%,10%),IF(OR($AW$28=4,AND($BK$28=1,$AX$59>=3000000)),IF($AY$28<3,8.95%,10%),IF(OR($AW$28=2,$AW$28=3),IF($AY$28<3,9.8%,10.75%)))))) -> 0.098 | BN9: 15000000 | BP9: =IF('Cambia Tu Hipoteca'!J15>15000000,((('Cambia Tu Hipoteca'!J15-10000000)*1.05)/1000)+14990-15500,0) -> 0 | BQ9: 0 | BR9: 0 | BS9: 0 | BY9: BAJO | BZ9: 0.8 | CA9: 0.7 | CB9: 0.55 | CI9: EDAD MINIMA >6MM | CJ9: =$AX$6 -> 30 | CN9: 3 | CO9: =IF(DF5=2,"Cliente Priority","Cliente Priority o Nómina") -> Cliente Priority o Nómina | CQ9: Medio | CS9: Solo Daños | CU9: Ocupacional | CV9: 10 | CX9: 0.02 | CZ9: Cofinavit Conyugal | DD9: Gratis | DQ9: EDAD MINIMA >6MM | DR9: =$AX$6 -> 30 | DU9: 3 | DV9: Cliente Gold | DX9: Medio | DZ9: Solo Daños | EB9: Ocupacional | EC9: 10 | EE9: 0.02 | EG9: Cofinavit Conyugal | EK9: Gratis | EU9: CONTINUIDAD LAB ASALARIADO | EV9: 1 | EZ9: SEGMENTO PREFERENTE | FA9: AFORO MIN | FB9: AFORO MAX | FC9: TASA | FG9: 0 | FH9: =IF(AND(EU28=1,EW28>1),"",IF(EW28<2,0.69999999,0.5)) -> 0.69999999 | FI9: =IF(AND($FI$28=2,$EU$28=1),IF($EW$28<3,10%,11%),IF(AND($FI$28=2,OR($EU$28=2,$EU$28=3)),IF($EW$28<3,9.9%,10.75%),IF(AND($FI$28=2,$EU$28>3),IF($EW$28<3,8.95%,10%),IF(OR($EU$28=4,AND($FI$28=1,$EY$57>=3000000)),IF($EW$28<3,8.95%,10%),IF(OR($EU$28=2,$EU$28=3),IF($EW$28<3,9.9%,10.75%)))))) -> 0.099 | FL9: 15000000 | FN9: =IF('Cambia Tu Hipoteca mas Liquidez'!J17>15000000,((('Cambia Tu Hipoteca mas Liquidez'!J17-10000000)*1.05)/1000)+14990-15500,0) -> 0 | FO9: 0 | FP9: 0 | FQ9: 0 | FW9: BAJO | FX9: 0.8 | FY9: 0.7 | FZ9: 0.55
B10: =IFERROR(INDEX($D$64:$D$73,MATCH($A$3&0,$C$64:$C$73&INDEX(COUNTIF($B$5:B9,$D$64:$D$73),0,0),0)),"") ->  | C10: =IF($A$2=3,IFERROR(INDEX($D$64:$D$73,MATCH($A$4&0,$C$64:$C$73&INDEX(COUNTIF($C$5:C9,$D$64:$D$73),0,0),0)),""),"") ->  | M10: 5 | N10: =IFERROR(IF(AND($A$2>1,$A$2<4),INDEX($AL$35:$AL$72,MATCH(IF($A$2=2,$B$2,$C$2)&0,$AK$35:$AK$72&INDEX(COUNTIF($N$5:N9,$AL$35:$AL$72),0,0),0)),""),"") ->  | AW10: CONTINUIDAD LAB INDEPENDIEN | AX10: 2 | BI10: =IF(OR(BJ9=0.75,BJ9=0.7),"",0.8) -> 0.8 | BJ10: =IF(BI10="","",IF(BK28=1,0.9,IF(AX28=1,IF(AY28<3,0.9,0.8),IF(AY28=1,0.9,0.85)))) -> 0.9 | BK10: =IF(BJ10="","",IF(BJ5="","",IF(AND($BK$28=2,AW28=1),IF($AY$28<3,10.75%,11.5%),IF(AND($BK$28=2,OR($AW$28=2,$AW$28=3)),IF($AY$28<3,10.2%,11%),IF(AND($BK$28=2,$AW$28>3),IF($AY$28<3,9.5%,10.5%),IF(OR($AW$28=4,AND($BK$28=1,$AX$59>=3000000)),IF($AY$28<3,9.5%,10.5%),IF(OR($AW$28=2,$AW$28=3),IF($AY$28<3,10.2%,11%)))))))) -> 0.102 | BY10: MEDIO | BZ10: 0.75 | CA10: 0.65 | CB10: 0.5 | CI10: EDAD MAXIMA | CJ10: 74 | CK10: 59 | CN10: 4 | CO10: Cliente Gold | CQ10: Marginal | CS10: Externos | CX10: 0.025 | CZ10: Apoyo Infonavit | DQ10: EDAD MAXIMA | DR10: 74 | DU10: 4 | DX10: Marginal | DZ10: Externos | EE10: 0.025 | EG10: Apoyo Infonavit | EU10: CONTINUIDAD LAB INDEPENDIEN | EV10: 2 | FA10: 0 | FB10: 0.4 | FC10: =+EW61 ->  | FG10: =IF(OR(EW28>2),"",0.7) -> 0.7 | FH10: =IF(AND(EU28=1,EW28=2),"",IF(OR(EW28>2),"",IF(OR(EU28=1,EW28=2),0.7,0.8))) -> 0.8 | FI10: =IF(FH10="","",IF(AND($FI$28=2,$EU$28=1),IF($EW$28<3,10.95%,""),IF(AND($FI$28=2,OR($EU$28=2,$EU$28=3)),IF($EW$28<3,10.45%,""),IF(AND($FI$28=2,$EU$28>3),IF($EW$28<3,9.55%,""),IF(OR($EU$28=4,AND($FI$28=1,$EY$57>=3000000)),IF($EW$28<3,9.55%,""),IF(OR($EU$28=2,$EU$28=3),IF($EW$28<3,10.45%,""))))))) -> 0.1045 | FW10: MEDIO | FX10: 0.75 | FY10: 0.65 | FZ10: 0.5
B11: =IFERROR(INDEX($D$64:$D$73,MATCH($A$3&0,$C$64:$C$73&INDEX(COUNTIF($B$5:B10,$D$64:$D$73),0,0),0)),"") ->  | C11: =IF($A$2=3,IFERROR(INDEX($D$64:$D$73,MATCH($A$4&0,$C$64:$C$73&INDEX(COUNTIF($C$5:C10,$D$64:$D$73),0,0),0)),""),"") ->  | M11: 6 | N11: =IFERROR(IF(AND($A$2>1,$A$2<4),INDEX($AL$35:$AL$72,MATCH(IF($A$2=2,$B$2,$C$2)&0,$AK$35:$AK$72&INDEX(COUNTIF($N$5:N10,$AL$35:$AL$72),0,0),0)),""),"") ->  | AW11: INGRESO MINIMO | AX11: 15000 | BC11: =IF(AND($BK$28=1,MIN(AX56:AX59>=3000000)),9.25%,10%) -> 0.1 | BD11: SI(O($BK$28=1,$AW$28=4),SI($AY$28<3,9.25%,11%),SI($AW$28>1,SI($AY$28<3,10.25%,11.25%),SI($AY$28<3,10.25%,11.25%))) | BE11: SI(O($AW$28=4),SI($AY$28<3,9.25%,11%),SI($AW$28>1,SI($AY$28<3,10.25%,11.25%),SI($AY$28<3,10.25%,11.25%))) | CI11: EDAD + PLAZO | CJ11: 84 | CK11: 79 | CN11: 5 | CO11: =IF(CO5<>0,"","Oferta De Valor") ->  | CX11: 0.03 | DQ11: EDAD + PLAZO | DR11: 84 | DU11: 5 | EE11: 0.03 | EU11: INGRESO MINIMO | EV11: 35000 | FF11: =+MAX(FH9:FH11) -> 0.8
M12: 7 | N12: =IFERROR(IF(AND($A$2>1,$A$2<4),INDEX($AL$35:$AL$72,MATCH(IF($A$2=2,$B$2,$C$2)&0,$AK$35:$AK$72&INDEX(COUNTIF($N$5:N11,$AL$35:$AL$72),0,0),0)),""),"") ->  | AW12: CREDITO MINIMO | AX12: 300000 | BC12: =IF(OR($BK$28=2,AW28=1),IF($AY$28<3,10%,11%),IF(OR($AW$28=4,AND($BK$28=1,MIN($AX$56:$AX$59)>=3000000)),IF($AY$28<3,8.95%,10%),IF(OR($AW$28=2,$AW$28=3),IF($AY$28<3,9.8%,10.75%)))) -> 0.098 | BD12: SI(BJ5="","",SI(O($BK$28=1,$AW$28=4),SI($AY$28<3,10.5%,11.25%),SI($AW$28>1,SI($AY$28<3,10.75%,11.5%),SI($AY$28<3,10.75%,11.5%)))) | BE12: SI(O($AW$28=4),SI($AY$28<3,10.5%,11.25%),SI($AW$28>1,SI($AY$28<3,10.75%,11.5%),SI($AY$28<3,10.75%,11.5%)))) | CI12: CONTINUIDAD LAB ASALARIADO | CJ12: =$AX$9 -> 1 | CN12: 6 | CO12: =IF($CR$5=2,"","Asalariado BELVO (Blue+Priority)") -> Asalariado BELVO (Blue+Priority) | CX12: 0.035 | DQ12: CONTINUIDAD LAB ASALARIADO | DR12: =$AX$9 -> 1 | DU12: 6 | EE12: 0.035 | EU12: CREDITO MINIMO | EV12: 300000
M13: 8 | N13: =IFERROR(IF(AND($A$2>1,$A$2<4),INDEX($AL$35:$AL$72,MATCH(IF($A$2=2,$B$2,$C$2)&0,$AK$35:$AK$72&INDEX(COUNTIF($N$5:N12,$AL$35:$AL$72),0,0),0)),""),"") ->  | AW13: CREDITO MAXIMO | AX13: 20000000 | BC13: =IF($BK$28=2,IF($AY$28<3,10.75%,11.5%),IF(OR($AW$28=4,AND($BK$28=1,MIN($AX$56:$AX$59)>=3000000)),IF($AY$28<3,9.5%,10.5%),IF(OR($AW$28=2,$AW$28=3),IF($AY$28<3,10.2%,11%)))) -> 0.102 | BH13: >8 mdp | BI13: AFORO MIN | BJ13: AFORO MAX | BK13: TASA | CI13: CONTINUIDAD LAB INDEPENDIEN | CJ13: =$AX$10 -> 2 | CM13: 1 | CN13: 7 | CO13: =IF($CR$5=2,"","Desarrollos BELVO (Blue+Priority)") -> Desarrollos BELVO (Blue+Priority) | CX13: 0.04 | DQ13: CONTINUIDAD LAB INDEPENDIEN | DR13: =$AX$10 -> 2 | DU13: 7 | EE13: 0.04 | EU13: CREDITO MAXIMO | EV13: 20000000 | FB13: =IF(OR(EU28=4,AND(FI28=1,EV57>=3000000)),IF(EW28<3,8.95%,10%),"") ->  | FF13: >8 mdp | FG13: AFORO MIN | FH13: AFORO MAX | FI13: TASA
M14: 9 | N14: =IFERROR(IF(AND($A$2>1,$A$2<4),INDEX($AL$35:$AL$72,MATCH(IF($A$2=2,$B$2,$C$2)&0,$AK$35:$AK$72&INDEX(COUNTIF($N$5:N13,$AL$35:$AL$72),0,0),0)),""),"") ->  | AW14: VIVIENDA MINIMO MACROPLAZA | AX14: 1000000 | BI14: 0 | BJ14: =IF(OR(AND(AW28>1,AY28=3,AX28=2),AND(AW28=1,AY28=2,AX28=2)),0.75,IF(AND(AW28=1,AY28=3,AX28=2),0.7,0.79999999)) -> 0.79999999 | BK14: =IF(OR((AW28=4),AND($BK$28=1,AX59>=3000000)),IF(AY28<3,8.95%,10%)) -> FALSE | CI14: INGRESO MINIMO | CJ14: =$AX$11 -> 15000 | CM14: Comisión Apertura | CN14: 8 | CO14: =IF($CR$5=2,"","Asalariado BELVO (Gold)") -> Asalariado BELVO (Gold) | CX14: 0.045 | DQ14: INGRESO MINIMO | DR14: 35000 | DU14: 8 | EE14: 0.045 | EU14: VIVIENDA MINIMO MACROPLAZA | EV14: 1000000 | FG14: 0 | FH14: =IF(AND(EU28=1,EW28>1),"",IF(EW28<2,0.69999999,0.5)) -> 0.69999999 | FI14: =IF(OR(EU28=4,AND(FI28=1,EY57>=3000000)),IF(EW28<3,8.95%,10%),"") -> 
M15: 10 | N15: =IFERROR(IF(AND($A$2>1,$A$2<4),INDEX($AL$35:$AL$72,MATCH(IF($A$2=2,$B$2,$C$2)&0,$AK$35:$AK$72&INDEX(COUNTIF($N$5:N14,$AL$35:$AL$72),0,0),0)),""),"") ->  | AW15: VIVIENDA MINIMO RESTO | AX15: 750000 | BI15: =IF(OR(BJ14=0.75,BJ14=0.7),"",0.8) -> 0.8 | BJ15: =IF(BI15="","",IF(BK28=1,0.9,IF(AX28=1,IF(AY28<3,0.9,0.8),IF(AY28=1,0.9,0.85)))) -> 0.9 | BK15: =IF(BJ15="","",IF(OR((AW28=4),AND($BK$28=1,AX59>=3000000)),IF(AY28<3,9.5%,10.5%))) -> FALSE | CI15: CREDITO MINIMO | CJ15: =$AX$12 -> 300000 | CM15: Si | CN15: 9 | CO15: =IF($CR$5=2,"","Desarrollos BELVO (Gold)") -> Desarrollos BELVO (Gold) | CX15: 0.05 | DQ15: CREDITO MINIMO | DR15: =$AX$12 -> 300000 | DU15: 9 | EE15: 0.05 | EU15: VIVIENDA MINIMO RESTO | EV15: 750000 | EX15: Nivel de riesgo | EY15: CTH | EZ15: LIQ | FA15: CTH+LIQ | FB15: AFORO MAX | FC15: LIQ AJUSTADA | FG15: =IF(OR(EW28>2),"",0.7) -> 0.7 | FH15: =IF(AND(EU28=1,EW28=2),"",IF(OR(EW28>2),"",IF(OR(EU28=1,EW28=2),0.7,0.8))) -> 0.8 | FI15: =IF(FH15="","",IF(OR(EU28=4,AND(FI28=1,EY57>=3000000)),IF(EW28<3,9.55%,""),"")) -> 
M16: 11 | N16: =IFERROR(IF(AND($A$2>1,$A$2<4),INDEX($AL$35:$AL$72,MATCH(IF($A$2=2,$B$2,$C$2)&0,$AK$35:$AK$72&INDEX(COUNTIF($N$5:N15,$AL$35:$AL$72),0,0),0)),""),"") ->  | AW16: FACTOR SEG VIDA | AX16: 0.000474 | BB16: SI(Y($BK$28=2,AW28=1),SI($AY$28<3,10.75%,11.50%),SI(Y($BK$28=2,O($AW$28=2,$AW$28=3)),SI($AY$28<3,10.20%,11%),SI(Y($BK$28=2,$AW$28>3),SI($AY$28<3,9.50%,10.50%),SI(O($AW$28=4,Y($BK$28=1,$AX$59>=3000000)),SI($AY$28<3,9.50%,10.50%),SI(O($AW$28=2,$AW$28=3),SI($AY$28<3,10.20%,11%)))))) | CI16: CREDITO MAXIMO | CJ16: =$AX$13 -> 20000000 | CK16: 8000000 | CM16: No | CN16: 10 | CX16: 0.055 | DQ16: CREDITO MAXIMO | DR16: 8000000 | DU16: 10 | EE16: 0.055 | EU16: FACTOR SEG VIDA | EV16: =$AX$16 -> 0.000474 | EX16: VL | EY16: =EW60 ->  | EZ16: =+FB16-EY16 ->  | FA16: =+SUM(EY16:EZ16) ->  | FB16: 0.8 | FC16: =+IF(EW28=1,EZ16,IF(EW28=2,EZ17,IF(EW28=3,EZ18,0))) ->  | FD16: =+IF(EW28=1,MAX(0,MIN(IF(EY16<=EZ26,FB26,IF(EY16<=EZ25,FB25,IF(EY16<=EZ24,FB24,FB23))),80%-EY16,80%-EY16)),IF(EW28=2,MAX(0,MIN(IF(EY16<=EZ26,FB26,IF(EY16<=EZ25,FB25,IF(EY16<=EZ24,FB24,FB23))),70%-EY16,70%-EY16)),IF(EW28=3,MAX(0,MIN(IF(EY16<=EZ26,FB26,IF(EY16<=EZ25,FB25,IF(EY16<=EZ24,FB24,FB23))),50%-EY16,50%-EY16)),"error"))) -> 
M17: 12 | N17: =IFERROR(IF(AND($A$2>1,$A$2<4),INDEX($AL$35:$AL$72,MATCH(IF($A$2=2,$B$2,$C$2)&0,$AK$35:$AK$72&INDEX(COUNTIF($N$5:N16,$AL$35:$AL$72),0,0),0)),""),"") ->  | AW17: FACTOR SEG DAÑOS | AX17: 0.0003 | CI17: VIVIENDA MINIMO MACROPLAZA | CJ17: =$AX$14 -> 1000000 | CW17: 11 | CX17: 0.06 | DQ17: VIVIENDA MINIMO MACROPLAZA | DR17: =$AX$14 -> 1000000 | ED17: 11 | EE17: 0.06 | EU17: FACTOR SEG DAÑOS | EV17: 0.0003 | EX17: L | EY17: =EW60 ->  | EZ17: =+FB17-EY17 ->  | FA17: =+SUM(EY17:EZ17) ->  | FB17: 0.7
M18: 13 | N18: =IFERROR(IF(AND($A$2>1,$A$2<4),INDEX($AL$35:$AL$72,MATCH(IF($A$2=2,$B$2,$C$2)&0,$AK$35:$AK$72&INDEX(COUNTIF($N$5:N17,$AL$35:$AL$72),0,0),0)),""),"") ->  | AW18: EXTRAPRIMA EDAD | AX18: 0.001804 | CI18: VIVIENDA MINIMO RESTO | CJ18: =$AX$15 -> 750000 | CW18: 12 | CX18: 0.065 | DQ18: VIVIENDA MINIMO RESTO | DR18: =$AX$15 -> 750000 | ED18: 12 | EE18: 0.065 | EU18: EXTRAPRIMA EDAD | EV18: =EXTRAPRIMAEDAD -> 0.001804 | EX18: M | EY18: =EW60 ->  | EZ18: =+FB18-EY18 ->  | FA18: =+SUM(EY18:EZ18) ->  | FB18: 0.5
M19: 14 | N19: =IFERROR(IF(AND($A$2>1,$A$2<4),INDEX($AL$35:$AL$72,MATCH(IF($A$2=2,$B$2,$C$2)&0,$AK$35:$AK$72&INDEX(COUNTIF($N$5:N18,$AL$35:$AL$72),0,0),0)),""),"") ->  | AW19: EXTRAPRIMA MEDICA | AX19: 0.000884 | BJ19: PLAZO | BK19: PPM | BL19: SEGUROS | BM19: MENSUALIDAD | BN19: MENSUALIDAD BASE FORMULA | CI19: FACTOR SEG VIDA | CJ19: =$AX$16 -> 0.000474 | CW19: 13 | CX19: 0.07 | DQ19: FACTOR SEG VIDA | DR19: =$AX$16 -> 0.000474 | ED19: 13 | EE19: 0.07 | EU19: EXTRAPRIMA MEDICA | EV19: =EXTRAPRIMAMEDICA -> 0.000884 | FH19: PLAZO | FI19: PPM | FJ19: SEGUROS | FK19: MENSUALIDAD | FL19: MENSUALIDAD BASE FORMULA
M20: 15 | N20: =IFERROR(IF(AND($A$2>1,$A$2<4),INDEX($AL$35:$AL$72,MATCH(IF($A$2=2,$B$2,$C$2)&0,$AK$35:$AK$72&INDEX(COUNTIF($N$5:N19,$AL$35:$AL$72),0,0),0)),""),"") ->  | AW20: EXTRAPRIMA OCUPACIONAL | AX20: 0.000604 | BI20: 1 | BJ20: =VLOOKUP(BI20,$AV$30:$BF$39,11,0)*12 -> 240 | BK20: =ROUNDUP(PMT($AX$68/12,BJ20,-1000),2) ->  | BL20: =IF(OR(AZ28=1,AZ28=2),AX60*(IF(AZ28<3,IF(AX41>64,EXTRAPRIMAEDAD,IF(BB28=1,FACTORVIDA,IF(BB28=2,EXTRAPRIMAMEDICA,IF(BB28=3,EXTRAPRIMAOCUPACIONAL,0)))))),0)+IF(OR(AZ28=1,AZ28=3),MAX(AX42*0.8*AX17,AX60*AX17),0) ->  | BM20: =$AX$60*BK20/1000+BL20 ->  | BN20: =PMT($AX$68/12,BJ20,-$AX$60)+BL20 ->  | CI20: FACTOR SEG DAÑOS | CJ20: =$AX$17 -> 0.0003 | CO20: WARNINGS | CP20: // | CW20: 14 | CX20: 0.075 | DQ20: FACTOR SEG DAÑOS | DR20: =$AX$17 -> 0.0003 | DV20: WARNINGS | DW20: // | ED20: 14 | EE20: 0.075 | EU20: EXTRAPRIMA OCUPACIONAL | EV20: =EXTRAPRIMAOCUPACIONAL -> 0.000604 | FG20: 1 | FH20: =VLOOKUP(FG20,$AV$30:$BF$39,11,0)*12 -> 240 | FI20: =ROUNDUP(PMT(#REF!/12,FH20,-1000),2) ->  | FJ20: =IF(EZ60="NO",IF(EV41>=65,#REF!*EXTRAPRIMAEDAD,IF(OR(EX28=1,EX28=2),IF(EZ28=1,#REF!*FACTORVIDA,IF(EZ28=2,#REF!*EXTRAPRIMAMEDICA,#REF!*EXTRAPRIMAOCUPACIONAL)),0)),IF(EV41>=65,#REF!*EXTRAPRIMAEDAD,IF(OR(EX28=1,EX28=2),IF(EZ28=1,#REF!*FACTORVIDA,IF(EZ28=2,#REF!*EXTRAPRIMAMEDICA,#REF!*EXTRAPRIMAOCUPACIONAL)),0)))+IF(EZ60="NO",IF(OR(EX28=1,EX28=3),MAX(EV42*0.8*EV17,#REF!*EV17),0),IF(OR(EX28=1,EX28=3),MAX(EV42*0.8*EV17,#REF!*EV17),0)) ->  | FK20: =#REF!*FI20/1000+FJ20 ->  | FL20: =PMT(#REF!/12,FH20,-#REF!)+FJ20 -> 
M21: 16 | N21: =IFERROR(IF(AND($A$2>1,$A$2<4),INDEX($AL$35:$AL$72,MATCH(IF($A$2=2,$B$2,$C$2)&0,$AK$35:$AK$72&INDEX(COUNTIF($N$5:N20,$AL$35:$AL$72),0,0),0)),""),"") ->  | BI21: 2 | BJ21: =VLOOKUP(BI21,$AV$30:$BF$39,11,0)*12 -> 180 | BK21: =ROUNDUP(PMT($AX$68/12,BJ21,-1000),2) ->  | BL21: =IF(OR(AZ28=1,AZ28=2),AX60*(IF(AZ28<3,IF(AX41>64,EXTRAPRIMAEDAD,IF(BB28=1,FACTORVIDA,IF(BB28=2,EXTRAPRIMAMEDICA,IF(BB28=3,EXTRAPRIMAOCUPACIONAL,0)))))),0)+IF(OR(AZ28=1,AZ28=3),MAX(AX42*0.8*AX17,AX60*AX17),0) ->  | BM21: =$AX$60*BK21/1000+BL21 ->  | BN21: =PMT($AX$68/12,BJ21,-$AX$60)+BL21 ->  | CI21: INCREMENTO ATM | CJ21: 0.02 | CO21: PF | CP21: ATM | CW21: 15 | CX21: 0.08 | DQ21: INCREMENTO ATM | DR21: 0.02 | DV21: PF | DW21: ATM | ED21: 15 | EE21: 0.08 | EU21: CREDITO MINIMO LIQUIDEZ | EV21: =MAX(50000,EV57*0.05) -> 50000 | EX21: Aforos | EY21: Refinance | FA21: Cash Out | FC21: Total | FE21: Nivel de riesgo | FF21: =IF(EW28=1,FB16,IF(EW28=2,FB17,IF(EW28=3,FB18))) -> 0.8 | FG21: 2 | FH21: =VLOOKUP(FG21,$AV$30:$BF$39,11,0)*12 -> 180 | FI21: =ROUNDUP(PMT(#REF!/12,FH21,-1000),2) ->  | FJ21: =IF(EZ60="NO",IF(EV41>=65,#REF!*EXTRAPRIMAEDAD,IF(OR(EX28=1,EX28=2),IF(EZ28=1,#REF!*FACTORVIDA,IF(EZ28=2,#REF!*EXTRAPRIMAMEDICA,#REF!*EXTRAPRIMAOCUPACIONAL)),0)),IF(EV41>=65,#REF!*EXTRAPRIMAEDAD,IF(OR(EX28=1,EX28=2),IF(EZ28=1,#REF!*FACTORVIDA,IF(EZ28=2,#REF!*EXTRAPRIMAMEDICA,#REF!*EXTRAPRIMAOCUPACIONAL)),0)))+IF(EZ60="NO",IF(OR(EX28=1,EX28=3),MAX(EV42*0.8*EV17,#REF!*EV17),0),IF(OR(EX28=1,EX28=3),MAX(EV42*0.8*EV17,#REF!*EV17),0)) ->  | FK21: =#REF!*FI21/1000+FJ21 ->  | FL21: =PMT(#REF!/12,FH21,-#REF!)+FJ21 -> 
M22: 17 | N22: =IFERROR(IF(AND($A$2>1,$A$2<4),INDEX($AL$35:$AL$72,MATCH(IF($A$2=2,$B$2,$C$2)&0,$AK$35:$AK$72&INDEX(COUNTIF($N$5:N21,$AL$35:$AL$72),0,0),0)),""),"") ->  | BI22: 3 | BJ22: =VLOOKUP(BI22,$AV$30:$BF$39,11,0)*12 -> 120 | BK22: =ROUNDUP(PMT($AX$68/12,BJ22,-1000),2) ->  | BL22: =IF(OR(AZ28=1,AZ28=2),AX60*(IF(AZ28<3,IF(AX41>64,EXTRAPRIMAEDAD,IF(BB28=1,FACTORVIDA,IF(BB28=2,EXTRAPRIMAMEDICA,IF(BB28=3,EXTRAPRIMAOCUPACIONAL,0)))))),0)+IF(OR(AZ28=1,AZ28=3),MAX(AX42*0.8*AX17,AX60*AX17),0) ->  | BM22: =$AX$60*BK22/1000+BL22 ->  | BN22: =PMT($AX$68/12,BJ22,-$AX$60)+BL22 ->  | CI22: Prelación de tablas de abajo | CO22: =COUNTBLANK(CO24:CO44) -> 20 | CP22: =COUNTBLANK(CP24:CP44) -> 21 | CW22: 16 | CX22: 0.085 | DQ22: Prelación de tablas de abajo | DV22: =COUNTBLANK(DV24:DV38)+COUNTBLANK(DV40:DV66) -> 42 | DW22: =COUNTBLANK(DW24:DW38)+COUNTBLANK(DW40:DW66) -> 42 | ED22: 16 | EE22: 0.085 | FG22: 3 | FH22: =VLOOKUP(FG22,$AV$30:$BF$39,11,0)*12 -> 120 | FI22: =ROUNDUP(PMT(#REF!/12,FH22,-1000),2) ->  | FJ22: =IF(EZ60="NO",IF(EV41>=65,#REF!*EXTRAPRIMAEDAD,IF(OR(EX28=1,EX28=2),IF(EZ28=1,#REF!*FACTORVIDA,IF(EZ28=2,#REF!*EXTRAPRIMAMEDICA,#REF!*EXTRAPRIMAOCUPACIONAL)),0)),IF(EV41>=65,#REF!*EXTRAPRIMAEDAD,IF(OR(EX28=1,EX28=2),IF(EZ28=1,#REF!*FACTORVIDA,IF(EZ28=2,#REF!*EXTRAPRIMAMEDICA,#REF!*EXTRAPRIMAOCUPACIONAL)),0)))+IF(EZ60="NO",IF(OR(EX28=1,EX28=3),MAX(EV42*0.8*EV17,#REF!*EV17),0),IF(OR(EX28=1,EX28=3),MAX(EV42*0.8*EV17,#REF!*EV17),0)) ->  | FK22: =#REF!*FI22/1000+FJ22 ->  | FL22: =PMT(#REF!/12,FH22,-#REF!)+FJ22 -> 
M23: 18 | N23: =IFERROR(IF(AND($A$2>1,$A$2<4),INDEX($AL$35:$AL$72,MATCH(IF($A$2=2,$B$2,$C$2)&0,$AK$35:$AK$72&INDEX(COUNTIF($N$5:N22,$AL$35:$AL$72),0,0),0)),""),"") ->  | CJ23: PF | CL23: ATM | CO23: =IF(CO22<21,"Para Hipoteca Perfiles Banamex: ","") -> Para Hipoteca Perfiles Banamex: | CP23: =IF(CP22<21,"Para La Hipoteca a tu Medida: ","") ->  | CW23: 17 | CX23: 0.09 | DV23: =IF(OR(DV22<42,DV39<>""),"Para Hipoteca de Liquidez: ","") -> Para Hipoteca de Liquidez: | ED23: 17 | EE23: 0.09 | EY23: 0.5 | EZ23: =IF(OR(EU28=1,EW28>2),0.7,0.8) -> 0.8 | FA23: 0 | FB23: 0.2 | FC23: 0.7 | FD23: =IF(EU28=1,70%,80%) -> 0.8
M24: 19 | N24: =IFERROR(IF(AND($A$2>1,$A$2<4),INDEX($AL$35:$AL$72,MATCH(IF($A$2=2,$B$2,$C$2)&0,$AK$35:$AK$72&INDEX(COUNTIF($N$5:N23,$AL$35:$AL$72),0,0),0)),""),"") ->  | BJ24: PLAZO | BK24: PPM | BL24: SEGUROS | BM24: MENSUALIDAD | BN24: MENSUALIDAD BASE FORMULA | CI24: NOMBRE DEL CLIENTE | CK24: =ADQUISICION!$H$11 -> 0 | CL24: =ADQUISICION!$H$11 -> 0 | CN24: =IF(CS5<3,IF(CK25>64,EXTRAPRIMAEDAD,IF(CU5=1,FACTORVIDA,IF(CU5=2,EXTRAPRIMAMEDICA,IF(CU5=3,EXTRAPRIMAOCUPACIONAL,0))))) -> 0.000474 | CW24: 18 | CX24: 0.095 | DQ24: NOMBRE DEL CLIENTE | DS24: =Liquidez!H11 -> 0 | DT24: =IF(DZ5<3,IF(DS25>64,EXTRAPRIMAEDAD,IF(EA5=1,FACTORVIDA,IF(EA5=2,EXTRAPRIMAMEDICA,IF(EA5=3,EXTRAPRIMAOCUPACIONAL,0))))) -> 0.000474 | ED24: 18 | EE24: 0.095 | EY24: 0.3 | EZ24: 0.5 | FA24: 0.2 | FB24: 0.3 | FC24: 0.6 | FD24: 0.7 | FH24: PLAZO | FI24: PPM | FJ24: SEGUROS | FK24: MENSUALIDAD | FL24: MENSUALIDAD BASE FORMULA
M25: 20 | N25: =IFERROR(IF(AND($A$2>1,$A$2<4),INDEX($AL$35:$AL$72,MATCH(IF($A$2=2,$B$2,$C$2)&0,$AK$35:$AK$72&INDEX(COUNTIF($N$5:N24,$AL$35:$AL$72),0,0),0)),""),"") ->  | BI25: 1 | BJ25: =VLOOKUP(BI25,$AV$30:$BF$39,11,0)*12 -> 240 | BK25: =ROUNDUP(PMT($AZ$68/12,BJ25,-1000),2) ->  | BL25: =IF(OR(AZ28=1,AZ28=2),AX60*(IF(AZ28<3,IF(AX41>64,EXTRAPRIMAEDAD,IF(BB28=1,FACTORVIDA,IF(BB28=2,EXTRAPRIMAMEDICA,IF(BB28=3,EXTRAPRIMAOCUPACIONAL,0)))))),0)+IF(OR(AZ28=1,AZ28=3),MAX(AX42*0.8*AX17,AX60*AX17),0) ->  | BM25: =$AX$60*BK25/1000+BL25 ->  | BN25: =PMT($AZ$68/12,BJ25,-$AX$60)+BL25 ->  | CI25: EDAD | CK25: =EDADCLIENTE -> 0 | CL25: =EDADCLIENTE -> 0 | CO25: =IF(CK26=0,"",IF(AND($CR$5=1,$CK$26<=10000000),IF($CK$25<CJ7,"La edad mínima es de "&CJ7&" años."&CP20,""),IF(AND(CR5=2,$CK$26<=10000000),IF($CK$25<$CJ$8,"La edad mínima es de "&CJ8&" años."&CP20,""),IF(CK26>10000000,IF($CK$25<$CJ$9,"La edad mínima es de "&CJ9&" años para viviendas con valor de mas de $ 10,000,000.00."&CP20,""))))) ->  | CQ25: EDAD MINIMA | CW25: 19 | CX25: 0.1 | DQ25: EDAD | DS25: =EDADCLIENTE_Liq -> 0 | DV25: =IF(DS25=0,"",IF($DS$25<DR7,"La edad mínima es de "&DR7&" años."&DW20,"")) ->  | DX25: EDAD MINIMA | ED25: 19 | EE25: 0.1 | EY25: 0.15 | EZ25: 0.3 | FA25: 0.3 | FB25: 0.35 | FC25: 0.5 | FD25: 0.6 | FG25: 1 | FH25: =VLOOKUP(FG25,$AV$30:$BF$39,11,0)*12 -> 240 | FI25: =ROUNDUP(PMT(#REF!/12,FH25,-1000),2) ->  | FJ25: =IF(EZ60="NO",IF(EV41>=65,#REF!*EXTRAPRIMAEDAD,IF(OR(EX28=1,EX28=2),IF(EZ28=1,#REF!*FACTORVIDA,IF(EZ28=2,#REF!*EXTRAPRIMAMEDICA,#REF!*EXTRAPRIMAOCUPACIONAL)),0)),IF(EV41>=65,#REF!*EXTRAPRIMAEDAD,IF(OR(EX28=1,EX28=2),IF(EZ28=1,#REF!*FACTORVIDA,IF(EZ28=2,#REF!*EXTRAPRIMAMEDICA,#REF!*EXTRAPRIMAOCUPACIONAL)),0)))+IF(EZ60="NO",IF(OR(EX28=1,EX28=3),MAX(EV42*0.8*EV17,#REF!*EV17),0),IF(OR(EX28=1,EX28=3),MAX(EV42*0.8*EV17,#REF!*EV17),0)) ->  | FK25: =#REF!*FI25/1000+FJ25 ->  | FL25: =PMT(#REF!/12,FH25,-#REF!)+FJ25 -> 
BI26: 2 | BJ26: =VLOOKUP(BI26,$AV$30:$BF$39,11,0)*12 -> 180 | BK26: =ROUNDUP(PMT($AZ$68/12,BJ26,-1000),2) ->  | BL26: =IF(OR(AZ28=1,AZ28=2),AX60*(IF(AZ28<3,IF(AX41>64,EXTRAPRIMAEDAD,IF(BB28=1,FACTORVIDA,IF(BB28=2,EXTRAPRIMAMEDICA,IF(BB28=3,EXTRAPRIMAOCUPACIONAL,0)))))),0)+IF(OR(AZ28=1,AZ28=3),MAX(AX42*0.8*AX17,AX60*AX17),0) ->  | BM26: =$AX$60*BK26/1000+BL26 ->  | BN26: =PMT($AZ$68/12,BJ26,-$AX$60)+BL26 ->  | CI26: VALOR DE VIVIENDA | CK26: =VVIVIENDA -> 0 | CL26: =VVIVIENDA -> 0 | CO26: =IF(CK26<=0,"",IF($DC$5=1,IF($CK$26>=$CJ$17,"","El valor mínimo de la vivienda es de "&TEXT(CJ17,"$ 0,0.00")&CP20),IF($CK$26>=$CJ$18,"","El valor mínimo de la vivienda es de "&TEXT(CJ18,"$ 0,0.00")&CP20))) ->  | CQ26: VALOR MINIMO VIVIENDA | DQ26: VALOR DE VIVIENDA | DS26: =VVIVIENDA_Liq -> 0 | DV26: =IF(DS26<=0,"",IF($EJ$5=1,IF($DS$26>=$DR$17,"","El valor mínimo de la vivienda es de "&TEXT(DR17,"$ 0,0.00")&DW20),IF($DS$26>=$DR$18,"","El valor mínimo de la vivienda es de "&TEXT(DR18,"$ 0,0.00")&DW20))) ->  | DX26: VALOR MINIMO VIVIENDA | EY26: 0 | EZ26: 0.15 | FA26: 0.35 | FB26: 0.4 | FC26: 0 | FD26: 0.5 | FG26: 2 | FH26: =VLOOKUP(FG26,$AV$30:$BF$39,11,0)*12 -> 180 | FI26: =ROUNDUP(PMT(#REF!/12,FH26,-1000),2) ->  | FJ26: =IF(EZ60="NO",IF(EV41>=65,#REF!*EXTRAPRIMAEDAD,IF(OR(EX28=1,EX28=2),IF(EZ28=1,#REF!*FACTORVIDA,IF(EZ28=2,#REF!*EXTRAPRIMAMEDICA,#REF!*EXTRAPRIMAOCUPACIONAL)),0)),IF(EV41>=65,#REF!*EXTRAPRIMAEDAD,IF(OR(EX28=1,EX28=2),IF(EZ28=1,#REF!*FACTORVIDA,IF(EZ28=2,#REF!*EXTRAPRIMAMEDICA,#REF!*EXTRAPRIMAOCUPACIONAL)),0)))+IF(EZ60="NO",IF(OR(EX28=1,EX28=3),MAX(EV42*0.8*EV17,#REF!*EV17),0),IF(OR(EX28=1,EX28=3),MAX(EV42*0.8*EV17,#REF!*EV17),0)) ->  | FK26: =#REF!*FI26/1000+FJ26 ->  | FL26: =PMT(#REF!/12,FH26,-#REF!)+FJ26 -> 
BI27: 3 | BJ27: =VLOOKUP(BI27,$AV$30:$BF$39,11,0)*12 -> 120 | BK27: =ROUNDUP(PMT($AZ$68/12,BJ27,-1000),2) ->  | BL27: =IF(OR(AZ28=1,AZ28=2),AX60*(IF(AZ28<3,IF(AX41>64,EXTRAPRIMAEDAD,IF(BB28=1,FACTORVIDA,IF(BB28=2,EXTRAPRIMAMEDICA,IF(BB28=3,EXTRAPRIMAOCUPACIONAL,0)))))),0)+IF(OR(AZ28=1,AZ28=3),MAX(AX42*0.8*AX17,AX60*AX17),0) ->  | BM27: =$AX$60*BK27/1000+BL27 ->  | BN27: =PMT($AZ$68/12,BJ27,-$AX$60)+BL27 ->  | CI27: MON SOLICITADO/ENGA | CK27: =MONSOLIENGAN -> 0 | CL27: =MONSOLIENGAN -> 0 | CO27: =IF(CK27<=0,"",IF(AND($CP$5=2,MONSOLIENGAN<300000),"",IF($CK$27<$CJ$15,"El monto mínimo de crédito es de "&TEXT(CJ15,"$ 0,0.00")&CP20,""))) ->  | CQ27: MONTO MINIMO DE CREDITO | DQ27: MON SOLICITADO/ENGA | DS27: =MONSOLIENGAN_Liq -> 0 | DV27: =IF(DS27<=0,"",IF(AND($DW$5=2,MONSOLIENGAN<300000),"",IF($DS$27<$DR$15,"El monto mínimo de crédito es de "&TEXT(DR15,"$ 0,0.00")&DW20,""))) ->  | DX27: MONTO MINIMO DE CREDITO | FG27: 3 | FH27: =VLOOKUP(FG27,$AV$30:$BF$39,11,0)*12 -> 120 | FI27: =ROUNDUP(PMT(#REF!/12,FH27,-1000),2) ->  | FJ27: =IF(EZ60="NO",IF(EV41>=65,#REF!*EXTRAPRIMAEDAD,IF(OR(EX28=1,EX28=2),IF(EZ28=1,#REF!*FACTORVIDA,IF(EZ28=2,#REF!*EXTRAPRIMAMEDICA,#REF!*EXTRAPRIMAOCUPACIONAL)),0)),IF(EV41>=65,#REF!*EXTRAPRIMAEDAD,IF(OR(EX28=1,EX28=2),IF(EZ28=1,#REF!*FACTORVIDA,IF(EZ28=2,#REF!*EXTRAPRIMAMEDICA,#REF!*EXTRAPRIMAOCUPACIONAL)),0)))+IF(EZ60="NO",IF(OR(EX28=1,EX28=3),MAX(EV42*0.8*EV17,#REF!*EV17),0),IF(OR(EX28=1,EX28=3),MAX(EV42*0.8*EV17,#REF!*EV17),0)) ->  | FK27: =#REF!*FI27/1000+FJ27 ->  | FL27: =PMT(#REF!/12,FH27,-#REF!)+FJ27 -> 
AW28: 3 | AX28: 1 | AY28: 1 | AZ28: 1 | BA28: 1 | BB28: 1 | BC28: 1 | BD28: 2 | BE28: 2 | BF28: 1 | BG28: 9 | BH28: 1 | BI28: 1 | BJ28: 2 | BK28: 1 | CI28: INGRESO MENSUAL | CK28: =INGRESOMENSUAL -> 0 | CL28: =INGRESOMENSUAL -> 0 | CO28: =IF(CK28<=0,"",IF($CK$28<$CJ$14,"El ingreso mínimo a comprobar es de "&TEXT(CJ14,"$ 0,0.00")&CP20,"")) ->  | CQ28: INGRESO MINIMO A COMPROBAR | DQ28: INGRESO MENSUAL | DS28: =INGRESOMENSUAL_Liq -> 0 | DV28: =IF(DS28<=0,"",IF($DS$28<$DR$14,"El ingreso mínimo a comprobar es de "&TEXT(DR14,"$ 0,0.00")&DW20,"")) ->  | DX28: INGRESO MINIMO A COMPROBAR | EU28: 3 | EV28: 1 | EW28: 1 | EX28: 1 | EY28: 1 | EZ28: 1 | FA28: 1 | FB28: 1 | FC28: 2 | FD28: 1 | FE28: 9 | FF28: 1 | FG28: 1 | FH28: 1 | FI28: 1
AW29: SEGMENTO | AX29: INGRESO | AY29: RIESGO | AZ29: SEGUROS BANAMEX | BA29: OPC SEGURO | BB29: EXTRAPRIMA | BC29: OPC MENSUALIDAD | BD29: DEUDAS | BE29: GASTOS | BF29: PLAZO | BG29: GASTOS NOTA | BH29: PLAZA | BI29: Inversión 1MM | BJ29: Apoyo infonavit | BK29: Cliente nómina Banamex | CO29: =IF(CK25>CJ10,"La edad máxima es de "&CJ10&" años 11 meses para Hipoteca Perfiles"&CP20,"") ->  | CQ29: EDAD MAXIMA | DP29: Factor | DV29: =IF(DS25>DR10,"La edad máxima es de "&DR10&" años 11 meses para Hipoteca de Liquidez"&DW20,"") ->  | DX29: EDAD MAXIMA | EU29: SEGMENTO | EV29: INGRESO | EW29: RIESGO | EX29: SEGUROS Banamex | EY29: OPC SEGURO | EZ29: EXTRAPRIMA | FA29: OPC MENSUALIDAD | FB29: DEUDAS | FC29: GASTOS | FD29: PLAZO | FE29: GASTOS NOTA | FF29: PLAZA | FG29: Inversión 1MM | FH29: Tu Hipoteca sin Comisión | FI29: Cliente nómina Banamex
AV30: 1 | AW30: =IF(BK28=2,"No Cliente","") ->  | AX30: Asalariado | AY30: Muy Bajo | AZ30: Vida y Daños | BA30: Saldo Insoluto | BB30: Sin Extraprima | BC30: Mensualidad Propuesta | BD30: Saldos Totales | BE30: Financiados | BF30: 20 | BG30: 0 | BH30: MacroPlaza (CDMX, GDL, MTY) | BI30: Si | BJ30: Si | BK30: Si | CH30: 0.04 | CI30: DEUDAS CA | CJ30: =ADQUISICION!$AH$15 -> 0 | CK30: =IF($DA$5=2,CJ30,CJ30*CH30) -> 0 | CL30: =IF($DA$5=2,CJ30,CJ30*CH30) -> 0 | CO30: =IF(CK25+VLOOKUP($CV$5,$CN$7:$CV$9,9,0)>CJ11,"La edad máxima + plazo es de "&CJ11&" años 11 meses. "&CP20,"") ->  | CQ30: EDAD MAXIMA + PLAZO | DP30: 0.04 | DQ30: DEUDAS CA | DR30: =Liquidez!$AH$15 -> 0 | DS30: =IF($EH$5=2,DR30,DR30*DP30) -> 0 | DV30: =IF(DS25+VLOOKUP($EC$5,$DU$7:$EC$9,9,0)>DR11,"La edad máxima + plazo es de "&DR11&" años 11 meses. "&DW20,"") ->  | DX30: EDAD MAXIMA + PLAZO | ET30: 1 | EU30: =IF(FI28=2,"No Cliente","") ->  | EV30: Asalariado | EW30: Muy Bajo | EX30: Vida y Daños | EY30: Saldo Insoluto | EZ30: Sin Extraprima | FA30: Mensualidad Propuesta | FB30: Saldos Totales | FC30: Financiados | FD30: 20 | FE30: 0.01 | FF30: MacroPlaza (CDMX, GDL, MTY) | FG30: Si | FH30: Si | FI30: Si
AV31: 2 | AW31: =IF(BK28=1,"","Blue") ->  | AX31: Independiente | AY31: Bajo | AZ31: Solo Vida | BA31: Monto Original | BB31: Medica | BC31: Mantener Mensualidad | BD31: Pagos Mensuales | BE31: Contado | BF31: 15 | BG31: 0.01 | BH31: Resto de la República | BI31: No | BJ31: No | BK31: No | CH31: 0.01 | CI31: DEUDAS CH | CJ31: =ADQUISICION!$AH$17 -> 0 | CK31: =IF($DA$5=2,CJ31,CJ31*CH31) -> 0 | CL31: =IF($DA$5=2,CJ31,CJ31*CH31) -> 0 | DP31: 0.01 | DQ31: DEUDAS CH | DR31: =Liquidez!$AH$17 -> 0 | DS31: =IF($EH$5=2,DR31,DR31*DP31) -> 0 | ET31: 2 | EU31: =IF(FI28=1,"","Blue") ->  | EV31: Independiente | EW31: Bajo | EX31: Solo Vida | EY31: Monto Original | EZ31: Medica | FA31: Mantener Mensualidad | FB31: Pagos Mensuales | FC31: Contado | FD31: 15 | FE31: 0.015 | FF31: Resto de la República | FG31: No | FH31: No | FI31: No
AV32: 3 | AW32: =IF(BK28=2,"Cliente Priority","Cliente Priority o Nómina") -> Cliente Priority o Nómina | AY32: Medio | AZ32: Solo Daños | BB32: Ocupacional | BE32: Gratis | BF32: 10 | BG32: 0.015 | CH32: 0.05 | CI32: DEUDAS CP | CJ32: =ADQUISICION!$AH$19 -> 0 | CK32: =IF($DA$5=2,CJ32,CJ32*CH32) -> 0 | CL32: =IF($DA$5=2,CJ32,CJ32*CH32) -> 0 | CO32: =IFERROR(IF(OR(CH81+CK46<=CH84,CK60>CK28),IF(OR(IFERROR($CH$81,"")="",IFERROR($CH$82,"")="",IFERROR($CH$85,"")=""),"",IF(CI85="NO",IF($CJ$89=TRUE,"Su línea de crédito está topada por su capacidad de pago a "&TEXT(CH85,"$ 0,0.00")&", recalcula sus ingresos, ajusta el enganche o monto solicitado. "&CP20,""),IF($CJ$119=TRUE,"Su línea de crédito está topada por su capacidad de pago a "&TEXT(CH115,"$ 0,0.00")&", recalcula sus ingresos, ajusta el enganche o monto solicitado. "&CP20,""))),""),"") ->  | CQ32: LINEA TOPE | DP32: 0.05 | DQ32: DEUDAS CP | DR32: =Liquidez!$AH$19 -> 0 | DS32: =IF($EH$5=2,DR32,DR32*DP32) -> 0 | DV32: =IFERROR(IF(DR47<DR48,"Su línea de crédito está topada por su capacidad de pago a "&TEXT(DR72,"$ 0,0.00")&", recalcula sus ingresos, ajusta monto solicitado. "&DW20,""),"") ->  | DX32: LINEA TOPE | DZ32: ="Su línea de crédito está topada por su capacidad de pago a "&TEXT(DR72,"$ 0,0.00")&", recalcula sus ingresos, ajusta el enganche o monto solicitado. "&"DW20" -> Su línea de crédito está topada por su capacidad de pago a , recalcula sus ingresos, ajusta el enganche o monto solicitado. DW20 | ET32: 3 | EU32: =IF(FI28=2,"Cliente Priority","Cliente Priority o Nómina") -> Cliente Priority o Nómina | EW32: Medio | EX32: Solo Daños | EZ32: Ocupacional | FC32: Gratis | FD32: 10 | FE32: 0.02
AV33: 4 | AW33: Cliente Gold | AY33: Marginal | AZ33: Externos | BG33: 0.02 | CH33: 0.07 | CI33: DEUDAS TDC | CJ33: =ADQUISICION!$AH$21 -> 0 | CK33: =CJ33*CH33 -> 0 | CL33: =CJ33*CH33 -> 0 | CO33: =IF(IFERROR(CH85,"")="","",IF(CH85>$CJ$16,"Deberás incluir una Excepción para un crédito mayor de "&TEXT(CJ16,"$0,0.00")&CP20,"")) ->  | CQ33: CREDITO MAXIMO | DP33: 0.07 | DQ33: DEUDAS TDC | DR33: =Liquidez!$AH$21 -> 0 | DS33: =DR33*DP33 -> 0 | DV33: =IF(IFERROR(DR72,"")="","",IF(DR72>$DR$16,"Deberás incluir una Excepción para un crédito mayor de "&TEXT(DR16,"$0,0.00")&DW20,"")) ->  | DX33: CREDITO MAXIMO | ET33: 4 | EU33: Cliente Gold | EW33: Marginal | EX33: Externos | FE33: 0.025 | FG33: Liquidez
A34: Sueldo Base | I34: Asala USA | N34: Horas Extras | S34: Bonos | AA34: Independiente | AK34: Actividad Profesional | AV34: 5 | AW34: Oferta De Valor | BG34: 0.025 | CI34: TOTAL_DEUDAS | CK34: =SUM(CK30:CK33) -> 0 | CL34: =SUM(CL30:CL33) -> 0 | DQ34: TOTAL_DEUDAS | DS34: =SUM(DS30:DS33) -> 0 | ET34: 5 | FE34: 0.03 | FH34: PLAZO | FI34: PPM | FJ34: SEGUROS | FK34: MENSUALIDAD | FL34: MENSUALIDAD BASE FORMULA
A35: 1 | B35: =IF($A$2="","","Mensual") ->  | C35: Copia del Último Recibo | D35: Copia de los 6 Últimos Recibos | E35: =IF($A$3=1,CompIngresos!AF22,IF($A$3=3,CompIngresos!AF22,0)) -> 0 | I35: OPCIÓN 1: – Carta Laboral – Recibo del último mes para ingresos fijos y seis meses para variables. | N35: - | S35: 1 | T35: =IF($I$3=FALSE,"","Mensual") ->  | U35: Copias de los últimos 6 Recibos | V35: 6 | W35: =(SUM(CompIngresos!BA22:BE27)/6) -> 0 | AA35: 1 | AB35: =IF($A$2>1,IF(OR(AND($A$2=2,$B$2=6),AND($A$2=3,$E$2=6)),"4 Meses","6 Meses"),"") ->  | AC35: =IFERROR(IF($A$2=2,IF(AND($B$2=6,$D$2=1),((SUM(CompIngresos!$AF$22:$AJ$25)/4)*VLOOKUP(M2,$M$6:$O$25,3,FALSE))/12,IF(AND($B$2=6,$D$2=2),((SUM(CompIngresos!$AF$22:$AJ$27)/6)*VLOOKUP(M2,$M$6:$O$25,3,FALSE))/12,IF(AND(Q2="",P2="",SUM(CompIngresos!$AE$22:$AE$27)>2),0,SUM(CompIngresos!$AF$22:$AJ$27)/6*VLOOKUP(M2,$M$6:$O$25,3,FALSE)))),IF(E105=6,((SUM(CompIngresos!$AG$41:$AK$44)/4)*VLOOKUP(M2,$M$6:$O$25,3,FALSE))/12,SUM(CompIngresos!AG41:AK46)/6*VLOOKUP(M2,$M$6:$O$25,3,FALSE))),0) -> 0 | AD35: =IF(AND($Q$2="",$P$2="",$A$2=2,SUM(CompIngresos!$AE$22:$AE$27)>2),"No cumple con ingresos mínimos en 2 meses consecutivos",IF(OR(AND($A$2=2,$B$2=5,CompIngresos!$AY$41<0.5),AND($A$2=3,E105=5,CompIngresos!$AY$41<0.5)),"El porcentaje accionario necesitará una Excepción","")) ->  | AK35: 1 | AL35: Abogado | AM35: 0.8 | AN35: 1 | AV35: 6 | BG35: 0.03 | CH35: IND | CI35: CREDITO INSTITUTO | CK35: =CREDITOINSTITUTOIND -> 0 | CL35: =CREDITOINSTITUTOIND -> 0 | CQ35: COFINANCIADOS | DQ35: CREDITO PERF | DR35: =DR72 ->  | DX35: COFINANCIADOS | ET35: 6 | FE35: 0.035 | FG35: 1 | FH35: =VLOOKUP(FG35,$AV$30:$BF$39,11,0)*12 -> 240 | FI35: =ROUNDUP(PMT($FA$68/12,FH35,-1000),2) -> 4.17 | FJ35: =IF(EV41>=65,FA60*EXTRAPRIMAEDAD,IF(OR(EX28=1,EX28=2),IF(EZ28=1,FA60*FACTORVIDA,IF(EZ28=2,FA60*EXTRAPRIMAMEDICA,FA60*EXTRAPRIMAOCUPACIONAL)),0)) -> 0 | FK35: =$FA$60*FI35/1000+FJ35 -> 0 | FL35: =PMT($FA$68/12,FH35,-$FA$60)+FJ35 -> 0
A36: 2 | B36: =IF($A$2="","","Quincenal") ->  | C36: Copia de los 2 Últimos Recibos | D36: Copia de los 12 Últimos Recibos | E36: =IF($A$3=1,SUM(CompIngresos!AF22:AJ23),IF($A$3=3,SUM(CompIngresos!AF22:AJ23),0)) -> 0 | I36: – Estado de cuenta del último mes. – Social Security Number para clientes de la franja fronteriza norte. (No necesaria para clientes que viven dentro de la Republica y trabajen modo remoto) | N36: - | S36: 2 | T36: =IF($I$3=FALSE,"","Bimestral") ->  | U36: Copias de los últimos 3 Recibos | V36: 2 | W36: =(SUM(CompIngresos!BA22:BE24)/6) -> 0 | AA36: 2 | AC36: =IFERROR(IF($A$2=2,IF($B$2=6,((SUM(CompIngresos!AF22:AJ25)/4)*VLOOKUP(M2,$M$6:$O$25,3,FALSE))/12,SUM(CompIngresos!AF22:AJ27)/6*VLOOKUP(M2,$M$6:$O$25,3,FALSE)),IF(C2=6,((SUM(CompIngresos!$AG$41:$AK$44)/4)*VLOOKUP(M2,$M$6:$O$25,3,FALSE))/12,SUM(CompIngresos!$AG$41:$AK$46)/6*VLOOKUP(M2,$M$6:$O$25,3,FALSE))),0) -> 0 | AK36: 1 | AL36: Administrador | AM36: 0.8 | AN36: 2 | AV36: 7 | BG36: 0.035 | CH36: IND | CI36: SALDO SUBCTA VIVIE | CJ36: =CK36 -> 0 | CK36: =ADQUISICION!T128 -> 0 | CL36: =ADQUISICION!T128 -> 0 | CM36: =CL36 -> 0 | CO36: =IFERROR(IF(AND(CQ5=4,CR5=2,CO=3),"No existe tasa para el indice de riesgo seleccionado"&CP20,""),"") ->  | CQ36: TASA PRIORITY | DQ36: TASA | DR36: =VLOOKUP(DR37,EC84:EE87,3) ->  | DV36: =IFERROR(IF(AND(DX5=4,DY5=2,CO=3),"No existe tasa para el indice de riesgo seleccionado"&DW20,""),"") ->  | DX36: TASA PRIORITY | ET36: 7 | FE36: 0.04 | FG36: 2 | FH36: =VLOOKUP(FG36,$AV$30:$BF$39,11,0)*12 -> 180 | FI36: =ROUNDUP(PMT($FA$68/12,FH36,-1000),2) -> 5.56 | FJ36: =IF(EV41>=65,FA60*EXTRAPRIMAEDAD,IF(OR(EX28=1,EX28=2),IF(EZ28=1,FA60*FACTORVIDA,IF(EZ28=2,FA60*EXTRAPRIMAMEDICA,FA60*EXTRAPRIMAOCUPACIONAL)),0)) -> 0 | FK36: =$FA$60*FI36/1000+FJ36 -> 0 | FL36: =PMT($FA$68/12,FH36,-$FA$60)+FJ36 -> 0
A37: 3 | B37: =IF($A$2="","","Catorcenal") ->  | C37: Copia de los 2 Últimos Recibos | D37: Copia de los 12 Últimos Recibos | E37: =IF($A$3=1,(SUM(CompIngresos!AF22:AJ23)/28)*30.4,IF($A$3=3,(SUM(CompIngresos!AF22:AJ23)/28)*30.4,0)) -> 0 | I37: OPCIÓN 2: – Carta Laboral – Estado de cuenta de los últimos tres meses para ingresos fijos y seis meses para variables | N37: - | S37: 3 | T37: =IF($I$3=FALSE,"","Trimestral") ->  | U37: Copias de los últimos 2 Recibos | V37: 3 | W37: =(SUM(CompIngresos!BA22:BE23)/6) -> 0 | AK37: 1 | AL37: Arquitecto | AM37: 0.8 | AN37: 3 | AV37: 8 | BG37: 0.04 | CH37: IND | CI37: DESCUENTO MENS | CK37: =DESCUENTIND -> 0 | CL37: =DESCUENTIND -> 0 | CO37: =IF(AND(OR(CR5=2,CR5=1),CQ5=4),"No existe tasa para el nivel de riesgo e ingreso seleccionado"&CP20,"") ->  | CQ37: ALTO INDEPENDIENTE | DQ37: % FINANCIAMIENTO | DR37: =DR72/VVIVIENDA_Liq ->  | DV37: =IF(AND(OR(DY5=2,DY5=1),DX5=4),"No existe tasa para el nivel de riesgo e ingreso seleccionado"&DW20,"") ->  | DX37: ALTO INDEPENDIENTE | ET37: 8 | FE37: 0.045 | FG37: 3 | FH37: =VLOOKUP(FG37,$AV$30:$BF$39,11,0)*12 -> 120 | FI37: =ROUNDUP(PMT($FA$68/12,FH37,-1000),2) -> 8.34 | FJ37: =IF(EV41>=65,FA60*EXTRAPRIMAEDAD,IF(OR(EX28=1,EX28=2),IF(EZ28=1,FA60*FACTORVIDA,IF(EZ28=2,FA60*EXTRAPRIMAMEDICA,FA60*EXTRAPRIMAOCUPACIONAL)),0)) -> 0 | FK37: =$FA$60*FI37/1000+FJ37 -> 0 | FL37: =PMT($FA$68/12,FH37,-$FA$60)+FJ37 -> 0
A38: 4 | B38: =IF($A$2="","","Semanal") ->  | C38: Copia de los 4 Últimos Recibos | D38: Copia de los 24 Últimos Recibos | E38: =IF($A$3=1,(SUM(CompIngresos!AF22:AJ25)/28)*30.4,IF($A$3=3,(SUM(CompIngresos!AF22:AJ25)/28)*30.4,0)) -> 0 | I38: – Social Security Number para clientes de la franja fronteriza norte. • Buró de Crédito del cliente en Estados Unidos ( TransUnion, Equifax, Experian) | N38: - | S38: 4 | T38: =IF($I$3=FALSE,"","Cuatrimestral") ->  | U38: Copias de los últimos 3 Recibos | V38: 4 | W38: =(IF(CompIngresos!BA24>=CompIngresos!BA22,MIN(CompIngresos!BA22:BE24)/4,SUM(CompIngresos!BA22:BE24)/12)) -> 0 | AK38: 1 | AL38: Comisionista | AM38: 0.8 | AN38: 4 | AV38: 9 | BG38: 0.045 | CH38: IND | CI38: GASTOS DE TITULA | CK38: =ADQUISICION!T126*0.03 -> 0 | CL38: =ADQUISICION!T126*0.03 -> 0 | CO38: =IF(AND(CZ5>1,CZ5<4),IF(CK47>300000,"","El monto del crédito a solicitar contemplando los datos del cofinanciamiento es menor al monto mínimo de credito de "&TEXT(CJ15,"$0,00.00")&CP20),"") ->  | CQ38: MONTO MINIMO DE CREDITO COFINANCIADOS | DQ38: COMISION APERTURA | DR38: =DR51 ->  | DV38: =IF(AND(EG5>1,EG5<4),IF(DR47>300000,"","El monto del crédito a solicitar contemplando los datos del cofinanciamiento es menor al monto mínimo de credito de "&TEXT(DQ15,"$0,00.00")&DW20),"") ->  | DX38: MONTO MINIMO DE CREDITO COFINANCIADOS | ET38: 9 | FE38: 0.05
I39: • Carta de Declaración para Ingresos en Moneda Extranjera con fecha de llenado, nombre completo y firma del cliente. Integra esta Carta en conjunto con la comprobación de ingresos, en la etiqueta de Cronos correspondiente | N39: - | S39: 5 | T39: =IF($I$3=FALSE,"","Semestral") ->  | U39: Copias de los últimos 2 Recibos | V39: 6 | W39: =IF(CompIngresos!BA23>=CompIngresos!BA22,MIN(CompIngresos!BA22:BE23)/6,SUM(CompIngresos!BA22:BE23)/12) -> 0 | AK39: 1 | AL39: Representante de Ventas | AM39: 0.8 | AN39: 5 | AV39: 10 | BG39: 0.05 | CH39: IND | CI39: CONTARIAS CON | CK39: =CREDITOINSTITUTOIND+SUBCTAIND -> 0 | CL39: =CREDITOINSTITUTOIND+CM36 -> 0 | CO39: =IF(CR5=1,CQ39,"") -> No olvides que puedes comprobar los ingresos de tu cliente con BELVO, es fácil y rápido. | CQ39: No olvides que puedes comprobar los ingresos de tu cliente con BELVO, es fácil y rápido. | DQ39: PLAZO | DR39: =VLOOKUP(EC5,EB92:EJ94,4,0) -> 240 | DV39: =IF(DY5=1,DX39,"") -> No olvides que puedes comprobar los ingresos de tu cliente con BELVO, es fácil y rápido. | DX39: No olvides que puedes comprobar los ingresos de tu cliente con BELVO, es fácil y rápido. | ET39: 10 | FE39: 0.055
I40: 1) La fecha de emisión del Recibo de Nómina y del Estado de Cuenta NO debe ser mayor a 45 días a la fecha de ingreso a dictaminación etapa 1. 2) Para la Carta Laboral no se exige una vigencia. **JUBILADOS Y PENSIONADOS** a) La pensión debe ser VITALICIA b) No es necesaria la Carta Laboral para jubilados y pensionados que reciban su pension con servicio de Nómina. **Recibos de nómina pagadoras** Para empresas pagadoras o de subcontratación: • Podrá aceptarse que cambie la razón social siempre que cubra el año de continuidad laboral, siempre y cuando el ingreso y empleo sea el mismo sin periodos de inactividad. • No será obligatoria la carta laboral cuando se pueda demostrar la continuidad laborar con otro documento y los recibos de nómina contengan CFDI registrado en SAT (que estén fiscalizados) | N40: - | S40: 6 | T40: =IF($I$3=FALSE,"","Anuales") ->  | U40: Copias de los últimos 2 Recibos | V40: 12 | W40: =IF(CompIngresos!BA23>=CompIngresos!BA22,MIN(CompIngresos!BA22:BE23)/12,SUM(CompIngresos!BA22:BE23)/24) -> 0 | AK40: 1 | AL40: Agente de Seguros | AM40: 0.8 | AN40: 6 | BC40: WARNINGS | BD40: // | BF40: 11 | BG40: 0.055 | CO40: =IF(CK25>=65,"Tu cliente excede los 65 años de edad, por lo que se incluye una extraprima en el seguro de vida"&CP20,"") ->  | CQ40: EXTRAPRIMA POR EDAD | DQ40: CAT SIN IVA | DR40: =TablaLiquidez!I16 ->  | DV40: =IF(DS25>=65,"Tu cliente excede los 65 años de edad, por lo que se incluye una extraprima en el seguro de vida"&DW20,"") ->  | DX40: EXTRAPRIMA POR EDAD | ET40: 11 | FC40: WARNINGS | FD40: // | FE40: 0.06 | FG40: 1 | FH40: =VLOOKUP(FG40,$AV$30:$BF$39,11,0)*12 -> 240 | FI40: =AVERAGE(FI35,FI20) ->  | FJ40: =FJ20+FJ35 ->  | FK40: =FK35+FK20 -> 
I41: 1) La fecha de emisión del Recibo de Nómina y del Estado de Cuenta NO debe ser mayor a 45 días a la fecha de ingreso a dictaminación. 2) La fecha de emisión de la carta NO deberá ser mayor a un mes a la fecha de autorización del crédito, si existe un trámite previo la vigencia de la carta podrá ser HASTA por 6 meses, siempre y cuando sea la misma empresa. Para la Carta Laboral no se exige una vigencia | N41: - | AK41: 1 | AL41: Consultor | AM41: 0.8 | AN41: 7 | AW41: EDAD | AX41: ='Cambia Tu Hipoteca'!$Z$13 -> 0 | BA41: =(IF(AZ28<3,IF(AX41>64,EXTRAPRIMAEDAD,IF(BB28=1,FACTORVIDA,IF(BB28=2,EXTRAPRIMAMEDICA,IF(BB28=3,EXTRAPRIMAOCUPACIONAL,0)))))) -> 0.000474 | BC41: =IF(AX41<=0,"",IF(AND(AX28=1,AX42<=10000000),IF(AX41<AX4,"La edad mínima es de "&AX4&" años."&BD40,""),IF(AND(AX28=2,AX42<=10000000),IF(AX41<AX5,"La edad mínima es de "&AX5&" años."&BD40,""),IF(AX42>10000000,IF(AX41<AX6,"La edad mínima es de "&AX6&" años."&BD40,""))))) ->  | BD41: EDAD MINIMA | BF41: 12 | BG41: 0.06 | CH41: CONY | CI41: CREDITO INSTITUTO | CK41: =CREDINSTITUTOCONY -> 0 | CL41: =CREDINSTITUTOCONY -> 0 | CO41: =IFERROR(IF(AND(VVIVIENDA>=8000000,CN49<CK49),"Deberás de incluir una excepción para el Aforo, ya que el Aforo máximo para este valor de vivienda es de "&TEXT(IF(VVIVIENDA>14000000,MIN(IFERROR(VLOOKUP(CN114,CP81:CZ87,11,0),0),IFERROR(VLOOKUP(CN115,CP88:CZ94,11,0),0),IFERROR(VLOOKUP(CN116,CP95:CZ99,11,0),0)),MIN(IFERROR(VLOOKUP(CN114,CP81:CZ87,10,0),0),IFERROR(VLOOKUP(CN115,CP88:CZ94,10,0),0),IFERROR(VLOOKUP(CN116,CP95:CZ99,10,0),0))),"0 %")&CP20,""),"") ->  | CQ41: AFORO MAXIMO POR POLITICA | DQ41: PPM | DR41: =VLOOKUP(EC5,EB91:EK94,10,0) ->  | DV41: =IFERROR(IF(AND(VVIVIENDA>=8000000,DU49<DR49),"Deberás de incluir una excepción para el Aforo, ya que el Aforo máximo para este valor de vivienda es de "&TEXT(IF(VVIVIENDA>14000000,MIN(IFERROR(VLOOKUP(DU114,DW81:EG87,11,0),0),IFERROR(VLOOKUP(DU115,DW88:EG94,11,0),0),IFERROR(VLOOKUP(DU116,DW95:EG99,11,0),0)),MIN(IFERROR(VLOOKUP(DU114,DW81:EG87,10,0),0),IFERROR(VLOOKUP(DU115,DW88:EG94,10,0),0),IFERROR(VLOOKUP(DU116,DW95:EG99,10,0),0))),"0 %")&DW20,""),"") ->  | DX41: AFORO MAXIMO POR POLITICA | ET41: 12 | EU41: EDAD | EV41: ='Cambia Tu Hipoteca mas Liquidez'!$Z$13 -> 0 | FC41: =IF(EV41<=0,"",IF(AND(EV28=1,EV42<=8000000),IF(EV41<EV4,"La edad mínima es de "&EV4&" años."&FD40,""),IF(AND(EV28=2,EV42<=8000000),IF(EV41<EV5,"La edad mínima es de "&EV5&" años."&FD40,""),IF(EV42>8000000,IF(EV41<EV6,"La edad mínima es de "&EV6&" años."&FD40,""))))) ->  | FD41: EDAD MINIMA | FE41: 0.065 | FG41: 2 | FH41: =VLOOKUP(FG41,$AV$30:$BF$39,11,0)*12 -> 180 | FI41: =AVERAGE(FI36,FI21) ->  | FJ41: =FJ21+FJ36 -> 
AK42: 1 | AL42: Contador | AM42: 0.8 | AN42: 8 | AW42: VALOR DE LA VIVIENDA | AX42: ='Cambia Tu Hipoteca'!J15 -> 0 | BC42: =IF(AX42=0,"",IF(BH28=1,IF(AX42>=AX14,"","El valor mínimo de la vivienda es de "&TEXT(AX14,"$ 0,0.00")&BD40),IF(AX42>=AX15,"","El valor minimo de la vivienda es de "&TEXT(AX15,"$ 0,0.00")&BD40))) ->  | BD42: VALOR MINIMO VIVIENDA | BF42: 13 | BG42: 0.065 | CH42: CONY | CI42: SALDO SUBCTA VIVIE | CJ42: =CK42 -> 0 | CK42: =ADQUISICION!T134 -> 0 | CL42: =ADQUISICION!T134 -> 0 | CM42: =CL42 -> 0 | CN42: =CH83+CREDITOINSTITUTOIND+CREDINSTITUTOCONY-ECOTECNOLOGÍASIND-ECOTECNOLOGÍASCONY -> 0 | CO42: =IF(CP5=1,IFERROR(IF(CH84>CH83+CK46,IF(OR(IFERROR($CH$81,"")="",IFERROR($CH$82,"")="",IFERROR($CH$85,"")=""),"",IF(AND($CJ$90=FALSE,CK27>CH85),"La linea de crédito esta topada a "&TEXT(CH85,"$ 0,0.00")&CP20,"")),""),""),IFERROR(IF(CH84>CH83+CK46,IF(OR(IFERROR($CH$81,"")="",IFERROR($CH$82,"")="",IFERROR($CH$85,"")=""),"",IF(AND($CJ$90=FALSE,(CK26-CK27)>CH85),"La linea de crédito esta topada a "&TEXT(CH85,"$ 0,0.00")&CP20,"")),""),"")) ->  | CQ42: TOPE LINEA DE CREDITO POR NIVEL DE RIESGO | DV42: =IF(DW5=1,IFERROR(IF(DO84>DO83+DR46,IF(OR(IFERROR($CH$81,"")="",IFERROR($CH$82,"")="",IFERROR($CH$85,"")=""),"",IF(AND($CJ$90=FALSE,DR27>DO85),"La linea de crédito esta topada a "&TEXT(DO85,"$ 0,0.00")&DW20,"")),""),""),IFERROR(IF(DO84>DO83+DR46,IF(OR(IFERROR($CH$81,"")="",IFERROR($CH$82,"")="",IFERROR($CH$85,"")=""),"",IF(AND($CJ$90=FALSE,(DR26-DR27)>DO85),"La linea de crédito esta topada a "&TEXT(DO85,"$ 0,0.00")&DW20,"")),""),"")) ->  | DX42: TOPE LINEA DE CREDITO POR NIVEL DE RIESGO | ET42: 13 | EU42: VALOR DE LA VIVIENDA | EV42: ='Cambia Tu Hipoteca mas Liquidez'!J17 -> 0 | EW42: 8000000 | EX42: 0.8 | EY42: =EW42*EX42 -> 6400000 | FC42: =IF(EV42=0,"",IF(FF28=1,IF(EV42>=EV14,"","El valor mínimo de la vivienda es de "&TEXT(EV14,"$ 0,0.00")&FD40),IF(EV42>=EV15,"","El valor minimo de la vivienda es de "&TEXT(EV15,"$ 0,0.00")&FD40))) ->  | FD42: VALOR MINIMO VIVIENDA | FE42: 0.07 | FG42: 3 | FH42: =VLOOKUP(FG42,$AV$30:$BF$39,11,0)*12 -> 120 | FI42: =AVERAGE(FI37,FI22) ->  | FJ42: =FJ22+FJ37 -> 
AK43: 1 | AL43: Dentista | AM43: 1 | AN43: 9 | AW43: SALDO ACTUAL | AX43: ='Cambia Tu Hipoteca'!J17 -> 0 | BC43: =IF(AX43=0,"",IF(IF(Calculos!BB60="NO",Calculos!$AX$60,Calculos!AZ60)<300000,"El monto de crédito mínimo es de $ 300,000.00"&BD40,"")) ->  | BD43: MONTO MINIMO DE CREDITO | BF43: 14 | BG43: 0.07 | CH43: CONY | CI43: DESCUENTO MENS | CK43: =DESCUENTCONY -> 0 | CL43: =DESCUENTCONY -> 0 | CO43: =IFERROR(IF(CK47="","",IF(CK62="Se Cotizará","El costo de avalúo no esta incluido en la simulación, ya que la vivienda es mayor a $ 15,000,000.00 y se requiere cotizar el avalúo","")),"") ->  | CQ43: AVALUO SE COTIZARA | DQ43: CAPITAL + INTERESES | DR43: =DR72*ROUNDUP(PMT(DR36/12,DR39,-1000),2)/1000 ->  | DV43: =IFERROR(IF(DR47="","",IF(DR62="Se Cotizará","El costo de avalúo no esta incluido en la simulación, ya que la vivienda es mayor a $ 15,000,000.00 y se requiere cotizar el avalúo","")),"") ->  | DX43: AVALUO SE COTIZARA | ET43: 14 | EU43: SALDO ACTUAL | EV43: ='Cambia Tu Hipoteca mas Liquidez'!J19 -> 0 | EW43: =EV42-EW42 -> -8000000 | EX43: 0.4 | EY43: =EW43*EX43 -> -3200000 | FC43: =IF(EV43=0,"",IF($EV$57+EX57<300000,"El monto de crédito mínimo es de $ 300,000.00"&FD40,"")) ->  | FD43: MONTO MINIMO DE CREDITO | FE43: 0.075
AK44: 1 | AL44: Diseño Gráfico | AM44: 0.8 | AN44: 10 | AW44: INGRESO | AX44: ='Cambia Tu Hipoteca'!J19 -> 0 | BC44: =IF(AX44=0,"",IF(AX44<INGRESOMIN,"El ingreso mínimo mensual es de "&TEXT(INGRESOMIN,"$ 0,0.00")&BD40,"")) ->  | BD44: INGRESO MINIMO MENSUAL | BF44: 15 | BG44: 0.075 | CH44: CONY | CI44: GASTOS DE TITULA | CK44: =ADQUISICION!T132*0.03 -> 0 | CL44: =ADQUISICION!T132*0.03 -> 0 | CO44: =IF(OR($CZ$5=2,$CZ$5=3),"RECUERDA!! las cifras son preliminares y estas podrán ser ajustadas cuando INFONAVIT proporcione montos definitivos (Carta de Instrucción notarial y/o Anexo B)"&CP20,"") ->  | CQ44: COFIS | DQ44: SEGURO DE VIDA | DR44: =IF(DZ5>2,0,DR72*(IF(EDADCLIENTE_Liq>=65,EXTRAPRIMAEDAD,IF(EB5=2,EXTRAPRIMAMEDICA,IF(EB5=3,EXTRAPRIMAOCUPACIONAL,FACTORVIDA))))) ->  | DV44: =IF(OR($CZ$5=2,$CZ$5=3),"RECUERDA!! las cifras son preliminares y estas podrán ser ajustadas cuando INFONAVIT proporcione montos definitivos (Carta de Instrucción notarial y/o Anexo B)"&DW20,"") ->  | DX44: COFIS | ET44: 15 | EU44: INGRESO | EV44: ='Cambia Tu Hipoteca mas Liquidez'!J21 -> 0 | FC44: =IF(EV44=0,"",IF(EV44<EV11,"El ingreso mínimo mensual es de "&TEXT(EV11,"$ 0,0.00")&FD40,"")) ->  | FD44: INGRESO MINIMO MENSUAL | FE44: 0.08
AK45: 1 | AL45: Enfermera/Terapeuta | AM45: 0.8 | AN45: 11 | AW45: MENS REMANENTES | AX45: ='Cambia Tu Hipoteca'!J21 -> 0 | BC45: =IF(ISERROR(IF(OR('Cambia Tu Hipoteca'!J15="",'Cambia Tu Hipoteca'!J17="",'Cambia Tu Hipoteca'!J19=""),"",MIN(Calculos!AX56:AX59))),"El indice de riesgo elegido no aplica para el tipo de ingreso "&IF(AX28=1,"Asalariado","Independiente")&BD40,"") ->  | BD45: NO EXISTE POR RIESGO | BF45: 16 | BG45: 0.08 | CH45: CONY | CI45: CONTARIAS CON | CK45: =CREDINSTITUTOCONY+SUBCTACONY -> 0 | CL45: =CREDINSTITUTOCONY+SUBCTACONY -> 0 | CO45: =IFERROR(IF(CM13=1,"Por promoción Tu Hipoteca sin Comisión recibe la comision por apertura ¡Gratis! Y ahorra "&TEXT(CK50,"$0,0.00")&" Válida la vigencia de la promoción en www.banamex.com/tuhipotecasincomision",""),"") ->  | CQ45: Promociones | DQ45: SEGURO DE DAÑOS | DR45: =IF(OR(DZ5=1,DZ5=3),MAX(VVIVIENDA_Liq*0.8*FACTORDAÑOS,DR35*FACTORDAÑOS),0) ->  | DV45: =IFERROR(IF(DT5=1,"Por promoción Tu Hipoteca sin Comisión recibe la comision por apertura ¡Gratis! Y ahorra "&TEXT(DR67,"$0,0.00")&" Válida la vigencia de la promoción en www.Banamex.com/tuhipotecasincomision",""),"") ->  | DX45: Promo | ET45: 16 | EU45: MENS REMANENTES | EV45: ='Cambia Tu Hipoteca mas Liquidez'!J23 -> 0 | FC45: =IF(ISERROR(IF(OR('Cambia Tu Hipoteca mas Liquidez'!J17="",'Cambia Tu Hipoteca mas Liquidez'!J19="",'Cambia Tu Hipoteca mas Liquidez'!J21=""),"",MIN(EV54:EV56))),"El indice de riesgo elegido no aplica para el tipo de ingreso "&IF(EV28=1,"Asalariado","Independiente")&FD40,"") ->  | FD45: NO EXISTE POR RIESGO | FE45: 0.085
AK46: 1 | AL46: Informático | AM46: 0.8 | AN46: 12 | AW46: MENS TOTAL ACTUAL | AX46: ='Cambia Tu Hipoteca'!J23 -> 0 | BC46: =IFERROR(IF(BB60="SI",IF(OR(AZ56="",AZ57="",AZ60=""),"",IF(BA60=TRUE,"Su línea de crédito está topada por su capacidad de pago a "&TEXT(AZ60," 0,0.00")&", recalcula sus ingresos o monto solicitado. "&BD40,"")),IF(OR(AX56="",AX57="",AX60=""),"",IF(AY60=TRUE,"Su línea de crédito está topada por su capacidad de pago a "&TEXT(AX60," 0,0.00")&", recalcula sus ingresos o monto solicitado. "&BD40,""))),"") ->  | BD46: LINEA CREDITO TOPE | BF46: 17 | BG46: 0.085 | CI46: CONTARIS CON IND Y CONY | CK46: =CK45+CK39 -> 0 | CL46: =CL45+CL39 -> 0 | CO46: =+IFERROR(IF(AND(CH85<CH84,CO5<3,CH85<1500000),_xlfn.CONCAT("Es necesario que ajustes el monto solicitado de la simulacion a ",TEXT(CH85,"$#,##0.00")," para que se asigne la tasa correcta."),""),"") ->  | DQ46: MENSUALIDAD TOTAL | DR46: =SUM(DR43:DR45) ->  | ET46: 17 | EU46: MENS TOTAL ACTUAL | EV46: ='Cambia Tu Hipoteca mas Liquidez'!J25 -> 0 | FC46: =IFERROR(IF(OR(EV42="",EV43="",EV44=""),"",IF(OR(EV58=EV54,EV58=EV55),"Su línea de crédito está topada por su capacidad de pago a "&TEXT(EV58," 0,0.00")&", recalcula sus ingresos o monto solicitado. "&FD40&" El monto máximo de liquidez que se podría otorgar es de: "&DOLLAR(EX60*EV42)&FD40,"")),"") ->  | FD46: LINEA CREDITO TOPE | FE46: 0.09
AK47: 1 | AL47: Ingeniero | AM47: 0.8 | AN47: 13 | AW47: DEUDA CA | AX47: ='Cambia Tu Hipoteca'!AI17 -> 0 | AY47: 0.04 | AZ47: =IF($BD$28=2,AX47,AX47*AY47) -> 0 | BC47: =IF(AX42>15000000,"* Para viviendas con valor hasta $ 15,000,000.00. El excedente será cubierto por el cliente.","") ->  | BD47: AVALUO VIVIENDA MAYOR A 15 MM | BF47: 18 | BG47: 0.09 | CI47: CREDITO PERF | CK47: =IF(CI85="SI",CH115,CH85) ->  | CL47: =IF(CL85="SI",CK115,CK85) ->  | DQ47: INGRE MIN COMP | DR47: =VLOOKUP(EC5,EB91:EO94,14,0) ->  | ET47: 18 | EU47: DEUDA CA | EV47: ='Cambia Tu Hipoteca mas Liquidez'!AI17 -> 0 | EW47: 0.04 | EX47: =IF($BD$28=2,EV47,EV47*EW47) -> 0 | FD47: AVALUO VIVIENDA MAYOR A 15 MM | FE47: 0.095
AK48: 1 | AL48: Ingeniero Civil | AM48: 0.8 | AN48: 14 | AW48: DEUDA CH | AX48: ='Cambia Tu Hipoteca'!AI19 -> 0 | AY48: 0.01 | AZ48: =IF($BD$28=2,AX48,AX48*AY48) -> 0 | BC48: =IFERROR(IF(AX59>AX60,"Su linea de crédito esta topada por %Financiamiento máximo a "&TEXT($AX$60,"$ 0,0.00"),""),"") ->  | BD48: LINEA CREDITO POR MAX AFORO | BF48: 19 | BG48: 0.095 | CI48: TASA | CJ48: =IF(CI84="SI",CJ99,CJ68) ->  | CK48: =IF(CI85="SI",CI100,CI70) ->  | CL48: =IF(CL85="SI",CL100,CL70) ->  | CM48: =IF(CL85="SI",CM99,CM68) ->  | DQ48: INGRE MIN COMP 2 | DR48: =DR79 ->  | EI48: Avaluo | ET48: 19 | EU48: DEUDA CH | EV48: ='Cambia Tu Hipoteca mas Liquidez'!AI19 -> 0 | EW48: 0.01 | EX48: =IF($BD$28=2,EV48,EV48*EW48) -> 0 | FC48: =IFERROR(IF(EV56<EV57+EX57,"Su linea de crédito esta topada por %Financiamiento máximo a "&TEXT($EV$58,"$ 0,0.00"),""),"") ->  | FD48: LINEA CREDITO POR MAX AFORO | FE48: 0.1
AK49: 1 | AL49: Maestro | AM49: 0.8 | AN49: 15 | AW49: DEUDA CP | AX49: ='Cambia Tu Hipoteca'!AI21 -> 0 | AY49: 0.05 | AZ49: =IF($BD$28=2,AX49,AX49*AY49) -> 0 | BC49: =IF(AND(AX60>CREDITOMAX,AX60<>""),"Deberás incluir una Excepción para un crédito mayor de "&TEXT(CREDITOMAX,"$ 0,0.00"),"") ->  | BD49: MONTO MAXIMO DE CREDITO | BF49: 20 | BG49: 0.1 | CI49: % FINANCIAMIENTO | CK49: =ROUNDDOWN(IF(CI85="SI",CI101,CI71),3) ->  | CL49: =ROUNDDOWN(IF(CL85="SI",CL101,CL71),3) ->  | CN49: =(MAX((10000000*MAX(CP120:CP122)+(VVIVIENDA-10000000)*0.4),VVIVIENDA*IF((MAX(CP114:CP116)-IF(CO5=1,30%,10%))<60%,60%,(MAX(CP114:CP116)-IF(CO5=1,30%,10%)))))/VVIVIENDA ->  | DQ49: ENGANCHE MIN REQU | EB49: PAGOS FIJOS | EI49: VALOR MIN | EJ49: VALOR MAX | EK49: COSTO CIVA | EL49: COSTO SIVA | EU49: DEUDA CP | EV49: ='Cambia Tu Hipoteca mas Liquidez'!AI21 -> 0 | EW49: 0.05 | EX49: =IF($BD$28=2,EV49,EV49*EW49) -> 0 | FD49: MONTO MINIMO DE CREDITO
AK50: 1 | AL50: Médico | AM50: 1 | AN50: 16 | AW50: DEUDA TDC | AX50: ='Cambia Tu Hipoteca'!AI23 -> 0 | AY50: 0.07 | AZ50: =AX50*AY50 -> 0 | BC50: =IF(AX41>AX7,"La edad máxima es de "&AX7&" años 11 meses para Cambia tu Hipoteca"&BD40,"") ->  | BD50: EDAD MAXIMA | CI50: COMISION APERTURA | CK50: =IF(CI85="SI",CH119,CH89) ->  | CL50: =IF(CL85="SI",CK119,CK89) ->  | DQ50: COMISION APERTURA CON IVA | DR50: =DR67 ->  | ED50: 1 | EE50: 2 | EF50: 3 | EG50: 4 | EI50: 500000 | EJ50: 1000000 | EK50: 3500 | EL50: 3017.241379 | EU50: DEUDA TDC | EV50: ='Cambia Tu Hipoteca mas Liquidez'!AI23 -> 0 | EW50: 0.07 | EX50: =EV50*EW50 -> 0 | FC50: =IF(EV43=0,"",IF($EX$59<EV21,"El monto de crédito mínimo de Liquidez es de $ 50,000.00 o el 5% del remanente de la hipoteca, lo que resulte mayor, revisa el monto de Cambia tu Hipoteca, el aforo máximo combinado es de: "&MAX(FH9:FH10)*100&"%"&FD40,"")) ->  | FD50: MONTO MINIMO DE CREDITO LIQUIDEZ
AK51: 1 | AL51: Periodista/Comunicador | AM51: 0.8 | AN51: 17 | AY51: total | AZ51: =SUM(AZ47:AZ50) -> 0 | BC51: =IF(AX41+VLOOKUP($BF$28,$AV$30:$BF$32,11,0)>AX8,"La edad máxima + plazo es de "&AX8&" años 11 meses. "&BD40,"") ->  | BD51: EDAD MAXIMA + PLAZO | CI51: PLAZO | CK51: =IF(CI85="SI",CH102,CH72) -> 240 | CL51: =IF(CL85="SI",CK102,CK72) -> 240 | DQ51: COMISION APERTURA SIN IVA | DR51: =(DR50*1%)/1.16% ->  | EC51: CTH | ED51: MUY BAJO | EE51: BAJO | EF51: MEDIO | EG51: ALTO | EI51: 1000001 | EJ51: 3000000 | EK51: 5500 | EL51: 4741.37931 | EW51: total | EX51: =SUM(EX47:EX50) -> 0 | FD51: MONTO MAXIMO DE CREDITO LIQUIDEZ
A52: - | AK52: 1 | AL52: Piloto | AM52: 0.8 | AN52: 18 | BC52: =IF(AX41>=65,"Tu cliente excede los 65 años de edad, por lo que se incluye una extraprima en el seguro de vida"&BD40,"") ->  | BD52: EXTRAPRIMA POR EDAD | CI52: CAT SIN IVA | CK52: =IF(CI85="SI",CH126,CH96) ->  | CL52: =IF(CL85="SI",CK126,CK96) ->  | DQ52: AVALUO CON IVA | DR52: =DR75 ->  | EB52: <35000 | EC52: DTI | ED52: 0.5 | EE52: 0.5 | EF52: 0.45 | EG52: 0.35 | EI52: 3000001 | EJ52: 5000000 | EK52: 7500 | EL52: 6465.517241 | EU52: Cambia tu Hipoteca | FA52: Liquidez | FC52: =IFERROR(IF(EV58>EV13,"Deberás incluir una Excepción para un crédito mayor de " &TEXT(EV13,"$0,0.00"),""),"") ->  | FD52: MONTO MAXIMO DE CREDITO
A53: - | AK53: 1 | AL53: Psicólogo | AM53: 0.8 | AN53: 19 | BC53: =IF(AX28=1,BD53,"") -> No olvides que puedes comprobar los ingresos de tu cliente con BELVO, es fácil y rápido. | BD53: No olvides que puedes comprobar los ingresos de tu cliente con BELVO, es fácil y rápido. | CI53: PPM | CK53: =IF(CI85="SI",CJ107,CJ77) ->  | CL53: =IF(CL85="SI",CM107,CM77) ->  | DQ53: AVALUO SIN IVA | DR53: =DR52/1.16 ->  | EC53: PTI | ED53: 0.45 | EE53: 0.45 | EF53: 0.4 | EG53: 0.3 | EI53: 5000001 | EJ53: 8000000 | EK53: 10500 | EL53: 9051.724138 | EV53: CTH+Liquidez | EW53: CTH | EX53: Liquidez | FC53: =IF(EV41>EV7,"La edad máxima es de "&EV7&" años 11 meses para Cambia tu Hipoteca más Liquidez"&FD40,"") ->  | FD53: EDAD MAXIMA
A54: - | AK54: 1 | AL54: Otro | AM54: 0.8 | AN54: 20 | DQ54: GASTOS NOTARIALES | DR54: =DR74 ->  | EB54: >35000 | EC54: DTI | ED54: 0.5 | EE54: 0.5 | EF54: 0.5 | EG54: 0.35 | EI54: 8000001 | EJ54: 15000000 | EK54: 15500 | EL54: 13362.06897 | EU54: LINEA PTI | EV54: =(('Cambia Tu Hipoteca mas Liquidez'!J21*EV71-(IF(OR(EX28=1,EX28=3),MAX(EV42*0.8,EV43)*FACTORDAÑOS,0))-(((IF((EV43/EV42)<=EZ26,IF(FD26-(EV43/EV42)<FB26,FD26-(EV43/EV42),FB26),IF((EV43/EV42)<=EZ25,IF(FD25-(EV43/EV42)<=FB25,FD25-(EV43/EV42),FB25),IF((EV43/EV42)<=EZ24,IF(FD24-(EV43/EV42)<=FB24,FD24-(EV43/EV42),FB24),IF((EV43/EV42)<=EZ23,IF(FD23-(EV43/EV42)<=FB23,FD23-(EV43/EV42),FB23),0))))*EV42)+EV43)*IF(EX28>2,0,IF(EV41>=65,EXTRAPRIMAEDAD,FACTORVIDA)+IF(EX28>2,0,IF(EZ28=2,EXTRAPRIMAMEDICA,0)+IF(EZ28=3,EXTRAPRIMAOCUPACIONAL,0)))))/EV63)*1000 ->  | FC54: =IF(EV41+VLOOKUP($FC$28,$ET$30:$FD$32,11,0)>EV8,"La edad máxima + plazo es de "&EV8&" años 11 meses. "&FD40,"") ->  | FD54: EDAD MAXIMA + PLAZO
A55: - | AK55: 2 | AL55: Agropecuario y Pesca | AM55: 0.15 | AX55: =MIN(IF('Cambia Tu Hipoteca'!J15<=8000000,'Cambia Tu Hipoteca'!J15*MAX(Calculos!BJ4:BJ6),8000000*MAX(Calculos!BJ4:BJ6)+('Cambia Tu Hipoteca'!J15-8000000)*0.4),16000000) -> 0 | CI55: CAPITAL + INTERESES | CK55: =CK47*ROUNDUP(PMT(CK48/12,IF(CI85="SI",CH102,CH72),-1000),2)/1000 ->  | CL55: =CL47*CL53/1000 ->  | CM55: 16613.334 | DQ55: AMARRA TU TASA | DR55: =DR78 -> 0 | EC55: PTI | ED55: 0.45 | EE55: 0.45 | EF55: 0.4 | EG55: 0.3 | EI55: 15000000.01 | EK55: =IF(VVIVIENDA_Liq>15000000,(((VVIVIENDA_Liq-10000000)*1.05)/1000)+14990,0) -> 0 | EL55: Se Cotizará | EU55: LINEA DTI | EV55: =(('Cambia Tu Hipoteca mas Liquidez'!J21*EV72-MAX(EV42*0.8,EV43)*FACTORDAÑOS-(((IF((EV43/EV42)<=EZ26,IF(FD26-(EV43/EV42)<FB26,FD26-(EV43/EV42),FB26),IF((EV43/EV42)<=EZ25,IF(FD25-(EV43/EV42)<=FB25,FD25-(EV43/EV42),FB25),IF((EV43/EV42)<=EZ24,IF(FD24-(EV43/EV42)<=FB24,FD24-(EV43/EV42),FB24),IF((EV43/EV42)<=EZ23,IF(FD23-(EV43/EV42)<=FB23,FD23-(EV43/EV42),FB23),0))))*EV42)+EV43)*IF(EX28>2,0,IF(EV41>=65,EXTRAPRIMAEDAD,FACTORVIDA)+IF(EX28>2,0,IF(EZ28=2,EXTRAPRIMAMEDICA,0)+IF(EZ28=3,EXTRAPRIMAOCUPACIONAL,0))))-EX51)/EV63)*1000 ->  | FC55: =IF(EV41>=65,"Tu cliente excede los 65 años de edad, por lo que se incluye una extraprima en el seguro de vida"&FD40,"") ->  | FD55: EXTRAPRIMA POR EDAD
A56: - | AK56: 2 | AL56: Agencia de Viajes | AM56: 0.3 | AW56: LINEA PTI | AX56: =IF('Cambia Tu Hipoteca'!J19="","",ROUND(('Cambia Tu Hipoteca'!J19*AX72-0.8*'Cambia Tu Hipoteca'!J15*FACTORDAÑOS)/AX75,0)*1000) ->  | AZ56: =IF('Cambia Tu Hipoteca'!J19="","",ROUND(('Cambia Tu Hipoteca'!J19*AZ72-0.8*'Cambia Tu Hipoteca'!J15*FACTORDAÑOS)/AZ75,0)*1000) ->  | CI56: SEGURO DE VIDA | CK56: =IF(AND(CK25>=65,OR(CS5=1,CS5=2)),CH85*EXTRAPRIMAEDAD,IF(OR(CS5=1,CS5=2),IF(CU5=1,IF(CI85="SI",CH115,CH85)*FACTORVIDA,IF(CU5=2,IF(CI85="SI",CH115,CH85)*EXTRAPRIMAMEDICA,IF(CI85="SI",CH115,CH85)*EXTRAPRIMAOCUPACIONAL)),0)) ->  | CL56: =IF(AND(CK25>=65,OR(CS5=1,CS5=2)),IF(CL85="SI",CK115,CK85)*EXTRAPRIMAEDAD,IF(OR(CS5=1,CS5=2),IF(CU5=1,IF(CL85="SI",CK115,CK85)*FACTORVIDA,IF(CU5=2,IF(CL85="SI",CK115,CK85)*EXTRAPRIMAMEDICA,IF(CL85="SI",CK115,CK85)*EXTRAPRIMAOCUPACIONAL)),0)) ->  | CM56: 1000 | DQ56: TOTAL GASTOS INICIA | DR56: =SUM(DR51,DR53,DR54,DR55) ->  | EU56: MAX AFORO | EV56: =IF('Cambia Tu Hipoteca mas Liquidez'!J17<=10000000,'Cambia Tu Hipoteca mas Liquidez'!J17*MAX(Calculos!FH4:FH6),MAX(10000000*MAX(FH4:FH5)+('Cambia Tu Hipoteca mas Liquidez'!J17-10000000)*0.4,'Cambia Tu Hipoteca mas Liquidez'!J17*(IF(EU28=1,MAX(FH9:FH11)-30%,MAX(FH9:FH11)-10%)))) -> 0 | FC56: =IFERROR(IF(FH28=1,"Por promoción Tu Hipoteca sin Comisión recibe la comision por apertura ¡Gratis! Y ahorra "&TEXT(EW68+EX68,"$0,0.00")&" Válida la vigencia de la promoción en www.banamex.com/tuhipotecasincomision",""),"") ->  | FD56: PROMOCIONES
A57: - | AK57: 2 | AL57: Alimentos/Bebidas Elaborados | AM57: 0.3 | AW57: LINEA DTI | AX57: =IF('Cambia Tu Hipoteca'!J19="","",ROUND((('Cambia Tu Hipoteca'!J19*AX73)-AZ51-0.8*'Cambia Tu Hipoteca'!J15*FACTORDAÑOS)/AX75,0)*1000) ->  | AZ57: =IF('Cambia Tu Hipoteca'!J19="","",ROUND((('Cambia Tu Hipoteca'!J19*AZ73)-AZ51-0.8*'Cambia Tu Hipoteca'!J15*FACTORDAÑOS)/AZ75,0)*1000) ->  | CI57: SEGURO DE DAÑOS | CK57: =IF(OR(Calculos!$CS$5=1,Calculos!$CS$5=3),MAX(VVIVIENDA*0.8*FACTORDAÑOS,CK47*FACTORDAÑOS),0) ->  | CL57: =IF(OR(Calculos!$CS$5=1,Calculos!$CS$5=3),MAX(VVIVIENDA*0.8*FACTORDAÑOS,CL47*FACTORDAÑOS),0) ->  | CM57: 1200 | EB57: Grid De Precios | EU57: SOLICITADO | EV57: ='Cambia Tu Hipoteca mas Liquidez'!J19 -> 0 | EX57: ='Cambia Tu Hipoteca mas Liquidez'!$J$27 -> 0 | EY57: =+EV57+EX57 -> 0 | FC57: =IF(EV28=1,FD57,"") -> No olvides que puedes comprobar los ingresos de tu cliente con BELVO, es fácil y rápido. | FD57: No olvides que puedes comprobar los ingresos de tu cliente con BELVO, es fácil y rápido.
A58: - | AK58: 2 | AL58: Construcción/Contratista | AM58: 0.3 | AW58: MAX AFORO | AX58: =IF('Cambia Tu Hipoteca'!J15<=10000000,'Cambia Tu Hipoteca'!J15*MAX(Calculos!BJ4:BJ6),MAX(10000000*MAX(BJ4:BJ5)+('Cambia Tu Hipoteca'!J15-10000000)*0.4,'Cambia Tu Hipoteca'!J15*(IF(Calculos!AW28=1,IF(MAX(Calculos!BJ4:BJ5)-30%<60%,60%,MAX(Calculos!BJ4:BJ5)-30%),MAX(Calculos!BJ4:BJ5)-10%)))) -> 0 | AY58: =+IF('Cambia Tu Hipoteca'!J15="","",(AX58-AY76)/AX69) ->  | AZ58: =IF('Cambia Tu Hipoteca'!J15<=10000000,'Cambia Tu Hipoteca'!J15*MAX(Calculos!BJ4:BJ6),MAX(10000000*MAX(BJ4:BJ5)+('Cambia Tu Hipoteca'!J15-10000000)*0.4,'Cambia Tu Hipoteca'!J15*(IF(Calculos!AW28=1,IF(MAX(Calculos!BJ4:BJ5)-30%<60%,60%,MAX(Calculos!BJ4:BJ5)-30%),MAX(Calculos!BJ4:BJ5)-10%)))) -> 0 | BA58: =+IF('Cambia Tu Hipoteca'!J15="","",(AX58-AY76)/AZ69) ->  | CI58: MENSUALIDAD TOTAL | CK58: =SUM(CK55:CK57) ->  | CL58: =SUM(CL55:CL57) ->  | CS58: PAGOS FIJOS | DQ58: Cálculos | EU58: LINEA FINAL | EV58: =IF(EX57=0,MIN(EV54:EV56),MIN(EV54:EV56,EV57+EX57)) -> 
AK59: 2 | AL59: Comisionista | AM59: 0.3 | AW59: SOLICITADO | AX59: ='Cambia Tu Hipoteca'!J17+Calculos!AX76 -> 0 | AZ59: ='Cambia Tu Hipoteca'!J17+Calculos!AX76 -> 0 | CI59: INGRE MIN COMP | CK59: =IF(CI85="SI",CH120,CH90) ->  | CL59: =IF(CL85="SI",CK120,CK90) ->  | CU59: 1 | CV59: 2 | CW59: 3 | CX59: 4 | DQ59: TASA_Monto_Solicitado | DR59: =VLOOKUP(DR60,EC84:EE87,3) ->  | EF59: Tasas | EU59: LINEA_CTH | EW59: =IF(EV57<EV58,EV57,EV58) ->  | EX59: =IF(EX57=0,MIN(EV58-EW59,EX60*EV42),MIN(EV58-EW59,EX60*EV42,EX57)) -> 
AK60: 2 | AL60: Comercio | AM60: 0.3 | AW60: LINEA FINAL | AX60: =IFERROR(IF(OR('Cambia Tu Hipoteca'!J15="",'Cambia Tu Hipoteca'!J17="",'Cambia Tu Hipoteca'!J19=""),"",MIN(Calculos!AX56:AX59)),"") ->  | AY60: =OR(AX56=AX60,AX57=AX60) -> TRUE | AZ60: =IFERROR(IF(OR('Cambia Tu Hipoteca'!J15="",'Cambia Tu Hipoteca'!J17="",'Cambia Tu Hipoteca'!J19=""),"",MIN(Calculos!AZ56:AZ59)),"") ->  | BA60: =OR(AZ56=AZ60,AZ57=AZ60) -> TRUE | BB60: =IF(AND(AX60>=300000),"SI","NO") -> SI | CI60: INGRE MIN COMP 2 | CK60: =IF(CI84="SI",CH123,CH93) ->  | CL60: =IF(CL84="SI",CK123,CK93) ->  | CT60: CTH | CU60: MUY BAJO | CV60: BAJO | CW60: MEDIO | CX60: ALTO | DQ60: AFORO_Monto_Solicitado | DR60: =MIN(MAX(ED85:ED87),IF(DW5=1,MONSOLIENGAN_Liq,VVIVIENDA_Liq-MONSOLIENGAN_Liq)/VVIVIENDA_Liq) ->  | EB60: INGRESO | EC60: RIESGO | ED60: AFORO | EE60: %Aforo | EF60: Blue | EG60: Priority | EH60: Gold | EU60: Aforo_Max | EW60: =EV57/EV42 ->  | EX60: =ROUNDUP(IF(EW60<=EZ26,IF(FD26-EW60<FB26,FD26-EW60,FB26),IF(EW60<=EZ25,IF(FD25-EW60<=FB25,FD25-EW60,FB25),IF(EW60<=EZ24,IF(FD24-EW60<=FB24,FD24-EW60,FB24),IF(EW60<=EZ23,IF(FD23-EW60<=FB23,FD23-EW60,FB23),0)))),2) ->  | EY60: =+SUM(EW60:EX60) -> 
AK61: 2 | AL61: Diseñador Gráfico | AM61: 0.3 | AW61: ENGANCHE | AX61: =IF(AX60="","",IF(AX59>AX58,0,AX59-AX60)) ->  | AZ61: =IF(AZ60="","",IF(AZ59>AZ58,0,AZ59-AZ60)) ->  | CI61: ENGANCHE MIN REQU | CK61: =IF(CI85="SI",CH116,CH86) ->  | CL61: =IF(CL85="SI",CK116,CK86) ->  | CS61: <35000 | CT61: DTI | CU61: 0.5 | CV61: 0.5 | CW61: =IF($DF$5=1,CV61,45%) -> 0.5 | CX61: 0.35 | DQ61: PLAZO | DR61: =VLOOKUP(EC5,DU6:EC9,9,0) -> 20 | EB61: 1 | EC61: 1 | ED61: =EB61&EC61 -> 11 | EE61: 0.5499999 | EF61: 0.13 | EG61: 0.1275 | EH61: 0.1225 | EU61: Tasa_Aforo_Max | EW61: =IF(EU28<4,VLOOKUP(EY60,FG8:FI10,3),VLOOKUP(EY60,FG14:FI15,3)) ->  | EX61: =IF(EU28<4,VLOOKUP(EY60,FG8:FI10,3),VLOOKUP(EY60,FG14:FI15,3)) -> 
AK62: 2 | AL62: Gasolinero | AM62: 0.06 | AW62: APOYO INFONAVIT | AX62: =IF(IF(BJ28=1,IF('Cambia Tu Hipoteca'!K27="",'Cambia Tu Hipoteca'!J19,'Cambia Tu Hipoteca'!K27),"")>DG82,DG82,IF(BJ28=1,IF('Cambia Tu Hipoteca'!K27="",'Cambia Tu Hipoteca'!J19,'Cambia Tu Hipoteca'!K27),""))*0.1 -> 8598.64 | CG62: 1050000 | CI62: AVALUO CON IVA | CK62: =IF(CI85="SI",CH118,CH88) -> 0 | CL62: =IF(CL85="SI",CK118,CK88) -> 0 | CT62: PTI | CU62: 0.45 | CV62: 0.45 | CW62: =IF($DF$5=1,CV62,40%) -> 0.45 | CX62: 0.3 | DQ62: GASTOS NOTARIALES | DR62: =IF(EE5<=10,VLOOKUP($EE$5,DU6:EE16,11,0),VLOOKUP($EE$5,ED17:EE25,2,0)) -> 0.055 | EB62: 1 | EC62: 2 | ED62: =EB62&EC62 -> 12 | EE62: 0.5499999 | EF62: 0.13 | EG62: 0.1275 | EH62: 0.1225 | EU62: Plazo | EW62: =VLOOKUP(FD28,ET30:FD32,11,0)*12 -> 240 | EX62: =VLOOKUP(FD28,ET30:FD32,11,0)*12 -> 240
B63: Tipo de Ingreso | C63: Segmento | E63: Modo Comprobacion | AK63: 2 | AL63: Manufactura | AM63: 0.3 | AW63: AVALUO | AX63: =IF('Cambia Tu Hipoteca'!J15<BN9,0,VLOOKUP('Cambia Tu Hipoteca'!J15,BN4:BP9,3)/1.16) -> 0 | AY63: =IF('Cambia Tu Hipoteca'!J15<BN9,0,VLOOKUP('Cambia Tu Hipoteca'!J15,BN4:BP9,3)) -> 0 | CG63: 10500 | CI63: AVALUO SIN IVA | CK63: =CI88 -> 0 | CL63: =CL88 -> 0 | CS63: >35000 | CT63: DTI | CU63: 0.5 | CV63: 0.5 | CW63: =IF($DF$5=1,CV63,50%) -> 0.5 | CX63: 0.35 | DQ63: PTI | DR63: =HLOOKUP(DX5,ED50:EG55,IF(INGRESOMENSUAL_Liq<35000,4,6)) -> 0.45 | EB63: 1 | EC63: 3 | ED63: =EB63&EC63 -> 13 | EE63: 0.5499999 | EU63: PPM_Aforo_Max | EV63: =(EW63*EW60+EX63*EX60)/SUM(EW60:EX60) ->  | EW63: =ROUNDUP(PMT(EW61/12,EW62,-1000),2) ->  | EX63: =ROUNDUP(PMT(EX61/12,EX62,-1000),2) -> 
A64: 1 | B64: Asalariado | C64: 1 | D64: Ingresos Fijos | E64: 1 | F64: Recibos de Nómina | G64: Asimilados a Sueldos y Salarios | AK64: 2 | AL64: Restaurantero | AM64: 0.3 | AW64: COMISION | AX64: =AX60*AX77 ->  | AZ64: =AX60*AX77 ->  | CG64: 9051.724138 | CI64: GASTOS NOTARIALE | CJ64: =CK64 ->  | CK64: =CH87 ->  | CL64: =CK87 ->  | CM64: =CL64 ->  | CT64: PTI | CU64: 0.45 | CV64: 0.45 | CW64: =IF($DF$5=1,CV64,40%) -> 0.45 | CX64: 0.3 | DQ64: DTI | DR64: =HLOOKUP(DX5,ED50:EG55,IF(INGRESOMENSUAL_Liq<35000,3,5)) -> 0.5 | EU64: Ingreso
A65: 2 | B65: Independiente | C65: 1 | D65: Ingresos Variables | E65: 2 | F65: Recibos de Nómina | G65: Asimilados a Sueldos y Salarios | AK65: 2 | AL65: Servicios Otros | AM65: 0.3 | AW65: INGRESO | AX65: =IF(AX66/AX74<AX11,AX11,AX66/AX74) ->  | AY65: =$AX$59*ROUNDUP(PMT(AX68/12,$AY$70*12,-1000),2)/1000 ->  | AZ65: =IF(OR(AZ28=1,AZ28=2),AX59*FACTORVIDA,0)+IF(OR($CS$5=1,$CS$5=3),MAX(AX42*0.8*FACTORDAÑOS,AX59*FACTORDAÑOS),0) -> 0 | BA65: =IF((((AY65+AZ65)+DESCUENTIND+DESCUENTCONY)/AX74)<15000,15000,((AY65+AZ65)+DESCUENTIND+DESCUENTCONY)/AX74) ->  | BB65: =IF(AZ66/AZ74<AX11,AX11,AZ66/AZ74) ->  | CF65: 900000 | CG65: 900000 | CI65: AMARRA TU TASA | CK65: =CH92 -> 0 | CL65: =CK92 -> 0 | DQ65: CAPACIDAD PAGO | DR65: =+IF(DS34>0,DR64,DR63) -> 0.45 | EB65: 2 | EC65: 1 | ED65: =EB65&EC65 -> 21 | EE65: 0.55 | EF65: 0.13 | EG65: 0.1275 | EH65: 0.1225 | EU65: Aforo_Real | EW65: =EW59/EV42 ->  | EX65: =IF(EX59<50000,0,(EX59/EV42)) ->  | EY65: =+SUM(EW65:EX65) -> 
A66: 3 | B66: Mixto | C66: 2 | D66: Honorarios Profesionales | E66: 1 | F66: Cuenta(s) de Cheques Banamex | G66: Cuenta(s) de Cheques Banamex y Otros Bancos | H66: Cuenta(s) de Cheques con Otros Bancos | AK66: 2 | AL66: Servicios Turísticos | AM66: 0.3 | AW66: MENSUALIDAD | AX66: =VLOOKUP(BF28,BI20:BN22,5,0)+AZ51 ->  | AZ66: =VLOOKUP(BF28,BI25:BN27,5,0)+AZ51 ->  | CG66: 0 | CI66: TOTAL GASTOS INICIA | CJ66: =IF(CP5=1,IF(ADQUISICION!M280="",IF(SUM(IF(DD5=2,CJ64,IF(DD5=3,"¡Gratis!",IF(CJ64>CJ67,CJ64-IF(CK47-CK27<=0,0,CK47-CK27),IF(CJ64-(IF(CK47-CK27<0,0,CK47-CK27))<=0,0,CJ64-(IF(CK47-CK27<0,0,CK47-CK27)))))),CK50)>0,SUM(IF(DD5=2,CJ64,IF(DD5=3,"¡Gratis!",IF(CJ64>CJ67,CJ64-IF(CK47-CK27<=0,0,CK47-CK27),IF(CJ64-(CK47-CK27)<=0,0,CJ64-(IF(CK47-CK27<0,0,CK47-CK27)))))),CK50),0),IF(CK47<CK27,ADQUISICION!M280+CK50,ADQUISICION!M280-(CK47-CK27)+CK50)),IF(ADQUISICION!Q280="",IF(SUM(IF(DD5=1,CJ64,IF(DD5=3,"¡Gratis!",IF(CJ64>CJ67,CJ64-IF(CK47-(CK26-CK27)<=0,0,CK47-(CK26-CK27)),IF(CJ64-(IF(CK47-(CK26-CK27)<0,0,CK47-(CK26-CK27)))<=0,0,CJ64-(IF(CK47-(CK26-CK27)<0,0,CK47-(CK26-CK27))))))),CK50)>0,SUM(IF(DD5=2,CJ64,IF(DD5=3,"¡Gratis!",IF(CJ64>CJ67,CJ64-IF(CK47-(CK26-CK27)<=0,0,CK47-(CK26-CK27)),IF(CJ64-(CK47-(CK26-CK27))<=0,0,CJ64-(IF(CK47-(CK26-CK27)<0,0,CK47-(CK26-CK27))))))),CK50),0),IF(CK47<(CK26-CK27),ADQUISICION!M280+CK50,ADQUISICION!M280-(CK47-(CK26-(CK26-CK27)))+CK50))) ->  | CK66: =CK61+IF(CK62="Se Cotizará",0,CK62)+IF(OR(DD5=2,CH84>=CH81,CH84>=CH85),CJ66,0)+CK65+CK38+CK44 ->  | CL66: =CL61+IF(CL62="Se Cotizará",0,CL62)+IF(OR(DD5=2,CK84>=CK81,CK84>=CK85),CN66,0)+CL65+CL38+CL44 ->  | CM66: =IF(ADQUISICION!Q280="",IF(SUM(IF(DD5=2,CM64,IF(DD5=3,"¡Gratis!",IF(CM64>CJ67,CM64-IF(CL47-CL27<=0,0,CL47-CL27),IF(CM64-(IF(CL47-CL27<0,0,CL47-CL27))<=0,0,CM64-(IF(CL47-CL27<0,0,CL47-CL27)))))),CL50)>0,SUM(IF(DD5=2,CM64,IF(DD5=3,"¡Gratis!",IF(CM64>CJ67,CM64-IF(CL47-CL27<=0,0,CL47-CL27),IF(CM64-(CL47-CL27)<=0,0,CM64-(IF(CL47-CL27<0,0,CL47-CL27)))))),CL50),0),IF(CL47<CL27,ADQUISICION!Q280+CL50,ADQUISICION!Q280-(CL47-CL27)+CL50)) ->  | CN66: =IF(CP5=1,IF(ADQUISICION!M280="",IF(SUM(IF(DD5=2,CJ64,IF(DD5=3,"¡Gratis!",IF(CJ64>CJ67,CJ64-IF(CL47-CL27<=0,0,CL47-CL27),IF(CJ64-(IF(CL47-CL27<0,0,CL47-CL27))<=0,0,CJ64-(IF(CL47-CL27<0,0,CL47-CL27)))))),CL50)>0,SUM(IF(DD5=2,CJ64,IF(DD5=3,"¡Gratis!",IF(CJ64>CJ67,CJ64-IF(CL47-CL27<=0,0,CL47-CL27),IF(CJ64-(CL47-CL27)<=0,0,CJ64-(IF(CL47-CL27<0,0,CL47-CL27)))))),CL50),0),IF(CL47<CL27,ADQUISICION!Q280+CL50,ADQUISICION!M280-(CL47-CL27)+CL50)),IF(ADQUISICION!M280="",IF(SUM(IF(DD5=1,CJ64,IF(DD5=3,"¡Gratis!",IF(CJ64>CJ67,CJ64-IF(CL47-(CL26-CL27)<=0,0,CL47-(CL26-CL27)),IF(CJ64-(IF(CL47-(CL26-CL27)<0,0,CL47-(CL26-CL27)))<=0,0,CJ64-(IF(CL47-(CL26-CL27)<0,0,CL47-(CL26-CL27))))))),CL50)>0,SUM(IF(DD5=2,CJ64,IF(DD5=3,"¡Gratis!",IF(CJ64>CJ67,CJ64-IF(CL47-(CL26-CL27)<=0,0,CL47-(CL26-CL27)),IF(CJ64-(CL47-(CL26-CL27))<=0,0,CJ64-(IF(CL47-(CL26-CL27)<0,0,CL47-(CL26-CL27))))))),CL50),0),IF(CL47<(CL26-CL27),ADQUISICION!M280+CL50,ADQUISICION!M280-(CL47-(CL26-(CL26-CL27)))+CL50))) ->  | DQ66: PAGO MILLAR | DR66: =VLOOKUP(EC5,EB91:EF94,5,0)+(IF(EDADCLIENTE_Liq>=65,EXTRAPRIMAEDAD,FACTORVIDA)+IF(EB5=2,EXTRAPRIMAMEDICA,0)+IF(EB5=3,EXTRAPRIMAOCUPACIONAL,0))*1000 ->  | EB66: 2 | EC66: 2 | ED66: 22 | EE66: 0.55 | EF66: 0.13 | EG66: 0.1275 | EH66: 0.1225 | EU66: Tasa | EW66: =IF(EU28<4,VLOOKUP(EY65,FG8:FI10,3),VLOOKUP(EY65,FG14:FI15,3)) ->  | EX66: =IF(EU28<4,VLOOKUP(EY65,FG8:FI10,3),VLOOKUP(EY65,FG14:FI15,3)) -> 
A67: 4 | B67: Pagadoras | C67: 2 | D67: Actividad Empresarial | E67: 2 | F67: Cuenta(s) de Cheques Banamex | G67: Cuenta(s) de Cheques Banamex y Otros Bancos | H67: Cuenta(s) de Cheques con Otros Bancos | CF67: 750000 | CG67: 1810500 | CI67: FINANCIAMIENTO MAXIMO | CJ67: =IF(DD5=1,IF(ADQUISICION!Q280="",IF(CI87<CL67,CI87,CL67),IF(ADQUISICION!Q280<CL67,ADQUISICION!Q280,CL67)),0) -> 0 | CL67: =CK26*10% -> 0 | CO67: =CONCATENATE(Calculos!CO23, Calculos!CO24, Calculos!CO25, Calculos!CO26, Calculos!CO27, Calculos!CO28, Calculos!CO29, Calculos!CO30, Calculos!CO31, IFERROR(Calculos!CO32,""),IFERROR(Calculos!CO33,""), Calculos!CO34, Calculos!CO35, Calculos!CO36, Calculos!CO37, Calculos!CO38, Calculos!CO39,Calculos!CO40, Calculos!CO41, Calculos!CO42, Calculos!CO43,Calculos!CO44,Calculos!CO46, Calculos!CO47, Calculos!CO48, Calculos!CO49, Calculos!CO50, Calculos!CO51, Calculos!CO52, Calculos!CO53, Calculos!CO54, Calculos!CO55, Calculos!CO56, Calculos!CO57, Calculos!CO58, Calculos!CO59, Calculos!CO60, Calculos!CO61, Calculos!CO62, Calculos!CO63, Calculos!CO64, Calculos!CO65, Calculos!CO66) -> Para Hipoteca Perfiles Banamex: No olvides que puedes comprobar los ingresos de tu cliente con BELVO, es fácil y rápido. | CP67: =CONCATENATE(CP23, CP24, CP25, CP26, CP27, CP28, CP29, CP30, CP31, IFERROR(CP32,""),IFERROR(CP33,""), CP34, CP35, CP36, CP37, CP38, CP39,CP40, CP41, CP42, CP43,CP44, CP46, CP47, CP48, CP49, CP50, CP51, CP52, CP53, CP54, CP55, CP56, CP57, CP58, CP59, CP60, CP61, CP62, CP63, CP64, CP65, CP66) ->  | DQ67: COMISION | DR67: =DR72*1.16% ->  | DV67: =CONCATENATE(Calculos!DV23, Calculos!DV24, Calculos!DV25, Calculos!DV26, Calculos!DV27, Calculos!DV28, Calculos!DV29, Calculos!DV30, Calculos!DV31, IFERROR(Calculos!DV32,""),IFERROR(Calculos!DV33,""), Calculos!DV34, Calculos!DV35, Calculos!DV36, Calculos!DV37, Calculos!DV38, Calculos!DV39,Calculos!DV40, Calculos!DV41, Calculos!DV42, Calculos!DV43,Calculos!DV44, Calculos!DV45, Calculos!DV46, Calculos!DV47, Calculos!DV48, Calculos!DV49, Calculos!DV50, Calculos!DV51, Calculos!DV52, Calculos!DV53, Calculos!DV54, Calculos!DV55, Calculos!DV56, Calculos!DV57, Calculos!DV58, Calculos!DV59, Calculos!DV60, Calculos!DV61, Calculos!DV62, Calculos!DV63, Calculos!DV64, Calculos!DV65, Calculos!DV66) -> Para Hipoteca de Liquidez: No olvides que puedes comprobar los ingresos de tu cliente con BELVO, es fácil y rápido. | EB67: 2 | EC67: 3 | ED67: 23 | EE67: 0.55 | EU67: Avaluo | EV67: =IF('Cambia Tu Hipoteca mas Liquidez'!J17>=FL9,FN9,VLOOKUP('Cambia Tu Hipoteca mas Liquidez'!J17,FL4:FN8,3)) ->  | EW67: =EV67/1.16 -> 
C68: 2 | D68: Arrendamiento | E68: 3 | F68: Cuenta(s) de Cheques Banamex | G68: Cuenta(s) de Cheques Banamex y Otros Bancos | H68: Cuenta(s) de Cheques con Otros Bancos | AK68: 5 | AL68: Persona Moral | AM68: =0.15 -> 0.15 | AW68: TASA % | AX68: =VLOOKUP(AX69,$BI$4:$BK$6,3,1) ->  | AY68: =AX60/AX42 ->  | AZ68: =VLOOKUP(IF(AX42<=10000000,AX69,AX60/AX42),IF(AW28=4,$BI$14:$BK$16,$BI$9:$BK$11),3,1) ->  | CF68: 700000 | CI68: =+(CH85+CREDITOINSTITUTOIND+CREDINSTITUTOCONY+IF(AND(CH94=TRUE,CH95=TRUE),CI81-CI82,0)-ADQUISICION!M291)/VVIVIENDA ->  | CJ68: =+CH70 ->  | CL68: =+(CK85+CREDITOINSTITUTOIND+CREDINSTITUTOCONY+IF(AND(CH94=TRUE,CH95=TRUE),CI81-CI82,0)-ADQUISICION!AI291)/VVIVIENDA ->  | CM68: =+CK70 ->  | CP68: =+IF(VVIVIENDA="","","Por promoción de enfoque 20/20 se le regresará el 100% del monto del avalúo al momento de la firma"&CP20) ->  | DB68: VALOR MIN | DC68: VALOR MAX | DD68: COSTO CIVA | DE68: COSTO SIVA | DF68: OFE VALOR CIVA | DG68: OFE VALOR SIVA | DQ68: LINEA PTI | DR68: =IF(INGRESOMENSUAL_Liq="","",ROUND(((INGRESOMENSUAL_Liq*DR63)-0.8*VVIVIENDA_Liq*FACTORDAÑOS)/DR66,0)*1000) ->  | EB68: 1 | EC68: 1 | ED68: 11 | EE68: 0.6 | EF68: 0.1325 | EG68: 0.13 | EH68: 0.125 | EU68: Comision con IVA | EW68: =EW69 ->  | EX68: =EX69*1.16 -> 
C69: 2 | D69: Dividendos | E69: 4 | F69: Cuenta(s) de Cheques Banamex | G69: Cuenta(s) de Cheques Banamex y Otros Bancos | H69: Cuenta(s) de Cheques con Otros Bancos | AK69: 3 | AL69: Arrendamiento | AM69: 0.8 | AW69: AFORO | AX69: =IF(BE28=3,MIN(MAX($BJ$4:$BJ$6),'Cambia Tu Hipoteca'!J17/'Cambia Tu Hipoteca'!J15),MIN(MAX($BJ$4:$BJ$6),('Cambia Tu Hipoteca'!J17+$AX$76)/'Cambia Tu Hipoteca'!J15)) ->  | AY69: =IF(AX42="",$AX$69,$AX$60/$AX$42) ->  | AZ69: =IF(BE28=3,MIN(MAX($BJ$9:$BJ$11),'Cambia Tu Hipoteca'!J17/'Cambia Tu Hipoteca'!J15),MIN(MAX($BJ$9:$BJ$11),('Cambia Tu Hipoteca'!J17+$AX$76)/'Cambia Tu Hipoteca'!J15)) ->  | BA69: =IF(AX42="",$AZ$69,$AZ$60/$AX$42) ->  | CH69: PF | CK69: ATM | CS69: ATM | DB69: 500000 | DC69: 1000000 | DD69: 3500 | DE69: 3017.241379 | DF69: 1750 | DG69: 1508.62069 | DQ69: LINEA DTI | DR69: =IF(INGRESOMENSUAL_Liq="","",ROUND(((INGRESOMENSUAL_Liq*DR64)-DS34-0.8*VVIVIENDA_Liq*FACTORDAÑOS)/DR66,0)*1000) ->  | EB69: 1 | EC69: 2 | ED69: 12 | EE69: 0.6 | EF69: 0.1325 | EG69: 0.13 | EH69: 0.125 | EU69: Comision sin IVA | EW69: =IF(FH28=1,EW59*0%,EW59*0.5%) ->  | EX69: =EX59*0.5% -> 
C70: 2 | D70: Cuenta de Cheques Persona Moral | E70: 5 | F70: Cuenta(s) de Cheques Banamex | AK70: 4 | AL70: Dividendos | AM70: 0.5 | AW70: PLAZO | AX70: =VLOOKUP($BF$28,$AV$30:$BF$32,11,0)*12 -> 240 | AY70: =AX70/12 -> 20 | AZ70: =VLOOKUP($BF$28,$AV$30:$BF$32,11,0)*12 -> 240 | BA70: =AX70/12 -> 20 | CG70: TASA | CH70: =VLOOKUP(CH71,CO114:CQ116,3) ->  | CI70: =IF(OR(CZ5=2,CZ5=3),VLOOKUP(CF85,CO114:CQ116,3),VLOOKUP(CI71,CO114:CQ116,3)) ->  | CJ70: =IF(AND(CH85>=2000000,CO5<3),VLOOKUP(CH71,CT114:CV116,3),"") ->  | CK70: =VLOOKUP(CK71,CO114:CQ116,3) ->  | CL70: =VLOOKUP(CL71,CO114:CQ116,3) ->  | CM70: =IF(AND(CK85>=2000000,CO5<3),VLOOKUP(CK71,CT114:CV116,3),"") ->  | CN70: =IF(AND(CM84>=2000000,CO5<3),VLOOKUP(CK71,CT114:CV116,3),"") ->  | CU70: 1 | CV70: 2 | CW70: 3 | CX70: 4 | DB70: 1000001 | DC70: 3000000 | DD70: 5500 | DE70: 4741.37931 | DF70: 2750 | DG70: 2370.689655 | DQ70: MAX AFORO | DR70: =IF(VVIVIENDA_Liq<=10000000,VVIVIENDA_Liq*MAX(ED85:ED87),MAX((10000000*MAX(ED85:ED87)+(VVIVIENDA_Liq-10000000)*0.4),VVIVIENDA_Liq*(MAX(ED85:ED87)-10%))) -> 0 | EB70: 1 | EC70: 3 | ED70: 13 | EE70: 0.6 | EU70: GASTOS NOTARIALES | EV70: =VLOOKUP(FE28,ET30:FE48,12,0)*(EW59+EX59) -> 
C71: 2 | D71: Inversión | E71: 6 | F71: Estados de Cuenta Inversión Banamex | G71: Estados de Cuenta Inversión Otro Banco | AK71: 6 | AL71: Banca Privada | AM71: 0.06 | AW71: GASTOS NOTARIALES | AX71: =IF(BG28<=10,VLOOKUP($BG$28,AV30:BG39,12,0),VLOOKUP(BG28,BF40:BG49,2,0)) -> 0.045 | AY71: =IF('Cambia Tu Hipoteca'!AG239<>"",'Cambia Tu Hipoteca'!AG239,AX43*AX71) -> 0 | AZ71: =AX71 -> 0.045 | BA71: =AY71 -> 0 | CF71: =MIN(MAX(CP114:CP116),IF(CP5=1,IF(MONSOLIENGAN<=200000,200000,MONSOLIENGAN)+CREDITOINSTITUTOIND+CREDINSTITUTOCONY,VVIVIENDA-MONSOLIENGAN-SUBCTAIND-SUBCTACONY+(CI81-CI82))/VVIVIENDA) ->  | CG71: AFORO | CH71: =MIN(MAX(CP114:CP116),IF(CP5=1,IF(MONSOLIENGAN<=200000,200000,MONSOLIENGAN)+CREDITOINSTITUTOIND+CREDINSTITUTOCONY+CJ67,VVIVIENDA-MONSOLIENGAN-SUBCTAIND-SUBCTACONY+(CI81-CI82)+CJ67)/VVIVIENDA) ->  | CI71: =(CH85+CREDITOINSTITUTOIND+CREDINSTITUTOCONY+IF(AND(CH94=TRUE,CH95=TRUE),CI81-CI82,0))/VVIVIENDA ->  | CJ71: =+(MIN(CH84,CH83)+CREDITOINSTITUTOIND+CREDINSTITUTOCONY+IF(AND(CH94=TRUE,CH95=TRUE),CI81-CI82,0))/VVIVIENDA ->  | CK71: =MIN(MAX(CP114:CP116),IF(CP5=1,IF(MONSOLIENGAN<=200000,200000,MONSOLIENGAN)+CREDITOINSTITUTOIND+CREDINSTITUTOCONY+CJ67,VVIVIENDA-MONSOLIENGAN-SUBCTAIND-SUBCTACONY+(CL81-CL82)+CJ67)/VVIVIENDA) ->  | CL71: =(CK85+CREDITOINSTITUTOIND+CREDINSTITUTOCONY+IF(AND(CH94=TRUE,CH95=TRUE),CL81-CL82,0))/VVIVIENDA ->  | CM71: =(MIN(CK83,CK84)+CREDITOINSTITUTOIND+CREDINSTITUTOCONY+IF(AND(CH94=TRUE,CH95=TRUE),CL81-CL82,0))/VVIVIENDA ->  | CN71: =MIN(MAX(CP114:CP116),IF(CP5=1,IF(MONSOLIENGAN<=200000,200000,MONSOLIENGAN)+CREDITOINSTITUTOIND+CREDINSTITUTOCONY,VVIVIENDA-MONSOLIENGAN-SUBCTAIND-SUBCTACONY+(CL81-CL82))/VVIVIENDA) ->  | CT71: CTH | CU71: MUY BAJO | CV71: BAJO | CW71: MEDIO | CX71: MARGINAL | DB71: 3000001 | DC71: 5000000 | DD71: 7500 | DE71: 6465.517241 | DF71: 3750 | DG71: 3232.758621 | DQ71: SOLICITADO | DR71: =IF(DW5=1,MONSOLIENGAN_Liq,VVIVIENDA_Liq-MONSOLIENGAN_Liq) -> 0 | EU71: PTI | EV71: =HLOOKUP(EW28,$FA$2:$FD$5,4,0) -> 0.45
C72: 3 | D72: Ingresos Fijos | E72: 1 | F72: Nómina Banamex | G72: Cliente Banamex | H72: No Cliente Banamex | AK72: 6 | AL72: Banca Patrimonial | AM72: 0.06 | AW72: PTI | AX72: =HLOOKUP(AY28,$BC$2:$BF$5,4,0) -> 0.45 | AZ72: =AX72 -> 0.45 | CG72: PLAZO | CH72: =VLOOKUP(CV5,CN104:CQ106,4,0) -> 240 | CK72: =VLOOKUP(CW5,CN110:CQ110,4,0) -> 240 | CS72: <35000 | CT72: DTI | CU72: 0.5 | CV72: 0.5 | CW72: =IF($DF$5=1,CV72,40%) -> 0.5 | CX72: 0.3395 | DB72: 5000001 | DC72: 8000000 | DD72: 10500 | DE72: 9051.724138 | DF72: 5250 | DG72: 4525.862069 | DQ72: LINEA FINAL | DR72: =IF(OR(VVIVIENDA_Liq="",INGRESOMENSUAL_Liq="",MONSOLIENGAN_Liq=""),"",MIN(DR68:DR71)) ->  | EB72: 2 | EC72: 1 | ED72: =EB72&EC72 -> 21 | EE72: 0.6 | EF72: 0.1325 | EG72: 0.13 | EH72: 0.125 | EU72: DTI | EV72: =HLOOKUP(EW28,$BC$2:$BF$5,3,0) -> 0.5
C73: 3 | D73: Ingresos Variables | E73: 2 | F73: Nómina Banamex | G73: Cliente Banamex | H73: No Cliente Banamex | AW73: DTI | AX73: =HLOOKUP(AY28,$BC$2:$BF$5,3,0) -> 0.5 | AZ73: =AX73 -> 0.5 | CG73: GASTOS NOTARIALES | CH73: =IF(CX5<=10,VLOOKUP($CX$5,CN7:CX16,11,0),VLOOKUP($CX$5,CW17:CX25,2,0)) -> 0.05 | CK73: =VLOOKUP(CX5,CN7:CX16,11,0) -> 0.05 | CO73: =IF(AND(CH94=TRUE,CH95=TRUE),IF(MIN(CI87,VVIVIENDA*0.07)-CI81<0,IF(CX5>7,(VVIVIENDA*CH73)-(VVIVIENDA*0.07),0),CI87-CI81),CI87) ->  | CP73: =IF(AND(CH94=TRUE,CH95=TRUE),IF(MIN(CL87,VVIVIENDA*0.07)-CL81<0,IF(CX5>7,(VVIVIENDA*CK73)-(VVIVIENDA*0.07),0),CL87-CL81),CL87) ->  | CT73: PTI | CU73: 0.45 | CV73: 0.45 | CW73: =IF($DF$5=1,CV73,35%) -> 0.45 | CX73: 0.2895 | DB73: 8000001 | DC73: 15000000 | DD73: 15500 | DE73: 13362.06897 | DF73: 7750 | DG73: 6681.034483 | EB73: 2 | EC73: 2 | ED73: 22 | EE73: 0.6 | EF73: 0.1325 | EG73: 0.13 | EH73: 0.125 | EU73: CAPACIDAD PAGO | EV73: =IF(EX51>0,HLOOKUP(EW28,$FA$2:$FD$5,3,0),HLOOKUP(EW28,$FA$2:$FD$5,4,0)) -> 0.45
AW74: CAPACIDAD PAGO | AX74: =IF(AZ51>0,HLOOKUP(AY28,$BC$2:$BF$5,3,0),HLOOKUP(AY28,$BC$2:$BF$5,4,0)) -> 0.45 | AZ74: =AX74 -> 0.45 | CG74: PTI | CH74: =IF(INGRESOMENSUAL>=35000,HLOOKUP(CQ5,CU59:CX64,6,0),HLOOKUP(CQ5,CU59:CX64,4,0)) -> 0.45 | CI74: =IF((DB104+DC104)>=35000*CJ74,HLOOKUP(CQ5,CU59:CX64,6,0),HLOOKUP(CQ5,CU59:CX64,4,0)) ->  | CJ74: =+HLOOKUP(CQ5,CU59:CX64,4,0) -> 0.45 | CK74: =IF(INGRESOMENSUAL>=35000,HLOOKUP(CQ5,CU70:CX75,6,0),HLOOKUP(CQ5,CU70:CX75,4,0)) -> 0.45 | CL74: =IF((DB110+DC110)>=35000*CM74,HLOOKUP(CQ5,CU70:CX75,6,0),HLOOKUP(CQ5,CU70:CX75,4,0)) ->  | CM74: =+HLOOKUP(CQ5,CU70:CX75,4,0) -> 0.45 | CS74: >35000 | CT74: DTI | CU74: 0.5 | CV74: 0.5 | CW74: =IF($DF$5=1,CV74,40%) -> 0.5 | CX74: 0.3395 | DB74: 15000000.01 | DD74: =IF(VVIVIENDA>15000000,(((VVIVIENDA-10000000)*1.05)/1000)+14990,0) -> 0 | DE74: =DD74/1.16 -> 0 | DF74: Se Cotizará | DG74: Se Cotizará | DQ74: GASTOS NOTARIALES | DR74: =DR72*DR62 ->  | EB74: 2 | EC74: 3 | ED74: 23 | EE74: 0.6
AW75: PAGO MILLAR | AX75: =VLOOKUP($BF$28,$BI$20:$BK$22,3,0)+IF(OR(AZ28=1,AZ28=2),(IF(AZ28<3,IF(AX41>64,EXTRAPRIMAEDAD,IF(BB28=1,FACTORVIDA,IF(BB28=2,EXTRAPRIMAMEDICA,IF(BB28=3,EXTRAPRIMAOCUPACIONAL,0))))))*1000,0) ->  | AY75: =VLOOKUP($BF$28,$BI$20:$BK$22,3,0) ->  | AZ75: =VLOOKUP($BF$28,$BI$25:$BK$27,3,0)+IF(OR(AZ28=1,AZ28=2),(IF(AZ28<3,IF(AX41>64,EXTRAPRIMAEDAD,IF(BB28=1,FACTORVIDA,IF(BB28=2,EXTRAPRIMAMEDICA,IF(BB28=3,EXTRAPRIMAOCUPACIONAL,0))))))*1000,0) ->  | BA75: =VLOOKUP($BF$28,$BI$25:$BK$27,3,0) ->  | CG75: DTI | CH75: =IF(INGRESOMENSUAL>=35000,HLOOKUP(CQ5,CU59:CX64,5,0),HLOOKUP(CQ5,CU59:CX64,3,0)) -> 0.5 | CI75: =IF((DB104+DC104)>=35000*CJ75,HLOOKUP(CQ5,CU59:CX64,5,0),HLOOKUP(CQ5,CU59:CX64,3,0)) ->  | CJ75: =+HLOOKUP(CQ5,CU59:CX64,3,0) -> 0.5 | CK75: =IF(INGRESOMENSUAL>=35000,HLOOKUP(CQ5,CU70:CX75,5,0),HLOOKUP(CQ5,CU70:CX75,3,0)) -> 0.5 | CL75: =IF((DB110+DC110)>=35000*CM75,HLOOKUP(CQ5,CU70:CX75,5,0),HLOOKUP(CQ5,CU70:CX75,3,0)) ->  | CM75: =+HLOOKUP(CQ5,CU70:CX75,3,0) -> 0.5 | CT75: PTI | CU75: 0.45 | CV75: 0.45 | CW75: =IF($DF$5=1,CV75,35%) -> 0.45 | CX75: 0.2895 | DQ75: AVALUO | DR75: =VLOOKUP(VVIVIENDA_Liq,EI49:EL55,3) ->  | EB75: 1 | EC75: 1 | ED75: 11 | EE75: 0.65 | EF75: 0.1325 | EG75: 0.13 | EH75: 0.125
AW76: FINANCIAMIENTO MAX | AX76: =IF(BE28=1,IF('Cambia Tu Hipoteca'!AG239="",IF((AY71+AY63)<MAX(AY76,AZ76),(AY71+AY63),MAX(AY76,AZ76)),IF(('Cambia Tu Hipoteca'!AG239+AY63)<MAX(Calculos!AY76,Calculos!AZ76),('Cambia Tu Hipoteca'!AG239+AY63),MAX(Calculos!AY76,Calculos!AZ76)))) -> FALSE | AY76: =IF(BE28=1,AX43*0.05,0) -> 0 | AZ76: 50000 | BA76: =MIN(AX43*0.05,AZ76) -> 0 | CG76: CAPACIDAD PAGO | CH76: =+IF(CK34>0,CH75,CH74) -> 0.45 | CI76: =+IF(CK34>0,CI75,CI74) ->  | CK76: =IF(INGRESOMENSUAL="",CU75,IF(INGRESOMENSUAL>=35000,HLOOKUP(CQ5,CU70:CX75,5,0),HLOOKUP(CQ5,CU70:CX75,3,0))) -> 0.45 | CL76: =+IF(CK34>0,CL75,CL74) ->  | CP76: =VLOOKUP(CN114,CP80:CT83,IF(CO5=4,4,IF(OR(CO5=3,CI84="SI"),3,2)),0) ->  | DQ76: INGRESO | DR76: =VLOOKUP(EC5,EB91:EN94,13,0) ->  | EB76: 1 | EC76: 2 | ED76: 12 | EE76: 0.65 | EF76: 0.1325 | EG76: 0.13 | EH76: 0.125
AW77: COMISION | AX77: =IF(AW28>1,0,0) -> 0 | AZ77: =IF(AW28>1,0,0) -> 0 | CA77: Para entender | CG77: PAGO MILLAR | CH77: =VLOOKUP(CV5,CN104:CR106,5,0)+IF(OR(CS5=1,CS5=2),(IF(CS5<3,IF(CK25>64,EXTRAPRIMAEDAD,IF(CU5=1,FACTORVIDA,IF(CU5=2,EXTRAPRIMAMEDICA,IF(CU5=3,EXTRAPRIMAOCUPACIONAL,0))))))*1000,0) ->  | CI77: =VLOOKUP(CV5,CN104:CR106,5,0) ->  | CJ77: =VLOOKUP(CV5,CN104:CV106,9,0) ->  | CK77: =VLOOKUP(CW5,CN110:CR110,5,0)+IF(OR(CS5=1,CS5=2),FACTORVIDA*1000,0) ->  | CL77: =VLOOKUP(CW5,CN110:CR110,5,0) ->  | CM77: =VLOOKUP(CW5,CN110:CV110,9,0) ->  | CN77: =VLOOKUP(CW5,CN110:DA110,14,0) ->  | DQ77: MENSUALIDAD | EB77: 1 | EC77: 3 | ED77: 13 | EE77: 0.65 | EV77: Cambia tu Hipoteca | EY77: Liquidez | FY77: Para entender
CG78: APOYO INFONAVIT | CH78: =+IF(CI78>IF(CZ5=4,IF((IF(CZ5=4,IF(INGRESO_APOYOINF="",INGRESOMENSUAL,INGRESO_APOYOINF),0))>=DG82,DG84,(IF(CZ5=4,IF(INGRESO_APOYOINF="",INGRESOMENSUAL,INGRESO_APOYOINF),0))*0.1),0),IF(CZ5=4,IF((IF(CZ5=4,IF(INGRESO_APOYOINF="",INGRESOMENSUAL,INGRESO_APOYOINF),0))>=DG82,DG84,(IF(CZ5=4,IF(INGRESO_APOYOINF="",INGRESOMENSUAL,INGRESO_APOYOINF),0))*0.1),0),CI78) ->  | CI78: =IF(INGRESOMENSUAL="",B11,INGRESOMENSUAL)*0.1 ->  | CK78: =+IF(CL78>IF(CZ5=4,IF((IF(CZ5=4,IF(INGRESO_APOYOINF="",INGRESOMENSUAL,INGRESO_APOYOINF),0))>=DG82,DG84,(IF(CZ5=4,IF(INGRESO_APOYOINF="",INGRESOMENSUAL,INGRESO_APOYOINF),0))*0.1),0),IF(CZ5=4,IF((IF(CZ5=4,IF(INGRESO_APOYOINF="",INGRESOMENSUAL,INGRESO_APOYOINF),0))>=DG82,DG84,(IF(CZ5=4,IF(INGRESO_APOYOINF="",INGRESOMENSUAL,INGRESO_APOYOINF),0))*0.1),0),CL78) ->  | CL78: =IF(INGRESOMENSUAL="",B11,INGRESOMENSUAL)*0.1 ->  | CP78: 1 | CQ78: 2 | CR78: 3 | CS78: 4 | CT78: 5 | CU78: 6 | CV78: 7 | CW78: 8 | CX78: 9 | CY78: 10 | CZ78: 11 | DA78: 12 | DB78: 13 | DC78: 14 | DQ78: AMARRA | DR78: =IF(EF5=1,(DR72*1%)*1.16,0) -> 0 | EB78: 2 | EC78: 1 | ED78: 21 | EE78: 0.65 | EF78: 0.1325 | EG78: 0.13 | EH78: 0.125 | EU78: PPM | EV78: =IF(OR($EV$42=0,$EV$43=0,$EV$44=0),"",ROUNDUP(PMT(EV98/12,EV97,-1000),2)) ->  | EW78: =IF(OR($EV$42=0,$EV$43=0,$EV$44=0),"",ROUNDUP(PMT(EW98/12,EW97,-1000),2)) ->  | EX78: =IF(OR($EV$42=0,$EV$43=0,$EV$44=0),"",ROUNDUP(PMT(EX98/12,EX97,-1000),2)) ->  | EY78: =IFERROR(IF(OR($EV$42=0,$EV$43=0,$EV$44=0),"",ROUNDUP(PMT(EY98/12,EY97,-1000),2)),"") ->  | EZ78: =IFERROR(IF(OR($EV$42=0,$EV$43=0,$EV$44=0),"",ROUNDUP(PMT(EZ98/12,EZ97,-1000),2)),"") ->  | FA78: =IFERROR(IF(OR($EV$42=0,$EV$43=0,$EV$44=0),"",ROUNDUP(PMT(FA98/12,FA97,-1000),2)),"") -> 
AW79: CAT | AX79: =TablaCTH!$H$17 ->  | CG79: COMISION | CH79: =IF(CM13=1,IF(CZ5=1,1%,0.5%),0%) -> 0.01 | CK79: =IF(CM13=1,IF(CZ5=1,1%,0.5%),0%) -> 0.01 | CN79: TASAS | CX79: ADQ PURA | DA79: COFINANCIADOS | DF79: APOYO INFONAVIT | DI79: PPM ATM | DL79: PPM de precios anteriores | DQ79: INGRESO MONTO SOLICITADO | DR79: =VLOOKUP(EC5,EB91:EO94,IF(DR71>DR70,14,9),0) ->  | EB79: 2 | EC79: 2 | ED79: 22 | EE79: 0.65 | EF79: 0.1325 | EG79: 0.13 | EH79: 0.125 | EU79: Cap+Int | EV79: =$EW$59*ROUNDUP(PMT(EV98/12,EV97,-1000),2)/1000 ->  | EW79: =$EW$59*ROUNDUP(PMT(EW98/12,EW97,-1000),2)/1000 ->  | EX79: =$EW$59*ROUNDUP(PMT(EX98/12,EX97,-1000),2)/1000 ->  | EY79: =$EY$99*ROUNDUP(PMT(EY98/12,EY97,-1000),2)/1000+EY99*(((1+(EY98/12))/(1+(4%/12)))-1)*16% ->  | EZ79: =$EZ$99*ROUNDUP(PMT(EZ98/12,EZ97,-1000),2)/1000+EZ99*(((1+(EZ98/12))/(1+(4%/12)))-1)*16% ->  | FA79: =$FA$99*ROUNDUP(PMT(FA98/12,FA97,-1000),2)/1000+FA99*(((1+(FA98/12))/(1+(4%/12)))-1)*16% -> 
CA80: vivienda | CB80: =+VVIVIENDA -> 0 | CC80: =+CB80-CB81 -> 0 | CN80: INGRESO | CO80: RIESGO | CP80: AFORO | CQ80: MA | CR80: PRI | CS80: PAT | CT80: OV | CU80: PRI>=8 | CV80: PAT>=8 | CW80: OV>=8 | CX80: <8MM | CY80: 8-14MM | CZ80: >14M | DA80: <8MM | DB80: 8-14MM | DC80: >14M | DD80: Muy Bajo | DE80: Asalariado | DF80: 1 DIA | DG80: 113.14 | DI80: 0.1175 | DJ80: 9.824167 | DL80: 0.105 | DM80: 9.01 | DQ80: CAT | EU80: SeguroVida | EV80: =IF(EX28>2,0,EW59*((IF(EV41>=65,EXTRAPRIMAEDAD,IF(EZ28=2,EXTRAPRIMAMEDICA,IF(EZ28=3,EXTRAPRIMAOCUPACIONAL,FACTORVIDA)))))) ->  | EW80: =IF(EX28>2,0,EW59*((IF(EV41>=65,EXTRAPRIMAEDAD,IF(EZ28=2,EXTRAPRIMAMEDICA,IF(EZ28=3,EXTRAPRIMAOCUPACIONAL,FACTORVIDA)))))) ->  | EX80: =IF(EX28>2,0,EW59*((IF(EV41>=65,EXTRAPRIMAEDAD,IF(EZ28=2,EXTRAPRIMAMEDICA,IF(EZ28=3,EXTRAPRIMAOCUPACIONAL,FACTORVIDA)))))) ->  | EY80: =IF(EX28>2,0,EX59*((IF(EV41>=65,EXTRAPRIMAEDAD,IF(EZ28=2,EXTRAPRIMAMEDICA,IF(EZ28=3,EXTRAPRIMAOCUPACIONAL,FACTORVIDA)))))) ->  | EZ80: =IF(EX28>2,0,EX59*((IF(EV41>=65,EXTRAPRIMAEDAD,IF(EZ28=2,EXTRAPRIMAMEDICA,IF(EZ28=3,EXTRAPRIMAOCUPACIONAL,FACTORVIDA)))))) ->  | FA80: =IF(EX28>2,0,EX59*((IF(EV41>=65,EXTRAPRIMAEDAD,IF(EZ28=2,EXTRAPRIMAMEDICA,IF(EZ28=3,EXTRAPRIMAOCUPACIONAL,FACTORVIDA)))))) ->  | FY80: vivienda | FZ80: =+VVIVIENDA -> 0 | GA80: =+FZ80-FZ81 -> 0
CA81: instituto | CB81: =+CREDITOINSTITUTOIND+CREDINSTITUTOCONY -> 0 | CC81: =+CC80-CB82 -> 0 | CG81: LINEA PTI | CH81: =IF(INGRESOMENSUAL="","",ROUND(((INGRESOMENSUAL*CH74)-DESCUENTIND-DESCUENTCONY-0.8*VVIVIENDA*FACTORDAÑOS)/CH77,0)*1000) ->  | CI81: =IF(CH94=TRUE,(SUBCTAIND+SUBCTACONY)-(VVIVIENDA*(1-MAX(CP114:CP116))),0) -> 0 | CK81: =IF(INGRESOMENSUAL="","",ROUND(((INGRESOMENSUAL*CK74)-DESCUENTIND-DESCUENTCONY-0.8*VVIVIENDA*FACTORDAÑOS)/CK77,0)*1000) ->  | CL81: =IF(CH94=TRUE,(SUBCTAIND+SUBCTACONY)-(VVIVIENDA*(1-MAX(CP114:CP116))),0) -> 0 | CN81: 1 | CO81: 1 | CP81: =CN81&CO81 -> 11 | CQ81: =IF($CO$5=6,10.25%,IF($CO$5=7,9.8%,10.75%)) -> 0.1075 | CR81: =IF($CO$5=6,10.25%,IF($CO$5=7,9.8%,10.5%)) -> 0.105 | CS81: 0.0925 | CT81: 0.105 | CU81: 0.105 | CV81: 0.0925 | CW81: 0.1025 | CX81: 0.7 | DA81: 0.7 | DB81: 0.65 | DC81: 0.6 | DD81: Bajo | DE81: Independiente | DF81: MENSUAL 30 | DG81: =DG80*30.4 -> 3439.456 | DI81: 0.115 | DJ81: 9.615834 | DL81: 0.1025 | DM81: 8.801667 | EU81: Seguro Daño | EV81: =IF(OR(EX28=1,EX28=3),MAX(EV42*0.8,EW59)*FACTORDAÑOS,0) ->  | EW81: =IF(OR(EX28=1,EX28=3),MAX(EV42*0.8,EW59)*FACTORDAÑOS,0) ->  | EX81: =IF(OR(EX28=1,EX28=3),MAX(EV42*0.8,EW59)*FACTORDAÑOS,0) ->  | EY81: 0 | EZ81: 0 | FA81: 0 | FY81: instituto | FZ81: =+CREDITOINSTITUTOIND+CREDINSTITUTOCONY -> 0 | GA81: =+GA80-FZ82 -> 0
AW82: CAPITAL + INT | AX82: =IF(BB60="NO",AX60*ROUNDUP(PMT(AX68/12,AX70,-1000),2)/1000,AZ60*ROUNDUP(PMT(AZ68/12,AZ70,-1000),2)/1000) ->  | CA82: Enganche | CB82: =+(VVIVIENDA*(1-MAX(CP114:CP116))+CI82) -> 0 | CF82: =MAX((10000000*MAX(CP120:CP122)+(VVIVIENDA-10000000)*0.4),VVIVIENDA*(MAX(CP114:CP116)-IF(CO5=1,30%,10%))) -> 5000000 | CG82: LINEA DTI | CH82: =IF(INGRESOMENSUAL="","",ROUND(((INGRESOMENSUAL*CH75)-CK34-DESCUENTIND-DESCUENTCONY-0.8*VVIVIENDA*FACTORDAÑOS)/CH77,0)*1000) ->  | CI82: =IF(AND(CH94=TRUE,CH95=TRUE),IF(CI81-MIN(CI87,VVIVIENDA*0.07)<0,0,CI81-MIN(CI87,VVIVIENDA*0.07)),CI81) -> 0 | CK82: =IF(INGRESOMENSUAL="","",ROUND(((INGRESOMENSUAL*CK75)-CL34-DESCUENTIND-DESCUENTCONY-0.8*VVIVIENDA*FACTORDAÑOS)/CK77,0)*1000) ->  | CL82: =IF(AND(CH94=TRUE,CH95=TRUE),IF(CL81-MIN(CL87,VVIVIENDA*0.07)<0,0,CL81-MIN(CL87,VVIVIENDA*0.07)),CL81) -> 0 | CN82: 1 | CO82: 2 | CP82: 12 | CQ82: =IF($CO$5=6,10.25%,IF($CO$5=7,9.8%,10.75%)) -> 0.1075 | CR82: =IF($CO$5=6,10.25%,IF($CO$5=7,9.8%,10.5%)) -> 0.105 | CS82: 0.0925 | CT82: 0.105 | CU82: 0.105 | CV82: 0.0925 | CW82: 0.1025 | CX82: 0.7 | DA82: 0.7 | DB82: 0.65 | DC82: 0.6 | DD82: Medio | DF82: ING MAX 25 SM | DG82: =DG81*25 -> 85986.4 | DI82: 0.1125 | DJ82: 9.505 | DL82: 0.1 | DM82: 8.593333 | EU82: Mens total | EV82: =SUM(EV79:EV81) ->  | FY82: Enganche | FZ82: =+(VVIVIENDA*(1-MAX(HI114:HI116))+GG82) -> 0
AW83: SEGURO DE VIDA | AX83: =IF(BB60="NO",IF(AX41>=65,AX60*EXTRAPRIMAEDAD,IF(OR(AZ28=1,AZ28=2),IF(BB28=1,AX60*FACTORVIDA,IF(BB28=2,AX60*EXTRAPRIMAMEDICA,AX60*EXTRAPRIMAOCUPACIONAL)),0)),IF(AX41>=65,AZ60*EXTRAPRIMAEDAD,IF(OR(AZ28=1,AZ28=2),IF(BB28=1,AZ60*FACTORVIDA,IF(BB28=2,AZ60*EXTRAPRIMAMEDICA,AZ60*EXTRAPRIMAOCUPACIONAL)),0))) ->  | CA83: Gasto notariales | CB83: =+MIN(CI87,VVIVIENDA*0.07) -> 0 | CF83: =VVIVIENDA*(MAX(CP114:CP116)-IF(CO5=1,30%,10%)) -> 0 | CG83: MAX AFORO | CH83: =MIN(IF(VVIVIENDA<=10000000,MAX(Calculos!CP120:CP122)*VVIVIENDA,(MAX((10000000*MAX(CP120:CP122)+(VVIVIENDA-10000000)*0.4),(VVIVIENDA*IF((MAX(CP114:CP116)-IF(CO5=1,30%,10%))<60%,60%,(MAX(CP114:CP116)-IF(CO5=1,30%,10%))))))),(VVIVIENDA-CREDITOINSTITUTOIND-CREDINSTITUTOCONY-SUBCTAIND-SUBCTACONY+ECOTECNOLOGÍASCONY+ECOTECNOLOGÍASCONY)-IF(CP5=2,MONSOLIENGAN,0)+IF(DD5=1,CH87,0),(VVIVIENDA*MAX(CP120:CP122)-CREDINSTITUTOCONY-CREDITOINSTITUTOIND),VVIVIENDA-IF(CP5=2,MONSOLIENGAN,0)+IF(DD5=1,CH87,0)) -> 0 | CI83: =IF(VVIVIENDA="","",VVIVIENDA) ->  | CK83: =MIN(IF(VVIVIENDA<=10000000,MAX(Calculos!CP120:CP122)*VVIVIENDA,(MAX((10000000*MAX(CP120:CP122)+(VVIVIENDA-10000000)*0.4),(VVIVIENDA*IF((MAX(CP114:CP116)-IF(CO5=1,30%,10%))<60%,60%,(MAX(CP114:CP116)-IF(CO5=1,30%,10%))))))),(VVIVIENDA-CREDITOINSTITUTOIND-CREDINSTITUTOCONY-SUBCTAIND-SUBCTACONY+ECOTECNOLOGÍASCONY+ECOTECNOLOGÍASCONY)-IF(CP5=2,MONSOLIENGAN,0)+IF(DD5=1,CK87,0),(VVIVIENDA*MAX(CP120:CP122)-CREDINSTITUTOCONY-CREDITOINSTITUTOIND),VVIVIENDA-IF(CP5=2,MONSOLIENGAN,0)+IF(DD5=1,CK87,0)) -> 0 | CL83: =IF(VVIVIENDA="","",VVIVIENDA) ->  | CN83: 1 | CO83: 3 | CP83: 13 | CQ83: =IF($CO$5=6,10.25%,IF($CO$5=7,9.8%,11.5%)) -> 0.115 | CR83: =IF($CO$5=6,10.25%,IF($CO$5=7,9.8%,11.25%)) -> 0.1125 | CS83: =IF($CO$5=8,10.25%,IF($CO$5=9,9.8%,11%)) -> 0.11 | CT83: 0.115 | CU83: 0.1125 | CV83: 0.11 | CW83: 0.1125 | CX83: 0.7 | DA83: 0.7 | DB83: 0.65 | DC83: 0.5 | DD83: Marginal | DF83: 5% DEL SM | DG83: =DG82*5% -> 4299.32 | DI83: 0.11 | DJ83: 9.296667 | DL83: 0.099 | DM83: 8.51 | EB83: Grid correspondiente | EU83: Mens c/formula | EV83: =PMT(EV98/12,EV97,-EW59)+EV80+EV81 ->  | EW83: =PMT(EW98/12,EW97,-EW59)+EW80+EW81 ->  | EX83: =PMT(EX98/12,EX97,-EW59)+EX80+EX81 ->  | EY83: =PMT(EY98/12,EY97,-EX59)+EY80+EY81 ->  | EZ83: =PMT(EZ98/12,EZ97,-EX59)+EZ80+EZ81 ->  | FA83: =PMT(FA98/12,FA97,-EX59)+FA80+FA81 ->  | FY83: Gasto notariales | FZ83: =+MIN(GG87,VVIVIENDA*0.07) -> 0
AW84: SEGURO DAÑOS | AX84: =IF(BB60="NO",IF(OR(AZ28=1,AZ28=3),MAX(AX42*0.8*AX17,AX60*AX17),0),IF(OR(AZ28=1,AZ28=3),MAX(AX42*0.8*AX17,AX60*AX17),0)) ->  | CB84: =+VVIVIENDA-(CREDITOINSTITUTOIND+CREDINSTITUTOCONY+VVIVIENDA*(1-MAX(CP114:CP116))+CI82+SUBCTAIND+SUBCTACONY+MONSOLIENGAN) -> 0 | CG84: SOLICITADO | CH84: =IF(MONSOLIENGAN="","",IF(CP5=1,MONSOLIENGAN,VVIVIENDA-MONSOLIENGAN))+CJ67 ->  | CI84: =IF(CJ84>=1500000,"SI","NO") ->  | CJ84: =+MIN(CH84,CH83) ->  | CK84: =IF(MONSOLIENGAN="","",IF(CP5=1,MONSOLIENGAN,VVIVIENDA-MONSOLIENGAN))+CJ67 ->  | CL84: =IF(CM84>=1500000,"SI","NO") ->  | CM84: =+MIN(CK84,CK83) ->  | CN84: 1 | CO84: 4 | DF84: APORTACION BIMES | DG84: =DG83*2 -> 8598.64 | DI84: 0.1075 | DJ84: 9.088334 | DL84: 0.0975 | DM84: 8.385 | EB84: AFORO | EC84: AFORO MIN | ED84: AFORO MAX | EE84: TASA | EU84: CAT | FZ84: =+VVIVIENDA-(CREDITOINSTITUTOIND+CREDINSTITUTOCONY+VVIVIENDA*(1-MAX(HI114:HI116))+GG82+SUBCTAIND+SUBCTACONY+MONSOLIENGAN) -> 0
AW85: MENSUALIDAD TOTAL | AX85: =SUM(AX82:AX84) ->  | CE85: COFI LTV | CF85: =CH85/VVIVIENDA ->  | CG85: LINEA FINAL | CH85: =IF(OR(VVIVIENDA="",INGRESOMENSUAL="",MONSOLIENGAN=""),"",MIN(CH84,CH83,CH82,CH81)) ->  | CI85: =IF(CH85>=1500000,"SI","NO") -> SI | CJ85: =+IF(CH85>=8000000,"SI","NO") -> SI | CK85: =IF(OR(VVIVIENDA="",INGRESOMENSUAL="",MONSOLIENGAN=""),"",MIN(CK84,CK83,CK82,CK81)) ->  | CL85: =IF(CK85>=1500000,"SI","NO") -> SI | CN85: 2 | CO85: 1 | CP85: 21 | CQ85: 0.1075 | CR85: 0.105 | CS85: 0.0925 | CT85: 0.105 | CU85: 0.105 | CV85: 0.0925 | CW85: 0.1025 | CX85: 0.7 | DA85: 0.7 | DB85: 0.65 | DC85: 0.55 | DI85: 0.105 | DJ85: 8.88 | DL85: 0.0965 | DM85: 8.301667 | EB85: =$DY$5&$DX$5 -> 11 | EC85: 0 | ED85: 0.55 | EE85: =VLOOKUP(EB85,ED61:EH67,IF(DV5=1,3,IF(DV5=2,4,5))) -> 0.1275 | EU85: Ingreso | EV85: =EV82/$EV$73 -> 
AW86: INGRESO MINIMO | AX86: =IF(BB60="SI",BB65,AX65) ->  | CG86: ENGANCHE | CH86: =+IF(CH85="","",IF(DD5=2,IF((VVIVIENDA*(1-CI71)-IF(CH94=TRUE,(VVIVIENDA*(1-MAX(CP114:CP116)))+CI82,SUBCTAIND+SUBCTACONY))<0,0,VVIVIENDA*(1-CI71)-IF(CH94=TRUE,(VVIVIENDA*(1-MAX(CP114:CP116)))+CI82,SUBCTAIND+SUBCTACONY)),IF(DD5=1,IF((VVIVIENDA*(1-CI68)-IF(CH94=TRUE,(VVIVIENDA*(1-MAX(CP114:CP116)))+CI82,SUBCTAIND+SUBCTACONY))<0,0,VVIVIENDA*(1-CI68)-IF(CH94=TRUE,(VVIVIENDA*(1-MAX(CP114:CP116)))+CI82,SUBCTAIND+SUBCTACONY))))) ->  | CK86: =+IF(CH85="","",IF(DD5=2,IF((VVIVIENDA*(1-CL71)-IF(CH94=TRUE,(VVIVIENDA*(1-MAX(CP114:CP116)))+CL82,SUBCTAIND+SUBCTACONY))<0,0,VVIVIENDA*(1-CL71)-IF(CH94=TRUE,(VVIVIENDA*(1-MAX(CP114:CP116)))+CL82,SUBCTAIND+SUBCTACONY)),IF(DD5=1,IF((VVIVIENDA*(1-CL68)-IF(CH94=TRUE,(VVIVIENDA*(1-MAX(CP114:CP116)))+CL82,SUBCTAIND+SUBCTACONY))<0,0,VVIVIENDA*(1-CL68)-IF(CH94=TRUE,(VVIVIENDA*(1-MAX(CP114:CP116)))+CL82,SUBCTAIND+SUBCTACONY))))) ->  | CN86: 2 | CO86: 2 | CP86: 22 | CQ86: =IF($CO$5=6,10.25%,IF($CO$5=7,9.8%,10.75%)) -> 0.1075 | CR86: 0.105 | CS86: 0.0925 | CT86: 0.105 | CU86: 0.105 | CV86: 0.0925 | CW86: 0.1025 | CX86: 0.7 | DA86: 0.7 | DB86: 0.65 | DC86: 0.55 | DI86: 0.1025 | DJ86: 8.671667 | DL86: 0.094 | DM86: 8.093333 | EB86: =$DY$5&$DX$5 -> 11 | EC86: 0.56 | ED86: 0.6 | EE86: =VLOOKUP(EB86,ED68:EH74,IF(DV5=1,3,IF(DV5=2,4,5))) -> 0.13 | EU86: Ingreso monto máximo | EY86: =SUM((IF(EX28>2,0,(EX60*EV42)*((IF(EV41>=65,EXTRAPRIMAEDAD,FACTORVIDA)+IF(EB5=2,EXTRAPRIMAMEDICA,0)+IF(EB5=3,EXTRAPRIMAOCUPACIONAL,0)))))+(EX60*EV42)*ROUNDUP(PMT(EY98/12,EY97,-1000),2)/1000)/$EV$73 ->  | EZ86: =SUM((IF(EX28>2,0,(EX60*EV42)*((IF(EV41>=65,EXTRAPRIMAEDAD,FACTORVIDA)+IF(EB5=2,EXTRAPRIMAMEDICA,0)+IF(EB5=3,EXTRAPRIMAOCUPACIONAL,0)))))+(EX60*EV42)*ROUNDUP(PMT(EZ98/12,EZ97,-1000),2)/1000)/$EV$73 ->  | FA86: =SUM((IF(EX28>2,0,(EX60*EV42)*((IF(EV41>=65,EXTRAPRIMAEDAD,FACTORVIDA)+IF(EB5=2,EXTRAPRIMAMEDICA,0)+IF(EB5=3,EXTRAPRIMAOCUPACIONAL,0)))))+(EX60*EV42)*ROUNDUP(PMT(FA98/12,FA97,-1000),2)/1000)/$EV$73 -> 
BC87: =CONCATENATE(BC41,BD40,BC42,BD40,BC43,BD40,BC44,BC45,BC46,BC47,BC48,BC49,BC50,BC51,BC52,BC53,BC54,BC55,BC56,BC57,BC58,BC59,BC60,BC61,BC62,BC63,BC64,BC65,BC66,BC67,BC68,BC69,BC70,BC70,BC71,BC72,BC73,BC74,BC75,BC76,BC77,BC78,BC79,BC80,BC81,BC82,BC83,BC84,BC85,BC86) -> // // // No olvides que puedes comprobar los ingresos de tu cliente con BELVO, es fácil y rápido. | CG87: GASTOS NOTARIALES | CH87: =IF(AND(CH94=TRUE,CH95=TRUE),IF(MIN(CI87,VVIVIENDA*0.07)-CI81<0,(VVIVIENDA*CH73)+IF(CH86<=0,(VVIVIENDA*(1-CI71)-IF(CH94=TRUE,(VVIVIENDA*(1-MAX(CP114:CP116)))+CI82,SUBCTAIND+SUBCTACONY)),0),CI87-CI81),CI87) ->  | CI87: =IF(VVIVIENDA="","",IF(ADQUISICION!Q280="",VVIVIENDA*CH73,ADQUISICION!Q280)) ->  | CK87: =IF(AND(CH94=TRUE,CH95=TRUE),IF(MIN(CL87,VVIVIENDA*0.07)-CL81<0,IF(CX5>7,(VVIVIENDA*CK73)-(VVIVIENDA*0.07),(VVIVIENDA*CK73)+(VVIVIENDA*(1-CL71)-IF(CH94=TRUE,(VVIVIENDA*(1-MAX(CP114:CP116)))+CL82,SUBCTAIND+SUBCTACONY))),CL87-CL81),CL87) ->  | CL87: =IF(VVIVIENDA="","",IF(ADQUISICION!AI280="",VVIVIENDA*CK73,ADQUISICION!AI280)) ->  | CN87: 2 | CO87: 3 | CP87: 23 | CQ87: 0.115 | CR87: 0.1125 | CS87: 0.11 | CT87: 0.115 | CU87: 0.1125 | CV87: 0.11 | CW87: 0.1125 | CX87: 0.7 | DA87: 0.7 | DB87: 0.65 | DC87: 0.5 | DI87: 0.0925 | DJ87: 8.098334 | DL87: 0.1175 | DM87: 9.824167 | EB87: =$DY$5&$DX$5 -> 11 | EC87: 0.600001 | ED87: 0.65 | EE87: =VLOOKUP(EB87,ED75:EH79,IF(DV5=1,3,IF(DV5=2,4,5))) -> 0.13 | FC87: =CONCATENATE(FC41,FD40,FC42,FD40,FC43,FD40,FC44,FC45,FC46,FC47,FC48,FC49,FC50,FC51,FC52,FC53,FC54,FC55,FD40,FC57,FC58,FC59,FC60,FC61,FC62,FC63,FC64,FC65,FC66,FC67,FC68,FC69,FC70,FC70,FC71,FC72,FC73,FC74,FC75,FC76,FC77,FC78,FC79,FC80,FC81,FC82,FC83,FC84,FC85,FC86) -> // // // // No olvides que puedes comprobar los ingresos de tu cliente con BELVO, es fácil y rápido.
AW88: COMPARATIVO DE BENEFICIOS | CB88: LINEA PTI | CC88: 1348000 | CG88: AVALUO | CH88: =IF(CI83>=DB74,DD74,IF(CO5=5,VLOOKUP(CI83,DB69:DD74,3)/2,IF(OR(CO5<=5,CO5>5),VLOOKUP(CI83,DB69:DD74,3)))) -> 0 | CI88: =IF(CH88="Se Cotizará","se Cotizará",CH88/1.16) -> 0 | CK88: =IF(CL83>=DB74,DD74,IF(CO5=5,VLOOKUP(CL83,DB69:DD74,3)/2,IF(CO5<=4,VLOOKUP(CL83,DB69:DD74,3)))) -> 0 | CL88: =IF(CK88="Se Cotizará","se Cotizará",CK88/1.16) -> 0 | CN88: 1 | CO88: 1 | CP88: 11 | CQ88: 0.1075 | CR88: =IF($CO$5=6,10.25%,IF($CO$5=7,9.8%,10.5%)) -> 0.105 | CS88: 0.0925 | CT88: 0.105 | CU88: 0.105 | CV88: 0.0925 | CW88: 0.1025 | CX88: 0.7999999 | DA88: 0.7999999 | DB88: 0.75 | DC88: 0.6 | DI88: 0.1095 | DJ88: 9.26 | DL88: 0.115 | DM88: 9.615834 | EU88: COMPARATIVO DE BENEFICIOS | FZ88: LINEA PTI | GA88: 1348000
AX89: PLAZO | AY89: PPM | AZ89: SEGUROS | BA89: LINEA PTI | BB89: LINEA DTI | BC89: LINEA CREDITO | BD89: MENSUALIDAD | BE89: PAGO TOTAL | CB89: LINEA DTI | CC89: 1522000 | CG89: COMISION | CH89: =CH85*CH79 ->  | CJ89: =IF(CP5=1,CH85+CK46<CK27,CH85<(CK26-CK27)) ->  | CK89: =IF(CO5<=4,CK85*CK79,"$ 0.00") ->  | CM89: =IF(CP5=1,CH85+CL46<CK27,CH85<(CK26-CK27)) ->  | CN89: 1 | CO89: 2 | CP89: 12 | CQ89: 0.1075 | CR89: 0.105 | CS89: 0.0925 | CT89: 0.105 | CU89: 0.105 | CV89: 0.0925 | CW89: 0.1025 | CX89: 0.7999999 | DA89: 0.7999999 | DB89: 0.75 | DC89: 0.6 | DI89: 0.0995 | DJ89: 8.56 | DL89: 0.1125 | DM89: 9.505 | EV89: PLAZO | EW89: PPM | EX89: SEGUROS | EY89: LINEA PTI | EZ89: LINEA DTI | FA89: LINEA CREDITO | FB89: MENSUALIDAD | FC89: PAGO TOTAL | FZ89: LINEA DTI | GA89: 1522000
AV90: 1 | AW90: 1 | AX90: =VLOOKUP(AW90,$AV$30:$BF$39,11,0)*12 -> 240 | AY90: =IF(BB60="SI",ROUNDUP(PMT($AZ$68/12,AX90,-1000),2)+IF(OR($AZ$28=1,$AZ$28=2),$AX$16*1000,0)+IF(OR($AZ$28=1,$AZ$28=3),$AX$17*1000,0),ROUNDUP(PMT($AX$68/12,AX90,-1000),2)+IF(OR($AZ$28=1,$AZ$28=2),$AX$16*1000,0)+IF(OR($AZ$28=1,$AZ$28=3),$AX$17*1000,0)) ->  | AZ90: =IF(AX41>=65,BC90*EXTRAPRIMAEDAD,IF(OR(AZ28=1,AZ28=2),IF(BB28=1,BC90*FACTORVIDA,IF(BB28=2,BC90*EXTRAPRIMAMEDICA,BC90*EXTRAPRIMAOCUPACIONAL)),0))+IF(OR($AZ$28=1,$AZ$28=3),MAX($BC$90*$AX$17,$AX$42*0.8*$AX$17),0) ->  | BA90: =IF($AX$44="","",ROUND($AX$44*$AX$72/AY90,0)*1000) ->  | BB90: =IF($AX$44="","",ROUND((($AX$44*$AX$73)-$AZ$51)/AY90,0)*1000) ->  | BC90: =IF(BB60="SI",IF(SUM($AZ$56:$AZ$60)<=0,"",MIN(BA90,BB90,$AZ$58,$AZ$59)),IF(SUM($AX$56:$AX$60)<=0,"",MIN(BA90,BB90,$AX$58,$AX$59))) ->  | BD90: =BC90*ROUNDUP(PMT(IF(BB60="SI",$AZ$68,$AX$68)/12,AX90,-1000),2)/1000+AZ90 ->  | BE90: =BD90*AX90 ->  | CB90: MAX AFORO | CC90: 1402500 | CG90: INGRESO | CH90: =VLOOKUP($CV$5,$CN$104:$CZ$106,13,0) ->  | CI90: 15000 | CJ90: =OR(CH81=CH85,CH82=CH85) -> TRUE | CK90: =VLOOKUP($CW$5,$CN$110:$CZ$110,13,0) ->  | CL90: 15000 | CM90: =OR(CK81=CK85,CK82=CK85) -> TRUE | CN90: 1 | CO90: 3 | CP90: 13 | CQ90: =IF($CO$5=6,10.25%,IF($CO$5=7,9.8%,11.5%)) -> 0.115 | CR90: =IF($CO$5=6,10.25%,IF($CO$5=7,9.8%,11.25%)) -> 0.1125 | CS90: =IF($CO$5=8,10.25%,IF($CO$5=9,9.8%,11%)) -> 0.11 | CT90: 0.115 | CU90: 0.1125 | CV90: 0.11 | CW90: 0.1125 | CX90: 0.7999999 | DA90: 0.7999999 | DB90: 0.65 | DC90: 0.5 | DL90: 0.11 | DM90: 9.296667 | EB90: PAGOS FIJOS | EF90: Monto Solicitado | EK90: Linea Final | ET90: 1 | EU90: 1 | EV90: =VLOOKUP(EU90,$ET$30:$FD$39,11,0)*12 -> 240 | EW90: =IF(EW59="SI",ROUNDUP(PMT(EW66/12,EV90,-1000),2)+IF(OR($EX$28=1,$EX$28=2),$EV$16*1000,0)+IF(OR($EX$28=1,$EX$28=3),$EV$17*1000,0),ROUNDUP(PMT(EW66/12,EV90,-1000),2)+IF(OR($EX$28=1,$EX$28=2),$EV$16*1000,0)+IF(OR($EX$28=1,$EX$28=3),$EV$17*1000,0)) ->  | EX90: =IF(EV41>=65,FA90*EXTRAPRIMAEDAD,IF(OR(EX28=1,EX28=2),IF(EZ28=1,FA90*FACTORVIDA,IF(EZ28=2,FA90*EXTRAPRIMAMEDICA,FA90*EXTRAPRIMAOCUPACIONAL)),0))+IF(OR($EX$28=1,$EX$28=3),MAX($FA$90*$EV$17,$EV$42*0.8*$EV$17),0) ->  | EY90: =IF($EV$44="","",ROUND($EV$44*EV71/EW90,0)*1000) ->  | EZ90: =IF($EV$44="","",ROUND((($EV$44*EV72)-$EX$51)/EW90,0)*1000) ->  | FA90: =EW59 ->  | FB90: =FA90*ROUNDUP(PMT($EW$66/12,EV90,-1000),2)/1000+EX90 ->  | FC90: =FB90*EV90 ->  | FZ90: MAX AFORO | GA90: 1402500
AV91: 2 | AW91: 2 | AX91: =VLOOKUP(AW91,$AV$30:$BF$39,11,0)*12 -> 180 | AY91: =IF(BB60="SI",ROUNDUP(PMT($AZ$68/12,AX91,-1000),2)+IF(OR($AZ$28=1,$AZ$28=2),$AX$16*1000,0)+IF(OR($AZ$28=1,$AZ$28=3),$AX$17*1000,0),ROUNDUP(PMT($AX$68/12,AX91,-1000),2)+IF(OR($AZ$28=1,$AZ$28=2),$AX$16*1000,0)+IF(OR($AZ$28=1,$AZ$28=3),$AX$17*1000,0)) ->  | AZ91: =IF(AX41>=65,BC91*EXTRAPRIMAEDAD,IF(OR(AZ28=1,AZ28=2),IF(BB28=1,BC91*FACTORVIDA,IF(BB28=2,BC91*EXTRAPRIMAMEDICA,BC91*EXTRAPRIMAOCUPACIONAL)),0))+IF(OR($AZ$28=1,$AZ$28=3),MAX($BC$91*$AX$17,$AX$42*0.8*$AX$17),0) ->  | BA91: =IF($AX$44="","",ROUND($AX$44*$AX$72/AY91,0)*1000) ->  | BB91: =IF($AX$44="","",ROUND((($AX$44*$AX$73)-$AZ$51)/AY91,0)*1000) ->  | BC91: =IF(BB60="SI",IF(SUM($AZ$56:$AZ$60)<=0,"",MIN(BA91,BB91,$AZ$58,$AZ$59)),IF(SUM($AX$56:$AX$60)<=0,"",MIN(BA91,BB91,$AX$58,$AX$59))) ->  | BD91: =BC91*ROUNDUP(PMT(IF(BB60="SI",$AZ$68,$AX$68)/12,AX91,-1000),2)/1000+AZ91 ->  | BE91: =BD91*AX91 ->  | CB91: SOLICITADO | CC91: 1350000 | CG91: MENSUALIDAD | CH91: =VLOOKUP(CV5,CN104:CW106,10,0) ->  | CK91: =VLOOKUP(CW5,CN110:CW110,10,0) ->  | CN91: 1 | CO91: 4 | DL91: 0.1075 | DM91: 9.088334 | EB91: ordenado | EC91: Plazos | ED91: Plazo años | EE91: Meses | EF91: Pago al millar | EG91: Seguros | EH91: Mensualidad | EI91: Mens c/formula | EJ91: Ingreso | EK91: Pago al millar | EL91: Seguros | EM91: Mensualidad | EN91: Mens c/formula | EO91: Ingreso | ET91: 2 | EU91: 2 | EV91: =VLOOKUP(EU91,$ET$30:$FD$39,11,0)*12 -> 180 | EW91: =IF(EW59="SI",ROUNDUP(PMT(EW66/12,EV91,-1000),2)+IF(OR($EX$28=1,$EX$28=2),$EV$16*1000,0)+IF(OR($EX$28=1,$EX$28=3),$EV$17*1000,0),ROUNDUP(PMT(EW66/12,EV91,-1000),2)+IF(OR($EX$28=1,$EX$28=2),$EV$16*1000,0)+IF(OR($EX$28=1,$EX$28=3),$EV$17*1000,0)) ->  | EX91: =IF(EV41>=65,FA91*EXTRAPRIMAEDAD,IF(OR(EX28=1,EX28=2),IF(EZ28=1,FA91*FACTORVIDA,IF(EZ28=2,FA91*EXTRAPRIMAMEDICA,FA91*EXTRAPRIMAOCUPACIONAL)),0))+IF(OR($EX$28=1,$EX$28=3),MAX($FA$91*$EV$17,$EV$42*0.8*$EV$17),0) ->  | EY91: =IF($EV$44="","",ROUND($EV$44*EV71/EW91,0)*1000) ->  | EZ91: =IF($EV$44="","",ROUND((($EV$44*EV72)-$EX$51)/EW91,0)*1000) ->  | FA91: =EW59 ->  | FB91: =FA91*ROUNDUP(PMT($EW$66/12,EV91,-1000),2)/1000+EX91 ->  | FC91: =FB91*EV91 ->  | FZ91: SOLICITADO | GA91: 1350000
AV92: 3 | AW92: 3 | AX92: =VLOOKUP(AW92,$AV$30:$BF$39,11,0)*12 -> 120 | AY92: =IF(BB60="SI",ROUNDUP(PMT($AZ$68/12,AX92,-1000),2)+IF(OR($AZ$28=1,$AZ$28=2),$AX$16*1000,0)+IF(OR($AZ$28=1,$AZ$28=3),$AX$17*1000,0),ROUNDUP(PMT($AX$68/12,AX92,-1000),2)+IF(OR($AZ$28=1,$AZ$28=2),$AX$16*1000,0)+IF(OR($AZ$28=1,$AZ$28=3),$AX$17*1000,0)) ->  | AZ92: =IF(AX41>=65,BC92*EXTRAPRIMAEDAD,IF(OR(AZ28=1,AZ28=2),IF(BB28=1,BC92*FACTORVIDA,IF(BB28=2,BC92*EXTRAPRIMAMEDICA,BC92*EXTRAPRIMAOCUPACIONAL)),0))+IF(OR($AZ$28=1,$AZ$28=3),MAX($BC$92*$AX$17,$AX$42*0.8*$AX$17),0) ->  | BA92: =IF($AX$44="","",ROUND($AX$44*$AX$72/AY92,0)*1000) ->  | BB92: =IF($AX$44="","",ROUND((($AX$44*$AX$73)-$AZ$51)/AY92,0)*1000) ->  | BC92: =IF(BB60="SI",IF(SUM($AZ$56:$AZ$60)<=0,"",MIN(BA92,BB92,$AZ$58,$AZ$59)),IF(SUM($AX$56:$AX$60)<=0,"",MIN(BA92,BB92,$AX$58,$AX$59))) ->  | BD92: =BC92*ROUNDUP(PMT(IF(BB60="SI",$AZ$68,$AX$68)/12,AX92,-1000),2)/1000+AZ92 ->  | BE92: =BD92*AX92 ->  | CB92: LINEA FINAL | CC92: 1348000 | CG92: AMARRA | CH92: =IF(CY5=1,(CH85*1%)*1.16,0) -> 0 | CK92: =IF(CY5=1,(CK85*1%)*1.16,0) -> 0 | CN92: 2 | CO92: 1 | CP92: 21 | CQ92: 0.1075 | CR92: 0.105 | CS92: 0.0925 | CT92: 0.105 | CU92: 0.105 | CV92: 0.0925 | CW92: 0.1025 | CX92: 0.7999999 | DA92: 0.7999999 | DB92: 0.7 | DC92: 0.55 | DL92: 0.105 | DM92: 8.88 | EB92: 1 | EC92: 20 Años | ED92: 20 | EE92: 240 | EF92: =ROUNDUP(PMT($DR$59/12,EE92,-1000),2) ->  | EG92: =IF(DZ5>2,0,DR71*(IF(EDADCLIENTE_Liq>=65,EXTRAPRIMAEDAD,FACTORVIDA)+IF(EB5=2,EXTRAPRIMAMEDICA,0)+IF(EB5=3,EXTRAPRIMAOCUPACIONAL,0)))+IF(OR(DZ5=1,DZ5=3),MAX(VVIVIENDA_Liq*0.8*FACTORDAÑOS,DR71*FACTORDAÑOS),0) -> 0 | EH92: =(DR71*EF92/1000+EG92)+DS34 ->  | EI92: =PMT($DR$59/12,EE92,-$DR$71)+EG92 ->  | EJ92: =(EH92+EG92/DR71)/DR63 ->  | EK92: =ROUNDUP(PMT(DR36/12,EE92,-1000),2) ->  | EL92: =IF(DZ5>2,0,DR72*(IF(EDADCLIENTE_Liq>=65,EXTRAPRIMAEDAD,FACTORVIDA)+IF(EB5=2,EXTRAPRIMAMEDICA,0)+IF(EB5=3,EXTRAPRIMAOCUPACIONAL,0)))+IF(OR(DZ5=1,DZ5=3),MAX(VVIVIENDA_Liq*0.8*FACTORDAÑOS,DR35*FACTORDAÑOS),0) ->  | EM92: =DR72*EK92/1000+EL92 ->  | EN92: =PMT($DR$59/12,EE92,-$DR$72)+EL92 ->  | EO92: =(EM92+EL92+DS34)/DR63 ->  | ET92: 3 | EU92: 3 | EV92: =VLOOKUP(EU92,$ET$30:$FD$39,11,0)*12 -> 120 | EW92: =IF(EW59="SI",ROUNDUP(PMT(EW66/12,EV92,-1000),2)+IF(OR($EX$28=1,$EX$28=2),$EV$16*1000,0)+IF(OR($EX$28=1,$EX$28=3),$EV$17*1000,0),ROUNDUP(PMT(EW66/12,EV92,-1000),2)+IF(OR($EX$28=1,$EX$28=2),$EV$16*1000,0)+IF(OR($EX$28=1,$EX$28=3),$EV$17*1000,0)) ->  | EX92: =IF(EV41>=65,FA92*EXTRAPRIMAEDAD,IF(OR(EX28=1,EX28=2),IF(EZ28=1,FA92*FACTORVIDA,IF(EZ28=2,FA92*EXTRAPRIMAMEDICA,FA92*EXTRAPRIMAOCUPACIONAL)),0))+IF(OR($EX$28=1,$EX$28=3),MAX($FA$92*$EV$17,$EV$42*0.8*$EV$17),0) ->  | EY92: =IF($EV$44="","",ROUND($EV$44*EV71/EW92,0)*1000) ->  | EZ92: =IF($EV$44="","",ROUND((($EV$44*EV72)-$EX$51)/EW92,0)*1000) ->  | FA92: =EW59 ->  | FB92: =FA92*ROUNDUP(PMT($EW$66/12,EV92,-1000),2)/1000+EX92 ->  | FC92: =FB92*EV92 ->  | FZ92: LINEA FINAL | GA92: 1348000
CG93: INGRESO 2 | CH93: =VLOOKUP($CV$5,$CN$104:$DD$106,13,0) ->  | CK93: =VLOOKUP($CW$5,$CN$110:$DD$110,17,0) ->  | CN93: 2 | CO93: 2 | CP93: 22 | CQ93: 0.1075 | CR93: 0.105 | CS93: 0.0925 | CT93: 0.105 | CU93: 0.105 | CV93: 0.0925 | CW93: 0.1025 | CX93: 0.7999999 | DA93: 0.7999999 | DB93: 0.7 | DC93: 0.55 | DL93: 0.1025 | DM93: 8.671667 | EB93: 2 | EC93: 15 Años | ED93: 15 | EE93: 180 | EF93: =ROUNDUP(PMT($DR$59/12,EE93,-1000),2) ->  | EG93: =IF(DZ5>2,0,DR71*(IF(EDADCLIENTE_Liq>=65,EXTRAPRIMAEDAD,FACTORVIDA)+IF(EB5=2,EXTRAPRIMAMEDICA,0)+IF(EB5=3,EXTRAPRIMAOCUPACIONAL,0)))+IF(OR(DZ5=1,DZ5=3),MAX(VVIVIENDA_Liq*0.8*FACTORDAÑOS,DR71*FACTORDAÑOS),0) -> 0 | EH93: =($DR$71*EF93/1000+EG93)+DS34 ->  | EI93: =PMT($DR$59/12,EE93,-$DR$71)+EG93 ->  | EJ93: =(EH93+EG93/DR71)/DR63 ->  | EK93: =ROUNDUP(PMT(DR36/12,EE93,-1000),2) ->  | EL93: =IF(DZ5>2,0,DR72*(IF(EDADCLIENTE_Liq>=65,EXTRAPRIMAEDAD,FACTORVIDA)+IF(EB5=2,EXTRAPRIMAMEDICA,0)+IF(EB5=3,EXTRAPRIMAOCUPACIONAL,0)))+IF(OR(DZ5=1,DZ5=3),MAX(VVIVIENDA_Liq*0.8*FACTORDAÑOS,DR35*FACTORDAÑOS),0) ->  | EM93: =$DR$72*EK93/1000+EL93 ->  | EN93: =PMT($DR$59/12,EE93,-$DR$72)+EL93 ->  | EO93: =((EM93+EL93/DR72)+DS34)/DR63 -> 
CE94: =AND(SUBCTAIND+SUBCTACONY>IF(CP5=1,(VVIVIENDA-(MONSOLIENGAN+CREDINSTITUTOCONY+CREDITOINSTITUTOIND)),(CREDINSTITUTOCONY+CREDITOINSTITUTOIND+MONSOLIENGAN)),SUBCTAIND+SUBCTACONY>(VVIVIENDA*(1-MAX(CP120:CP122)))) -> FALSE | CF94: =SUBCTAIND+SUBCTACONY>(VVIVIENDA*(1-MAX(CP120:CP122))) -> FALSE | CG94: SUBCUENTA | CH94: =AND(SUBCTAIND+SUBCTACONY>IF(CP5=1,(VVIVIENDA-(MONSOLIENGAN+CREDINSTITUTOCONY+CREDITOINSTITUTOIND)),(CREDINSTITUTOCONY+CREDITOINSTITUTOIND+MONSOLIENGAN)),SUBCTAIND+SUBCTACONY>(VVIVIENDA*(1-MAX(CP120:CP122)))) -> FALSE | CI94: =SUBCTAIND+SUBCTACONY>(VVIVIENDA*(1-MAX(CP114:CP116))) -> FALSE | CN94: 2 | CO94: 3 | CP94: 23 | CQ94: 0.115 | CR94: 0.1125 | CS94: 0.11 | CT94: 0.115 | CU94: 0.1125 | CV94: 0.11 | CW94: 0.1125 | CX94: 0.7999999 | DA94: 0.7999999 | DB94: 0.65 | DC94: 0.5 | DL94: 0.0925 | DM94: 8.098334 | EB94: 3 | EC94: 10 Años | ED94: 10 | EE94: 120 | EF94: =ROUNDUP(PMT($DR$59/12,EE94,-1000),2) ->  | EG94: =IF(DZ5>2,0,DR71*(IF(EDADCLIENTE_Liq>=65,EXTRAPRIMAEDAD,FACTORVIDA)+IF(EB5=2,EXTRAPRIMAMEDICA,0)+IF(EB5=3,EXTRAPRIMAOCUPACIONAL,0)))+IF(OR(DZ5=1,DZ5=3),MAX(VVIVIENDA_Liq*0.8*FACTORDAÑOS,DR71*FACTORDAÑOS),0) -> 0 | EH94: =(DR71*EF94/1000+EG94)+DS34 ->  | EI94: =PMT($DR$59/12,EE94,-$DR$71)+EG94 ->  | EJ94: =(EH94+EG94/DR71)/DR63 ->  | EK94: =ROUNDUP(PMT(DR36/12,EE94,-1000),2) ->  | EL94: =IF(DZ5>2,0,DR72*(IF(EDADCLIENTE_Liq>=65,EXTRAPRIMAEDAD,FACTORVIDA)+IF(EB5=2,EXTRAPRIMAMEDICA,0)+IF(EB5=3,EXTRAPRIMAOCUPACIONAL,0)))+IF(OR(DZ5=1,DZ5=3),MAX(VVIVIENDA_Liq*0.8*FACTORDAÑOS,DR35*FACTORDAÑOS),0) ->  | EM94: =DR72*EK94/1000+EL94 ->  | EN94: =PMT($DR$59/12,EE94,-$DR$72)+EL94 ->  | EO94: =((EM94+EL94/DR72)+DS34)/DR63 -> 
B95: 111 | C95: 112 | D95: 121 | E95: 122 | F95: 211 | G95: 212 | H95: 213 | I95: 221 | J95: 222 | K95: 223 | L95: 231 | M95: 232 | N95: 233 | O95: 241 | P95: 242 | Q95: 243 | R95: 251 | S95: 261 | T95: 262 | U95: 313 | V95: 321 | W95: 322 | X95: 323 | AC95: 311 | AD95: 312 | AV95: TABLAS DE AMORTIZACION BENEFICIOS | CF95: =AND(CZ5>1,CZ5<4,OR(CQ5=1,CQ5=2),CH94=TRUE,CI81>0) -> FALSE | CG95: ="107%" -> 107% | CH95: FALSE | CN95: 1 | CO95: 1 | CP95: 11 | CQ95: =IF($CO$5=6,10.25%,IF($CO$5=7,9.8%,11%)) -> 0.11 | CR95: =IF($CO$5=6,10.25%,IF($CO$5=7,9.8%,10.95%)) -> 0.1095 | CS95: 0.0995 | CT95: 0.11 | CU95: 0.1095 | CV95: 0.105 | CW95: 0.1075 | CX95: 0.9 | DA95: 0.9 | DB95: 0.75 | DC95: 0.6 | DL95: 0.0895 | DM95: 7.848334 | ET95: TABLAS DE AMORTIZACION BENEFICIOS CTH
B96: Asalariado | C96: Asalariado | D96: Asalariado | E96: Asalariado | F96: Independiente | G96: Independiente | H96: Independiente | I96: Independiente | J96: Independiente | K96: Independiente | L96: Independiente | M96: Independiente | N96: Independiente | O96: Independiente | P96: Independiente | Q96: Independiente | R96: Independiente | S96: Independiente | T96: Independiente | U96: Pagadora | V96: Pagadora | W96: Pagadora | X96: Pagadora | AC96: Pagadora | AD96: Pagadora | AX96: 1 | AY96: 2 | AZ96: 3 | CG96: CAT | CH96: =TablaPerfiles!I16 ->  | CI96: =TablaPerfiles!AM127 ->  | CK96: =TablaATM!J16 ->  | CL96: =TablaATM!AO127 ->  | CN96: 1 | CO96: 2 | CP96: 12 | CQ96: =IF($CO$5=6,10.25%,IF($CO$5=7,9.8%,11%)) -> 0.11 | CR96: =IF($CO$5=6,10.25%,IF($CO$5=7,9.8%,10.95%)) -> 0.1095 | CS96: 0.0995 | CT96: 0.11 | CU96: 0.1095 | CV96: 0.105 | CW96: 0.1075 | CX96: 0.9 | DA96: 0.9 | DB96: 0.75 | DC96: 0.6 | DL96: 0.095 | DM96: 8.176667 | EV96: 1 | EW96: 2 | EX96: 3 | EY96: 1 | EZ96: 2 | FA96: 3
B97: Ingresos Fijos | C97: Ingresos Fijos | D97: Comisionista o Ingresos Variables | E97: Comisionista o Ingresos Variables | F97: Honorarios Profesionales | G97: Honorarios Profesionales | H97: Honorarios Profesionales | I97: Actividad Empresarial | J97: Actividad Empresarial | K97: Actividad Empresarial | L97: Arrendamiento | M97: Arrendamiento | N97: Arrendamiento | O97: Dividendos | P97: Dividendos | Q97: Dividendos | R97: Cuenta de Cheques Persona Moral | S97: Inversión | T97: Inversión | U97: Ingresos Fijos | V97: Ingresos Variables | W97: Ingresos Variables | X97: Ingresos Variables | AC97: Ingresos Fijos | AD97: Ingresos Fijos | AW97: PLAZO CREDITO | AX97: =VLOOKUP(AX96,$AW$90:$AX$92,2,0) -> 240 | AY97: =VLOOKUP(AY96,$AW$90:$AX$92,2,0) -> 180 | AZ97: =VLOOKUP(AZ96,$AW$90:$AX$92,2,0) -> 120 | CE97: =(CH85+CREDITOINSTITUTOIND+CREDINSTITUTOCONY)/VVIVIENDA ->  | CH97: =IF(((CH91+DESCUENTIND+DESCUENTCONY)/CH76)<CI90,CI90,(CH91+DESCUENTIND+DESCUENTCONY)/CH76) ->  | CK97: =IF(((CK91+DESCUENTIND+DESCUENTCONY)/CK76)<CL90,CL90,(CK91+DESCUENTIND+DESCUENTCONY)/CK76) ->  | CN97: 1 | CO97: 3 | CP97: 13 | CQ97: =IF($CO$5=6,10.25%,IF($CO$5=7,9.8%,11.75%)) -> 0.1175 | CR97: =IF($CO$5=6,10.25%,IF($CO$5=7,9.8%,11.5%)) -> 0.115 | CS97: =IF($CO$5=8,10.25%,IF($CO$5=9,9.8%,11.25%)) -> 0.1125 | CT97: 0.1175 | CU97: 0.115 | CV97: 0.1125 | CW97: 0.115 | DL97: 0.0995 | DM97: 8.551667 | EU97: PLAZO CREDITO | EV97: =VLOOKUP(EV96,$EU$90:$EV$92,2,0) -> 240 | EW97: 180 | EX97: 120 | EY97: 240 | EZ97: 180 | FA97: 120
B98: Recibos de Nómina | C98: Asimilados a Sueldos y Salarios | D98: Recibos de Nómina | E98: Asimilados a Sueldos y Salarios | F98: Cuenta(s) de Cheques Banamex | G98: Cuenta(s) de Cheques Banamex y Otros Bancos | H98: Cuenta(s) de Cheques con Otros Bancos | I98: Cuenta(s) de Cheques Banamex | J98: Cuenta(s) de Cheques Banamex y Otros Bancos | K98: Cuenta(s) de Cheques con Otros Bancos | L98: Cuenta(s) de Cheques Banamex | M98: Cuenta(s) de Cheques Banamex y Otros Bancos | N98: Cuenta(s) de Cheques con Otros Bancos | O98: Cuenta(s) de Cheques Banamex | P98: Cuenta(s) de Cheques Banamex y Otros Bancos | Q98: Cuenta(s) de Cheques con Otros Bancos | R98: Cuenta(s) de Cheques Banamex | S98: Estados de Cuenta Inversión Banamex | T98: Estados de Cuenta Inversión Otro Banco | U98: No cliente Banamex | V98: Nómina Banamex | W98: Cliente Banamex | X98: No cliente Banamex | AC98: Nómina Banamex | AD98: Cliente Banamex | AW98: TASA DE INTERES | AX98: =IF(BB60="NO",$AX$68,IF(AZ68<>FALSE,AZ68,$AX$68)) ->  | AY98: =IF(BB60="NO",$AX$68,IF(AZ68<>FALSE,AZ68,$AX$68)) ->  | AZ98: =IF(BB60="NO",$AX$68,IF(AZ68<>FALSE,AZ68,$AX$68)) ->  | CN98: 2 | CO98: 1 | CP98: 21 | CQ98: 0.11 | CR98: 0.1095 | CS98: 0.0995 | CT98: 0.11 | CU98: 0.1095 | CV98: 0.105 | CW98: 0.1075 | CX98: 0.8 | DA98: 0.8 | DB98: 0.7 | DC98: 0.55 | DL98: 0.1 | DM98: 8.463334 | EU98: TASA DE INTERES | EV98: =EW66 ->  | EW98: =EW66 ->  | EX98: =EW66 ->  | EY98: =EX66 ->  | EZ98: =EX66 ->  | FA98: =EX66 -> 
A99: 1 | B99: 111 | C99: 112 | D99: 121 | E99: 122 | F99: 211 | G99: 212 | H99: 213 | I99: 221 | J99: 222 | K99: 223 | L99: 231 | M99: 232 | N99: 233 | O99: 241 | P99: 242 | Q99: 243 | R99: 251 | S99: =S95 -> 261 | T99: =T95 -> 262 | U99: 313 | V99: 321 | W99: 322 | X99: 323 | AC99: 311 | AD99: 312 | AW99: MONTO CRÉDITO | AX99: =VLOOKUP(AX$96,$AW$90:$BC$92,7,0) ->  | AY99: =VLOOKUP(AY$96,$AW$90:$BC$92,7,0) ->  | AZ99: =VLOOKUP(AZ$96,$AW$90:$BC$92,7,0) ->  | CI99: =+(CH115+CREDITOINSTITUTOIND+CREDINSTITUTOCONY+IF(AND(CH124=TRUE,CH125=TRUE),CI111-CI112,0)-ADQUISICION!M291)/VVIVIENDA ->  | CJ99: =+CH100 ->  | CL99: =+(CK115+CREDITOINSTITUTOIND+CREDINSTITUTOCONY+IF(AND(CK124=TRUE,CK125=TRUE),CL111-CL112,0)-ADQUISICION!M291)/VVIVIENDA ->  | CM99: =+CK100 ->  | CN99: 2 | CO99: 2 | CP99: 22 | CQ99: 0.11 | CR99: 0.1095 | CS99: 0.0995 | CT99: 0.11 | CU99: 0.1095 | CV99: 0.105 | CW99: 0.1075 | CX99: 0.8 | DA99: 0.8 | DB99: 0.7 | DC99: 0.55 | EU99: MONTO CRÉDITO | EV99: =EW59 ->  | EW99: =EW59 ->  | EX99: =EW59 ->  | EY99: =$EX$59 ->  | EZ99: =$EX$59 ->  | FA99: =$EX$59 -> 
A100: 2 | B100: =+IF(AND($B$2=1,$G$2=TRUE),I35,CONCATENATE("1) ",VLOOKUP($F$2,A35:D38,IF(AW87=TRUE,4,3),FALSE)," de Nómina. ","En caso de no contar con ",IF(F2=1,"él ","ellos "),"podrá presentar los últimos 3 meses de estados de cuenta donde se refleja el depósito de nómina.")) -> 1) Copia del Último Recibo de Nómina. En caso de no contar con él podrá presentar los últimos 3 meses de estados de cuenta donde se refleja el depósito de nómina. | C100: =+IF(AND($B$2=1,$G$2=TRUE),I35,CONCATENATE("1) ",VLOOKUP($F$2,A35:D38,IF(AW87=TRUE,4,3),FALSE)," de Nómina. ","En caso de no contar con ",IF(F2=1,"él ","ellos "),"podrá presentar los últimos 3 meses de estados de cuenta donde se refleja el depósito de nómina.")) -> 1) Copia del Último Recibo de Nómina. En caso de no contar con él podrá presentar los últimos 3 meses de estados de cuenta donde se refleja el depósito de nómina. | D100: =+CONCATENATE("1) ",VLOOKUP($F$2,$A$35:$D$38,4,FALSE)," de Nómina.") -> 1) Copia de los 6 Últimos Recibos de Nómina. | E100: =+CONCATENATE("1) ",VLOOKUP($F$2,$A$35:$D$38,4,FALSE)," de Asimilados a Sueldos y Salarios.") -> 1) Copia de los 6 Últimos Recibos de Asimilados a Sueldos y Salarios. | F100: 1) Copia del último mes del Estado de Cuenta de Cheques con depósitos provenientes de la actividad del cliente. Podrá presentar solo comptometro del sistema interno de Banamex. (Vista ejecutivo Sucursal) | G100: 1) Copia de los 6 últimos meses de Estados de Cuenta con depósitos provenientes de la actividad del cliente. Cliente Banamex podrá presentar comptometro de la cuenta de Banamex en vez del Estado de Cuenta. (Vista ejecutivo Sucursal) | H100: 1) Copia de los 6 últimos meses de Estados de Cuenta con depósitos provenientes de la actividad del cliente. Cliente Banamex podrá presentar comptometro de la cuenta de Banamex en vez del Estado de Cuenta. (Vista ejecutivo Sucursal) | I100: 1) Copia del último mes del Estado de Cuenta de Cheques con depósitos provenientes de la actividad o negocio del cliente. Cliente Banamex podrá presentar comptometro de la cuenta de Banamex en vez del Estado de Cuenta. (Vista ejecutivo Sucursal) | J100: 1) Copia de los 6 últimos meses de Estados de Cuenta con depósitos provenientes de la actividad o negocio del cliente. Cliente Banamex podrá presentar comptometro de la cuenta de Banamex en vez del Estado de Cuenta. (Vista ejecutivo Sucursal) | K100: 1) Copia de los 6 últimos meses de Estados de Cuenta con depósitos provenientes de la actividad o negocio del cliente. Cliente Banamex podrá presentar comptometro de la cuenta de Banamex en vez del Estado de Cuenta. (Vista ejecutivo Sucursal) | L100: 1) Copia del último mes del Estado de Cuenta de Cheques con depósitos provenientes de la actividad o negocio del cliente. Cliente Banamex podrá presentar comptometro de la cuenta de Banamex en vez del Estado de Cuenta. (Vista ejecutivo Sucursal) | M100: 1) Copia de los 6 últimos meses de Estados de Cuenta con depósitos provenientes de la actividad o negocio del cliente. Cliente Banamex podrá presentar comptometro de la cuenta de Banamex en vez del Estado de Cuenta. (Vista ejecutivo Sucursal) | N100: 1) Copia de los 6 últimos meses de Estados de Cuenta con depósitos provenientes de la actividad o negocio del cliente. Cliente Banamex podrá presentar comptometro de la cuenta de Banamex en vez del Estado de Cuenta. (Vista ejecutivo Sucursal) | O100: 1) Copia del último mes del Estado de Cuenta de Cheques con depósitos provenientes de la actividad o negocio del cliente. Cliente Banamex podrá presentar comptometro de la cuenta de Banamex en vez del Estado de Cuenta. (Vista ejecutivo Sucursal) | P100: 1) Copia de los 6 últimos meses de Estados de Cuenta con depósitos provenientes de la actividad o negocio del cliente. Cliente Banamex podrá presentar comptometro de la cuenta de Banamex en vez del Estado de Cuenta. (Vista ejecutivo Sucursal) | Q100: 1) Copia de los 6 últimos meses de Estados de Cuenta con depósitos provenientes de la actividad o negocio del cliente. Cliente Banamex podrá presentar comptometro de la cuenta de Banamex en vez del Estado de Cuenta. (Vista ejecutivo Sucursal) | R100: 1) Copia del último Estado de Cuenta de la cuenta operativa Banamex de la empresa o empresas con antIgüedad mayor o igual a 4 años. Si la cuenta es de otro banco se requieren 6 meses de estados de cuenta. Cliente Banamex podrá presentar comptómetro de la cuenta de Banamex en vez del Estado de Cuenta. (Vista ejecutivo Sucursal) | T100: 1) Para inversiones en otros bancos se requieren los últimos 6 meses de estados de cuenta, la cual deberá ser de por lo menos $4 mdp | U100: ="Estados de cuenta con dispersión de Nómina"&CHAR(10)&"1) Recibo de nómina del último mes + Estado de Cuenta o"&CHAR(10)&"2) Carta constancia de Empleo + 3 meses de Estados de Cuenta" -> Estados de cuenta con dispersión de Nómina 1) Recibo de nómina del último mes + Estado de Cuenta o 2) Carta constancia de Empleo + 3 meses de Estados de Cuenta | V100: ="1) Recibos de Nómina de los últimos 6 meses o"&CHAR(10)&"2) Carta Constancia de Empleo con desglose de las percepciones variables de los últimos 6 meses" -> 1) Recibos de Nómina de los últimos 6 meses o 2) Carta Constancia de Empleo con desglose de las percepciones variables de los últimos 6 meses | W100: ="Estados de cuenta con dispersión de Nómina"&CHAR(10)&"1) Recibo de nómina de los últimos 6 meses + Estados de Cuenta del último mes o"&CHAR(10)&"2) Carta constancia de Empleo + 6 meses de Estados de Cuenta" -> Estados de cuenta con dispersión de Nómina 1) Recibo de nómina de los últimos 6 meses + Estados de Cuenta del último mes o 2) Carta constancia de Empleo + 6 meses de Estados de Cuenta | X100: ="Estados de cuenta con dispersión de Nómina"&CHAR(10)&"1) Recibo de nómina de los últimos 6 meses + Estados de Cuenta del último mes o"&"2) Carta constancia de Empleo + 6 meses de Estados de Cuenta" -> Estados de cuenta con dispersión de Nómina 1) Recibo de nómina de los últimos 6 meses + Estados de Cuenta del último mes o2) Carta constancia de Empleo + 6 meses de Estados de Cuenta | AC100: ="1) Recibos de Nómina del último mes o" & CHAR(10)&"2) Carta Constancia de Empleo" -> 1) Recibos de Nómina del último mes o 2) Carta Constancia de Empleo | AD100: ="Estados de cuenta con dispersión de Nómina"&CHAR(10)&"1) Recibo de nómina del último mes + Estado de Cuenta o"&CHAR(10)&"2) Carta constancia de Empleo + 3 meses de Estados de Cuenta" -> Estados de cuenta con dispersión de Nómina 1) Recibo de nómina del último mes + Estado de Cuenta o 2) Carta constancia de Empleo + 3 meses de Estados de Cuenta | AW100: CAT SIN IVA | AX100: =+((IRR(BE106:BE346,0.0001)+1)^12)-1 ->  | AY100: =+((IRR(BP106:BP346,0.0001)+1)^12)-1 ->  | AZ100: =+((IRR(CA106:CA346,0.0001)+1)^12)-1 ->  | CG100: TASA | CH100: =VLOOKUP(CH101,CO120:CQ122,3) ->  | CI100: =IF(OR(CZ5=2,CZ5=3),VLOOKUP(CF115,CO120:CQ122,3),VLOOKUP(CI101,CO120:CQ122,3)) ->  | CJ100: =IF(AND(CH115>=2000000,CO5<3),VLOOKUP(CH101,CT120:CV122,3),"") ->  | CK100: =VLOOKUP(CK101,CO120:CQ122,3) ->  | CL100: =VLOOKUP(CL101,CO120:CQ122,3) ->  | CM100: =IF(AND(CK115>=2000000,CO5<3),VLOOKUP(CK101,CT120:CV122,3),"") ->  | CN100: =IF(AND(CM113>=2000000,CO5<3),VLOOKUP(CK101,DD120:DF122,3),"") ->  | CP100: SI(CO5=6,10.25%,SI(CO5=7,9.8%,SI(Y(CO5=8,CQ5=3),10.25%,SI(Y(CO5=9,CQ5=3),9.8%,SI(O(Y(CO5>7,CQ5<3),CO5<5), | EU100: CAT SIN IVA | EV100: =+((IRR(FC106:FC346,0.0001)+1)^12)-1 ->  | EW100: =+((IRR(FY106:FY346,0.0001)+1)^12)-1 ->  | EX100: =+((IRR(GT106:GT346,0.0001)+1)^12)-1 ->  | EY100: =+((IRR(FN106:FN346,0.0001)+1)^12)-1 ->  | EZ100: =+((IRR(GJ106:GJ346,0.0001)+1)^12)-1 ->  | FA100: =+((IRR(HE106:HE346,0.0001)+1)^12)-1 -> 
A101: 3 | B101: =+IF(AND($A$2=1,$G$2=TRUE),I36,IF(OR($H$2=TRUE,$I$3=TRUE),"2) Copia del último mes del Estados de Cuenta en donde se reflejen los depósitos de Nómina y otras percepciones. No es necesario si es Nómina Banamex",IF($F$2=1,"2) Copia del último mes del Estado de Cuenta en donde se refleje el depósito de Nómina y la Carta Laboral. No es necesario si es Nómina Banamex","2) Copia del último mes del Estado de Cuenta en donde se reflejen los depósitos de Nómina y la Carta Laboral. No es necesario si es nómina Banamex)"))) -> 2) Copia del último mes del Estado de Cuenta en donde se refleje el depósito de Nómina y la Carta Laboral. No es necesario si es Nómina Banamex | C101: =+IF(AND($A$2=1,$G$2=TRUE),I36,IF(OR($H$2=TRUE,$I$3=TRUE),"2) Copia del último mes del Estados de Cuenta en donde se reflejen los depósitos de Nómina y otras percepciones. No es necesario si es Nómina Banamex",IF($F$2=1,"2) Copia del último mes del Estado de Cuenta en donde se refleje el depósito de Nómina y la Carta Laboral. No es necesario si es Nómina Banamex","2) Copia del último mes del Estado de Cuenta en donde se reflejen los depósitos de Nómina y la Carta Laboral. No es necesario si es nómina Banamex)"))) -> 2) Copia del último mes del Estado de Cuenta en donde se refleje el depósito de Nómina y la Carta Laboral. No es necesario si es Nómina Banamex | D101: =+IF(OR($I$3=TRUE,$H$2=TRUE),"2) Copia del último Estado de Cuenta en donde se reflejen los depósitos de Nómina, Comisiones y otras percepciones. No es necesario si es Nómina Banamex","2) Copia del último Estado de Cuenta en donde se reflejen los depósitos de Nómina y Comisiones. No es necesario si es Nómina Banamex") -> 2) Copia del último Estado de Cuenta en donde se reflejen los depósitos de Nómina y Comisiones. No es necesario si es Nómina Banamex | E101: =+IF(OR($I$3=TRUE,$H$2=TRUE),"2) Copia del último Estado de Cuenta en donde se reflejen los depósitos de Honorarios, Comisiones y otras percepciones. No es necesario si es Nómina Banamex","2) Copia del último Estado de Cuenta en donde se reflejen los depósitos de Honorarios y Comisiones. No es necesario se es Nómina Banamex") -> 2) Copia del último Estado de Cuenta en donde se reflejen los depósitos de Honorarios y Comisiones. No es necesario se es Nómina Banamex | F101: 2) Comprobar la continuidad y la actividad del negocio con la constancia de situación fiscal. | G101: 2) Comprobar la continuidad y la actividad del negocio con la constancia de situación fiscal. | H101: 2) Comprobar la continuidad y la actividad del negocio con la constancia de situación fiscal. | I101: 2) Comprobar la continuidad y la actividad del negocio con la constancia de situación fiscal. | J101: 2) Comprobar la continuidad y la actividad del negocio con la constancia de situación fiscal. | K101: 2) Comprobar la continuidad y la actividad del negocio con la constancia de situación fiscal. | L101: 2) Comprobar la continuidad y la actividad del negocio con la constancia de situación fiscal. | M101: 2) Comprobar la continuidad y la actividad del negocio con la constancia de situación fiscal. | N101: 2) Comprobar la continuidad y la actividad del negocio con la constancia de situación fiscal. | O101: 2) Comprobar la continuidad y la actividad del negocio con la constancia de situación fiscal. | P101: 2) Comprobar la continuidad y la actividad del negocio con la constancia de situación fiscal. | Q101: 2) Comprobar la continuidad y la actividad del negocio con la constancia de situación fiscal. | R101: 2) Constancia de Situación fiscal de la persona moral. 3) Acta constitutiva o el Dictamen Jurídico del Acta de la Persona Moral con detalle de la participación accionaria mayor a el 50% mínimo de participación accionaria. Solo el solicitante o en sumatoria con familia directa (padres, cónyuges, hijos o hermanos) | S101: 1) Para inversiones Banamex se requieren los últimos 4 meses de Estados de Cuenta de la Inversión o información interna en la que se pueda validar la base para el cálculo de los ingresos por Inversiones. | T101: 2) Declaración anual del último año donde se reportó los intereses de dicha inversión | U101: ="Estados de cuenta con depósitos NO Efectivo"&CHAR(10)&"1) Recibos del último mes + Estados de Cuenta de los últimos 6 meses y hasta 12 meses." -> Estados de cuenta con depósitos NO Efectivo 1) Recibos del último mes + Estados de Cuenta de los últimos 6 meses y hasta 12 meses. | W101: ="Estados de cuenta con depósitos NO Efectivo"&CHAR(10)&"1) Recibos de los últimos 6 meses + Estados de Cuenta del último mes." -> Estados de cuenta con depósitos NO Efectivo 1) Recibos de los últimos 6 meses + Estados de Cuenta del último mes. | X101: ="Estados de cuenta con depósitos NO Efectivo"&CHAR(10)&"1) Recibos de los últimos 6 meses + Estados de Cuenta del último mes." -> Estados de cuenta con depósitos NO Efectivo 1) Recibos de los últimos 6 meses + Estados de Cuenta del último mes. | AD101: ="Estados de cuenta con depósitos NO Efectivo"&CHAR(10)&"1) Recibos del último mes + Estados de Cuenta de los últimos 6 meses y hasta 12 meses." -> Estados de cuenta con depósitos NO Efectivo 1) Recibos del último mes + Estados de Cuenta de los últimos 6 meses y hasta 12 meses. | AW101: AHORRADAS | AX101: =IF($AX$45-AX103<=0,0,$AX$45-AX103) -> 0 | AY101: =IF($AX$45-AY103<=0,0,$AX$45-AY103) -> 0 | AZ101: 0 | CF101: =MIN(MAX(CP114:CP116),IF(CP5=1,IF(MONSOLIENGAN<=200000,200000,MONSOLIENGAN)+CREDITOINSTITUTOIND+CREDINSTITUTOCONY,VVIVIENDA-MONSOLIENGAN-SUBCTAIND-SUBCTACONY+(CI81-CI82))/VVIVIENDA) ->  | CG101: AFORO | CH101: =MIN(MAX(CP120:CP122),IF(CP5=1,IF(MONSOLIENGAN<=200000,200000,MONSOLIENGAN)+CREDITOINSTITUTOIND+CREDINSTITUTOCONY+CJ67,VVIVIENDA-MONSOLIENGAN-SUBCTAIND-SUBCTACONY+(CI111-CI112)+CJ67)/VVIVIENDA) ->  | CI101: =(CH115+CREDITOINSTITUTOIND+CREDINSTITUTOCONY+IF(AND(CH124=TRUE,CH125=TRUE),CI111-CI112,0))/VVIVIENDA ->  | CJ101: =(MIN(CH113,CH114)+CREDITOINSTITUTOIND+CREDINSTITUTOCONY+IF(AND(CH124=TRUE,CH125=TRUE),CI111-CI112,0))/VVIVIENDA ->  | CK101: =MIN(MAX(CP120:CP122),IF(CP5=1,IF(MONSOLIENGAN<=200000,200000,MONSOLIENGAN)+CREDITOINSTITUTOIND+CREDINSTITUTOCONY+CJ67,VVIVIENDA-MONSOLIENGAN-SUBCTAIND-SUBCTACONY+(CL111-CL112)+CJ67)/VVIVIENDA) ->  | CL101: =(CK115+CREDITOINSTITUTOIND+CREDINSTITUTOCONY+IF(AND(CH124=TRUE,CH125=TRUE),CL111-CL112,0))/VVIVIENDA ->  | CM101: =+(MIN(CK114,CK113)+CREDITOINSTITUTOIND+CREDINSTITUTOCONY+IF(AND(CH124=TRUE,CH125=TRUE),CL111-CL112,0))/VVIVIENDA ->  | CN101: =MIN(MAX(CP114:CP116),IF(CP5=1,IF(MONSOLIENGAN<=200000,200000,MONSOLIENGAN)+CREDITOINSTITUTOIND+CREDINSTITUTOCONY,VVIVIENDA-MONSOLIENGAN-SUBCTAIND-SUBCTACONY+(CL81-CL82))/VVIVIENDA) ->  | EU101: AHORRADAS | EV101: =IF($EV$45-EV103<=0,0,$EV$45-EV103) -> 0 | EW101: =IF($EV$45-EW103<=0,0,$EV$45-EW103) -> 0 | EX101: =IF($EV$45-EX103<=0,0,$EV$45-EX103) -> 0
A102: 4 | B102: =+IF(AND($A$2=1,$G$2=TRUE),I37,"Para probar la continuidad laboral se podrá presentar:") -> Para probar la continuidad laboral se podrá presentar: | C102: =+IF(AND($A$2=1,$G$2=TRUE),I37,"Para probar la continuidad laboral se podrá presentar:") -> Para probar la continuidad laboral se podrá presentar: | E102: 3) Carta laboral que mencione: fecha de emisión, nombre del empleado, denominación o razón social de la empresa que lo expide, la antigüedad laboral, nombre, firma, teléfono de quien expide la carta. | T102: 3) EDD | U102: ="Estados de cuenta con depósitos Efectivo."&CHAR(10)&"2) Recibos de nómina timbrado de los últimos 12 meses + 3 meses de Estado de Cuenta." -> Estados de cuenta con depósitos Efectivo. 2) Recibos de nómina timbrado de los últimos 12 meses + 3 meses de Estado de Cuenta. | W102: ="Estados de cuenta con depósitos Efectivo."&CHAR(10)&"2) Recibos de nómina timbrado de los últimos 6 meses + 3 meses de Estado de Cuenta." -> Estados de cuenta con depósitos Efectivo. 2) Recibos de nómina timbrado de los últimos 6 meses + 3 meses de Estado de Cuenta. | X102: ="Estados de cuenta con depósitos Efectivo."&CHAR(10)&"2) Recibos de nómina timbrado de los últimos 6 meses + 3 meses de Estado de Cuenta." -> Estados de cuenta con depósitos Efectivo. 2) Recibos de nómina timbrado de los últimos 6 meses + 3 meses de Estado de Cuenta. | AD102: ="Estados de cuenta con depósitos Efectivo."&CHAR(10)&"2) Recibos de nómina timbrado de los últimos 12 meses + 3 meses de Estado de Cuenta." -> Estados de cuenta con depósitos Efectivo. 2) Recibos de nómina timbrado de los últimos 12 meses + 3 meses de Estado de Cuenta. | AW102: TOTAL AHORRADO | AX102: =SUM(BE107:BE346) ->  | AY102: =SUM(BP107:BP346) ->  | AZ102: =SUM(CA107:CA346) ->  | CG102: PLAZO | CH102: =VLOOKUP(CV5,CN127:CQ129,4,0) -> 240 | CK102: =VLOOKUP(CW5,CN110:CQ110,4,0) -> 240 | CN102: PAGOS FIJOS | CX102: VS SOLICITADO | DB102: VS SOLICITADO | EU102: TOTAL AHORRADO | EV102: =SUM(FC107:FC346) ->  | EW102: =SUM(FY107:FY346) ->  | EX102: =SUM(GT107:GT226) -> 
A103: 5 | B103: =+IF(AND($A$2=1,$G$2=TRUE),I38,"1) Que el recibo de nómina contenga la fecha de antigüedad laboral o, 2) Entregar reporte de semanas cotizadas en IMSS o ISSSTE o, 3) Entregar recibo de nómina del mismo empleo de un años atrás o,") -> 1) Que el recibo de nómina contenga la fecha de antigüedad laboral o, 2) Entregar reporte de semanas cotizadas en IMSS o ISSSTE o, 3) Entregar recibo de nómina del mismo empleo de un años atrás o, | C103: =+IF(AND($A$2=1,$G$2=TRUE),I38,"1) Que el recibo de nómina contenga la fecha de antigüedad laboral o, 2) Entregar reporte de semanas cotizadas en IMSS o ISSSTE o, 3) Entregar recibo de nómina del mismo empleo de un años atrás o,") -> 1) Que el recibo de nómina contenga la fecha de antigüedad laboral o, 2) Entregar reporte de semanas cotizadas en IMSS o ISSSTE o, 3) Entregar recibo de nómina del mismo empleo de un años atrás o, | R103: 5) Copia de la Declaración anual de la empresa del último ejercicio exigible y su acuse de recibo electrónico, adicionalmente deberá presentar los estados financieros reportados al SAT. (NO es válido empresas con pérdidas o capital contable negativo) | T103: 4) Verificación domiciliaria | AW103: MENSUALIDADES | AX103: =COUNTIF(AX107:AX346,">0") -> 0 | AY103: =COUNTIF(BI107:BI346,">0") -> 0 | AZ103: =COUNTIF(BT107:BT346,">0") -> 0 | CG103: GASTOS NOTARIALES | CH103: =VLOOKUP(CX5,CN7:CX16,11,0) -> 0.05 | CK103: =VLOOKUP(CX5,CN7:CX16,11,0) -> 0.05 | CN103: ordenado | CO103: Plazos | CP103: Plazo años | CQ103: Meses | CR103: Pago al millar | CS103: Seguros | CT103: Mensualidad | CU103: Mens c/formula | CV103: Pago al millar | CW103: Mensualidad | CX103: Mensualidad | CY103: Seguros | CZ103: Ingreso | DA103: Pago al millar | DB103: Mensualidad | DC103: Seguros | DD103: Ingreso | EU103: MENSUALIDADES | EV103: =COUNTIF(EV107:EV346,">0") -> 0 | EW103: =COUNTIF(FS107:FS346,">0") -> 0 | EX103: =COUNTIF(GN107:GN226,">0") -> 0
A104: 6 | B104: =IF(AND($A$2=1,$G$2=TRUE),I39,IF($I$3=TRUE,CONCATENATE("4) ",VLOOKUP($I$2,$S$35:$U$40,3,FALSE)," de Nómina y Estados de Cuenta (complementarios al sueldo base) donde se reflejen las percepciones por Bonos. (No aplica Edos. de Cuenta si es Nómina Banamex)"),"4) Carta laboral que mencione: fecha de emisión, nombre del empleado, denominación o razón social de la empresa que lo expide, la antigüedad laboral, nombre, firma, teléfono de quien expide la carta.")) -> 4) Carta laboral que mencione: fecha de emisión, nombre del empleado, denominación o razón social de la empresa que lo expide, la antigüedad laboral, nombre, firma, teléfono de quien expide la carta. | C104: =IF(AND($A$2=1,$G$2=TRUE),I39,IF($I$3=TRUE,CONCATENATE("4) ",VLOOKUP($I$2,$S$35:$U$40,3,FALSE)," de Nómina y Estados de Cuenta (complementarios al sueldo base) donde se reflejen las percepciones por Bonos. (No aplica Edos. de Cuenta si es Nómina Banamex)"),"4) Carta laboral que mencione: fecha de emisión, nombre del empleado, denominación o razón social de la empresa que lo expide, la antigüedad laboral, nombre, firma, teléfono de quien expide la carta.")) -> 4) Carta laboral que mencione: fecha de emisión, nombre del empleado, denominación o razón social de la empresa que lo expide, la antigüedad laboral, nombre, firma, teléfono de quien expide la carta. | D104: =+IF($I$3=TRUE,CONCATENATE("4) ",VLOOKUP($I$2,$S$35:$U$39,3,FALSE)," de Nómina y Estados de Cuenta (complementarios al sueldo base) donde se reflejen las percepciones por Bonos. (No aplica Edos. de Cuenta si es Nómina Banamex)"),"") ->  | R104: 6) Copia del reporte especial de Buró de crédito de la persona moral. | CG104: PTI | CH104: =IF(INGRESOMENSUAL>=35000,HLOOKUP(CQ5,CU59:CX64,6,0),HLOOKUP(CQ5,CU59:CX64,4,0)) -> 0.45 | CI104: =IF((DB127+DC127)>=35000*CJ104,HLOOKUP(CQ5,CU59:CX64,6,0),HLOOKUP(CQ5,CU59:CX64,4,0)) ->  | CJ104: =+HLOOKUP(CQ5,CU59:CX64,4,0) -> 0.45 | CK104: =IF(INGRESOMENSUAL>=35000,HLOOKUP(CQ5,CU70:CX75,6,0),HLOOKUP(CQ5,CU70:CX75,4,0)) -> 0.45 | CL104: =IF((DB132+DC132)>=35000*CM104,HLOOKUP(CQ5,CU70:CX75,6,0),HLOOKUP(CQ5,CU70:CX75,4,0)) ->  | CM104: =+HLOOKUP(CQ5,CU70:CX75,4,0) -> 0.45 | CN104: 1 | CO104: 20 Años | CP104: 20 | CQ104: 240 | CR104: =ROUNDUP(PMT($CH$70/12,CQ104,-1000),2) ->  | CS104: =IF(OR($CS$5=1,$CS$5=2),$CH$85*(IF(CS5<3,IF(CK25>64,EXTRAPRIMAEDAD,IF(CU5=1,FACTORVIDA,IF(CU5=2,EXTRAPRIMAMEDICA,IF(CU5=3,EXTRAPRIMAOCUPACIONAL,0)))))),0)+IF(OR($CS$5=1,$CS$5=3),MAX($CK$26*0.8*FACTORDAÑOS,$CH$85*FACTORDAÑOS),0) ->  | CT104: =$CH$85*CR104/1000+CS104 ->  | CU104: =PMT($CH$70/12,CQ104,-$CH$85)+CS104 ->  | CV104: =ROUNDUP(PMT(IF(CI70="",CH70,CI70)/12,CQ104,-1000),2) ->  | CW104: =$CH$85*CV104/1000+CS104 ->  | CX104: =$CH$84*ROUNDUP(PMT($CK$48/12,CP104*12,-1000),2)/1000 ->  | CY104: =IF(OR($CS$5=1,$CS$5=2),$CH$84*(IF(CS5<3,IF(CK25>64,EXTRAPRIMAEDAD,IF(CU5=1,FACTORVIDA,IF(CU5=2,EXTRAPRIMAMEDICA,IF(CU5=3,EXTRAPRIMAOCUPACIONAL,0)))))),0)+IF(OR($CS$5=1,$CS$5=3),MAX($CK$26*0.8*FACTORDAÑOS,$CH$84*FACTORDAÑOS),0) ->  | CZ104: =IF((((CX104+CY104)+DESCUENTIND+DESCUENTCONY)/$CH$74)<$CI$90,$CI$90,((CX104+CY104)+DESCUENTIND+DESCUENTCONY)/$CH$74) ->  | DA104: =ROUNDUP(PMT($CJ$68/12,CQ104,-1000),2) ->  | DB104: =$CJ$84*ROUNDUP(PMT($CJ$48/12,CP104*12,-1000),2)/1000 ->  | DC104: =IF(OR($CS$5=1,$CS$5=2),$CJ$84*(IF(CS5<3,IF(CK25>64,EXTRAPRIMAEDAD,IF(CU5=1,FACTORVIDA,IF(CU5=2,EXTRAPRIMAMEDICA,IF(CU5=3,EXTRAPRIMAOCUPACIONAL,0)))))),0)+IF(OR($CS$5=1,$CS$5=3),MAX($CK$26*0.8*FACTORDAÑOS,$CJ$84*FACTORDAÑOS),0) ->  | DD104: =IF(CK34="",IF((((DB104+DC104)+DESCUENTIND+DESCUENTCONY)/$CI$76)<$CI$90,$CI$90,((DB104+DC104)+DESCUENTIND+DESCUENTCONY+CK34)/$CI$76),IF((((DB104+DC104)+DESCUENTIND+DESCUENTCONY+CK34)/$CI$76)<$CI$90,$CI$90,((DB104+DC104)+DESCUENTIND+DESCUENTCONY+CK34)/$CI$76)) ->  | EU104: CAMBIA TU HIPOTECA | FE104: Liquidez | FQ104: CAMBIA TU HIPOTECA | GA104: Liquidez | GV104: Liquidez
A105: Notas | B105: =IF(AND($A$2=1,$G$2=TRUE),I41,I40) -> 1) La fecha de emisión del Recibo de Nómina y del Estado de Cuenta NO debe ser mayor a 45 días a la fecha de ingreso a dictaminación etapa 1. 2) Para la Carta Laboral no se exige una vigencia. **JUBILADOS Y PENSIONADOS** a) La pensión debe ser VITALICIA b) No es necesaria la Carta Laboral para jubilados y pensionados que reciban su pension con servicio de Nómina. **Recibos de nómina pagadoras** Para empresas pagadoras o de subcontratación: • Podrá aceptarse que cambie la razón social siempre que cubra el año de continuidad laboral, siempre y cuando el ingreso y empleo sea el mismo sin periodos de inactividad. • No será obligatoria la carta laboral cuando se pueda demostrar la continuidad laborar con otro documento y los recibos de nómina contengan CFDI registrado en SAT (que estén fiscalizados) | C105: =IF(AND($A$2=1,$G$2=TRUE),I41,I40) -> 1) La fecha de emisión del Recibo de Nómina y del Estado de Cuenta NO debe ser mayor a 45 días a la fecha de ingreso a dictaminación etapa 1. 2) Para la Carta Laboral no se exige una vigencia. **JUBILADOS Y PENSIONADOS** a) La pensión debe ser VITALICIA b) No es necesaria la Carta Laboral para jubilados y pensionados que reciban su pension con servicio de Nómina. **Recibos de nómina pagadoras** Para empresas pagadoras o de subcontratación: • Podrá aceptarse que cambie la razón social siempre que cubra el año de continuidad laboral, siempre y cuando el ingreso y empleo sea el mismo sin periodos de inactividad. • No será obligatoria la carta laboral cuando se pueda demostrar la continuidad laborar con otro documento y los recibos de nómina contengan CFDI registrado en SAT (que estén fiscalizados) | D105: **ESTE TIPO DE INGRESO DEBERÁ REFLEJAR UN INGRESO FIJO COMO BASE MÁS LAS COMISIONES** 1) La percepción por comisiones deberá reflejarse al menos 4 meses de los últimos 6 meses y en un recibo de cada dos meses. 2) Para la Carta Laboral no se exige una vigencia. **Recibos de nómina pagadoras** Para empresas pagadoras o de subcontratación: • Podrá aceptarse que cambie la razón social siempre que cubra el año de continuidad laboral, siempre y cuando el ingreso y empleo sea el mismo sin periodos de inactividad. • No será obligatoria la carta laboral cuando se pueda demostrar la continuidad laborar con otro documento y los recibos de nómina contengan CFDI registrado en SAT (que estén fiscalizados) | E105: **ESTE TIPO DE INGRESO DEBERÁ REFLEJAR UN INGRESO FIJO COMO BASE MÁS LAS COMISIONES** 1) La percepción por comisiones deberá reflejarse al menos 4 meses de los últimos 6 meses y en un recibo de cada dos meses. 2) Para la Carta Laboral no se exige una vigencia. **Recibos de nómina pagadoras** Para empresas pagadoras o de subcontratación: • Podrá aceptarse que cambie la razón social siempre que cubra el año de continuidad laboral, siempre y cuando el ingreso y empleo sea el mismo sin periodos de inactividad. • No será obligatoria la carta laboral cuando se pueda demostrar la continuidad laborar con otro documento y los recibos de nómina contengan CFDI registrado en SAT (que estén fiscalizados) | F105: 1) La fecha de emisión del Estado de Cuenta NO debe ser mayor a 45 días a la fecha de ingreso a dictaminación. 2) En caso de comprobar con comptómetro no deberá tener una fecha de emisión mayor a 45 días a la fecha de ingreso a dictaminación. 3) Se requiere que el cliente que compruebe un arraigo laboral de 2 años de antigüedad en el negocio y 4 años para persona moral. 4) Se podrán comprobar ingresos con cuentas de cheques Banamex: a) Se suman los depósitos de las cuentas presentadas sin considerar transferencias entre las mismas, depósitos de préstamos, depósitos que no provienen del giro del negocio, etc. b) Cada uno de los meses el Total de Depósitos deberá cubrir el ingreso mínimo. (Solo se permitirá que un mes no se cumpla con esta regla) c) Son validos los estados de cuenta que llegan por correo postal y/o un correo digital, completos con todas las hojas incluyendo la última hoja con cadenas digitales y códigos QR. | G105: 1) La fecha de emisión del Estado de Cuenta NO debe ser mayor a 45 días a la fecha de ingreso a dictaminación. 2) En caso de comprobar con comptómetro no deberá tener una fecha de emisión mayor a 45 días a la fecha de ingreso a dictaminación. 3) Se requiere que el cliente que compruebe un arraigo laboral de 2 años de antigüedad en el negocio y 4 años para persona moral. 4) Se podrán comprobar ingresos con cuentas de cheques: a) Se suman los depósitos de las cuentas presentadas sin considerar transferencias entre las mismas, depósitos de préstamos, depósitos que no provienen del giro del negocio, etc. b) Cada uno de los meses el Total de Depósitos deberá cubrir el ingreso mínimo. (Solo se permitirá que un mes no se cumpla con esta regla) c) Son validos los estados de cuenta que llegan por correo postal y/o un correo digital, completos con todas las hojas incluyendo la última hoja con cadenas digitales y códigos QR. | H105: 1) La fecha de emisión del Estado de Cuenta NO debe ser mayor a 45 días a la fecha de ingreso a dictaminación. 3) Se requiere que el cliente que compruebe un arraigo laboral de 2 años de antigüedad en el negocio y 4 años para persona moral. 3) Se podrán comprobar ingresos con cuentas de cheques: a) Se suman los depósitos de las cuentas presentadas sin considerar transferencias entre las mismas, depósitos de préstamos, depósitos que no provienen del giro del negocio, etc. b) Cada uno de los meses el Total de Depósitos deberá cubrir el ingreso mínimo. (Solo se permitirá que un mes no se cumpla con esta regla) c) Son validos los estados de cuenta que llegan por correo postal y/o un correo digital, completos con todas las hojas incluyendo la última hoja con cadenas digitales y códigos QR. | I105: 1) La fecha de emisión del Estado de Cuenta NO debe ser mayor a 45 días a la fecha de autorización del crédito. 2) En caso de comprobar con comptómetro no deberá tener una fecha de emisión mayor a 45 días a la fecha de ingreso a dictaminación 3) Se requiere que el cliente que compruebe un arraigo laboral de 2 años de antigüedad en el negocio y 4 años para persona moral. 4) Se podrán comprobar ingresos con cuentas de cheques Banamex: a) Se suman los depósitos de las cuentas presentadas sin considerar transferencias entre las mismas, depósitos de préstamos, depósitos que no provienen del giro del negocio, etc. b) Cada uno de los meses el Total de Depósitos deberá cubrir el ingreso mínimo. (Solo se permitirá que un mes no se cumpla con esta regla) c) Son validos los estados de cuenta que llegan por correo postal y/o un correo digital, completos con todas las hojas incluyendo la última hoja con cadenas digitales y códigos QR. | J105: 1) La fecha de emisión del Estado de Cuenta NO debe ser mayor a 45 días a la fecha de de ingreso a dictaminación. 2) En caso de comprobar con comptómetro no deberá tener una fecha de emisión mayor a 45 días a la fecha de de ingreso a dictaminación 3) Se requiere que el cliente que compruebe un arraigo laboral de 2 años de antigüedad en el negocio y 4 años para persona moral. 4) Se podrán comprobar ingresos con cuentas de cheques: a) Se suman los depósitos de las cuentas presentadas sin considerar transferencias entre las mismas, depósitos de préstamos, depósitos que no provienen del giro del negocio, etc. b) Cada uno de los meses el Total de Depósitos deberá cubrir el ingreso mínimo. (Solo se permitirá que un mes no se cumpla con esta regla) c) Son validos los estados de cuenta que llegan por correo postal y/o un correo digital, completos con todas las hojas incluyendo la última hoja con cadenas digitales y códigos QR. | K105: 1) La fecha de emisión del Estado de Cuenta NO debe ser mayor a 45 días a la fecha de de ingreso a dictaminación. 2) Se requiere que el cliente que compruebe un arraigo laboral de 2 años de antigüedad en el negocio y 4 años para persona moral.. 3) Se podrán comprobar ingresos con cuentas de cheques: a) Se suman los depósitos de las cuentas presentadas sin considerar transferencias entre las mismas, depósitos de préstamos, depósitos que no provienen del giro del negocio, etc. b) Cada uno de los meses el Total de Depósitos deberá cubrir el ingreso mínimo. (Solo se permitirá que un mes no se cumpla con esta regla) c) Son validos los estados de cuenta que llegan por correo postal y/o un correo digital, completos con todas las hojas incluyendo la última hoja con cadenas digitales y códigos QR. | L105: 1) La fecha de emisión del Estado de Cuenta NO debe ser mayor a 45 días a la fecha de ingreso a dictaminación. 2) En caso de comprobar con comptómetro no deberá tener una fecha de emisión mayor a 45 días a la fecha de ingreso a dictaminación 3) Se requiere que el cliente que compruebe un arraigo laboral de 2 años de antigüedad en el negocio y 4 años para persona moral. 4) Se podrán comprobar ingresos con cuentas de cheques Banamex: a) Se suman los depósitos de las cuentas presentadas sin considerar transferencias entre las mismas, depósitos de préstamos, depósitos que no provienen del giro del negocio, etc. b) Cada uno de los meses el Total de Depósitos deberá cubrir el ingreso mínimo. (Solo se permitirá que un mes no se cumpla con esta regla) c) Son validos los estados de cuenta que llegan por correo postal y/o un correo digital, completos con todas las hojas incluyendo la última hoja con cadenas digitales y códigos QR. | M105: 1) La fecha de emisión del Estado de Cuenta NO debe ser mayor a 45 días a la fecha de ingreso a dictaminación. 2) En caso de comprobar con comptómetro no deberá tener una fecha de emisión mayor a 45 días a la fecha de ingreso a dictaminación 3) Se requiere que el cliente que compruebe un arraigo laboral de 2 años de antigüedad en el negocio y 4 años para persona moral. 4) Se podrán comprobar ingresos con cuentas de cheques: a)Se suman los depósitos de las cuentas presentadas sin considerar transferencias entre las mismas, depósitos de préstamos, depósitos que no provienen del giro del negocio, etc. b) Cada uno de los meses el Total de Depósitos deberá cubrir el ingreso mínimo. (Solo se permitirá que un mes no se cumpla con esta regla) c) Son validos los estados de cuenta que llegan por correo postal y/o un correo digital, completos con todas las hojas incluyendo la última hoja con cadenas digitales y códigos QR. | N105: 1) La fecha de emisión del Estado de Cuenta NO debe ser mayor a 45 días a la fecha de ingreso a dictaminación. 2) Se requiere que el cliente que compruebe un arraigo laboral de 2 años de antigüedad en el negocio y 4 años para persona moral.. 3) Se podrán comprobar ingresos con cuentas de cheques: a) Se suman los depósitos de las cuentas presentadas sin considerar transferencias entre las mismas, depósitos de préstamos, depósitos que no provienen del giro del negocio, etc. b) Cada uno de los meses el Total de Depósitos deberá cubrir el ingreso mínimo. (Solo se permitirá que un mes no se cumpla con esta regla) c) Son validos los estados de cuenta que llegan por correo postal y/o un correo digital, completos con todas las hojas incluyendo la última hoja con cadenas digitales y códigos QR. | O105: 1) La fecha de emisión del Estado de Cuenta NO debe ser mayor a 45 días a la fecha de ingreso a dictaminación. 2) En caso de comprobar con comptómetro no deberá tener una fecha de emisión mayor a 45 días a la fecha de ingreso a dictaminación 3) Se requiere que el cliente que compruebe un arraigo laboral de 2 años de antigüedad en el negocio y 4 años para persona moral. 4) Se podrán comprobar ingresos con cuentas de cheques Banamex: a) Se suman los depósitos de las cuentas presentadas sin considerar transferencias entre las mismas, depósitos de préstamos, depósitos que no provienen del giro del negocio, etc. b) Cada uno de los meses el Total de Depósitos deberá cubrir el ingreso mínimo. (Solo se permitirá que un mes no se cumpla con esta regla) c) Son validos los estados de cuenta que llegan por correo postal y/o un correo digital, completos con todas las hojas incluyendo la última hoja con cadenas digitales y códigos QR. | P105: 1) La fecha de emisión del Estado de Cuenta NO debe ser mayor a 45 días a la fecha de ingreso a dictaminación. 2) En caso de comprobar con comptómetro no deberá tener una fecha de emisión mayor a 45 días a la fecha de ingreso a dictaminación 3) Se requiere que el cliente que compruebe un arraigo laboral de 2 años de antigüedad en el negocio y 4 años para persona moral. 4) Se podrán comprobar ingresos con cuentas de cheques: a) Se suman los depósitos de las cuentas presentadas sin considerar transferencias entre las mismas, depósitos de préstamos, depósitos que no provienen del giro del negocio, etc. b) Cada uno de los meses el Total de Depósitos deberá cubrir el ingreso mínimo. (Solo se permitirá que un mes no se cumpla con esta regla) c) Son validos los estados de cuenta que llegan por correo postal y/o un correo digital, completos con todas las hojas incluyendo la última hoja con cadenas digitales y códigos QR. | Q105: 1) La fecha de emisión del Estado de Cuenta NO debe ser mayor a 45 días a la fecha de ingreso a dictaminación. 3) Se requiere que el cliente que compruebe un arraigo laboral de 2 años de antigüedad en el negocio y 4 años para persona moral. 3) Se podrán comprobar ingresos con cuentas de cheques: a) Se suman los depósitos de las cuentas presentadas sin considerar transferencias entre las mismas, depósitos de préstamos, depósitos que no provienen del giro del negocio, etc. b) Cada uno de los meses el Total de Depósitos deberá cubrir el ingreso mínimo. (Solo se permitirá que un mes no se cumpla con esta regla) c) Son validos los estados de cuenta que llegan por correo postal y/o un correo digital, completos con todas las hojas incluyendo la última hoja con cadenas digitales y códigos QR. | R105: **Este tipo de Ingreso NO podrá aplicarse para compra entre cónyuges, familiares directos, entre socios o a la empresa de la cual es accionista** 1)Se requerirá entregar el cuestionario EDD de las Personas Morales en los casos que asi se determine. 2) Se pueden considerar varias cuentas de cheques. 3) La fecha de emisión del Estado de Cuenta NO debe ser mayor a 45 días a la fecha de ingreso a dictaminación. 4) En caso de comprobar con comptómetro no deberá tener una fecha de emisión mayor a 45 días a la fecha de ingreso a dictaminación. 5) Se requiere que el cliente que compruebe un arraigo laboral de 4 años de antigüedad en el negocio y 4 años para persona moral. 6) Se podrán comprobar ingresos con cuentas de cheques Banamex: a) Se suman los depósitos de las cuentas presentadas sin considerar transferencias entre las mismas, depósitos de préstamos, depósitos que no provienen del giro del negocio, etc. b) Cada uno de los meses el Total de Depósitos deberá cubrir el ingreso mínimo. (Solo se permitirá que un mes no se cumpla con esta regla) c) Son validos los estados de cuenta que llegan por un correo digital, completos con todas las hojas con cadenas digitales y códigos QR. | S105: **Para inversiones Banamex, se puede tomar como valido las pantallas o consultas de los sistemas internos del banco donde se detalle el saldo de los últimos 4 meses y la titularidad del cliente** | T105: ** Esta comprobación solo aplica para cientes nivel de riesgo Low y Very Low | U105: a)El participante debe demostrar permanencia en el empleo actual mínimo de 1 año, si el cliente tiene menos de 1 año podrá ser aceptado siempre y cuando a la fecha de autorización tenga una permanencia ≥ 6 meses en el empleo actual y en el empleo anterior estuvo como mínimo 1 año y el periodo de inactividad no es mayor a 2 meses y deberá ser validado al menos mediante una Verificación Telefónica en Etapa 2 o Etapa Única. b)Si el arraigo en el empleo es < 6 meses se podrá considerar siempre y cuando en el empleo anterior estuvo como mínimo 2 años y el periodo de inactividad no es mayor a 2 meses, se deberá validar al menos mediante Verificación telefónica en Etapa 2 o Etapa Única. Si tuvo más de 1 periodo de inactividad, la suma de los periodos no fue mayor a 2 meses, se podrá aprobar por un Nivel Facultado. De forma adicional, para Asalariados en Quintana Roo, donde el empleado estuvo contratado por más de una empresa de subcontratación la suma de los periodos de inactividad no podrá ser mayor a 3 meses y no podrá tener más de 2 meses de forma consecutiva, en los casos en los que existan faltantes se deberá entregar hasta 3 meses adicionales de comprobantes (periodo de 15 meses continuos), ya que se debe observar en los comprobantes elementos que acrediten una continuidad laboral de 12 meses. | V105: a)El participante debe demostrar permanencia en el empleo actual mínimo de 1 año, si el cliente tiene menos de 1 año podrá ser aceptado siempre y cuando a la fecha de autorización tenga una permanencia ≥ 6 meses en el empleo actual y en el empleo anterior estuvo como mínimo 1 año y el periodo de inactividad no es mayor a 2 meses y deberá ser validado al menos mediante una Verificación Telefónica en Etapa 2 o Etapa Única. b)Si el arraigo en el empleo es < 6 meses se podrá considerar siempre y cuando en el empleo anterior estuvo como mínimo 2 años y el periodo de inactividad no es mayor a 2 meses, se deberá validar al menos mediante Verificación telefónica en Etapa 2 o Etapa Única. Si tuvo más de 1 periodo de inactividad, la suma de los periodos no fue mayor a 2 meses, se podrá aprobar por un Nivel Facultado. De forma adicional, para Asalariados en Quintana Roo, donde el empleado estuvo contratado por más de una empresa de subcontratación la suma de los periodos de inactividad no podrá ser mayor a 3 meses y no podrá tener más de 2 meses de forma consecutiva, en los casos en los que existan faltantes se deberá entregar hasta 3 meses adicionales de comprobantes (periodo de 15 meses continuos), ya que se debe observar en los comprobantes elementos que acrediten una continuidad laboral de 12 meses. | W105: a)El participante debe demostrar permanencia en el empleo actual mínimo de 1 año, si el cliente tiene menos de 1 año podrá ser aceptado siempre y cuando a la fecha de autorización tenga una permanencia ≥ 6 meses en el empleo actual y en el empleo anterior estuvo como mínimo 1 año y el periodo de inactividad no es mayor a 2 meses y deberá ser validado al menos mediante una Verificación Telefónica en Etapa 2 o Etapa Única. b)Si el arraigo en el empleo es < 6 meses se podrá considerar siempre y cuando en el empleo anterior estuvo como mínimo 2 años y el periodo de inactividad no es mayor a 2 meses, se deberá validar al menos mediante Verificación telefónica en Etapa 2 o Etapa Única. Si tuvo más de 1 periodo de inactividad, la suma de los periodos no fue mayor a 2 meses, se podrá aprobar por un Nivel Facultado. De forma adicional, para Asalariados en Quintana Roo, donde el empleado estuvo contratado por más de una empresa de subcontratación la suma de los periodos de inactividad no podrá ser mayor a 3 meses y no podrá tener más de 2 meses de forma consecutiva, en los casos en los que existan faltantes se deberá entregar hasta 3 meses adicionales de comprobantes (periodo de 15 meses continuos), ya que se debe observar en los comprobantes elementos que acrediten una continuidad laboral de 12 meses. | X105: a)El participante debe demostrar permanencia en el empleo actual mínimo de 1 año, si el cliente tiene menos de 1 año podrá ser aceptado siempre y cuando a la fecha de autorización tenga una permanencia ≥ 6 meses en el empleo actual y en el empleo anterior estuvo como mínimo 1 año y el periodo de inactividad no es mayor a 2 meses y deberá ser validado al menos mediante una Verificación Telefónica en Etapa 2 o Etapa Única. b)Si el arraigo en el empleo es < 6 meses se podrá considerar siempre y cuando en el empleo anterior estuvo como mínimo 2 años y el periodo de inactividad no es mayor a 2 meses, se deberá validar al menos mediante Verificación telefónica en Etapa 2 o Etapa Única. Si tuvo más de 1 periodo de inactividad, la suma de los periodos no fue mayor a 2 meses, se podrá aprobar por un Nivel Facultado. De forma adicional, para Asalariados en Quintana Roo, donde el empleado estuvo contratado por más de una empresa de subcontratación la suma de los periodos de inactividad no podrá ser mayor a 3 meses y no podrá tener más de 2 meses de forma consecutiva, en los casos en los que existan faltantes se deberá entregar hasta 3 meses adicionales de comprobantes (periodo de 15 meses continuos), ya que se debe observar en los comprobantes elementos que acrediten una continuidad laboral de 12 meses. | AC105: a)El participante debe demostrar permanencia en el empleo actual mínimo de 1 año, si el cliente tiene menos de 1 año podrá ser aceptado siempre y cuando a la fecha de autorización tenga una permanencia ≥ 6 meses en el empleo actual y en el empleo anterior estuvo como mínimo 1 año y el periodo de inactividad no es mayor a 2 meses y deberá ser validado al menos mediante una Verificación Telefónica en Etapa 2 o Etapa Única. b)Si el arraigo en el empleo es < 6 meses se podrá considerar siempre y cuando en el empleo anterior estuvo como mínimo 2 años y el periodo de inactividad no es mayor a 2 meses, se deberá validar al menos mediante Verificación telefónica en Etapa 2 o Etapa Única. Si tuvo más de 1 periodo de inactividad, la suma de los periodos no fue mayor a 2 meses, se podrá aprobar por un Nivel Facultado. De forma adicional, para Asalariados en Quintana Roo, donde el empleado estuvo contratado por más de una empresa de subcontratación la suma de los periodos de inactividad no podrá ser mayor a 3 meses y no podrá tener más de 2 meses de forma consecutiva, en los casos en los que existan faltantes se deberá entregar hasta 3 meses adicionales de comprobantes (periodo de 15 meses continuos), ya que se debe observar en los comprobantes elementos que acrediten una continuidad laboral de 12 meses. | AD105: a)El participante debe demostrar permanencia en el empleo actual mínimo de 1 año, si el cliente tiene menos de 1 año podrá ser aceptado siempre y cuando a la fecha de autorización tenga una permanencia ≥ 6 meses en el empleo actual y en el empleo anterior estuvo como mínimo 1 año y el periodo de inactividad no es mayor a 2 meses y deberá ser validado al menos mediante una Verificación Telefónica en Etapa 2 o Etapa Única. b)Si el arraigo en el empleo es < 6 meses se podrá considerar siempre y cuando en el empleo anterior estuvo como mínimo 2 años y el periodo de inactividad no es mayor a 2 meses, se deberá validar al menos mediante Verificación telefónica en Etapa 2 o Etapa Única. Si tuvo más de 1 periodo de inactividad, la suma de los periodos no fue mayor a 2 meses, se podrá aprobar por un Nivel Facultado. De forma adicional, para Asalariados en Quintana Roo, donde el empleado estuvo contratado por más de una empresa de subcontratación la suma de los periodos de inactividad no podrá ser mayor a 3 meses y no podrá tener más de 2 meses de forma consecutiva, en los casos en los que existan faltantes se deberá entregar hasta 3 meses adicionales de comprobantes (periodo de 15 meses continuos), ya que se debe observar en los comprobantes elementos que acrediten una continuidad laboral de 12 meses. | AW105: MES | AX105: SALDO CAPITAL | AY105: PAGO CAPITAL | AZ105: PAGO INTERES | BA105: PPM | BB105: PAGO CAPITAL + INT | BC105: SEGUROS | BD105: DIFERENCIA PAGO ACTUAL | BE105: PAGO MENSUALIDAD TOTAL | BH105: MES | BI105: SALDO CAPITAL | BJ105: PAGO CAPITAL | BK105: PAGO INTERES | BL105: PPM | BM105: PAGO CAPITAL + INT | BN105: SEGUROS | BO105: DIFERENCIA PAGO ACTUAL | BP105: PAGO MENSUALIDAD TOTAL | BS105: MES | BT105: SALDO CAPITAL | BU105: PAGO CAPITAL | BV105: PAGO INTERES | BW105: PPM | BX105: PAGO CAPITAL + INT | BY105: SEGUROS | BZ105: DIFERENCIA PAGO ACTUAL | CA105: PAGO MENSUALIDAD TOTAL | CG105: DTI | CH105: =IF(INGRESOMENSUAL>=35000,HLOOKUP(CQ5,CU59:CX64,5,0),HLOOKUP(CQ5,CU59:CX64,3,0)) -> 0.5 | CI105: =IF((DB127+DC127)>=35000*CJ105,HLOOKUP(CQ5,CU59:CX64,5,0),HLOOKUP(CQ5,CU59:CX64,3,0)) ->  | CJ105: =+HLOOKUP(CQ5,CU59:CX64,3,0) -> 0.5 | CK105: =IF(INGRESOMENSUAL>=35000,HLOOKUP(CQ5,CU70:CX75,5,0),HLOOKUP(CQ5,CU70:CX75,3,0)) -> 0.5 | CL105: =IF((DB132+DC132)>=35000*CM105,HLOOKUP(CQ5,CU70:CX75,5,0),HLOOKUP(CQ5,CU70:CX75,3,0)) ->  | CM105: =+HLOOKUP(CQ5,CU70:CX75,3,0) -> 0.5 | CN105: 2 | CO105: 15 Años | CP105: 15 | CQ105: 180 | CR105: =ROUNDUP(PMT($CH$70/12,CQ105,-1000),2) ->  | CS105: =IF(OR($CS$5=1,$CS$5=2),$CH$85*(IF(CS5<3,IF(CK25>64,EXTRAPRIMAEDAD,IF(CU5=1,FACTORVIDA,IF(CU5=2,EXTRAPRIMAMEDICA,IF(CU5=3,EXTRAPRIMAOCUPACIONAL,0)))))),0)+IF(OR($CS$5=1,$CS$5=3),MAX($CK$26*0.8*FACTORDAÑOS,$CH$85*FACTORDAÑOS),0) ->  | CT105: =$CH$85*CR105/1000+CS105 ->  | CU105: =PMT($CH$70/12,CQ105,-$CH$85)+CS105 ->  | CV105: =ROUNDUP(PMT(IF(CJ70="",CH70,CJ70)/12,CQ105,-1000),2) ->  | CW105: =$CH$85*CV105/1000+CS105 ->  | CX105: =$CH$84*ROUNDUP(PMT($CK$48/12,CP105*12,-1000),2)/1000 ->  | CY105: =IF(OR($CS$5=1,$CS$5=2),$CH$84*(IF(CS5<3,IF(CK25>64,EXTRAPRIMAEDAD,IF(CU5=1,FACTORVIDA,IF(CU5=2,EXTRAPRIMAMEDICA,IF(CU5=3,EXTRAPRIMAOCUPACIONAL,0)))))),0)+IF(OR($CS$5=1,$CS$5=3),MAX($CK$26*0.8*FACTORDAÑOS,$CH$84*FACTORDAÑOS),0) ->  | CZ105: =IF((((CX105+CY105)+DESCUENTIND+DESCUENTCONY)/$CH$76)<$CI$90,$CI$90,((CX105+CY105)+DESCUENTIND+DESCUENTCONY)/$CH$76) ->  | DA105: =ROUNDUP(PMT($CJ$68/12,CQ105,-1000),2) ->  | DB105: =$CJ$84*ROUNDUP(PMT($CJ$48/12,CP105*12,-1000),2)/1000 ->  | DC105: =IF(OR($CS$5=1,$CS$5=2),$CJ$84*(IF(CS5<3,IF(CK25>64,EXTRAPRIMAEDAD,IF(CU5=1,FACTORVIDA,IF(CU5=2,EXTRAPRIMAMEDICA,IF(CU5=3,EXTRAPRIMAOCUPACIONAL,0)))))),0)+IF(OR($CS$5=1,$CS$5=3),MAX($CK$26*0.8*FACTORDAÑOS,$CJ$84*FACTORDAÑOS),0) ->  | DD105: =IF(CK34="",IF((((DB105+DC105)+DESCUENTIND+DESCUENTCONY)/$CI$76)<$CI$90,$CI$90,((DB105+DC105)+DESCUENTIND+DESCUENTCONY+CK34)/$CI$76),IF((((DB105+DC105)+DESCUENTIND+DESCUENTCONY+CK34)/$CI$76)<$CI$90,$CI$90,((DB105+DC105)+DESCUENTIND+DESCUENTCONY+CK34)/$CI$76)) ->  | EU105: MES | EV105: SALDO CAPITAL | EW105: PAGO CAPITAL | EX105: PAGO INTERES | EY105: PPM | EZ105: PAGO CAPITAL + INT | FA105: SEGUROS | FB105: DIFERENCIA PAGO ACTUAL | FC105: PAGO MENSUALIDAD TOTAL | FE105: MES | FF105: SALDO CAPITAL | FG105: PAGO CAPITAL | FH105: PAGO INTERES | FI105: PPM | FJ105: PAGO CAPITAL + INT | FK105: SEGUROS | FL105: IVA Intereses | FM105: PAGO MENSUALIDAD TOTAL | FN105: PAGO MENSUALIDAD TOTAL sin IVA | FQ105: MES | FR105: SALDO CAPITAL | FS105: PAGO CAPITAL | FT105: PAGO INTERES | FU105: PPM | FV105: PAGO CAPITAL + INT | FW105: SEGUROS | FX105: DIFERENCIA PAGO ACTUAL | FY105: PAGO MENSUALIDAD TOTAL | GA105: MES | GB105: SALDO CAPITAL | GC105: PAGO CAPITAL | GD105: PAGO INTERES | GE105: PPM | GF105: PAGO CAPITAL + INT | GG105: SEGUROS | GH105: IVA Intereses | GI105: PAGO MENSUALIDAD TOTAL | GJ105: PAGO MENSUALIDAD TOTAL sin IVA | GL105: MES | GM105: SALDO CAPITAL | GN105: PAGO CAPITAL | GO105: PAGO INTERES | GP105: PPM | GQ105: PAGO CAPITAL + INT | GR105: SEGUROS | GS105: DIFERENCIA PAGO ACTUAL | GT105: PAGO MENSUALIDAD TOTAL | GV105: MES | GW105: SALDO CAPITAL | GX105: PAGO CAPITAL | GY105: PAGO INTERES | GZ105: PPM | HA105: PAGO CAPITAL + INT | HB105: SEGUROS | HC105: IVA Intereses | HD105: PAGO MENSUALIDAD TOTAL | HE105: PAGO MENSUALIDAD TOTAL sin IVA
F106: 1) La fecha de emisión del Estado de Cuenta NO debe ser mayor a 45 días a la fecha de ingreso a dictaminación. 2) En caso de comprobar con comptómetro no deberá tener una fecha de emisión mayor a 45 días a la fecha de ingreso a dictaminación. 3) Riesgo le requerirá al cliente que compruebe un arraigo laboral de 2 años de antigüedad en el negocio y 4 años para persona moral. 4) Se podrán comprobar ingresos con cuentas de cheques Banamex: a) Se suman los depósitos de las cuentas presentadas sin considerar transferencias entre las mismas, depósitos de préstamos, depósitos que no provienen del giro del negocio, etc. b) Cada uno de los meses el Total de Depósitos deberá cubrir el ingreso mínimo. c) Son validos los estados de cuenta que llegan por correo postal y/o un correo digital, completos con todas las hojas incluyendo la última hoja con cadenas digitales y códigos QR. **Se podrá autorizar como máximo que en 1 estado de cuenta de los 6 presentados NO cumpla con el Ingreso mínimo del producto o NO se refleje depósito alguno, mientras éstos no sean consecutivos y el promedio de los 6 meses cumpla con el Ingreso mínimo requerido. | G106: 1) La fecha de emisión del Estado de Cuenta más reciente NO debe ser mayor a 45 días a la fecha de ingreso a dictaminación. 2) En caso de comprobar con comptómetro no deberá tener una fecha de emisión mayor a 45 días a la fecha de ingreso a dictaminación. 3) Riesgo le requerirá al cliente que compruebe un arraigo laboral de 6 meses. 4) Se podrán comprobar ingresos con cuentas de cheques: a) Se suman los depósitos de las cuentas presentadas sin considerar transferencias entre las mismas, depósitos de préstamos, depósitos que no provienen del giro del negocio, etc. b) Cada uno de los meses el Total de Depósitos deberá cubrir el ingreso mínimo. c) Son validos los estados de cuenta que llegan por correo postal y/o un correo digital, completos con todas las hojas incluyendo la última hoja con cadenas digitales y códigos QR. **Se podrá autorizar como máximo que en 1 estado de cuenta de los 6 presentados NO cumpla con el Ingreso mínimo del producto o NO se refleje depósito alguno, mientras éstos no sean consecutivos y el promedio de los 6 meses cumpla con el Ingreso mínimo requerido. | H106: 1) La fecha de emisión del Estado de Cuenta más reciente NO debe ser mayor a 45 días a la fecha de ingreso a dictaminación. 2) Riesgo le requerirá al cliente que compruebe un arraigo laboral de 6 meses. 3) Se podrán comprobar ingresos con cuentas de cheques: a) Se suman los depósitos de las cuentas presentadas sin considerar transferencias entre las mismas, depósitos de préstamos, depósitos que no provienen del giro del negocio, etc. b) Cada uno de los meses el Total de Depósitos deberá cubrir el ingreso mínimo. c) Son validos los estados de cuenta que llegan por correo postal y/o un correo digital, completos con todas las hojas incluyendo la última hoja con cadenas digitales y códigos QR. **Se podrá autorizar como máximo que en 1 estado de cuenta de los 6 presentados NO cumpla con el Ingreso mínimo del producto o NO se refleje depósito alguno, mientras éstos no sean consecutivos y el promedio de los 6 meses cumpla con el Ingreso mínimo requerido. | I106: 1) La fecha de emisión del Estado de Cuenta NO debe ser mayor a 45 días a la fecha de autorización del crédito. 2) En caso de comprobar con comptómetro no deberá tener una fecha de emisión mayor a 45 días a la fecha de ingreso a dictaminación 3) Riesgo le requerirá al cliente que compruebe un arraigo laboral de 6 meses. 4) Se podrán comprobar ingresos con cuentas de cheques Banamex: a) Se suman los depósitos de las cuentas presentadas sin considerar transferencias entre las mismas, depósitos de préstamos, depósitos que no provienen del giro del negocio, etc. b) Cada uno de los meses el Total de Depósitos deberá cubrir el ingreso mínimo. c) Son validos los estados de cuenta que llegan por correo postal y/o un correo digital, completos con todas las hojas incluyendo la última hoja con cadenas digitales y códigos QR. **Se podrá autorizar como máximo que en 1 estado de cuenta de los 6 presentados NO cumpla con el Ingreso mínimo del producto o NO se refleje depósito alguno, mientras éstos no sean consecutivos y el promedio de los 6 meses cumpla con el Ingreso mínimo requerido. | J106: 1) La fecha de emisión del Estado de Cuenta más reciente NO debe ser mayor a 45 días a la fecha de de ingreso a dictaminación. 2) En caso de comprobar con comptómetro no deberá tener una fecha de emisión mayor a 45 días a la fecha de de ingreso a dictaminación 3) Riesgo le requerirá al cliente que compruebe un arraigo laboral de 6 meses. 4) Se podrán comprobar ingresos con cuentas de cheques: a) Se suman los depósitos de las cuentas presentadas sin considerar transferencias entre las mismas, depósitos de préstamos, depósitos que no provienen del giro del negocio, etc. b) Cada uno de los meses el Total de Depósitos deberá cubrir el ingreso mínimo. c) Son validos los estados de cuenta que llegan por correo postal y/o un correo digital, completos con todas las hojas incluyendo la última hoja con cadenas digitales y códigos QR. **Se podrá autorizar como máximo que en 1 estado de cuenta de los 6 presentados NO cumpla con el Ingreso mínimo del producto o NO se refleje depósito alguno, mientras éstos no sean consecutivos y el promedio de los 6 meses cumpla con el Ingreso mínimo requerido. | K106: 1) La fecha de emisión del Estado de Cuenta más reciente NO debe ser mayor a 45 días a la fecha de de ingreso a dictaminación. 2) Riesgo le requerirá al cliente que compruebe un arraigo laboral de 6 meses. 3) Se podrán comprobar ingresos con cuentas de cheques: a) Se suman los depósitos de las cuentas presentadas sin considerar transferencias entre las mismas, depósitos de préstamos, depósitos que no provienen del giro del negocio, etc. b) Cada uno de los meses el Total de Depósitos deberá cubrir el ingreso mínimo. c) Son validos los estados de cuenta que llegan por correo postal y/o un correo digital, completos con todas las hojas incluyendo la última hoja con cadenas digitales y códigos QR. **Se podrá autorizar como máximo que en 1 estado de cuenta de los 6 presentados NO cumpla con el Ingreso mínimo del producto o NO se refleje depósito alguno, mientras éstos no sean consecutivos y el promedio de los 6 meses cumpla con el Ingreso mínimo requerido. | L106: 1) La fecha de emisión del Estado de Cuenta NO debe ser mayor a 45 días a la fecha de ingreso a dictaminación. 2) En caso de comprobar con comptómetro no deberá tener una fecha de emisión mayor a 45 días a la fecha de ingreso a dictaminación 3) Riesgo le requerirá al cliente que compruebe un arraigo laboral de 6 meses. 4) Se podrán comprobar ingresos con cuentas de cheques Banamex: a) Se suman los depósitos de las cuentas presentadas sin considerar transferencias entre las mismas, depósitos de préstamos, depósitos que no provienen del giro del negocio, etc. b) Cada uno de los meses el Total de Depósitos deberá cubrir el ingreso mínimo. c) Son validos los estados de cuenta que llegan por correo postal y/o un correo digital, completos con todas las hojas incluyendo la última hoja con cadenas digitales y códigos QR. **Se podrá autorizar como máximo que en 1 estado de cuenta de los 6 presentados NO cumpla con el Ingreso mínimo del producto o NO se refleje depósito alguno, mientras éstos no sean consecutivos y el promedio de los 6 meses cumpla con el Ingreso mínimo requerido. | M106: 1) La fecha de emisión del Estado de Cuenta más reciente NO debe ser mayor a 45 días a la fecha de ingreso a dictaminación. 2) En caso de comprobar con comptómetro no deberá tener una fecha de emisión mayor a 45 días a la fecha de ingreso a dictaminación 3) Riesgo le requerirá al cliente que compruebe un arraigo laboral de 6 meses. 4) Se podrán comprobar ingresos con cuentas de cheques: a)Se suman los depósitos de las cuentas presentadas sin considerar transferencias entre las mismas, depósitos de préstamos, depósitos que no provienen del giro del negocio, etc. b) Cada uno de los meses el Total de Depósitos deberá cubrir el ingreso mínimo. c) Son validos los estados de cuenta que llegan por correo postal y/o un correo digital, completos con todas las hojas incluyendo la última hoja con cadenas digitales y códigos QR. **Se podrá autorizar como máximo que en 1 estado de cuenta de los 6 presentados NO cumpla con el Ingreso mínimo del producto o NO se refleje depósito alguno, mientras éstos no sean consecutivos y el promedio de los 6 meses cumpla con el Ingreso mínimo requerido. | N106: 1) La fecha de emisión del Estado de Cuenta más reciente NO debe ser mayor a 45 días a la fecha de ingreso a dictaminación. 2) Riesgo le requerirá al cliente que compruebe un arraigo laboral de 6 meses. 3) Se podrán comprobar ingresos con cuentas de cheques: a) Se suman los depósitos de las cuentas presentadas sin considerar transferencias entre las mismas, depósitos de préstamos, depósitos que no provienen del giro del negocio, etc. b) Cada uno de los meses el Total de Depósitos deberá cubrir el ingreso mínimo. c) Son validos los estados de cuenta que llegan por correo postal y/o un correo digital, completos con todas las hojas incluyendo la última hoja con cadenas digitales y códigos QR. **Se podrá autorizar como máximo que en 1 estado de cuenta de los 6 presentados NO cumpla con el Ingreso mínimo del producto o NO se refleje depósito alguno, mientras éstos no sean consecutivos y el promedio de los 6 meses cumpla con el Ingreso mínimo requerido. | O106: 1) La fecha de emisión del Estado de Cuenta NO debe ser mayor a 45 días a la fecha de ingreso a dictaminación. 2) En caso de comprobar con comptómetro no deberá tener una fecha de emisión mayor a 45 días a la fecha de ingreso a dictaminación 3) Riesgo le requerirá al cliente que compruebe un arraigo laboral de 6 meses. 4) Se podrán comprobar ingresos con cuentas de cheques Banamex: a) Se suman los depósitos de las cuentas presentadas sin considerar transferencias entre las mismas, depósitos de préstamos, depósitos que no provienen del giro del negocio, etc. b) Cada uno de los meses el Total de Depósitos deberá cubrir el ingreso mínimo. c) Son validos los estados de cuenta que llegan por correo postal y/o un correo digital, completos con todas las hojas incluyendo la última hoja con cadenas digitales y códigos QR. **Se podrá autorizar como máximo que en 1 estado de cuenta de los 6 presentados NO cumpla con el Ingreso mínimo del producto o NO se refleje depósito alguno, mientras éstos no sean consecutivos y el promedio de los 6 meses cumpla con el Ingreso mínimo requerido. | P106: 1) La fecha de emisión del Estado de Cuenta más reciente NO debe ser mayor a 45 días a la fecha de ingreso a dictaminación. 2) En caso de comprobar con comptómetro no deberá tener una fecha de emisión mayor a 45 días a la fecha de ingreso a dictaminación 3) Riesgo le requerirá al cliente que compruebe un arraigo laboral de 6 meses. 4) Se podrán comprobar ingresos con cuentas de cheques: a) Se suman los depósitos de las cuentas presentadas sin considerar transferencias entre las mismas, depósitos de préstamos, depósitos que no provienen del giro del negocio, etc. b) Cada uno de los meses el Total de Depósitos deberá cubrir el ingreso mínimo. c) Son validos los estados de cuenta que llegan por correo postal y/o un correo digital, completos con todas las hojas incluyendo la última hoja con cadenas digitales y códigos QR. **Se podrá autorizar como máximo que en 1 estado de cuenta de los 6 presentados NO cumpla con el Ingreso mínimo del producto o NO se refleje depósito alguno, mientras éstos no sean consecutivos y el promedio de los 6 meses cumpla con el Ingreso mínimo requerido. | Q106: 1) La fecha de emisión del Estado de Cuenta más reciente NO debe ser mayor a 45 días a la fecha de ingreso a dictaminación. 2) Riesgo le requerirá al cliente que compruebe un arraigo laboral de 6 meses. 3) Se podrán comprobar ingresos con cuentas de cheques: a) Se suman los depósitos de las cuentas presentadas sin considerar transferencias entre las mismas, depósitos de préstamos, depósitos que no provienen del giro del negocio, etc. b) Cada uno de los meses el Total de Depósitos deberá cubrir el ingreso mínimo. c) Son validos los estados de cuenta que llegan por correo postal y/o un correo digital, completos con todas las hojas incluyendo la última hoja con cadenas digitales y códigos QR. **Se podrá autorizar como máximo que en 1 estado de cuenta de los 6 presentados NO cumpla con el Ingreso mínimo del producto o NO se refleje depósito alguno, mientras éstos no sean consecutivos y el promedio de los 6 meses cumpla con el Ingreso mínimo requerido. | R106: **Este tipo de Ingreso NO podrá aplicarse para compra entre cónyuges, familiares directos, entre socios o a la empresa de la cual es accionista** 1) Riesgo le requerirá entregar el cuestionario EDD de las Personas Morales en los casos que asi se determine. | S106: **Para inversiones Banamex, se puede tomar como valido las pantallas o consultas de los sistemas internos del banco donde se detalle el saldo de los últimos 4 meses y la titularidad del cliente** 1) Son válidas las cuentas de Accival. 2) Se podrán aceptar como máximo 2 cuentas de inversión 3) El monto mínimo se podrá obtener sumando las 2 cuentas 4) Son válidas las cuentas de inversión en moneda extranjera. | T106: **Para inversiones Banamex, se puede tomar como valido las pantallas o consultas de los sistemas internos del banco donde se detalle el saldo de los últimos 4 meses y la titularidad del cliente** 1) Son válidas las cuentas de Accival. 2) Se podrán aceptar como máximo 2 cuentas de inversión 3) El monto mínimo se podrá obtener sumando las 2 cuentas 4) Son válidas las cuentas de inversión en moneda extranjera. | AW106: - | AX106: - | AY106: - | AZ106: - | BA106: - | BB106: - | BC106: - | BD106: - | BE106: =-AX107-AX64-IF(BE28<3,AX63,0) ->  | BH106: - | BI106: - | BJ106: - | BK106: - | BL106: - | BM106: - | BN106: - | BO106: - | BP106: =-BI107-AX64-IF(BE28<3,AX63,0) ->  | BS106: - | BT106: - | BU106: - | BV106: - | BW106: - | BX106: - | BY106: - | BZ106: - | CA106: =-BT107-AX64-IF(BE28<3,AX63,0) ->  | CG106: CAPACIDAD PAGO | CH106: =+IF(CK34+DESCUENTIND+DESCUENTCONY>0,CH105,CH104) -> 0.45 | CI106: =+IF(CK34>0,CI105,CI104) ->  | CK106: =IF(INGRESOMENSUAL="",CU75,IF(INGRESOMENSUAL>=35000,HLOOKUP(CQ5,CU70:CX75,5,0),HLOOKUP(CQ5,CU70:CX75,3,0))) -> 0.45 | CL106: =+IF(CK34>0,CL105,CL104) ->  | CN106: 3 | CO106: 10 Años | CP106: 10 | CQ106: 120 | CR106: =ROUNDUP(PMT($CH$70/12,CQ106,-1000),2) ->  | CS106: =IF(OR($CS$5=1,$CS$5=2),$CH$85*(IF(CS5<3,IF(CK25>64,EXTRAPRIMAEDAD,IF(CU5=1,FACTORVIDA,IF(CU5=2,EXTRAPRIMAMEDICA,IF(CU5=3,EXTRAPRIMAOCUPACIONAL,0)))))),0)+IF(OR($CS$5=1,$CS$5=3),MAX($CK$26*0.8*FACTORDAÑOS,$CH$85*FACTORDAÑOS),0) ->  | CT106: =$CH$85*CR106/1000+CS106 ->  | CU106: =PMT($CH$70/12,CQ106,-$CH$85)+CS106 ->  | CV106: =ROUNDUP(PMT(IF(CJ70="",CH70,CJ70)/12,CQ106,-1000),2) ->  | CW106: =$CH$85*CV106/1000+CS106 ->  | CX106: =$CH$84*ROUNDUP(PMT($CK$48/12,CP106*12,-1000),2)/1000 ->  | CY106: =IF(OR($CS$5=1,$CS$5=2),$CH$84*(IF(CS5<3,IF(CK25>64,EXTRAPRIMAEDAD,IF(CU5=1,FACTORVIDA,IF(CU5=2,EXTRAPRIMAMEDICA,IF(CU5=3,EXTRAPRIMAOCUPACIONAL,0)))))),0)+IF(OR($CS$5=1,$CS$5=3),MAX($CK$26*0.8*FACTORDAÑOS,$CH$84*FACTORDAÑOS),0) ->  | CZ106: =IF((((CX106+CY106)+DESCUENTIND+DESCUENTCONY)/$CH$76)<$CI$90,$CI$90,((CX106+CY106)+DESCUENTIND+DESCUENTCONY)/$CH$76) ->  | DA106: =ROUNDUP(PMT($CJ$68/12,CQ106,-1000),2) ->  | DB106: =$CJ$84*ROUNDUP(PMT($CJ$48/12,CP106*12,-1000),2)/1000 ->  | DC106: =IF(OR($CS$5=1,$CS$5=2),$CJ$84*(IF(CS5<3,IF(CK25>64,EXTRAPRIMAEDAD,IF(CU5=1,FACTORVIDA,IF(CU5=2,EXTRAPRIMAMEDICA,IF(CU5=3,EXTRAPRIMAOCUPACIONAL,0)))))),0)+IF(OR($CS$5=1,$CS$5=3),MAX($CK$26*0.8*FACTORDAÑOS,$CJ$84*FACTORDAÑOS),0) ->  | DD106: =IF(CK34="",IF((((DB106+DC106)+DESCUENTIND+DESCUENTCONY)/$CI$76)<$CI$90,$CI$90,((DB106+DC106)+DESCUENTIND+DESCUENTCONY+CK34)/$CI$76),IF((((DB106+DC106)+DESCUENTIND+DESCUENTCONY+CK34)/$CI$76)<$CI$90,$CI$90,((DB106+DC106)+DESCUENTIND+DESCUENTCONY+CK34)/$CI$76)) ->  | EU106: - | EV106: - | EW106: - | EX106: - | EY106: - | EZ106: - | FA106: - | FB106: - | FC106: =-EV107+EW69+IF(FC28<3,EW67,0) ->  | FE106: - | FF106: - | FG106: - | FH106: - | FI106: - | FJ106: - | FK106: - | FL106: - | FM106: =-FF107+EX67+EX69 ->  | FN106: =-FF107+EX67+EX69 ->  | FQ106: - | FR106: - | FS106: - | FT106: - | FU106: - | FV106: - | FW106: - | FX106: - | FY106: =-FR107+EW69+IF(FC28<3,EW67,0) ->  | GA106: - | GB106: - | GC106: - | GD106: - | GE106: - | GF106: - | GG106: - | GH106: - | GI106: =-GB107+EX67+EX69 ->  | GJ106: =-GB107+EX67+EX69 ->  | GL106: - | GM106: - | GN106: - | GO106: - | GP106: - | GQ106: - | GR106: - | GS106: - | GT106: =-GM107+EW69+IF(FC28<3,EW67,0) ->  | GV106: - | GW106: - | GX106: - | GY106: - | GZ106: - | HA106: - | HB106: - | HC106: - | HD106: =-GW107+EX67+EX69 ->  | HE106: =-GW107+EX67+EX69 -> 
AW107: 1 | AX107: =AX99 ->  | AY107: =BB107-AZ107 ->  | AZ107: =AX107*AX98/12 ->  | BA107: =ROUNDUP(PMT(AX98/12,AX97,-1000),2) ->  | BB107: =AX107*BA107/1000 ->  | BC107: =IF(AX41>=65,BC90*EXTRAPRIMAEDAD,IF(OR(AZ28=1,AZ28=2),IF(BB28=1,BC90*FACTORVIDA,IF(BB28=2,BC90*EXTRAPRIMAMEDICA,BC90*EXTRAPRIMAOCUPACIONAL)),0))+IF(OR(AZ28=1,AZ28=3),MAX(BC90*AX17,AX42*0.8*AX17),0) ->  | BD107: =IF(BC28=2,IF((AX46-VLOOKUP(AX96,AW90:BD92,8,FALSE))<=0,0,AX46-SUM(BB107+BC107)),0) -> 0 | BE107: =SUM(BB107,BC107,IF(BC28=2,BD107,0)) ->  | BH107: 1 | BI107: =AY99 ->  | BJ107: =BM107-BK107 ->  | BK107: =BI107*AX98/12 ->  | BL107: =ROUNDUP(PMT(AY98/12,AY97,-1000),2) ->  | BM107: =BI107*BL107/1000 ->  | BN107: =IF(AX41>=65,BC90*EXTRAPRIMAEDAD,IF(OR(AZ28=1,AZ28=2),IF(BB28=1,BC90*FACTORVIDA,IF(BB28=2,BC90*EXTRAPRIMAMEDICA,BC90*EXTRAPRIMAOCUPACIONAL)),0))+IF(OR(AZ28=1,AZ28=3),MAX(BC90*AX17,AX42*0.8*AX17),0) ->  | BO107: =IF(BC28=2,IF((AX46-VLOOKUP(AY96,AW90:BD92,8,FALSE))<=0,0,AX46-SUM(BM107+BN107)),0) -> 0 | BP107: =SUM(BM107,BN107,IF(BC28=2,BO107,0)) ->  | BS107: 1 | BT107: =AZ99 ->  | BU107: =BX107-BV107 ->  | BV107: =BT107*AX98/12 ->  | BW107: =ROUNDUP(PMT(AZ98/12,AZ97,-1000),2) ->  | BX107: =BT107*BW107/1000 ->  | BY107: =IF(AX41>=65,BC90*EXTRAPRIMAEDAD,IF(OR(AZ28=1,AZ28=2),IF(BB28=1,BC90*FACTORVIDA,IF(BB28=2,BC90*EXTRAPRIMAMEDICA,BC90*EXTRAPRIMAOCUPACIONAL)),0))+IF(OR(AZ28=1,AZ28=3),MAX(BC90*AX17,AX42*0.8*AX17),0) ->  | BZ107: =IF(BC28=2,IF((AX46-VLOOKUP(AX96,AW90:BD92,8,FALSE))<=0,0,AX46-SUM(BX107+BY107)),0) -> 0 | CA107: =SUM(BX107,BY107,IF(BC28=2,BZ107,0)) ->  | CF107: =CF113/VVIVIENDA ->  | CG107: PAGO MILLAR | CH107: =VLOOKUP(CV5,CN127:CR129,5,0)+IF(OR(CS5=1,CS5=2),(IF(CS5<3,IF(CK25>64,EXTRAPRIMAEDAD,IF(CU5=1,FACTORVIDA,IF(CU5=2,EXTRAPRIMAMEDICA,IF(CU5=3,EXTRAPRIMAOCUPACIONAL,0))))))*1000,0) ->  | CI107: =VLOOKUP(CV5,CN127:CR129,5,0) ->  | CJ107: =VLOOKUP(CV5,CN127:CV129,9,0) ->  | CK107: =VLOOKUP(CW5,CN132:CR132,5,0)+IF(OR(CS5=1,CS5=2),FACTORVIDA*1000,0) ->  | CL107: =VLOOKUP(CW5,CN132:CR132,5,0) ->  | CM107: =VLOOKUP(CW5,CN132:CV132,9,0) ->  | CN107: =VLOOKUP(CW5,CN132:DA132,14,0) ->  | EU107: 1 | EV107: =EV99 ->  | EW107: =EZ107-EX107 ->  | EX107: =EV107*$EV$98/12 ->  | EY107: =ROUNDUP(PMT($EV$98/12,$EV$97,-1000),2) ->  | EZ107: =EV107*EY107/1000 ->  | FA107: =IF(EV41>=65,FA90*EXTRAPRIMAEDAD,IF(OR(EX28=1,EX28=2),IF(EZ28=1,FA90*FACTORVIDA,IF(EZ28=2,FA90*EXTRAPRIMAMEDICA,FA90*EXTRAPRIMAOCUPACIONAL)),0))+IF(OR(EX28=1,EX28=3),MAX(FA90*EV17,EV42*0.8*EV17),0) ->  | FB107: =IF(FA28=2,IF((EV46-VLOOKUP(EV96,EU90:FB92,8,FALSE))<=0,0,EV46-SUM(EZ107+FA107)),0) -> 0 | FC107: =SUM(EZ107,FA107,IF(FA28=2,FB107,0)) ->  | FE107: 1 | FF107: =EY99 ->  | FG107: =FJ107-FH107 ->  | FH107: =FF107*$EY$98/12 ->  | FI107: =ROUNDUP(PMT($EY$98/12,$EY$97,-1000),2) ->  | FJ107: =FF107*FI107/1000 ->  | FK107: =IF(EV41>=65,EY99*EXTRAPRIMAEDAD,IF(OR(EX28=1,EX28=2),IF(EZ28=1,EY99*FACTORVIDA,IF(EZ28=2,EY99*EXTRAPRIMAMEDICA,EY99*EXTRAPRIMAOCUPACIONAL)),0)) ->  | FL107: =FF107*(((1+($EY$98/12))/(1+(4%/12)))-1)*16% ->  | FM107: =SUM(FJ107,FK107,FL107) ->  | FN107: =SUM(FJ107,FK107) ->  | FQ107: 1 | FR107: =EW99 ->  | FS107: =FV107-FT107 ->  | FT107: =FR107*EV98/12 ->  | FU107: =ROUNDUP(PMT(EW98/12,EW97,-1000),2) ->  | FV107: =FR107*FU107/1000 ->  | FW107: =IF(EV41>=65,FA90*EXTRAPRIMAEDAD,IF(OR(EX28=1,EX28=2),IF(EZ28=1,FA90*FACTORVIDA,IF(EZ28=2,FA90*EXTRAPRIMAMEDICA,FA90*EXTRAPRIMAOCUPACIONAL)),0))+IF(OR(EX28=1,EX28=3),MAX(FA90*EV17,EV42*0.8*EV17),0) ->  | FX107: =IF(FA28=2,IF((EV46-VLOOKUP(EW96,EU90:FB92,8,FALSE))<=0,0,EV46-SUM(FV107+FW107)),0) -> 0 | FY107: =SUM(FV107,FW107,IF(FA28=2,FX107,0)) ->  | GA107: 1 | GB107: =EZ99 ->  | GC107: =GF107-GD107 ->  | GD107: =GB107*$EY$98/12 ->  | GE107: =ROUNDUP(PMT($EZ$98/12,$EZ$97,-1000),2) ->  | GF107: =GB107*GE107/1000 ->  | GG107: =IF(EV41>=65,EZ99*EXTRAPRIMAEDAD,IF(OR(EX28=1,EX28=2),IF(EZ28=1,EZ99*FACTORVIDA,IF(EZ28=2,EZ99*EXTRAPRIMAMEDICA,EZ99*EXTRAPRIMAOCUPACIONAL)),0)) ->  | GH107: =GB107*(((1+($EZ$98/12))/(1+(4%/12)))-1)*16% ->  | GI107: =SUM(GF107,GG107,GH107) ->  | GJ107: =SUM(GF107,GG107) ->  | GL107: 1 | GM107: =EX99 ->  | GN107: =GQ107-GO107 ->  | GO107: =GM107*EV98/12 ->  | GP107: =ROUNDUP(PMT(EX98/12,EX97,-1000),2) ->  | GQ107: =GM107*GP107/1000 ->  | GR107: =IF(EV41>=65,FA90*EXTRAPRIMAEDAD,IF(OR(EX28=1,EX28=2),IF(EZ28=1,FA90*FACTORVIDA,IF(EZ28=2,FA90*EXTRAPRIMAMEDICA,FA90*EXTRAPRIMAOCUPACIONAL)),0))+IF(OR(EX28=1,EX28=3),MAX(FA90*EV17,EV42*0.8*EV17),0) ->  | GS107: =IF(FA28=2,IF((EV46-VLOOKUP(EV96,EU90:FB92,8,FALSE))<=0,0,EV46-SUM(GQ107+GR107)),0) -> 0 | GT107: =SUM(GQ107,GR107,IF(FA28=2,GS107,0)) ->  | GV107: 1 | GW107: =FA99 ->  | GX107: =HA107-GY107 ->  | GY107: =GW107*$EZ$98/12 ->  | GZ107: =ROUNDUP(PMT($FA$98/12,$FA$97,-1000),2) ->  | HA107: =GW107*GZ107/1000 ->  | HB107: =IF(EV41>=65,FA99*EXTRAPRIMAEDAD,IF(OR(EX28=1,EX28=2),IF(EZ28=1,FA99*FACTORVIDA,IF(EZ28=2,FA99*EXTRAPRIMAMEDICA,FA99*EXTRAPRIMAOCUPACIONAL)),0)) ->  | HC107: =GW107*(((1+($FA$98/12))/(1+(4%/12)))-1)*16% ->  | HD107: =SUM(HA107,HB107,HC107) ->  | HE107: =SUM(HA107,HB107) -> 
AW108: =AW107+1 -> 2 | AX108: =IF(AX107-SUM(AY107,BD107)<=0,0,AX107-SUM(AY107,BD107)) ->  | AY108: =IF(AX108=0,0,BB108-AZ108) ->  | AZ108: =IF(AX108=0,0,AX108*AX98/12) ->  | BA108: =IF(AX108=0,0,ROUNDUP(PMT(AX98/12,AX97-AW107,-1000),2)) ->  | BB108: =IF(AX108=0,0,IF(AX108+AZ108<IF(SUM(BD107)>=SUM(BB107:BC107),AX108*BA108/1000,BB107),AX108+AZ108,IF(SUM(BD107)>=SUM(BB107:BC107),AX108*BA108/1000,BB107))) ->  | BC108: =IF(AX108=0,"",IF(Calculos!AX41>=65,IF(Calculos!BA28=1,AX108,AX107)*EXTRAPRIMAEDAD,IF(OR(Calculos!AZ28=1,Calculos!AZ28=2),IF(Calculos!BB28=1,IF(Calculos!BA28=1,AX108,AX107)*FACTORVIDA,IF(Calculos!BB28=2,IF(Calculos!BA28=1,AX108,AX107)*EXTRAPRIMAMEDICA,IF(Calculos!BA28=1,AX108,AX107)*EXTRAPRIMAOCUPACIONAL)),0)))+IF(BB60="NO",IF(OR(AZ28=1,AZ28=3),MAX(AX42*0.8*AX17,AX60*AX17),0),IF(OR(AZ28=1,AZ28=3),MAX(AX42*0.8*AX17,AX60*AX17),0)) ->  | BD108: =IF(AX108=0,0,IF(BC28=2,IF((AX46-VLOOKUP(AX96,AW90:BD92,8,FALSE))<=0,0,IF(AX46-SUM(BB108,BC108)>AX108,0,AX46-SUM(BB108,BC108))),0)) ->  | BE108: =IF(AX108=0,0,SUM(BB108,BC108,IF(BC28=2,BD108,0))) ->  | BH108: =BH107+1 -> 2 | BI108: =IF(BI107-SUM(BJ107,BO107)<=0,0,BI107-SUM(BJ107,BO107)) ->  | BJ108: =IF(BI108=0,0,BM108-BK108) ->  | BK108: =IF(BI108=0,0,BI108*AY98/12) ->  | BL108: =IF(BI108=0,0,ROUNDUP(PMT(AY98/12,AY97-BH107,-1000),2)) ->  | BM108: =IF(BI108=0,0,IF(BI108+BK108<IF(SUM(BO107)>=SUM(BM107:BN107),BI108*BL108/1000,BM107),BI108+BK108,IF(SUM(BO107)>=SUM(BM107:BN107),BI108*BL108/1000,BM107))) ->  | BN108: =IF(BI108=0,"",IF(Calculos!AX41>=65,IF(Calculos!BA28=1,BI108,BI107)*EXTRAPRIMAEDAD,IF(OR(Calculos!AZ28=1,Calculos!AZ28=2),IF(Calculos!BB28=1,IF(Calculos!BA28=1,BI108,BI107)*FACTORVIDA,IF(Calculos!BB28=2,IF(Calculos!BA28=1,BI108,BI107)*EXTRAPRIMAMEDICA,IF(Calculos!BA28=1,BI108,BI107)*EXTRAPRIMAOCUPACIONAL)),0)))+IF(BB60="NO",IF(OR(AZ28=1,AZ28=3),MAX(AX42*0.8*AX17,AX60*AX17),0),IF(OR(AZ28=1,AZ28=3),MAX(AX42*0.8*AX17,AX60*AX17),0)) ->  | BO108: =IF(BI108=0,0,IF(BC28=2,IF((AX46-VLOOKUP(AX96,AW90:BD92,8,FALSE))<=0,0,IF(AX46-SUM(BM108,BN108)>BI108,0,AX46-SUM(BM108,BN108))),0)) ->  | BP108: =IF(BI108=0,0,SUM(BM108,BN108,IF(BC28=2,BO108,0))) ->  | BS108: =BS107+1 -> 2 | BT108: =IF(BT107-SUM(BU107,BZ107)<=0,0,BT107-SUM(BU107,BZ107)) ->  | BU108: =IF(BT108=0,0,BX108-BV108) ->  | BV108: =IF(BT108=0,0,BT108*AZ98/12) ->  | BW108: =ROUNDUP(PMT(AZ98/12,AZ97,-1000),2) ->  | BX108: =IF(BT108=0,0,IF(BT108+BV108<IF(SUM(BZ107)>=SUM(BX107:BY107),BT108*BW108/1000,BX107),BT108+BV108,IF(SUM(BZ107)>=SUM(BX107:BY107),BT108*BW108/1000,BX107))) ->  | BY108: =IF(BT108=0,"",IF(Calculos!AX41>=65,IF(Calculos!BA28=1,BT108,BT107)*EXTRAPRIMAEDAD,IF(OR(Calculos!AZ28=1,Calculos!AZ28=2),IF(Calculos!BB28=1,IF(Calculos!BA28=1,BT108,BT107)*FACTORVIDA,IF(Calculos!BB28=2,IF(Calculos!BA28=1,BT108,BT107)*EXTRAPRIMAMEDICA,IF(Calculos!BA28=1,BT108,BT107)*EXTRAPRIMAOCUPACIONAL)),0)))+IF(BB60="NO",IF(OR(AZ28=1,AZ28=3),MAX(AX42*0.8*AX17,AX60*AX17),0),IF(OR(AZ28=1,AZ28=3),MAX(AX42*0.8*AX17,AX60*AX17),0)) ->  | BZ108: =IF(BT108=0,0,IF(BC28=2,IF((EV46-VLOOKUP(AZ96,AW90:BD92,8,FALSE))<=0,0,IF(EV46-SUM(BX108,BY108)>BT108,0,EV46-SUM(BX108,BY108))),0)) ->  | CA108: =IF(BT108=0,0,SUM(BX108,BY108,IF(BC28=2,BZ108,0))) ->  | CG108: APOYO INFONAVIT | CH108: =+IF(CI108>IF(CZ5=4,IF(INGRESOMENSUAL>=DG82,DG84,INGRESOMENSUAL*0.1),0),IF(CZ5=4,IF(INGRESOMENSUAL>=DG82,DG84,INGRESOMENSUAL*0.1),0),CI108) ->  | CI108: =IF(INGRESOMENSUAL="",B11,INGRESOMENSUAL)*0.1 ->  | CK108: =+IF(CL108>IF(CZ5=4,IF(INGRESOMENSUAL>=DG82,DG84,INGRESOMENSUAL*0.1),0),IF(CZ5=4,IF(INGRESOMENSUAL>=DG82,DG84,INGRESOMENSUAL*0.1),0),CL108) ->  | CL108: =IF(INGRESOMENSUAL="",B11,INGRESOMENSUAL)*0.1 ->  | CN108: A TU MEDIDA | CX108: VS SOLICITADO | DB108: VS SOLICITADO | EU108: =EU107+1 -> 2 | EV108: =IF(EV107-SUM(EW107,FB107)<=0,0,EV107-SUM(EW107,FB107)) ->  | EW108: =IF(EV108=0,0,EZ108-EX108) ->  | EX108: =IF(EV108=0,0,EV108*$EV$98/12) ->  | EY108: =IF(EV108=0,0,ROUNDUP(PMT($EV$98/12,$EV$97-EU107,-1000),2)) ->  | EZ108: =IF(EV108=0,0,IF(EV108+EX108<IF(SUM(FB107)>=SUM(EZ107:FA107),EV108*EY108/1000,EZ107),EV108+EX108,IF(SUM(FB107)>=SUM(EZ107:FA107),EV108*EY108/1000,EZ107))) ->  | FA108: =IF(EV108=0,"",IF(Calculos!EV41>=65,IF(Calculos!EY28=1,EV108,EV107)*EXTRAPRIMAEDAD,IF(OR(Calculos!EX28=1,Calculos!EX28=2),IF(Calculos!EZ28=1,IF(Calculos!EY28=1,EV108,EV107)*FACTORVIDA,IF(Calculos!EZ28=2,IF(Calculos!EY28=1,EV108,EV107)*EXTRAPRIMAMEDICA,IF(Calculos!EY28=1,EV108,EV107)*EXTRAPRIMAOCUPACIONAL)),0)))+IF(EZ60="NO",IF(OR(EX28=1,EX28=3),MAX(EV42*0.8*EV17,EV60*EV17),0),IF(OR(EX28=1,EX28=3),MAX(EV42*0.8*EV17,EV60*EV17),0)) ->  | FB108: =IF(EV108=0,0,IF(FA28=2,IF((EV46-VLOOKUP(EV96,EU90:FB92,8,FALSE))<=0,0,IF(EV46-SUM(EZ108,FA108)>EV108,0,EV46-SUM(EZ108,FA108))),0)) ->  | FC108: =IF(EV108=0,0,SUM(EZ108,FA108,IF(FA28=2,FB108,0))) ->  | FE108: =FE107+1 -> 2 | FF108: =IF(FF107-SUM(FG107,FL107)<=0,0,FF107-FG107) ->  | FG108: =IF(FF108=0,0,FJ108-FH108) ->  | FH108: =IF(FF108=0,0,FF108*$EY$98/12) ->  | FI108: =IF(FF108=0,0,ROUNDUP(PMT($EY$98/12,$EY$97-FE107,-1000),2)) ->  | FJ108: =IF(FF108=0,0,IF(FF108+FH108<IF(SUM(FL107)>=SUM(FJ107:FK107),FF108*FI108/1000,FJ107),FF108+FH108,IF(SUM(FL107)>=SUM(FJ107:FK107),FF108*FI108/1000,FJ107))) ->  | FK108: =IF(FF108=0,"",IF($EV$41>=65,IF($EY$28=1,FF108,$FF$107)*EXTRAPRIMAEDAD,IF(OR($EX$28=1,$EX$28=2),IF($EZ$28=1,IF($EY$28=1,FF108,$FF$107)*FACTORVIDA,IF($EZ$28=2,IF($EY$28=1,FF108,$FF$107)*EXTRAPRIMAMEDICA,IF($EY$28=1,FF108,$FF$107)*EXTRAPRIMAOCUPACIONAL)),0))) ->  | FL108: =FF108*(((1+($EY$98/12))/(1+(4%/12)))-1)*16% ->  | FM108: =SUM(FJ108,FK108,FL108) ->  | FN108: =SUM(FJ108,FK108) ->  | FQ108: =FQ107+1 -> 2 | FR108: =IF(FR107-SUM(FS107,FX107)<=0,0,FR107-SUM(FS107,FX107)) ->  | FS108: =IF(FR108=0,0,FV108-FT108) ->  | FT108: =IF(FR108=0,0,FR108*EW98/12) ->  | FU108: =IF(FR108=0,0,ROUNDUP(PMT(EW98/12,EW97-FQ107,-1000),2)) ->  | FV108: =IF(FR108=0,0,IF(FR108+FT108<IF(SUM(FX107)>=SUM(FV107:FW107),FR108*FU108/1000,FV107),FR108+FT108,IF(SUM(FX107)>=SUM(FV107:FW107),FR108*FU108/1000,FV107))) ->  | FW108: =IF(FR108=0,"",IF(Calculos!EV41>=65,IF(Calculos!EY28=1,FR108,FR107)*EXTRAPRIMAEDAD,IF(OR(Calculos!EX28=1,Calculos!EX28=2),IF(Calculos!EZ28=1,IF(Calculos!EY28=1,FR108,FR107)*FACTORVIDA,IF(Calculos!EZ28=2,IF(Calculos!EY28=1,FR108,FR107)*EXTRAPRIMAMEDICA,IF(Calculos!EY28=1,FR108,FR107)*EXTRAPRIMAOCUPACIONAL)),0)))+IF(EZ60="NO",IF(OR(EX28=1,EX28=3),MAX(EV42*0.8*EV17,EV60*EV17),0),IF(OR(EX28=1,EX28=3),MAX(EV42*0.8*EV17,EV60*EV17),0)) ->  | FX108: =IF(FR108=0,0,IF(FA28=2,IF((EV46-VLOOKUP(EV96,EU90:FB92,8,FALSE))<=0,0,IF(EV46-SUM(FV108,FW108)>FR108,0,EV46-SUM(FV108,FW108))),0)) ->  | FY108: =IF(FR108=0,0,SUM(FV108,FW108,IF(FA28=2,FX108,0))) ->  | GA108: =GA107+1 -> 2 | GB108: =IF(GB107-SUM(GC107,GH107)<=0,0,GB107-GC107) ->  | GC108: =IF(GB108=0,0,GF108-GD108) ->  | GD108: =IF(GB108=0,0,GB108*$EY$98/12) ->  | GE108: =IF(GB108=0,0,ROUNDUP(PMT($EZ$98/12,$EZ$97-GA107,-1000),2)) ->  | GF108: =IF(GB108=0,0,IF(GB108+GD108<IF(SUM(GH107)>=SUM(GF107:GG107),GB108*GE108/1000,GF107),GB108+GD108,IF(SUM(GH107)>=SUM(GF107:GG107),GB108*GE108/1000,GF107))) ->  | GG108: =IF(GB108=0,"",IF($EV$41>=65,IF($EY$28=1,GB108,$GB$107)*EXTRAPRIMAEDAD,IF(OR($EX$28=1,$EX$28=2),IF($EZ$28=1,IF($EY$28=1,GB108,$GB$107)*FACTORVIDA,IF($EZ$28=2,IF($EY$28=1,GB108,$GB$107)*EXTRAPRIMAMEDICA,IF($EY$28=1,GB108,$GB$107)*EXTRAPRIMAOCUPACIONAL)),0))) ->  | GH108: =GB108*(((1+($EZ$98/12))/(1+(4%/12)))-1)*16% ->  | GI108: =SUM(GF108,GG108,GH108) ->  | GJ108: =SUM(GF108,GG108) ->  | GL108: =GL107+1 -> 2 | GM108: =IF(GM107-SUM(GN107,GS107)<=0,0,GM107-SUM(GN107,GS107)) ->  | GN108: =IF(GM108=0,0,GQ108-GO108) ->  | GO108: =IF(GM108=0,0,GM108*EX98/12) ->  | GP108: =ROUNDUP(PMT(EX98/12,EX97,-1000),2) ->  | GQ108: =IF(GM108=0,0,IF(GM108+GO108<IF(SUM(GS107)>=SUM(GQ107:GR107),GM108*GP108/1000,GQ107),GM108+GO108,IF(SUM(GS107)>=SUM(GQ107:GR107),GM108*GP108/1000,GQ107))) ->  | GR108: =IF(GM108=0,"",IF(Calculos!EV41>=65,IF(Calculos!EY28=1,GM108,GM107)*EXTRAPRIMAEDAD,IF(OR(Calculos!EX28=1,Calculos!EX28=2),IF(Calculos!EZ28=1,IF(Calculos!EY28=1,GM108,GM107)*FACTORVIDA,IF(Calculos!EZ28=2,IF(Calculos!EY28=1,GM108,GM107)*EXTRAPRIMAMEDICA,IF(Calculos!EY28=1,GM108,GM107)*EXTRAPRIMAOCUPACIONAL)),0)))+IF(EZ60="NO",IF(OR(EX28=1,EX28=3),MAX(EV42*0.8*EV17,EV60*EV17),0),IF(OR(EX28=1,EX28=3),MAX(EV42*0.8*EV17,EV60*EV17),0)) ->  | GS108: =IF(GM108=0,0,IF(FA28=2,IF((IT46-VLOOKUP(EX96,EU90:FB92,8,FALSE))<=0,0,IF(IT46-SUM(GQ108,GR108)>GM108,0,IT46-SUM(GQ108,GR108))),0)) ->  | GT108: =IF(GM108=0,0,SUM(GQ108,GR108,IF(FA28=2,GS108,0))) ->  | GV108: =GV107+1 -> 2 | GW108: =IF(GW107-SUM(GX107,HC107)<=0,0,GW107-GX107) ->  | GX108: =IF(GW108=0,0,HA108-GY108) ->  | GY108: =IF(GW108=0,0,GW108*$EY$98/12) ->  | GZ108: =ROUNDUP(PMT($FA$98/12,$FA$97,-1000),2) ->  | HA108: =IF(GW108=0,0,IF(GW108+GY108<IF(SUM(HC107)>=SUM(HA107:HB107),GW108*GZ108/1000,HA107),GW108+GY108,IF(SUM(HC107)>=SUM(HA107:HB107),GW108*GZ108/1000,HA107))) ->  | HB108: =IF(GW108=0,"",IF($EV$41>=65,IF($EY$28=1,GW108,$GW$107)*EXTRAPRIMAEDAD,IF(OR($EX$28=1,$EX$28=2),IF($EZ$28=1,IF($EY$28=1,GW108,$GW$107)*FACTORVIDA,IF($EZ$28=2,IF($EY$28=1,GW108,$GW$107)*EXTRAPRIMAMEDICA,IF($EY$28=1,GW108,$GW$107)*EXTRAPRIMAOCUPACIONAL)),0))) ->  | HC108: =GW108*(((1+($FA$98/12))/(1+(4%/12)))-1)*16% ->  | HD108: =SUM(HA108,HB108,HC108) ->  | HE108: =SUM(HA108,HB108) -> 
AW109: =AW108+1 -> 3 | AX109: =IF(AX108-SUM(AY108,BD108)<=0,0,AX108-SUM(AY108,BD108)) ->  | AY109: =IF(AX109=0,0,BB109-AZ109) ->  | AZ109: =IF(AX109=0,0,AX109*AX98/12) ->  | BA109: =IF(AX109=0,0,ROUNDUP(PMT(AX98/12,AX97-AW108,-1000),2)) ->  | BB109: =IF(AX109=0,0,IF(AX109+AZ109<IF(SUM(BD108)>=SUM(BB108:BC108),AX109*BA109/1000,BB108),AX109+AZ109,IF(SUM(BD108)>=SUM(BB108:BC108),AX109*BA109/1000,BB108))) ->  | BC109: =IF(AX109=0,"",IF(Calculos!AX41>=65,IF(Calculos!BA28=1,AX109,AX107)*EXTRAPRIMAEDAD,IF(OR(Calculos!AZ28=1,Calculos!AZ28=2),IF(Calculos!BB28=1,IF(Calculos!BA28=1,AX109,AX107)*FACTORVIDA,IF(Calculos!BB28=2,IF(Calculos!BA28=1,AX109,AX107)*EXTRAPRIMAMEDICA,IF(Calculos!BA28=1,AX109,AX107)*EXTRAPRIMAOCUPACIONAL)),0)))+IF(BB60="NO",IF(OR(AZ28=1,AZ28=3),MAX(AX42*0.8*AX17,AX60*AX17),0),IF(OR(AZ28=1,AZ28=3),MAX(AX42*0.8*AX17,AX60*AX17),0)) ->  | BD109: =IF(AX109=0,0,IF(BC28=2,IF((AX46-VLOOKUP(AX96,AW90:BD92,8,FALSE))<=0,0,IF(AX46-SUM(BB109,BC109)>AX109,0,AX46-SUM(BB109,BC109))),0)) ->  | BE109: =IF(AX109=0,0,SUM(BB109,BC109,IF(BC28=2,BD109,0))) ->  | BH109: =BH108+1 -> 3 | BI109: =IF(BI108-SUM(BJ108,BO108)<=0,0,BI108-SUM(BJ108,BO108)) ->  | BJ109: =IF(BI109=0,0,BM109-BK109) ->  | BK109: =IF(BI109=0,0,BI109*AX98/12) ->  | BL109: =IF(BI109=0,0,ROUNDUP(PMT(AY98/12,AY97-BH108,-1000),2)) ->  | BM109: =IF(BI109=0,0,IF(BI109+BK109<IF(SUM(BO108)>=SUM(BM108:BN108),BI109*BL109/1000,BM108),BI109+BK109,IF(SUM(BO108)>=SUM(BM108:BN108),BI109*BL109/1000,BM108))) ->  | BN109: =IF(BI109=0,"",IF(Calculos!AX41>=65,IF(Calculos!BA28=1,BI109,BI107)*EXTRAPRIMAEDAD,IF(OR(Calculos!AZ28=1,Calculos!AZ28=2),IF(Calculos!BB28=1,IF(Calculos!BA28=1,BI109,BI107)*FACTORVIDA,IF(Calculos!BB28=2,IF(Calculos!BA28=1,BI109,BI107)*EXTRAPRIMAMEDICA,IF(Calculos!BA28=1,BI109,BI107)*EXTRAPRIMAOCUPACIONAL)),0)))+IF(BB60="NO",IF(OR(AZ28=1,AZ28=3),MAX(AX42*0.8*AX17,AX60*AX17),0),IF(OR(AZ28=1,AZ28=3),MAX(AX42*0.8*AX17,AX60*AX17),0)) ->  | BO109: =IF(BI109=0,0,IF(BC28=2,IF((AX46-VLOOKUP(AX96,AW90:BD92,8,FALSE))<=0,0,IF(AX46-SUM(BM109,BN109)>BI109,0,AX46-SUM(BM109,BN109))),0)) ->  | BP109: =IF(BI109=0,0,SUM(BM109,BN109,IF(BC28=2,BO109,0))) ->  | BS109: =BS108+1 -> 3 | BT109: =IF(BT108-SUM(BU108,BZ108)<=0,0,BT108-SUM(BU108,BZ108)) ->  | BU109: =IF(BT109=0,0,BX109-BV109) ->  | BV109: =IF(BT109=0,0,BT109*AX98/12) ->  | BW109: =ROUNDUP(PMT(AZ98/12,AZ97,-1000),2) ->  | BX109: =IF(BT109=0,0,IF(BT109+BV109<IF(SUM(BZ108)>=SUM(BX108:BY108),BT109*BW109/1000,BX108),BT109+BV109,IF(SUM(BZ108)>=SUM(BX108:BY108),BT109*BW109/1000,BX108))) ->  | BY109: =IF(BT109=0,"",IF(Calculos!AX41>=65,IF(Calculos!BA28=1,BT109,BT107)*EXTRAPRIMAEDAD,IF(OR(Calculos!AZ28=1,Calculos!AZ28=2),IF(Calculos!BB28=1,IF(Calculos!BA28=1,BT109,BT107)*FACTORVIDA,IF(Calculos!BB28=2,IF(Calculos!BA28=1,BT109,BT107)*EXTRAPRIMAMEDICA,IF(Calculos!BA28=1,BT109,BT107)*EXTRAPRIMAOCUPACIONAL)),0)))+IF(BB60="NO",IF(OR(AZ28=1,AZ28=3),MAX(AX42*0.8*AX17,AX60*AX17),0),IF(OR(AZ28=1,AZ28=3),MAX(AX42*0.8*AX17,AX60*AX17),0)) ->  | BZ109: =IF(BT109=0,0,IF(BC28=2,IF((AX46-VLOOKUP(AZ96,AW90:BD92,8,FALSE))<=0,0,IF(AX46-SUM(BX109,BY109)>BT109,0,AX46-SUM(BX109,BY109))),0)) ->  | CA109: =IF(BT109=0,0,SUM(BX109,BY109,IF(BC28=2,BZ109,0))) ->  | CG109: COMISION | CH109: =IF(CM13=1,IF(CZ5=1,1%,0.5%),0%) -> 0.01 | CK109: =IF(CM13=1,IF(CZ5=1,1%,0.5%),0%) -> 0.01 | CN109: ordenado | CO109: Plazos | CP109: Plazo años | CQ109: Meses | CR109: Pago al millar | CS109: Seguros | CT109: Mensualidad | CU109: Mens c/formula | CV109: Pago al millar | CW109: Mensualidad | CX109: Mensualidad | CY109: Seguros | CZ109: Ingreso | DA109: Pago al millar | DB109: Mensualidad | DC109: Seguros | DD109: Ingreso | EU109: =EU108+1 -> 3 | EV109: =IF(EV108-SUM(EW108,FB108)<=0,0,EV108-SUM(EW108,FB108)) ->  | EW109: =IF(EV109=0,0,EZ109-EX109) ->  | EZ109: =IF(EV109=0,0,IF(EV109+EX109<IF(SUM(FB108)>=SUM(EZ108:FA108),EV109*EY109/1000,EZ108),EV109+EX109,IF(SUM(FB108)>=SUM(EZ108:FA108),EV109*EY109/1000,EZ108))) ->  | FA109: =IF(EV109=0,"",IF(Calculos!EV41>=65,IF(Calculos!EY28=1,EV109,EV107)*EXTRAPRIMAEDAD,IF(OR(Calculos!EX28=1,Calculos!EX28=2),IF(Calculos!EZ28=1,IF(Calculos!EY28=1,EV109,EV107)*FACTORVIDA,IF(Calculos!EZ28=2,IF(Calculos!EY28=1,EV109,EV107)*EXTRAPRIMAMEDICA,IF(Calculos!EY28=1,EV109,EV107)*EXTRAPRIMAOCUPACIONAL)),0)))+IF(EZ60="NO",IF(OR(EX28=1,EX28=3),MAX(EV42*0.8*EV17,EV60*EV17),0),IF(OR(EX28=1,EX28=3),MAX(EV42*0.8*EV17,EV60*EV17),0)) ->  | FB109: =IF(EV109=0,0,IF(FA28=2,IF((EV46-VLOOKUP(EV96,EU90:FB92,8,FALSE))<=0,0,IF(EV46-SUM(EZ109,FA109)>EV109,0,EV46-SUM(EZ109,FA109))),0)) ->  | FC109: =IF(EV109=0,0,SUM(EZ109,FA109,IF(FA28=2,FB109,0))) ->  | FE109: =FE108+1 -> 3 | FF109: =IF(FF108-SUM(FG108,FL108)<=0,0,FF108-FG108) ->  | FG109: =IF(FF109=0,0,FJ109-FH109) ->  | FH109: =IF(FF109=0,0,FF109*$EY$98/12) ->  | FI109: =IF(FF109=0,0,ROUNDUP(PMT($EY$98/12,$EY$97-FE108,-1000),2)) ->  | FJ109: =IF(FF109=0,0,IF(FF109+FH109<IF(SUM(FL108)>=SUM(FJ108:FK108),FF109*FI109/1000,FJ108),FF109+FH109,IF(SUM(FL108)>=SUM(FJ108:FK108),FF109*FI109/1000,FJ108))) ->  | FQ109: 3 | FT109: =IF(FR109=0,0,FR109*EV98/12) ->  | FU109: =IF(FR109=0,0,ROUNDUP(PMT(EW98/12,EW97-FQ108,-1000),2)) ->  | FW109: =IF(FR109=0,"",IF(Calculos!EV41>=65,IF(Calculos!EY28=1,FR109,FR107)*EXTRAPRIMAEDAD,IF(OR(Calculos!EX28=1,Calculos!EX28=2),IF(Calculos!EZ28=1,IF(Calculos!EY28=1,FR109,FR107)*FACTORVIDA,IF(Calculos!EZ28=2,IF(Calculos!EY28=1,FR109,FR107)*EXTRAPRIMAMEDICA,IF(Calculos!EY28=1,FR109,FR107)*EXTRAPRIMAOCUPACIONAL)),0)))+IF(EZ60="NO",IF(OR(EX28=1,EX28=3),MAX(EV42*0.8*EV17,EV60*EV17),0),IF(OR(EX28=1,EX28=3),MAX(EV42*0.8*EV17,EV60*EV17),0)) ->  | FX109: =IF(FR109=0,0,IF(FA28=2,IF((EV46-VLOOKUP(EV96,EU90:FB92,8,FALSE))<=0,0,IF(EV46-SUM(FV109,FW109)>FR109,0,EV46-SUM(FV109,FW109))),0)) ->  | FY109: =IF(FR109=0,0,SUM(FV109,FW109,IF(FA28=2,FX109,0))) ->  | GA109: =GA108+1 -> 3 | GB109: =IF(GB108-SUM(GC108,GH108)<=0,0,GB108-GC108) ->  | GC109: =IF(GB109=0,0,GF109-GD109) ->  | GD109: =IF(GB109=0,0,GB109*$EY$98/12) ->  | GE109: =IF(GB109=0,0,ROUNDUP(PMT($EZ$98/12,$EZ$97-GA108,-1000),2)) ->  | GF109: =IF(GB109=0,0,IF(GB109+GD109<IF(SUM(GH108)>=SUM(GF108:GG108),GB109*GE109/1000,GF108),GB109+GD109,IF(SUM(GH108)>=SUM(GF108:GG108),GB109*GE109/1000,GF108))) ->  | GL109: =GL108+1 -> 3 | GM109: =IF(GM108-SUM(GN108,GS108)<=0,0,GM108-SUM(GN108,GS108)) ->  | GN109: =IF(GM109=0,0,GQ109-GO109) ->  | GO109: =IF(GM109=0,0,GM109*EV98/12) ->  | GP109: =ROUNDUP(PMT(EX98/12,EX97,-1000),2) ->  | GQ109: =IF(GM109=0,0,IF(GM109+GO109<IF(SUM(GS108)>=SUM(GQ108:GR108),GM109*GP109/1000,GQ108),GM109+GO109,IF(SUM(GS108)>=SUM(GQ108:GR108),GM109*GP109/1000,GQ108))) ->  | GR109: =IF(GM109=0,"",IF(Calculos!EV41>=65,IF(Calculos!EY28=1,GM109,GM107)*EXTRAPRIMAEDAD,IF(OR(Calculos!EX28=1,Calculos!EX28=2),IF(Calculos!EZ28=1,IF(Calculos!EY28=1,GM109,GM107)*FACTORVIDA,IF(Calculos!EZ28=2,IF(Calculos!EY28=1,GM109,GM107)*EXTRAPRIMAMEDICA,IF(Calculos!EY28=1,GM109,GM107)*EXTRAPRIMAOCUPACIONAL)),0)))+IF(EZ60="NO",IF(OR(EX28=1,EX28=3),MAX(EV42*0.8*EV17,EV60*EV17),0),IF(OR(EX28=1,EX28=3),MAX(EV42*0.8*EV17,EV60*EV17),0)) ->  | GS109: =IF(GM109=0,0,IF(FA28=2,IF((EV46-VLOOKUP(EX96,EU90:FB92,8,FALSE))<=0,0,IF(EV46-SUM(GQ109,GR109)>GM109,0,EV46-SUM(GQ109,GR109))),0)) ->  | GT109: =IF(GM109=0,0,SUM(GQ109,GR109,IF(FA28=2,GS109,0))) ->  | GV109: =GV108+1 -> 3 | GW109: =IF(GW108-SUM(GX108,HC108)<=0,0,GW108-GX108) ->  | GX109: =IF(GW109=0,0,HA109-GY109) ->  | GY109: =IF(GW109=0,0,GW109*$EY$98/12) ->  | HA109: =IF(GW109=0,0,IF(GW109+GY109<IF(SUM(HC108)>=SUM(HA108:HB108),GW109*GZ109/1000,HA108),GW109+GY109,IF(SUM(HC108)>=SUM(HA108:HB108),GW109*GZ109/1000,HA108))) -> 
AW110: 4 | AZ110: =IF(AX110=0,0,AX110*AX98/12) ->  | BA110: =IF(AX110=0,0,ROUNDUP(PMT(AX98/12,AX97-AW109,-1000),2)) ->  | BC110: =IF(AX110=0,"",IF(Calculos!AX41>=65,IF(Calculos!BA28=1,AX110,AX107)*EXTRAPRIMAEDAD,IF(OR(Calculos!AZ28=1,Calculos!AZ28=2),IF(Calculos!BB28=1,IF(Calculos!BA28=1,AX110,AX107)*FACTORVIDA,IF(Calculos!BB28=2,IF(Calculos!BA28=1,AX110,AX107)*EXTRAPRIMAMEDICA,IF(Calculos!BA28=1,AX110,AX107)*EXTRAPRIMAOCUPACIONAL)),0)))+IF(BB60="NO",IF(OR(AZ28=1,AZ28=3),MAX(AX42*0.8*AX17,AX60*AX17),0),IF(OR(AZ28=1,AZ28=3),MAX(AX42*0.8*AX17,AX60*AX17),0)) ->  | BD110: =IF(AX110=0,0,IF(BC28=2,IF((AX46-VLOOKUP(AX96,AW90:BD92,8,FALSE))<=0,0,IF(AX46-SUM(BB110,BC110)>AX110,0,AX46-SUM(BB110,BC110))),0)) ->  | BE110: =IF(AX110=0,0,SUM(BB110,BC110,IF(BC28=2,BD110,0))) ->  | BH110: 4 | BK110: =IF(BI110=0,0,BI110*AX98/12) ->  | BL110: =IF(BI110=0,0,ROUNDUP(PMT(AY98/12,AY97-BH109,-1000),2)) ->  | BN110: =IF(BI110=0,"",IF(Calculos!AX41>=65,IF(Calculos!BA28=1,BI110,BI107)*EXTRAPRIMAEDAD,IF(OR(Calculos!AZ28=1,Calculos!AZ28=2),IF(Calculos!BB28=1,IF(Calculos!BA28=1,BI110,BI107)*FACTORVIDA,IF(Calculos!BB28=2,IF(Calculos!BA28=1,BI110,BI107)*EXTRAPRIMAMEDICA,IF(Calculos!BA28=1,BI110,BI107)*EXTRAPRIMAOCUPACIONAL)),0)))+IF(BB60="NO",IF(OR(AZ28=1,AZ28=3),MAX(AX42*0.8*AX17,AX60*AX17),0),IF(OR(AZ28=1,AZ28=3),MAX(AX42*0.8*AX17,AX60*AX17),0)) ->  | BO110: =IF(BI110=0,0,IF(BC28=2,IF((AX46-VLOOKUP(AX96,AW90:BD92,8,FALSE))<=0,0,IF(AX46-SUM(BM110,BN110)>BI110,0,AX46-SUM(BM110,BN110))),0)) ->  | BP110: =IF(BI110=0,0,SUM(BM110,BN110,IF(BC28=2,BO110,0))) ->  | BS110: 4 | BV110: =IF(BT110=0,0,BT110*AX98/12) ->  | BW110: =ROUNDUP(PMT(AZ98/12,AZ97,-1000),2) ->  | BY110: =IF(BT110=0,"",IF(Calculos!AX41>=65,IF(Calculos!BA28=1,BT110,BT107)*EXTRAPRIMAEDAD,IF(OR(Calculos!AZ28=1,Calculos!AZ28=2),IF(Calculos!BB28=1,IF(Calculos!BA28=1,BT110,BT107)*FACTORVIDA,IF(Calculos!BB28=2,IF(Calculos!BA28=1,BT110,BT107)*EXTRAPRIMAMEDICA,IF(Calculos!BA28=1,BT110,BT107)*EXTRAPRIMAOCUPACIONAL)),0)))+IF(BB60="NO",IF(OR(AZ28=1,AZ28=3),MAX(AX42*0.8*AX17,AX60*AX17),0),IF(OR(AZ28=1,AZ28=3),MAX(AX42*0.8*AX17,AX60*AX17),0)) ->  | BZ110: =IF(BT110=0,0,IF(BC28=2,IF((AX46-VLOOKUP(AZ96,AW90:BD92,8,FALSE))<=0,0,IF(AX46-SUM(BX110,BY110)>BT110,0,AX46-SUM(BX110,BY110))),0)) ->  | CA110: =IF(BT110=0,0,SUM(BX110,BY110,IF(BC28=2,BZ110,0))) ->  | CN110: 1 | CO110: 20 Años | CP110: 20 | CQ110: 240 | CR110: =+IF(CK70="","",IF(CK70=DI80,DJ80,IF(CK70=DI81,DJ81,IF(CK70=DI82,DJ82,IF(CK70=DI83,DJ83,IF(CK70=DI84,DJ84,IF(CK70=DI85,DJ85,IF(CK70=DI86,DJ86,IF(CK70=DI87,DJ87,IF(CK70=DI88,DJ88,IF(CK70=DI89,DJ89))))))))))) ->  | CS110: =IF(OR($CS$5=1,$C$5=2),$CK$85*(IF(CS5<3,IF(CK25>64,EXTRAPRIMAEDAD,IF(CU5=1,FACTORVIDA,IF(CU5=2,EXTRAPRIMAMEDICA,IF(CU5=3,EXTRAPRIMAOCUPACIONAL,0)))))),0)+IF(OR($CS$5=1,$CS$5=3),MAX($CL$26*0.8*FACTORDAÑOS,$CK$85*FACTORDAÑOS),0) ->  | CT110: =CK85*CR110/1000+CS110 ->  | CU110: =CK85*(CR110/1000) ->  | CV110: =IF(CM70="",CL77,IFERROR(VLOOKUP(CM70,$DI$80:$DJ$89,2,0),"")) ->  | CW110: =$CK$85*CV110/1000+CS110 ->  | CX110: =CK84*CV110/1000 ->  | CY110: =IF(OR($CS$5=1,$CS$5=2),$CK$84*(IF(CS5<3,IF(CK25>64,EXTRAPRIMAEDAD,IF(CU5=1,FACTORVIDA,IF(CU5=2,EXTRAPRIMAMEDICA,IF(CU5=3,EXTRAPRIMAOCUPACIONAL,0)))))),0)+IF(OR($CS$5=1,$CS$5=3),MAX($CL$26*0.8*FACTORDAÑOS,$CK$84*FACTORDAÑOS),0) ->  | CZ110: =IF((((CX110+CY110)+DESCUENTIND+DESCUENTCONY)/$CK$76)<$CL$90,$CL$90,((CX110+CY110)+DESCUENTIND+DESCUENTCONY)/$CK$76) ->  | DA110: =+IF(CM68="","",IF(CM68=DI80,DJ80,IF(CM68=DI81,DJ81,IF(CM68=DI82,DJ82,IF(CM68=DI83,DJ83,IF(CM68=DI84,DJ84,IF(CM68=DI85,DJ85,IF(CM68=DI86,DJ86,IF(CM68=DI87,DJ87,IF(CM68=DI88,DJ88,IF(CM68=DI89,DJ89))))))))))) ->  | DB110: =CM84*DA111/1000 ->  | DC110: =IF(OR($CS$5=1,$CS$5=2),$CM$84*(IF(CS5<3,IF(CK25>64,EXTRAPRIMAEDAD,IF(CU5=1,FACTORVIDA,IF(CU5=2,EXTRAPRIMAMEDICA,IF(CU5=3,EXTRAPRIMAOCUPACIONAL,0)))))),0)+IF(OR($CS$5=1,$CS$5=3),MAX($CL$26*0.8*FACTORDAÑOS,$CM$84*FACTORDAÑOS),0) ->  | DD110: =IF(CK34="",IF((((DB110+DC110)+DESCUENTIND+DESCUENTCONY)/$CL$76)<$CL$90,$CL$90,((DB110+DC110)+DESCUENTIND+DESCUENTCONY)/$CL$76),IF((((DB110+DC110)+DESCUENTIND+DESCUENTCONY+CK34)/$CL$76)<$CL$90,$CL$90,((DB110+DC110)+DESCUENTIND+DESCUENTCONY+CK34)/$CL$76)) ->  | EU110: 4 | FA110: =IF(EV110=0,"",IF(Calculos!EV41>=65,IF(Calculos!EY28=1,EV110,EV107)*EXTRAPRIMAEDAD,IF(OR(Calculos!EX28=1,Calculos!EX28=2),IF(Calculos!EZ28=1,IF(Calculos!EY28=1,EV110,EV107)*FACTORVIDA,IF(Calculos!EZ28=2,IF(Calculos!EY28=1,EV110,EV107)*EXTRAPRIMAMEDICA,IF(Calculos!EY28=1,EV110,EV107)*EXTRAPRIMAOCUPACIONAL)),0)))+IF(EZ60="NO",IF(OR(EX28=1,EX28=3),MAX(EV42*0.8*EV17,EV60*EV17),0),IF(OR(EX28=1,EX28=3),MAX(EV42*0.8*EV17,EV60*EV17),0)) ->  | FB110: =IF(EV110=0,0,IF(FA28=2,IF((EV46-VLOOKUP(EV96,EU90:FB92,8,FALSE))<=0,0,IF(EV46-SUM(EZ110,FA110)>EV110,0,EV46-SUM(EZ110,FA110))),0)) ->  | FC110: =IF(EV110=0,0,SUM(EZ110,FA110,IF(FA28=2,FB110,0))) ->  | FE110: 4 | FF110: =IF(FF109-SUM(FG109,FL109)<=0,0,FF109-FG109) ->  | FH110: =IF(FF110=0,0,FF110*$EY$98/12) ->  | FI110: =IF(FF110=0,0,ROUNDUP(PMT($EY$98/12,$EY$97-FE109,-1000),2)) ->  | FQ110: 4 | FT110: =IF(FR110=0,0,FR110*EV98/12) ->  | FU110: =IF(FR110=0,0,ROUNDUP(PMT(EW98/12,EW97-FQ109,-1000),2)) ->  | FW110: =IF(FR110=0,"",IF(Calculos!EV41>=65,IF(Calculos!EY28=1,FR110,FR107)*EXTRAPRIMAEDAD,IF(OR(Calculos!EX28=1,Calculos!EX28=2),IF(Calculos!EZ28=1,IF(Calculos!EY28=1,FR110,FR107)*FACTORVIDA,IF(Calculos!EZ28=2,IF(Calculos!EY28=1,FR110,FR107)*EXTRAPRIMAMEDICA,IF(Calculos!EY28=1,FR110,FR107)*EXTRAPRIMAOCUPACIONAL)),0)))+IF(EZ60="NO",IF(OR(EX28=1,EX28=3),MAX(EV42*0.8*EV17,EV60*EV17),0),IF(OR(EX28=1,EX28=3),MAX(EV42*0.8*EV17,EV60*EV17),0)) ->  | FX110: =IF(FR110=0,0,IF(FA28=2,IF((EV46-VLOOKUP(EV96,EU90:FB92,8,FALSE))<=0,0,IF(EV46-SUM(FV110,FW110)>FR110,0,EV46-SUM(FV110,FW110))),0)) ->  | FY110: =IF(FR110=0,0,SUM(FV110,FW110,IF(FA28=2,FX110,0))) ->  | GA110: 4 | GB110: =IF(GB109-SUM(GC109,GH109)<=0,0,GB109-GC109) ->  | GD110: =IF(GB110=0,0,GB110*$EY$98/12) ->  | GL110: 4 | GO110: =IF(GM110=0,0,GM110*EV98/12) ->  | GP110: =ROUNDUP(PMT(EX98/12,EX97,-1000),2) ->  | GR110: =IF(GM110=0,"",IF(Calculos!EV41>=65,IF(Calculos!EY28=1,GM110,GM107)*EXTRAPRIMAEDAD,IF(OR(Calculos!EX28=1,Calculos!EX28=2),IF(Calculos!EZ28=1,IF(Calculos!EY28=1,GM110,GM107)*FACTORVIDA,IF(Calculos!EZ28=2,IF(Calculos!EY28=1,GM110,GM107)*EXTRAPRIMAMEDICA,IF(Calculos!EY28=1,GM110,GM107)*EXTRAPRIMAOCUPACIONAL)),0)))+IF(EZ60="NO",IF(OR(EX28=1,EX28=3),MAX(EV42*0.8*EV17,EV60*EV17),0),IF(OR(EX28=1,EX28=3),MAX(EV42*0.8*EV17,EV60*EV17),0)) ->  | GS110: =IF(GM110=0,0,IF(FA28=2,IF((EV46-VLOOKUP(EX96,EU90:FB92,8,FALSE))<=0,0,IF(EV46-SUM(GQ110,GR110)>GM110,0,EV46-SUM(GQ110,GR110))),0)) ->  | GT110: =IF(GM110=0,0,SUM(GQ110,GR110,IF(FA28=2,GS110,0))) ->  | GV110: 4 | GW110: =IF(GW109-SUM(GX109,HC109)<=0,0,GW109-GX109) ->  | GY110: =IF(GW110=0,0,GW110*$EY$98/12) -> 
AW111: 5 | AZ111: =IF(AX111=0,0,AX111*AX98/12) ->  | BA111: =IF(AX111=0,0,ROUNDUP(PMT(AX98/12,AX97-AW110,-1000),2)) ->  | BC111: =IF(AX111=0,"",IF(Calculos!AX41>=65,IF(Calculos!BA28=1,AX111,AX107)*EXTRAPRIMAEDAD,IF(OR(Calculos!AZ28=1,Calculos!AZ28=2),IF(Calculos!BB28=1,IF(Calculos!BA28=1,AX111,AX107)*FACTORVIDA,IF(Calculos!BB28=2,IF(Calculos!BA28=1,AX111,AX107)*EXTRAPRIMAMEDICA,IF(Calculos!BA28=1,AX111,AX107)*EXTRAPRIMAOCUPACIONAL)),0)))+IF(BB60="NO",IF(OR(AZ28=1,AZ28=3),MAX(AX42*0.8*AX17,AX60*AX17),0),IF(OR(AZ28=1,AZ28=3),MAX(AX42*0.8*AX17,AX60*AX17),0)) ->  | BD111: =IF(AX111=0,0,IF(BC28=2,IF((AX46-VLOOKUP(AX96,AW90:BD92,8,FALSE))<=0,0,IF(AX46-SUM(BB111,BC111)>AX111,0,AX46-SUM(BB111,BC111))),0)) ->  | BE111: =IF(AX111=0,0,SUM(BB111,BC111,IF(BC28=2,BD111,0))) ->  | BH111: 5 | BK111: =IF(BI111=0,0,BI111*AX98/12) ->  | BL111: =IF(BI111=0,0,ROUNDUP(PMT(AY98/12,AY97-BH110,-1000),2)) ->  | BN111: =IF(BI111=0,"",IF(Calculos!AX41>=65,IF(Calculos!BA28=1,BI111,BI107)*EXTRAPRIMAEDAD,IF(OR(Calculos!AZ28=1,Calculos!AZ28=2),IF(Calculos!BB28=1,IF(Calculos!BA28=1,BI111,BI107)*FACTORVIDA,IF(Calculos!BB28=2,IF(Calculos!BA28=1,BI111,BI107)*EXTRAPRIMAMEDICA,IF(Calculos!BA28=1,BI111,BI107)*EXTRAPRIMAOCUPACIONAL)),0)))+IF(BB60="NO",IF(OR(AZ28=1,AZ28=3),MAX(AX42*0.8*AX17,AX60*AX17),0),IF(OR(AZ28=1,AZ28=3),MAX(AX42*0.8*AX17,AX60*AX17),0)) ->  | BO111: =IF(BI111=0,0,IF(BC28=2,IF((AX46-VLOOKUP(AX96,AW90:BD92,8,FALSE))<=0,0,IF(AX46-SUM(BM111,BN111)>BI111,0,AX46-SUM(BM111,BN111))),0)) ->  | BP111: =IF(BI111=0,0,SUM(BM111,BN111,IF(BC28=2,BO111,0))) ->  | BS111: 5 | BV111: =IF(BT111=0,0,BT111*AX98/12) ->  | BW111: =ROUNDUP(PMT(AZ98/12,AZ97,-1000),2) ->  | BY111: =IF(BT111=0,"",IF(Calculos!AX41>=65,IF(Calculos!BA28=1,BT111,BT107)*EXTRAPRIMAEDAD,IF(OR(Calculos!AZ28=1,Calculos!AZ28=2),IF(Calculos!BB28=1,IF(Calculos!BA28=1,BT111,BT107)*FACTORVIDA,IF(Calculos!BB28=2,IF(Calculos!BA28=1,BT111,BT107)*EXTRAPRIMAMEDICA,IF(Calculos!BA28=1,BT111,BT107)*EXTRAPRIMAOCUPACIONAL)),0)))+IF(BB60="NO",IF(OR(AZ28=1,AZ28=3),MAX(AX42*0.8*AX17,AX60*AX17),0),IF(OR(AZ28=1,AZ28=3),MAX(AX42*0.8*AX17,AX60*AX17),0)) ->  | BZ111: =IF(BT111=0,0,IF(BC28=2,IF((AX46-VLOOKUP(AZ96,AW90:BD92,8,FALSE))<=0,0,IF(AX46-SUM(BX111,BY111)>BT111,0,AX46-SUM(BX111,BY111))),0)) ->  | CA111: =IF(BT111=0,0,SUM(BX111,BY111,IF(BC28=2,BZ111,0))) ->  | CG111: LINEA PTI | CH111: =IF(INGRESOMENSUAL="","",ROUND(((INGRESOMENSUAL*CH104)-DESCUENTIND-DESCUENTCONY-VVIVIENDA*0.8*FACTORDAÑOS)/CH107,0)*1000) ->  | CI111: =IF(CH124=TRUE,(SUBCTAIND+SUBCTACONY)-(VVIVIENDA*(1-MAX(CP120:CP122))),0) -> 0 | CK111: =IF(INGRESOMENSUAL="","",ROUND(((INGRESOMENSUAL*CK104)-DESCUENTIND-DESCUENTCONY-0.8*VVIVIENDA*FACTORDAÑOS)/CK107,0)*1000) ->  | CL111: =IF(CH124=TRUE,(SUBCTAIND+SUBCTACONY)-(VVIVIENDA*(1-MAX(CP120:CP122))),0) -> 0 | DA111: =IF(CN70="",CN77,IFERROR(VLOOKUP(CN70,$DI$80:$DJ$89,2,0),"")) ->  | EU111: 5 | FA111: =IF(EV111=0,"",IF(Calculos!EV41>=65,IF(Calculos!EY28=1,EV111,EV107)*EXTRAPRIMAEDAD,IF(OR(Calculos!EX28=1,Calculos!EX28=2),IF(Calculos!EZ28=1,IF(Calculos!EY28=1,EV111,EV107)*FACTORVIDA,IF(Calculos!EZ28=2,IF(Calculos!EY28=1,EV111,EV107)*EXTRAPRIMAMEDICA,IF(Calculos!EY28=1,EV111,EV107)*EXTRAPRIMAOCUPACIONAL)),0)))+IF(EZ60="NO",IF(OR(EX28=1,EX28=3),MAX(EV42*0.8*EV17,EV60*EV17),0),IF(OR(EX28=1,EX28=3),MAX(EV42*0.8*EV17,EV60*EV17),0)) ->  | FB111: =IF(EV111=0,0,IF(FA28=2,IF((EV46-VLOOKUP(EV96,EU90:FB92,8,FALSE))<=0,0,IF(EV46-SUM(EZ111,FA111)>EV111,0,EV46-SUM(EZ111,FA111))),0)) ->  | FC111: =IF(EV111=0,0,SUM(EZ111,FA111,IF(FA28=2,FB111,0))) ->  | FE111: 5 | FQ111: 5 | FT111: =IF(FR111=0,0,FR111*EV98/12) ->  | FU111: =IF(FR111=0,0,ROUNDUP(PMT(EW98/12,EW97-FQ110,-1000),2)) ->  | FW111: =IF(FR111=0,"",IF(Calculos!EV41>=65,IF(Calculos!EY28=1,FR111,FR107)*EXTRAPRIMAEDAD,IF(OR(Calculos!EX28=1,Calculos!EX28=2),IF(Calculos!EZ28=1,IF(Calculos!EY28=1,FR111,FR107)*FACTORVIDA,IF(Calculos!EZ28=2,IF(Calculos!EY28=1,FR111,FR107)*EXTRAPRIMAMEDICA,IF(Calculos!EY28=1,FR111,FR107)*EXTRAPRIMAOCUPACIONAL)),0)))+IF(EZ60="NO",IF(OR(EX28=1,EX28=3),MAX(EV42*0.8*EV17,EV60*EV17),0),IF(OR(EX28=1,EX28=3),MAX(EV42*0.8*EV17,EV60*EV17),0)) ->  | FX111: =IF(FR111=0,0,IF(FA28=2,IF((EV46-VLOOKUP(EV96,EU90:FB92,8,FALSE))<=0,0,IF(EV46-SUM(FV111,FW111)>FR111,0,EV46-SUM(FV111,FW111))),0)) ->  | FY111: =IF(FR111=0,0,SUM(FV111,FW111,IF(FA28=2,FX111,0))) ->  | GA111: 5 | GL111: 5 | GO111: =IF(GM111=0,0,GM111*EV98/12) ->  | GP111: =ROUNDUP(PMT(EX98/12,EX97,-1000),2) ->  | GR111: =IF(GM111=0,"",IF(Calculos!EV41>=65,IF(Calculos!EY28=1,GM111,GM107)*EXTRAPRIMAEDAD,IF(OR(Calculos!EX28=1,Calculos!EX28=2),IF(Calculos!EZ28=1,IF(Calculos!EY28=1,GM111,GM107)*FACTORVIDA,IF(Calculos!EZ28=2,IF(Calculos!EY28=1,GM111,GM107)*EXTRAPRIMAMEDICA,IF(Calculos!EY28=1,GM111,GM107)*EXTRAPRIMAOCUPACIONAL)),0)))+IF(EZ60="NO",IF(OR(EX28=1,EX28=3),MAX(EV42*0.8*EV17,EV60*EV17),0),IF(OR(EX28=1,EX28=3),MAX(EV42*0.8*EV17,EV60*EV17),0)) ->  | GS111: =IF(GM111=0,0,IF(FA28=2,IF((EV46-VLOOKUP(EX96,EU90:FB92,8,FALSE))<=0,0,IF(EV46-SUM(GQ111,GR111)>GM111,0,EV46-SUM(GQ111,GR111))),0)) ->  | GT111: =IF(GM111=0,0,SUM(GQ111,GR111,IF(FA28=2,GS111,0))) ->  | GV111: 5
AW112: 6 | AZ112: =IF(AX112=0,0,AX112*AX98/12) ->  | BA112: =IF(AX112=0,0,ROUNDUP(PMT(AX98/12,AX97-AW111,-1000),2)) ->  | BC112: =IF(AX112=0,"",IF(Calculos!AX41>=65,IF(Calculos!BA28=1,AX112,AX107)*EXTRAPRIMAEDAD,IF(OR(Calculos!AZ28=1,Calculos!AZ28=2),IF(Calculos!BB28=1,IF(Calculos!BA28=1,AX112,AX107)*FACTORVIDA,IF(Calculos!BB28=2,IF(Calculos!BA28=1,AX112,AX107)*EXTRAPRIMAMEDICA,IF(Calculos!BA28=1,AX112,AX107)*EXTRAPRIMAOCUPACIONAL)),0)))+IF(BB60="NO",IF(OR(AZ28=1,AZ28=3),MAX(AX42*0.8*AX17,AX60*AX17),0),IF(OR(AZ28=1,AZ28=3),MAX(AX42*0.8*AX17,AX60*AX17),0)) ->  | BD112: =IF(AX112=0,0,IF(BC28=2,IF((AX46-VLOOKUP(AX96,AW90:BD92,8,FALSE))<=0,0,IF(AX46-SUM(BB112,BC112)>AX112,0,AX46-SUM(BB112,BC112))),0)) ->  | BE112: =IF(AX112=0,0,SUM(BB112,BC112,IF(BC28=2,BD112,0))) ->  | BH112: 6 | BK112: =IF(BI112=0,0,BI112*AX98/12) ->  | BL112: =IF(BI112=0,0,ROUNDUP(PMT(AY98/12,AY97-BH111,-1000),2)) ->  | BN112: =IF(BI112=0,"",IF(Calculos!AX41>=65,IF(Calculos!BA28=1,BI112,BI107)*EXTRAPRIMAEDAD,IF(OR(Calculos!AZ28=1,Calculos!AZ28=2),IF(Calculos!BB28=1,IF(Calculos!BA28=1,BI112,BI107)*FACTORVIDA,IF(Calculos!BB28=2,IF(Calculos!BA28=1,BI112,BI107)*EXTRAPRIMAMEDICA,IF(Calculos!BA28=1,BI112,BI107)*EXTRAPRIMAOCUPACIONAL)),0)))+IF(BB60="NO",IF(OR(AZ28=1,AZ28=3),MAX(AX42*0.8*AX17,AX60*AX17),0),IF(OR(AZ28=1,AZ28=3),MAX(AX42*0.8*AX17,AX60*AX17),0)) ->  | BO112: =IF(BI112=0,0,IF(BC28=2,IF((AX46-VLOOKUP(AX96,AW90:BD92,8,FALSE))<=0,0,IF(AX46-SUM(BM112,BN112)>BI112,0,AX46-SUM(BM112,BN112))),0)) ->  | BP112: =IF(BI112=0,0,SUM(BM112,BN112,IF(BC28=2,BO112,0))) ->  | BS112: 6 | BV112: =IF(BT112=0,0,BT112*AX98/12) ->  | BW112: =ROUNDUP(PMT(AZ98/12,AZ97,-1000),2) ->  | BY112: =IF(BT112=0,"",IF(Calculos!AX41>=65,IF(Calculos!BA28=1,BT112,BT107)*EXTRAPRIMAEDAD,IF(OR(Calculos!AZ28=1,Calculos!AZ28=2),IF(Calculos!BB28=1,IF(Calculos!BA28=1,BT112,BT107)*FACTORVIDA,IF(Calculos!BB28=2,IF(Calculos!BA28=1,BT112,BT107)*EXTRAPRIMAMEDICA,IF(Calculos!BA28=1,BT112,BT107)*EXTRAPRIMAOCUPACIONAL)),0)))+IF(BB60="NO",IF(OR(AZ28=1,AZ28=3),MAX(AX42*0.8*AX17,AX60*AX17),0),IF(OR(AZ28=1,AZ28=3),MAX(AX42*0.8*AX17,AX60*AX17),0)) ->  | BZ112: =IF(BT112=0,0,IF(BC28=2,IF((AX46-VLOOKUP(AZ96,AW90:BD92,8,FALSE))<=0,0,IF(AX46-SUM(BX112,BY112)>BT112,0,AX46-SUM(BX112,BY112))),0)) ->  | CA112: =IF(BT112=0,0,SUM(BX112,BY112,IF(BC28=2,BZ112,0))) ->  | CC112: contarias con | CG112: LINEA DTI | CH112: =IF(INGRESOMENSUAL="","",ROUND(((INGRESOMENSUAL*CH105)-CK34-DESCUENTIND-DESCUENTCONY-0.8*VVIVIENDA*FACTORDAÑOS)/CH107,0)*1000) ->  | CI112: =IF(AND(CH124=TRUE,CH125=TRUE),IF(CI111-MIN(CI117,VVIVIENDA*0.07)<0,0,CI111-MIN(CI117,VVIVIENDA*0.07)),CI111) -> 0 | CK112: =IF(INGRESOMENSUAL="","",ROUND(((INGRESOMENSUAL*CK105)-CL34-DESCUENTIND-DESCUENTCONY-0.8*VVIVIENDA*FACTORDAÑOS)/CK107,0)*1000) ->  | CL112: =IF(AND(CH124=TRUE,CH125=TRUE),IF(CL111-MIN(CL117,VVIVIENDA*0.07)<0,0,CL111-MIN(CL117,VVIVIENDA*0.07)),CL111) -> 0 | CN112: <2000000 | CO112: Por debajo del Threshold | CS112: >2000000 | CX112: <2000000 | CY112: Por debajo del Threshold | DC112: >2000000 | EU112: 6 | FA112: =IF(EV112=0,"",IF(Calculos!EV41>=65,IF(Calculos!EY28=1,EV112,EV107)*EXTRAPRIMAEDAD,IF(OR(Calculos!EX28=1,Calculos!EX28=2),IF(Calculos!EZ28=1,IF(Calculos!EY28=1,EV112,EV107)*FACTORVIDA,IF(Calculos!EZ28=2,IF(Calculos!EY28=1,EV112,EV107)*EXTRAPRIMAMEDICA,IF(Calculos!EY28=1,EV112,EV107)*EXTRAPRIMAOCUPACIONAL)),0)))+IF(EZ60="NO",IF(OR(EX28=1,EX28=3),MAX(EV42*0.8*EV17,EV60*EV17),0),IF(OR(EX28=1,EX28=3),MAX(EV42*0.8*EV17,EV60*EV17),0)) ->  | FB112: =IF(EV112=0,0,IF(FA28=2,IF((EV46-VLOOKUP(EV96,EU90:FB92,8,FALSE))<=0,0,IF(EV46-SUM(EZ112,FA112)>EV112,0,EV46-SUM(EZ112,FA112))),0)) ->  | FC112: =IF(EV112=0,0,SUM(EZ112,FA112,IF(FA28=2,FB112,0))) ->  | FE112: 6 | FQ112: 6 | FT112: =IF(FR112=0,0,FR112*EV98/12) ->  | FU112: =IF(FR112=0,0,ROUNDUP(PMT(EW98/12,EW97-FQ111,-1000),2)) ->  | FW112: =IF(FR112=0,"",IF(Calculos!EV41>=65,IF(Calculos!EY28=1,FR112,FR107)*EXTRAPRIMAEDAD,IF(OR(Calculos!EX28=1,Calculos!EX28=2),IF(Calculos!EZ28=1,IF(Calculos!EY28=1,FR112,FR107)*FACTORVIDA,IF(Calculos!EZ28=2,IF(Calculos!EY28=1,FR112,FR107)*EXTRAPRIMAMEDICA,IF(Calculos!EY28=1,FR112,FR107)*EXTRAPRIMAOCUPACIONAL)),0)))+IF(EZ60="NO",IF(OR(EX28=1,EX28=3),MAX(EV42*0.8*EV17,EV60*EV17),0),IF(OR(EX28=1,EX28=3),MAX(EV42*0.8*EV17,EV60*EV17),0)) ->  | FX112: =IF(FR112=0,0,IF(FA28=2,IF((EV46-VLOOKUP(EV96,EU90:FB92,8,FALSE))<=0,0,IF(EV46-SUM(FV112,FW112)>FR112,0,EV46-SUM(FV112,FW112))),0)) ->  | FY112: =IF(FR112=0,0,SUM(FV112,FW112,IF(FA28=2,FX112,0))) ->  | GA112: 6 | GL112: 6 | GO112: =IF(GM112=0,0,GM112*EV98/12) ->  | GP112: =ROUNDUP(PMT(EX98/12,EX97,-1000),2) ->  | GR112: =IF(GM112=0,"",IF(Calculos!EV41>=65,IF(Calculos!EY28=1,GM112,GM107)*EXTRAPRIMAEDAD,IF(OR(Calculos!EX28=1,Calculos!EX28=2),IF(Calculos!EZ28=1,IF(Calculos!EY28=1,GM112,GM107)*FACTORVIDA,IF(Calculos!EZ28=2,IF(Calculos!EY28=1,GM112,GM107)*EXTRAPRIMAMEDICA,IF(Calculos!EY28=1,GM112,GM107)*EXTRAPRIMAOCUPACIONAL)),0)))+IF(EZ60="NO",IF(OR(EX28=1,EX28=3),MAX(EV42*0.8*EV17,EV60*EV17),0),IF(OR(EX28=1,EX28=3),MAX(EV42*0.8*EV17,EV60*EV17),0)) ->  | GS112: =IF(GM112=0,0,IF(FA28=2,IF((EV46-VLOOKUP(EX96,EU90:FB92,8,FALSE))<=0,0,IF(EV46-SUM(GQ112,GR112)>GM112,0,EV46-SUM(GQ112,GR112))),0)) ->  | GT112: =IF(GM112=0,0,SUM(GQ112,GR112,IF(FA28=2,GS112,0))) ->  | GV112: 6
AW113: 7 | AZ113: =IF(AX113=0,0,AX113*AX98/12) ->  | BA113: =IF(AX113=0,0,ROUNDUP(PMT(AX98/12,AX97-AW112,-1000),2)) ->  | BC113: =IF(AX113=0,"",IF(Calculos!AX41>=65,IF(Calculos!BA28=1,AX113,AX107)*EXTRAPRIMAEDAD,IF(OR(Calculos!AZ28=1,Calculos!AZ28=2),IF(Calculos!BB28=1,IF(Calculos!BA28=1,AX113,AX107)*FACTORVIDA,IF(Calculos!BB28=2,IF(Calculos!BA28=1,AX113,AX107)*EXTRAPRIMAMEDICA,IF(Calculos!BA28=1,AX113,AX107)*EXTRAPRIMAOCUPACIONAL)),0)))+IF(BB60="NO",IF(OR(AZ28=1,AZ28=3),MAX(AX42*0.8*AX17,AX60*AX17),0),IF(OR(AZ28=1,AZ28=3),MAX(AX42*0.8*AX17,AX60*AX17),0)) ->  | BD113: =IF(AX113=0,0,IF(BC28=2,IF((AX46-VLOOKUP(AX96,AW90:BD92,8,FALSE))<=0,0,IF(AX46-SUM(BB113,BC113)>AX113,0,AX46-SUM(BB113,BC113))),0)) ->  | BE113: =IF(AX113=0,0,SUM(BB113,BC113,IF(BC28=2,BD113,0))) ->  | BH113: 7 | BK113: =IF(BI113=0,0,BI113*AX98/12) ->  | BL113: =IF(BI113=0,0,ROUNDUP(PMT(AY98/12,AY97-BH112,-1000),2)) ->  | BN113: =IF(BI113=0,"",IF(Calculos!AX41>=65,IF(Calculos!BA28=1,BI113,BI107)*EXTRAPRIMAEDAD,IF(OR(Calculos!AZ28=1,Calculos!AZ28=2),IF(Calculos!BB28=1,IF(Calculos!BA28=1,BI113,BI107)*FACTORVIDA,IF(Calculos!BB28=2,IF(Calculos!BA28=1,BI113,BI107)*EXTRAPRIMAMEDICA,IF(Calculos!BA28=1,BI113,BI107)*EXTRAPRIMAOCUPACIONAL)),0)))+IF(BB60="NO",IF(OR(AZ28=1,AZ28=3),MAX(AX42*0.8*AX17,AX60*AX17),0),IF(OR(AZ28=1,AZ28=3),MAX(AX42*0.8*AX17,AX60*AX17),0)) ->  | BO113: =IF(BI113=0,0,IF(BC28=2,IF((AX46-VLOOKUP(AX96,AW90:BD92,8,FALSE))<=0,0,IF(AX46-SUM(BM113,BN113)>BI113,0,AX46-SUM(BM113,BN113))),0)) ->  | BP113: =IF(BI113=0,0,SUM(BM113,BN113,IF(BC28=2,BO113,0))) ->  | BS113: 7 | BV113: =IF(BT113=0,0,BT113*AX98/12) ->  | BW113: =ROUNDUP(PMT(AZ98/12,AZ97,-1000),2) ->  | BY113: =IF(BT113=0,"",IF(Calculos!AX41>=65,IF(Calculos!BA28=1,BT113,BT107)*EXTRAPRIMAEDAD,IF(OR(Calculos!AZ28=1,Calculos!AZ28=2),IF(Calculos!BB28=1,IF(Calculos!BA28=1,BT113,BT107)*FACTORVIDA,IF(Calculos!BB28=2,IF(Calculos!BA28=1,BT113,BT107)*EXTRAPRIMAMEDICA,IF(Calculos!BA28=1,BT113,BT107)*EXTRAPRIMAOCUPACIONAL)),0)))+IF(BB60="NO",IF(OR(AZ28=1,AZ28=3),MAX(AX42*0.8*AX17,AX60*AX17),0),IF(OR(AZ28=1,AZ28=3),MAX(AX42*0.8*AX17,AX60*AX17),0)) ->  | BZ113: =IF(BT113=0,0,IF(BC28=2,IF((AX46-VLOOKUP(AZ96,AW90:BD92,8,FALSE))<=0,0,IF(AX46-SUM(BX113,BY113)>BT113,0,AX46-SUM(BX113,BY113))),0)) ->  | CA113: =IF(BT113=0,0,SUM(BX113,BY113,IF(BC28=2,BZ113,0))) ->  | CF113: =IF(OR(CZ5=1,CZ5=4),IF(DD5=2,IF(VVIVIENDA="","",MIN(VVIVIENDA*MAX(CP120:CP122),VVIVIENDA-IF(AND(CZ5>1,CZ5<4),CREDITOINSTITUTOIND+CREDINSTITUTOCONY+IF(CH124=TRUE,(VVIVIENDA*(1-MAX(CP120:CP122)))+CI112,SUBCTAIND+SUBCTACONY),0)-IF(CP5=2,MONSOLIENGAN,0),(VVIVIENDA*MAX(CP120:CP122))-CREDITOINSTITUTOIND-CREDINSTITUTOCONY)),IF(VVIVIENDA="","",MIN(VVIVIENDA*MAX(CP120:CP122),VVIVIENDA-IF(AND(CZ5>1,CZ5<4),CREDITOINSTITUTOIND+CREDINSTITUTOCONY+IF(CH124=TRUE,(VVIVIENDA*(1-MAX(CP120:CP122)))+CI112,SUBCTAIND+SUBCTACONY),0)))),IF(VVIVIENDA="","",MIN(VVIVIENDA*MAX(CP120:CP122),VVIVIENDA-IF(AND(CZ5>1,CZ5<4),CREDITOINSTITUTOIND+CREDINSTITUTOCONY+IF(CH124=TRUE,(VVIVIENDA*(1-MAX(CP120:CP122)))+CI112,SUBCTAIND+SUBCTACONY),0)-IF(CP5=2,MONSOLIENGAN,0),(VVIVIENDA*MAX(CP120:CP122))-CREDITOINSTITUTOIND-CREDINSTITUTOCONY))) ->  | CG113: MAX AFORO | CH113: =MIN(IF(VVIVIENDA<=10000000,MAX(Calculos!CP120:CP122)*VVIVIENDA,(MAX((10000000*MAX(CP120:CP122)+(VVIVIENDA-10000000)*0.4),(VVIVIENDA*IF((MAX(CP114:CP116)-IF(CO5=1,30%,10%))<60%,60%,(MAX(CP114:CP116)-IF(CO5=1,30%,10%))))))),(VVIVIENDA-CREDITOINSTITUTOIND-CREDINSTITUTOCONY-SUBCTAIND-SUBCTACONY+ECOTECNOLOGÍASCONY+ECOTECNOLOGÍASCONY)-IF(CP5=2,MONSOLIENGAN,0)+IF(DD5=1,CH117,0),(VVIVIENDA*MAX(CP120:CP122)-CREDINSTITUTOCONY-CREDITOINSTITUTOIND),VVIVIENDA-IF(CP5=2,MONSOLIENGAN,0)+IF(DD5=1,CH117,0)) -> 0 | CI113: =IF(VVIVIENDA="","",VVIVIENDA) ->  | CJ113: =+MIN(CH113,CH114) ->  | CK113: =MIN(IF(VVIVIENDA<=10000000,MAX(Calculos!CP120:CP122)*VVIVIENDA,(MAX((10000000*MAX(CP120:CP122)+(VVIVIENDA-10000000)*0.4),(VVIVIENDA*IF((MAX(CP114:CP116)-IF(CO5=1,30%,10%))<60%,60%,(MAX(CP114:CP116)-IF(CO5=1,30%,10%))))))),(VVIVIENDA-CREDITOINSTITUTOIND-CREDINSTITUTOCONY-SUBCTAIND-SUBCTACONY+ECOTECNOLOGÍASCONY+ECOTECNOLOGÍASCONY)-IF(CP5=2,MONSOLIENGAN,0)+IF(DD5=1,CH117,0),(VVIVIENDA*MAX(CP120:CP122)-CREDINSTITUTOCONY-CREDITOINSTITUTOIND),VVIVIENDA-IF(CP5=2,MONSOLIENGAN,0)+IF(DD5=1,CH117,0)) -> 0 | CL113: =IF(VVIVIENDA="","",VVIVIENDA) ->  | CM113: =+MIN(CK113,CK114) ->  | CN113: AFORO | CO113: AFORO MIN | CP113: AFORO MAX | CQ113: TASA | CS113: AFORO | CT113: AFORO MIN | CU113: AFORO MAX | CV113: TASA | CX113: AFORO | CY113: AFORO MIN | CZ113: AFORO MAX | DA113: TASA | DC113: AFORO | DD113: AFORO MIN | DE113: AFORO MAX | DF113: TASA | EU113: 7 | FA113: =IF(EV113=0,"",IF(Calculos!EV41>=65,IF(Calculos!EY28=1,EV113,EV107)*EXTRAPRIMAEDAD,IF(OR(Calculos!EX28=1,Calculos!EX28=2),IF(Calculos!EZ28=1,IF(Calculos!EY28=1,EV113,EV107)*FACTORVIDA,IF(Calculos!EZ28=2,IF(Calculos!EY28=1,EV113,EV107)*EXTRAPRIMAMEDICA,IF(Calculos!EY28=1,EV113,EV107)*EXTRAPRIMAOCUPACIONAL)),0)))+IF(EZ60="NO",IF(OR(EX28=1,EX28=3),MAX(EV42*0.8*EV17,EV60*EV17),0),IF(OR(EX28=1,EX28=3),MAX(EV42*0.8*EV17,EV60*EV17),0)) ->  | FB113: =IF(EV113=0,0,IF(FA28=2,IF((EV46-VLOOKUP(EV96,EU90:FB92,8,FALSE))<=0,0,IF(EV46-SUM(EZ113,FA113)>EV113,0,EV46-SUM(EZ113,FA113))),0)) ->  | FC113: =IF(EV113=0,0,SUM(EZ113,FA113,IF(FA28=2,FB113,0))) ->  | FE113: 7 | FQ113: 7 | FT113: =IF(FR113=0,0,FR113*EV98/12) ->  | FU113: =IF(FR113=0,0,ROUNDUP(PMT(EW98/12,EW97-FQ112,-1000),2)) ->  | FW113: =IF(FR113=0,"",IF(Calculos!EV41>=65,IF(Calculos!EY28=1,FR113,FR107)*EXTRAPRIMAEDAD,IF(OR(Calculos!EX28=1,Calculos!EX28=2),IF(Calculos!EZ28=1,IF(Calculos!EY28=1,FR113,FR107)*FACTORVIDA,IF(Calculos!EZ28=2,IF(Calculos!EY28=1,FR113,FR107)*EXTRAPRIMAMEDICA,IF(Calculos!EY28=1,FR113,FR107)*EXTRAPRIMAOCUPACIONAL)),0)))+IF(EZ60="NO",IF(OR(EX28=1,EX28=3),MAX(EV42*0.8*EV17,EV60*EV17),0),IF(OR(EX28=1,EX28=3),MAX(EV42*0.8*EV17,EV60*EV17),0)) ->  | FX113: =IF(FR113=0,0,IF(FA28=2,IF((EV46-VLOOKUP(EV96,EU90:FB92,8,FALSE))<=0,0,IF(EV46-SUM(FV113,FW113)>FR113,0,EV46-SUM(FV113,FW113))),0)) ->  | FY113: =IF(FR113=0,0,SUM(FV113,FW113,IF(FA28=2,FX113,0))) ->  | GA113: 7 | GL113: 7 | GO113: =IF(GM113=0,0,GM113*EV98/12) ->  | GP113: =ROUNDUP(PMT(EX98/12,EX97,-1000),2) ->  | GR113: =IF(GM113=0,"",IF(Calculos!EV41>=65,IF(Calculos!EY28=1,GM113,GM107)*EXTRAPRIMAEDAD,IF(OR(Calculos!EX28=1,Calculos!EX28=2),IF(Calculos!EZ28=1,IF(Calculos!EY28=1,GM113,GM107)*FACTORVIDA,IF(Calculos!EZ28=2,IF(Calculos!EY28=1,GM113,GM107)*EXTRAPRIMAMEDICA,IF(Calculos!EY28=1,GM113,GM107)*EXTRAPRIMAOCUPACIONAL)),0)))+IF(EZ60="NO",IF(OR(EX28=1,EX28=3),MAX(EV42*0.8*EV17,EV60*EV17),0),IF(OR(EX28=1,EX28=3),MAX(EV42*0.8*EV17,EV60*EV17),0)) ->  | GS113: =IF(GM113=0,0,IF(FA28=2,IF((EV46-VLOOKUP(EX96,EU90:FB92,8,FALSE))<=0,0,IF(EV46-SUM(GQ113,GR113)>GM113,0,EV46-SUM(GQ113,GR113))),0)) ->  | GT113: =IF(GM113=0,0,SUM(GQ113,GR113,IF(FA28=2,GS113,0))) ->  | GV113: 7
AW114: 8 | AZ114: =IF(AX114=0,0,AX114*AX98/12) ->  | BA114: =IF(AX114=0,0,ROUNDUP(PMT(AX98/12,AX97-AW113,-1000),2)) ->  | BC114: =IF(AX114=0,"",IF(Calculos!AX41>=65,IF(Calculos!BA28=1,AX114,AX107)*EXTRAPRIMAEDAD,IF(OR(Calculos!AZ28=1,Calculos!AZ28=2),IF(Calculos!BB28=1,IF(Calculos!BA28=1,AX114,AX107)*FACTORVIDA,IF(Calculos!BB28=2,IF(Calculos!BA28=1,AX114,AX107)*EXTRAPRIMAMEDICA,IF(Calculos!BA28=1,AX114,AX107)*EXTRAPRIMAOCUPACIONAL)),0)))+IF(BB60="NO",IF(OR(AZ28=1,AZ28=3),MAX(AX42*0.8*AX17,AX60*AX17),0),IF(OR(AZ28=1,AZ28=3),MAX(AX42*0.8*AX17,AX60*AX17),0)) ->  | BD114: =IF(AX114=0,0,IF(BC28=2,IF((AX46-VLOOKUP(AX96,AW90:BD92,8,FALSE))<=0,0,IF(AX46-SUM(BB114,BC114)>AX114,0,AX46-SUM(BB114,BC114))),0)) ->  | BE114: =IF(AX114=0,0,SUM(BB114,BC114,IF(BC28=2,BD114,0))) ->  | BH114: 8 | BK114: =IF(BI114=0,0,BI114*AX98/12) ->  | BL114: =IF(BI114=0,0,ROUNDUP(PMT(AY98/12,AY97-BH113,-1000),2)) ->  | BN114: =IF(BI114=0,"",IF(Calculos!AX41>=65,IF(Calculos!BA28=1,BI114,BI107)*EXTRAPRIMAEDAD,IF(OR(Calculos!AZ28=1,Calculos!AZ28=2),IF(Calculos!BB28=1,IF(Calculos!BA28=1,BI114,BI107)*FACTORVIDA,IF(Calculos!BB28=2,IF(Calculos!BA28=1,BI114,BI107)*EXTRAPRIMAMEDICA,IF(Calculos!BA28=1,BI114,BI107)*EXTRAPRIMAOCUPACIONAL)),0)))+IF(BB60="NO",IF(OR(AZ28=1,AZ28=3),MAX(AX42*0.8*AX17,AX60*AX17),0),IF(OR(AZ28=1,AZ28=3),MAX(AX42*0.8*AX17,AX60*AX17),0)) ->  | BO114: =IF(BI114=0,0,IF(BC28=2,IF((AX46-VLOOKUP(AX96,AW90:BD92,8,FALSE))<=0,0,IF(AX46-SUM(BM114,BN114)>BI114,0,AX46-SUM(BM114,BN114))),0)) ->  | BP114: =IF(BI114=0,0,SUM(BM114,BN114,IF(BC28=2,BO114,0))) ->  | BS114: 8 | BV114: =IF(BT114=0,0,BT114*AX98/12) ->  | BW114: =ROUNDUP(PMT(AZ98/12,AZ97,-1000),2) ->  | BY114: =IF(BT114=0,"",IF(Calculos!AX41>=65,IF(Calculos!BA28=1,BT114,BT107)*EXTRAPRIMAEDAD,IF(OR(Calculos!AZ28=1,Calculos!AZ28=2),IF(Calculos!BB28=1,IF(Calculos!BA28=1,BT114,BT107)*FACTORVIDA,IF(Calculos!BB28=2,IF(Calculos!BA28=1,BT114,BT107)*EXTRAPRIMAMEDICA,IF(Calculos!BA28=1,BT114,BT107)*EXTRAPRIMAOCUPACIONAL)),0)))+IF(BB60="NO",IF(OR(AZ28=1,AZ28=3),MAX(AX42*0.8*AX17,AX60*AX17),0),IF(OR(AZ28=1,AZ28=3),MAX(AX42*0.8*AX17,AX60*AX17),0)) ->  | BZ114: =IF(BT114=0,0,IF(BC28=2,IF((AX46-VLOOKUP(AZ96,AW90:BD92,8,FALSE))<=0,0,IF(AX46-SUM(BX114,BY114)>BT114,0,AX46-SUM(BX114,BY114))),0)) ->  | CA114: =IF(BT114=0,0,SUM(BX114,BY114,IF(BC28=2,BZ114,0))) ->  | CG114: SOLICITADO | CH114: =IF(MONSOLIENGAN="","",IF(CP5=1,MONSOLIENGAN,VVIVIENDA-MONSOLIENGAN))+CJ67 ->  | CK114: =IF(MONSOLIENGAN="","",IF(CP5=1,MONSOLIENGAN,VVIVIENDA-MONSOLIENGAN))+CJ67 ->  | CN114: =$CR$5&$CQ$5 -> 11 | CO114: 0 | CP114: 0.7 | CQ114: =VLOOKUP(CN114,CP81:CW87,IF(AND(CI84="NO",CO5<3),2,IF(OR(CO5>7,CO5=4),4,IF(OR(CO5=3,CI84="SI"),3,2))),0) ->  | CS114: =$CR$5&$CQ$5 -> 11 | CT114: 0 | CU114: =IFERROR(IF(CZ5=1,IF($CK$26<8000000,VLOOKUP(CS114,$CP$81:$DC$87,9,0),IF($CK$26>14000000,VLOOKUP(CS114,$CP$81:$DC$87,11,0),VLOOKUP(CS114,$CP$81:$DC$87,10,0))),IF($CK$26<8000000,VLOOKUP(CS114,$CP$81:$DC$87,12,0),IF($CK$26>14000000,VLOOKUP(CS114,$CP$81:$DC$87,14,0),VLOOKUP(CS114,$CP$81:$DC$87,13,0)))),"") -> 0.7 | CV114: =IF(CU114="","",VLOOKUP(CS114,$CP$81:$CW$87,3,0)) -> 0.105 | CX114: =$CR$5&$CQ$5 -> 11 | CY114: =+CO114 -> 0 | CZ114: 0.7 | DA114: =IF(CP114="","",VLOOKUP(CN114,$CP$81:$CW$87,IF(OR($CO$5=1,$CO$5=2),2,IF($CO$5=3,3,IF($CO$5=4,4,5))))) -> 0.105 | DC114: =$CR$5&$CQ$5 -> 11 | DD114: =+CT114 -> 0 | DE114: 0.7 | DF114: =IF(CU114="","",VLOOKUP(CS114,$CP$81:$CW$87,3,0)) -> 0.105 | EU114: 8 | FA114: =IF(EV114=0,"",IF(Calculos!EV41>=65,IF(Calculos!EY28=1,EV114,EV107)*EXTRAPRIMAEDAD,IF(OR(Calculos!EX28=1,Calculos!EX28=2),IF(Calculos!EZ28=1,IF(Calculos!EY28=1,EV114,EV107)*FACTORVIDA,IF(Calculos!EZ28=2,IF(Calculos!EY28=1,EV114,EV107)*EXTRAPRIMAMEDICA,IF(Calculos!EY28=1,EV114,EV107)*EXTRAPRIMAOCUPACIONAL)),0)))+IF(EZ60="NO",IF(OR(EX28=1,EX28=3),MAX(EV42*0.8*EV17,EV60*EV17),0),IF(OR(EX28=1,EX28=3),MAX(EV42*0.8*EV17,EV60*EV17),0)) ->  | FB114: =IF(EV114=0,0,IF(FA28=2,IF((EV46-VLOOKUP(EV96,EU90:FB92,8,FALSE))<=0,0,IF(EV46-SUM(EZ114,FA114)>EV114,0,EV46-SUM(EZ114,FA114))),0)) ->  | FC114: =IF(EV114=0,0,SUM(EZ114,FA114,IF(FA28=2,FB114,0))) ->  | FE114: 8 | FQ114: 8 | FT114: =IF(FR114=0,0,FR114*EV98/12) ->  | FU114: =IF(FR114=0,0,ROUNDUP(PMT(EW98/12,EW97-FQ113,-1000),2)) ->  | FW114: =IF(FR114=0,"",IF(Calculos!EV41>=65,IF(Calculos!EY28=1,FR114,FR107)*EXTRAPRIMAEDAD,IF(OR(Calculos!EX28=1,Calculos!EX28=2),IF(Calculos!EZ28=1,IF(Calculos!EY28=1,FR114,FR107)*FACTORVIDA,IF(Calculos!EZ28=2,IF(Calculos!EY28=1,FR114,FR107)*EXTRAPRIMAMEDICA,IF(Calculos!EY28=1,FR114,FR107)*EXTRAPRIMAOCUPACIONAL)),0)))+IF(EZ60="NO",IF(OR(EX28=1,EX28=3),MAX(EV42*0.8*EV17,EV60*EV17),0),IF(OR(EX28=1,EX28=3),MAX(EV42*0.8*EV17,EV60*EV17),0)) ->  | FX114: =IF(FR114=0,0,IF(FA28=2,IF((EV46-VLOOKUP(EV96,EU90:FB92,8,FALSE))<=0,0,IF(EV46-SUM(FV114,FW114)>FR114,0,EV46-SUM(FV114,FW114))),0)) ->  | FY114: =IF(FR114=0,0,SUM(FV114,FW114,IF(FA28=2,FX114,0))) ->  | GA114: 8 | GL114: 8 | GO114: =IF(GM114=0,0,GM114*EV98/12) ->  | GP114: =ROUNDUP(PMT(EX98/12,EX97,-1000),2) ->  | GR114: =IF(GM114=0,"",IF(Calculos!EV41>=65,IF(Calculos!EY28=1,GM114,GM107)*EXTRAPRIMAEDAD,IF(OR(Calculos!EX28=1,Calculos!EX28=2),IF(Calculos!EZ28=1,IF(Calculos!EY28=1,GM114,GM107)*FACTORVIDA,IF(Calculos!EZ28=2,IF(Calculos!EY28=1,GM114,GM107)*EXTRAPRIMAMEDICA,IF(Calculos!EY28=1,GM114,GM107)*EXTRAPRIMAOCUPACIONAL)),0)))+IF(EZ60="NO",IF(OR(EX28=1,EX28=3),MAX(EV42*0.8*EV17,EV60*EV17),0),IF(OR(EX28=1,EX28=3),MAX(EV42*0.8*EV17,EV60*EV17),0)) ->  | GS114: =IF(GM114=0,0,IF(FA28=2,IF((EV46-VLOOKUP(EX96,EU90:FB92,8,FALSE))<=0,0,IF(EV46-SUM(GQ114,GR114)>GM114,0,EV46-SUM(GQ114,GR114))),0)) ->  | GT114: =IF(GM114=0,0,SUM(GQ114,GR114,IF(FA28=2,GS114,0))) ->  | GV114: 8
AW115: 9 | AZ115: =IF(AX115=0,0,AX115*AX98/12) ->  | BA115: =IF(AX115=0,0,ROUNDUP(PMT(AX98/12,AX97-AW114,-1000),2)) ->  | BC115: =IF(AX115=0,"",IF(Calculos!AX41>=65,IF(Calculos!BA28=1,AX115,AX107)*EXTRAPRIMAEDAD,IF(OR(Calculos!AZ28=1,Calculos!AZ28=2),IF(Calculos!BB28=1,IF(Calculos!BA28=1,AX115,AX107)*FACTORVIDA,IF(Calculos!BB28=2,IF(Calculos!BA28=1,AX115,AX107)*EXTRAPRIMAMEDICA,IF(Calculos!BA28=1,AX115,AX107)*EXTRAPRIMAOCUPACIONAL)),0)))+IF(BB60="NO",IF(OR(AZ28=1,AZ28=3),MAX(AX42*0.8*AX17,AX60*AX17),0),IF(OR(AZ28=1,AZ28=3),MAX(AX42*0.8*AX17,AX60*AX17),0)) ->  | BD115: =IF(AX115=0,0,IF(BC28=2,IF((AX46-VLOOKUP(AX96,AW90:BD92,8,FALSE))<=0,0,IF(AX46-SUM(BB115,BC115)>AX115,0,AX46-SUM(BB115,BC115))),0)) ->  | BE115: =IF(AX115=0,0,SUM(BB115,BC115,IF(BC28=2,BD115,0))) ->  | BH115: 9 | BK115: =IF(BI115=0,0,BI115*AX98/12) ->  | BL115: =IF(BI115=0,0,ROUNDUP(PMT(AY98/12,AY97-BH114,-1000),2)) ->  | BN115: =IF(BI115=0,"",IF(Calculos!AX41>=65,IF(Calculos!BA28=1,BI115,BI107)*EXTRAPRIMAEDAD,IF(OR(Calculos!AZ28=1,Calculos!AZ28=2),IF(Calculos!BB28=1,IF(Calculos!BA28=1,BI115,BI107)*FACTORVIDA,IF(Calculos!BB28=2,IF(Calculos!BA28=1,BI115,BI107)*EXTRAPRIMAMEDICA,IF(Calculos!BA28=1,BI115,BI107)*EXTRAPRIMAOCUPACIONAL)),0)))+IF(BB60="NO",IF(OR(AZ28=1,AZ28=3),MAX(AX42*0.8*AX17,AX60*AX17),0),IF(OR(AZ28=1,AZ28=3),MAX(AX42*0.8*AX17,AX60*AX17),0)) ->  | BO115: =IF(BI115=0,0,IF(BC28=2,IF((AX46-VLOOKUP(AX96,AW90:BD92,8,FALSE))<=0,0,IF(AX46-SUM(BM115,BN115)>BI115,0,AX46-SUM(BM115,BN115))),0)) ->  | BP115: =IF(BI115=0,0,SUM(BM115,BN115,IF(BC28=2,BO115,0))) ->  | BS115: 9 | BV115: =IF(BT115=0,0,BT115*AX98/12) ->  | BW115: =ROUNDUP(PMT(AZ98/12,AZ97,-1000),2) ->  | BY115: =IF(BT115=0,"",IF(Calculos!AX41>=65,IF(Calculos!BA28=1,BT115,BT107)*EXTRAPRIMAEDAD,IF(OR(Calculos!AZ28=1,Calculos!AZ28=2),IF(Calculos!BB28=1,IF(Calculos!BA28=1,BT115,BT107)*FACTORVIDA,IF(Calculos!BB28=2,IF(Calculos!BA28=1,BT115,BT107)*EXTRAPRIMAMEDICA,IF(Calculos!BA28=1,BT115,BT107)*EXTRAPRIMAOCUPACIONAL)),0)))+IF(BB60="NO",IF(OR(AZ28=1,AZ28=3),MAX(AX42*0.8*AX17,AX60*AX17),0),IF(OR(AZ28=1,AZ28=3),MAX(AX42*0.8*AX17,AX60*AX17),0)) ->  | BZ115: =IF(BT115=0,0,IF(BC28=2,IF((AX46-VLOOKUP(AZ96,AW90:BD92,8,FALSE))<=0,0,IF(AX46-SUM(BX115,BY115)>BT115,0,AX46-SUM(BX115,BY115))),0)) ->  | CA115: =IF(BT115=0,0,SUM(BX115,BY115,IF(BC28=2,BZ115,0))) ->  | CE115: COFI LTV | CF115: =CH115/VVIVIENDA ->  | CG115: LINEA FINAL | CH115: =IF(OR(VVIVIENDA="",INGRESOMENSUAL="",MONSOLIENGAN=""),"",MIN(CH114,CH113,CH112,CH111)) ->  | CK115: =IF(OR(VVIVIENDA="",INGRESOMENSUAL="",MONSOLIENGAN=""),"",MIN(CK114,CK113,CK112,CK111)) ->  | CN115: =$CR$5&$CQ$5 -> 11 | CO115: =IF(OR(AND(CR5=1,CO5=1,CQ5=3),AND(CR5=2,CO5=1,CQ5=3)),"",CP114+0.0000001) -> 0.7000001 | CP115: =IF(CO115="","",IF(OR(AND(CQ5=3,CR5=2,CO5>1),AND(CQ5=2,CR5=2,CO5=1)),0.75,0.7999999)) -> 0.7999999 | CQ115: =VLOOKUP(CN115,CP88:CW94,IF(AND(CI84="NO",CO5<3),2,IF(OR(CO5>7,CO5=4),4,IF(OR(CO5=3,CI84="SI"),3,2))),0) ->  | CS115: =$CR$5&$CQ$5 -> 11 | CT115: =IF(CU114<0.65,"",IF(CU115="","",CU114+0.0000001)) -> 0.7000001 | CU115: =IFERROR(IF(CZ5=1,IF($CK$26<8000000,VLOOKUP(CS115,$CP$88:$DC$94,9,0),IF($CK$26>14000000,VLOOKUP(CS115,$CP$88:$DC$94,11,0),VLOOKUP(CS115,$CP$88:$DC$94,10,0))),IF($CK$26<8000000,VLOOKUP(CS115,$CP$88:$DC$94,12,0),IF($CK$26>14000000,VLOOKUP(CS115,$CP$88:$DC$94,14,0),VLOOKUP(CS115,$CP$88:$DC$94,13,0)))),"") -> 0.7999999 | CV115: =IF(CU115="","",VLOOKUP(CS115,$CP$88:$CW$94,3,0)) -> 0.105 | CX115: =$CR$5&$CQ$5 -> 11 | CY115: 0.7000001 | CZ115: 0.7999999 | DA115: =IF(CP115="","",VLOOKUP(CN115,$CP$88:$CW$94,IF(OR($CO$5=1,$CO$5=2),2,IF($CO$5=3,3,IF($CO$5=4,4,5))))) -> 0.105 | DC115: =$CR$5&$CQ$5 -> 11 | DD115: 0.7000001 | DE115: 0.7999999 | DF115: =IF(CU115="","",VLOOKUP(CS115,$CP$88:$CW$94,3,0)) -> 0.105 | EU115: 9 | FA115: =IF(EV115=0,"",IF(Calculos!EV41>=65,IF(Calculos!EY28=1,EV115,EV107)*EXTRAPRIMAEDAD,IF(OR(Calculos!EX28=1,Calculos!EX28=2),IF(Calculos!EZ28=1,IF(Calculos!EY28=1,EV115,EV107)*FACTORVIDA,IF(Calculos!EZ28=2,IF(Calculos!EY28=1,EV115,EV107)*EXTRAPRIMAMEDICA,IF(Calculos!EY28=1,EV115,EV107)*EXTRAPRIMAOCUPACIONAL)),0)))+IF(EZ60="NO",IF(OR(EX28=1,EX28=3),MAX(EV42*0.8*EV17,EV60*EV17),0),IF(OR(EX28=1,EX28=3),MAX(EV42*0.8*EV17,EV60*EV17),0)) ->  | FB115: =IF(EV115=0,0,IF(FA28=2,IF((EV46-VLOOKUP(EV96,EU90:FB92,8,FALSE))<=0,0,IF(EV46-SUM(EZ115,FA115)>EV115,0,EV46-SUM(EZ115,FA115))),0)) ->  | FC115: =IF(EV115=0,0,SUM(EZ115,FA115,IF(FA28=2,FB115,0))) ->  | FE115: 9 | FQ115: 9 | FT115: =IF(FR115=0,0,FR115*EV98/12) ->  | FU115: =IF(FR115=0,0,ROUNDUP(PMT(EW98/12,EW97-FQ114,-1000),2)) ->  | FW115: =IF(FR115=0,"",IF(Calculos!EV41>=65,IF(Calculos!EY28=1,FR115,FR107)*EXTRAPRIMAEDAD,IF(OR(Calculos!EX28=1,Calculos!EX28=2),IF(Calculos!EZ28=1,IF(Calculos!EY28=1,FR115,FR107)*FACTORVIDA,IF(Calculos!EZ28=2,IF(Calculos!EY28=1,FR115,FR107)*EXTRAPRIMAMEDICA,IF(Calculos!EY28=1,FR115,FR107)*EXTRAPRIMAOCUPACIONAL)),0)))+IF(EZ60="NO",IF(OR(EX28=1,EX28=3),MAX(EV42*0.8*EV17,EV60*EV17),0),IF(OR(EX28=1,EX28=3),MAX(EV42*0.8*EV17,EV60*EV17),0)) ->  | FX115: =IF(FR115=0,0,IF(FA28=2,IF((EV46-VLOOKUP(EV96,EU90:FB92,8,FALSE))<=0,0,IF(EV46-SUM(FV115,FW115)>FR115,0,EV46-SUM(FV115,FW115))),0)) ->  | FY115: =IF(FR115=0,0,SUM(FV115,FW115,IF(FA28=2,FX115,0))) ->  | GA115: 9 | GL115: 9 | GO115: =IF(GM115=0,0,GM115*EV98/12) ->  | GP115: =ROUNDUP(PMT(EX98/12,EX97,-1000),2) ->  | GR115: =IF(GM115=0,"",IF(Calculos!EV41>=65,IF(Calculos!EY28=1,GM115,GM107)*EXTRAPRIMAEDAD,IF(OR(Calculos!EX28=1,Calculos!EX28=2),IF(Calculos!EZ28=1,IF(Calculos!EY28=1,GM115,GM107)*FACTORVIDA,IF(Calculos!EZ28=2,IF(Calculos!EY28=1,GM115,GM107)*EXTRAPRIMAMEDICA,IF(Calculos!EY28=1,GM115,GM107)*EXTRAPRIMAOCUPACIONAL)),0)))+IF(EZ60="NO",IF(OR(EX28=1,EX28=3),MAX(EV42*0.8*EV17,EV60*EV17),0),IF(OR(EX28=1,EX28=3),MAX(EV42*0.8*EV17,EV60*EV17),0)) ->  | GS115: =IF(GM115=0,0,IF(FA28=2,IF((EV46-VLOOKUP(EX96,EU90:FB92,8,FALSE))<=0,0,IF(EV46-SUM(GQ115,GR115)>GM115,0,EV46-SUM(GQ115,GR115))),0)) ->  | GT115: =IF(GM115=0,0,SUM(GQ115,GR115,IF(FA28=2,GS115,0))) ->  | GV115: 9
AW116: 10 | AZ116: =IF(AX116=0,0,AX116*AX98/12) ->  | BA116: =IF(AX116=0,0,ROUNDUP(PMT(AX98/12,AX97-AW115,-1000),2)) ->  | BC116: =IF(AX116=0,"",IF(Calculos!AX41>=65,IF(Calculos!BA28=1,AX116,AX107)*EXTRAPRIMAEDAD,IF(OR(Calculos!AZ28=1,Calculos!AZ28=2),IF(Calculos!BB28=1,IF(Calculos!BA28=1,AX116,AX107)*FACTORVIDA,IF(Calculos!BB28=2,IF(Calculos!BA28=1,AX116,AX107)*EXTRAPRIMAMEDICA,IF(Calculos!BA28=1,AX116,AX107)*EXTRAPRIMAOCUPACIONAL)),0)))+IF(BB60="NO",IF(OR(AZ28=1,AZ28=3),MAX(AX42*0.8*AX17,AX60*AX17),0),IF(OR(AZ28=1,AZ28=3),MAX(AX42*0.8*AX17,AX60*AX17),0)) ->  | BD116: =IF(AX116=0,0,IF(BC28=2,IF((AX46-VLOOKUP(AX96,AW90:BD92,8,FALSE))<=0,0,IF(AX46-SUM(BB116,BC116)>AX116,0,AX46-SUM(BB116,BC116))),0)) ->  | BE116: =IF(AX116=0,0,SUM(BB116,BC116,IF(BC28=2,BD116,0))) ->  | BH116: 10 | BK116: =IF(BI116=0,0,BI116*AX98/12) ->  | BL116: =IF(BI116=0,0,ROUNDUP(PMT(AY98/12,AY97-BH115,-1000),2)) ->  | BN116: =IF(BI116=0,"",IF(Calculos!AX41>=65,IF(Calculos!BA28=1,BI116,BI107)*EXTRAPRIMAEDAD,IF(OR(Calculos!AZ28=1,Calculos!AZ28=2),IF(Calculos!BB28=1,IF(Calculos!BA28=1,BI116,BI107)*FACTORVIDA,IF(Calculos!BB28=2,IF(Calculos!BA28=1,BI116,BI107)*EXTRAPRIMAMEDICA,IF(Calculos!BA28=1,BI116,BI107)*EXTRAPRIMAOCUPACIONAL)),0)))+IF(BB60="NO",IF(OR(AZ28=1,AZ28=3),MAX(AX42*0.8*AX17,AX60*AX17),0),IF(OR(AZ28=1,AZ28=3),MAX(AX42*0.8*AX17,AX60*AX17),0)) ->  | BO116: =IF(BI116=0,0,IF(BC28=2,IF((AX46-VLOOKUP(AX96,AW90:BD92,8,FALSE))<=0,0,IF(AX46-SUM(BM116,BN116)>BI116,0,AX46-SUM(BM116,BN116))),0)) ->  | BP116: =IF(BI116=0,0,SUM(BM116,BN116,IF(BC28=2,BO116,0))) ->  | BS116: 10 | BV116: =IF(BT116=0,0,BT116*AX98/12) ->  | BW116: =ROUNDUP(PMT(AZ98/12,AZ97,-1000),2) ->  | BY116: =IF(BT116=0,"",IF(Calculos!AX41>=65,IF(Calculos!BA28=1,BT116,BT107)*EXTRAPRIMAEDAD,IF(OR(Calculos!AZ28=1,Calculos!AZ28=2),IF(Calculos!BB28=1,IF(Calculos!BA28=1,BT116,BT107)*FACTORVIDA,IF(Calculos!BB28=2,IF(Calculos!BA28=1,BT116,BT107)*EXTRAPRIMAMEDICA,IF(Calculos!BA28=1,BT116,BT107)*EXTRAPRIMAOCUPACIONAL)),0)))+IF(BB60="NO",IF(OR(AZ28=1,AZ28=3),MAX(AX42*0.8*AX17,AX60*AX17),0),IF(OR(AZ28=1,AZ28=3),MAX(AX42*0.8*AX17,AX60*AX17),0)) ->  | BZ116: =IF(BT116=0,0,IF(BC28=2,IF((AX46-VLOOKUP(AZ96,AW90:BD92,8,FALSE))<=0,0,IF(AX46-SUM(BX116,BY116)>BT116,0,AX46-SUM(BX116,BY116))),0)) ->  | CA116: =IF(BT116=0,0,SUM(BX116,BY116,IF(BC28=2,BZ116,0))) ->  | CG116: ENGANCHE | CH116: =+IF(CH115="","",IF(DD5=2,IF((VVIVIENDA*(1-CI101)-IF(CH124=TRUE,(VVIVIENDA*(1-MAX(CP120:CP122)))+CI112,SUBCTAIND+SUBCTACONY))<0,0,VVIVIENDA*(1-CI101)-IF(CH124=TRUE,(VVIVIENDA*(1-MAX(CP120:CP122)))+CI112,SUBCTAIND+SUBCTACONY)),IF(DD5=1,IF((VVIVIENDA*(1-CI99)-IF(CH124=TRUE,(VVIVIENDA*(1-MAX(CP120:CP122)))+CI112,SUBCTAIND+SUBCTACONY))<0,0,VVIVIENDA*(1-CI99)-IF(CH124=TRUE,(VVIVIENDA*(1-MAX(CP120:CP122)))+CI112,SUBCTAIND+SUBCTACONY))))) ->  | CK116: =+IF(CH115="","",IF(DD5=2,IF((VVIVIENDA*(1-CL101)-IF(CH124=TRUE,(VVIVIENDA*(1-MAX(CP120:CP122)))+CL112,SUBCTAIND+SUBCTACONY))<0,0,VVIVIENDA*(1-CL101)-IF(CH124=TRUE,(VVIVIENDA*(1-MAX(CP120:CP122)))+CL112,SUBCTAIND+SUBCTACONY)),IF(DD5=1,IF((VVIVIENDA*(1-CL99)-IF(CH124=TRUE,(VVIVIENDA*(1-MAX(CP120:CP122)))+CL112,SUBCTAIND+SUBCTACONY))<0,0,VVIVIENDA*(1-CL99)-IF(CH124=TRUE,(VVIVIENDA*(1-MAX(CP120:CP122)))+CL112,SUBCTAIND+SUBCTACONY))))) ->  | CN116: =$CR$5&$CQ$5 -> 11 | CO116: =IF(OR(CP115=0.75,CP115=""),"",0.8) -> 0.8 | CP116: =IF(CO116="","",IF(AND(CR5=1,CO5=1,CQ5=2),0.85,IF(CR5=1,IF(DF5=1,0.9,IF(CQ5<3,0.9,IF(CZ5>1,0.85,0.8))),IF(CO5=1,0.9,IF(CQ5=1,0.9,0.85))))) -> 0.9 | CQ116: =IF(CP116="","",VLOOKUP($CN$116,CP95:CW99,IF(AND(CI84="NO",CO5<3),2,IF(OR(CO5>7,CO5=4),4,IF(OR(CO5=3,CI84="SI"),3,2))),0)) ->  | CS116: =$CR$5&$CQ$5 -> 11 | CT116: =IF(CU115<0.75,"",IF(CU116="","",CU115+0.0000001)) -> 0.8 | CU116: =IFERROR(IF(CZ5=1,IF($CK$26<8000000,VLOOKUP(CS114,$CP$95:$DC$99,9,0),IF($CK$26>14000000,VLOOKUP(CS114,$CP$95:$DC$99,11,0),VLOOKUP(CS114,$CP$95:$DC$99,10,0))),IF($CK$26<8000000,VLOOKUP(CS114,$CP$95:$DC$99,12,0),IF($CK$26>14000000,VLOOKUP(CS114,$CP$95:$DC$99,14,0),VLOOKUP(CS114,$CP$95:$DC$99,13,0)))),"") -> 0.9 | CV116: =IF(CU116="","",VLOOKUP($CS$116,CP95:CW99,3,0)) -> 0.1095 | CX116: =$CR$5&$CQ$5 -> 11 | CY116: 0.8 | CZ116: 0.9 | DA116: =IF(CP116="","",VLOOKUP($CN$116,CP95:CW99,IF(OR($CO$5=1,$CO$5=2,$CO$5=3),2,IF($CO$5=4,4,5)),0)) -> 0.11 | DC116: =$CR$5&$CQ$5 -> 11 | DD116: 0.8 | DE116: 0.9 | DF116: =IF(CU116="","",VLOOKUP($CS$116,CP95:CW99,3,0)) -> 0.1095 | EU116: 10 | FA116: =IF(EV116=0,"",IF(Calculos!EV41>=65,IF(Calculos!EY28=1,EV116,EV107)*EXTRAPRIMAEDAD,IF(OR(Calculos!EX28=1,Calculos!EX28=2),IF(Calculos!EZ28=1,IF(Calculos!EY28=1,EV116,EV107)*FACTORVIDA,IF(Calculos!EZ28=2,IF(Calculos!EY28=1,EV116,EV107)*EXTRAPRIMAMEDICA,IF(Calculos!EY28=1,EV116,EV107)*EXTRAPRIMAOCUPACIONAL)),0)))+IF(EZ60="NO",IF(OR(EX28=1,EX28=3),MAX(EV42*0.8*EV17,EV60*EV17),0),IF(OR(EX28=1,EX28=3),MAX(EV42*0.8*EV17,EV60*EV17),0)) ->  | FB116: =IF(EV116=0,0,IF(FA28=2,IF((EV46-VLOOKUP(EV96,EU90:FB92,8,FALSE))<=0,0,IF(EV46-SUM(EZ116,FA116)>EV116,0,EV46-SUM(EZ116,FA116))),0)) ->  | FC116: =IF(EV116=0,0,SUM(EZ116,FA116,IF(FA28=2,FB116,0))) ->  | FE116: 10 | FQ116: 10 | FT116: =IF(FR116=0,0,FR116*EV98/12) ->  | FU116: =IF(FR116=0,0,ROUNDUP(PMT(EW98/12,EW97-FQ115,-1000),2)) ->  | FW116: =IF(FR116=0,"",IF(Calculos!EV41>=65,IF(Calculos!EY28=1,FR116,FR107)*EXTRAPRIMAEDAD,IF(OR(Calculos!EX28=1,Calculos!EX28=2),IF(Calculos!EZ28=1,IF(Calculos!EY28=1,FR116,FR107)*FACTORVIDA,IF(Calculos!EZ28=2,IF(Calculos!EY28=1,FR116,FR107)*EXTRAPRIMAMEDICA,IF(Calculos!EY28=1,FR116,FR107)*EXTRAPRIMAOCUPACIONAL)),0)))+IF(EZ60="NO",IF(OR(EX28=1,EX28=3),MAX(EV42*0.8*EV17,EV60*EV17),0),IF(OR(EX28=1,EX28=3),MAX(EV42*0.8*EV17,EV60*EV17),0)) ->  | FX116: =IF(FR116=0,0,IF(FA28=2,IF((EV46-VLOOKUP(EV96,EU90:FB92,8,FALSE))<=0,0,IF(EV46-SUM(FV116,FW116)>FR116,0,EV46-SUM(FV116,FW116))),0)) ->  | FY116: =IF(FR116=0,0,SUM(FV116,FW116,IF(FA28=2,FX116,0))) ->  | GA116: 10 | GL116: 10 | GO116: =IF(GM116=0,0,GM116*EV98/12) ->  | GP116: =ROUNDUP(PMT(EX98/12,EX97,-1000),2) ->  | GR116: =IF(GM116=0,"",IF(Calculos!EV41>=65,IF(Calculos!EY28=1,GM116,GM107)*EXTRAPRIMAEDAD,IF(OR(Calculos!EX28=1,Calculos!EX28=2),IF(Calculos!EZ28=1,IF(Calculos!EY28=1,GM116,GM107)*FACTORVIDA,IF(Calculos!EZ28=2,IF(Calculos!EY28=1,GM116,GM107)*EXTRAPRIMAMEDICA,IF(Calculos!EY28=1,GM116,GM107)*EXTRAPRIMAOCUPACIONAL)),0)))+IF(EZ60="NO",IF(OR(EX28=1,EX28=3),MAX(EV42*0.8*EV17,EV60*EV17),0),IF(OR(EX28=1,EX28=3),MAX(EV42*0.8*EV17,EV60*EV17),0)) ->  | GS116: =IF(GM116=0,0,IF(FA28=2,IF((EV46-VLOOKUP(EX96,EU90:FB92,8,FALSE))<=0,0,IF(EV46-SUM(GQ116,GR116)>GM116,0,EV46-SUM(GQ116,GR116))),0)) ->  | GT116: =IF(GM116=0,0,SUM(GQ116,GR116,IF(FA28=2,GS116,0))) ->  | GV116: 10
AW117: 11 | AZ117: =IF(AX117=0,0,AX117*AX98/12) ->  | BA117: =IF(AX117=0,0,ROUNDUP(PMT(AX98/12,AX97-AW116,-1000),2)) ->  | BC117: =IF(AX117=0,"",IF(Calculos!AX41>=65,IF(Calculos!BA28=1,AX117,AX107)*EXTRAPRIMAEDAD,IF(OR(Calculos!AZ28=1,Calculos!AZ28=2),IF(Calculos!BB28=1,IF(Calculos!BA28=1,AX117,AX107)*FACTORVIDA,IF(Calculos!BB28=2,IF(Calculos!BA28=1,AX117,AX107)*EXTRAPRIMAMEDICA,IF(Calculos!BA28=1,AX117,AX107)*EXTRAPRIMAOCUPACIONAL)),0)))+IF(BB60="NO",IF(OR(AZ28=1,AZ28=3),MAX(AX42*0.8*AX17,AX60*AX17),0),IF(OR(AZ28=1,AZ28=3),MAX(AX42*0.8*AX17,AX60*AX17),0)) ->  | BD117: =IF(AX117=0,0,IF(BC28=2,IF((AX46-VLOOKUP(AX96,AW90:BD92,8,FALSE))<=0,0,IF(AX46-SUM(BB117,BC117)>AX117,0,AX46-SUM(BB117,BC117))),0)) ->  | BE117: =IF(AX117=0,0,SUM(BB117,BC117,IF(BC28=2,BD117,0))) ->  | BH117: 11 | BK117: =IF(BI117=0,0,BI117*AX98/12) ->  | BL117: =IF(BI117=0,0,ROUNDUP(PMT(AY98/12,AY97-BH116,-1000),2)) ->  | BN117: =IF(BI117=0,"",IF(Calculos!AX41>=65,IF(Calculos!BA28=1,BI117,BI107)*EXTRAPRIMAEDAD,IF(OR(Calculos!AZ28=1,Calculos!AZ28=2),IF(Calculos!BB28=1,IF(Calculos!BA28=1,BI117,BI107)*FACTORVIDA,IF(Calculos!BB28=2,IF(Calculos!BA28=1,BI117,BI107)*EXTRAPRIMAMEDICA,IF(Calculos!BA28=1,BI117,BI107)*EXTRAPRIMAOCUPACIONAL)),0)))+IF(BB60="NO",IF(OR(AZ28=1,AZ28=3),MAX(AX42*0.8*AX17,AX60*AX17),0),IF(OR(AZ28=1,AZ28=3),MAX(AX42*0.8*AX17,AX60*AX17),0)) ->  | BO117: =IF(BI117=0,0,IF(BC28=2,IF((AX46-VLOOKUP(AX96,AW90:BD92,8,FALSE))<=0,0,IF(AX46-SUM(BM117,BN117)>BI117,0,AX46-SUM(BM117,BN117))),0)) ->  | BP117: =IF(BI117=0,0,SUM(BM117,BN117,IF(BC28=2,BO117,0))) ->  | BS117: 11 | BV117: =IF(BT117=0,0,BT117*AX98/12) ->  | BW117: =ROUNDUP(PMT(AZ98/12,AZ97,-1000),2) ->  | BY117: =IF(BT117=0,"",IF(Calculos!AX41>=65,IF(Calculos!BA28=1,BT117,BT107)*EXTRAPRIMAEDAD,IF(OR(Calculos!AZ28=1,Calculos!AZ28=2),IF(Calculos!BB28=1,IF(Calculos!BA28=1,BT117,BT107)*FACTORVIDA,IF(Calculos!BB28=2,IF(Calculos!BA28=1,BT117,BT107)*EXTRAPRIMAMEDICA,IF(Calculos!BA28=1,BT117,BT107)*EXTRAPRIMAOCUPACIONAL)),0)))+IF(BB60="NO",IF(OR(AZ28=1,AZ28=3),MAX(AX42*0.8*AX17,AX60*AX17),0),IF(OR(AZ28=1,AZ28=3),MAX(AX42*0.8*AX17,AX60*AX17),0)) ->  | BZ117: =IF(BT117=0,0,IF(BC28=2,IF((AX46-VLOOKUP(AZ96,AW90:BD92,8,FALSE))<=0,0,IF(AX46-SUM(BX117,BY117)>BT117,0,AX46-SUM(BX117,BY117))),0)) ->  | CA117: =IF(BT117=0,0,SUM(BX117,BY117,IF(BC28=2,BZ117,0))) ->  | CG117: GASTOS NOTARIALES | CH117: =IF(AND(CH94=TRUE,CH95=TRUE),IF(MIN(CI87,VVIVIENDA*0.07)-CI81<0,(VVIVIENDA*CH73)+IF(CH86<=0,(VVIVIENDA*(1-CI71)-IF(CH94=TRUE,(VVIVIENDA*(1-MAX(CP120:CP122)))+CI82,SUBCTAIND+SUBCTACONY)),0),CI87-CI81),CI87) ->  | CI117: =IF(VVIVIENDA="","",VVIVIENDA*CH103) ->  | CK117: =IF(AND(CH124=TRUE,CH125=TRUE),IF(MIN(CL116,VVIVIENDA*0.07)-CL111<0,IF(CX5>7,(VVIVIENDA*CK103)-(VVIVIENDA*0.07),(VVIVIENDA*CK103)+(VVIVIENDA*(1-CL101)-IF(CH124=TRUE,(VVIVIENDA*(1-MAX(CP120:CP122)))+CL112,SUBCTAIND+SUBCTACONY))),CL116-CL111),CL116) -> 0 | CL117: =IF(VVIVIENDA="","",VVIVIENDA*CK103) ->  | CO117: =IF(CO116="","",IF(DF5=1,IF(CQ5<4,IF(CR5=1,0.9,0.85),IF(AND(CZ5>1,CR5=1),0.85,0.8)),IF(CQ5<3,IF(CR5=1,0.9,0.85),IF(AND(CZ5>1,CR5=1),0.85,0.8)))) -> 0.9 | CP117: =IF(CO116="","",IF(CR5=1,IF(DF5=1,0.9,IF(CQ5<3,0.9,IF(CZ5>1,0.85,0.8))),IF(CO5=1,0.9,IF(CQ5=1,0.9,0.85)))) -> 0.9 | EU117: 11 | FA117: =IF(EV117=0,"",IF(Calculos!EV41>=65,IF(Calculos!EY28=1,EV117,EV107)*EXTRAPRIMAEDAD,IF(OR(Calculos!EX28=1,Calculos!EX28=2),IF(Calculos!EZ28=1,IF(Calculos!EY28=1,EV117,EV107)*FACTORVIDA,IF(Calculos!EZ28=2,IF(Calculos!EY28=1,EV117,EV107)*EXTRAPRIMAMEDICA,IF(Calculos!EY28=1,EV117,EV107)*EXTRAPRIMAOCUPACIONAL)),0)))+IF(EZ60="NO",IF(OR(EX28=1,EX28=3),MAX(EV42*0.8*EV17,EV60*EV17),0),IF(OR(EX28=1,EX28=3),MAX(EV42*0.8*EV17,EV60*EV17),0)) ->  | FB117: =IF(EV117=0,0,IF(FA28=2,IF((EV46-VLOOKUP(EV96,EU90:FB92,8,FALSE))<=0,0,IF(EV46-SUM(EZ117,FA117)>EV117,0,EV46-SUM(EZ117,FA117))),0)) ->  | FC117: =IF(EV117=0,0,SUM(EZ117,FA117,IF(FA28=2,FB117,0))) ->  | FE117: 11 | FQ117: 11 | FT117: =IF(FR117=0,0,FR117*EV98/12) ->  | FU117: =IF(FR117=0,0,ROUNDUP(PMT(EW98/12,EW97-FQ116,-1000),2)) ->  | FW117: =IF(FR117=0,"",IF(Calculos!EV41>=65,IF(Calculos!EY28=1,FR117,FR107)*EXTRAPRIMAEDAD,IF(OR(Calculos!EX28=1,Calculos!EX28=2),IF(Calculos!EZ28=1,IF(Calculos!EY28=1,FR117,FR107)*FACTORVIDA,IF(Calculos!EZ28=2,IF(Calculos!EY28=1,FR117,FR107)*EXTRAPRIMAMEDICA,IF(Calculos!EY28=1,FR117,FR107)*EXTRAPRIMAOCUPACIONAL)),0)))+IF(EZ60="NO",IF(OR(EX28=1,EX28=3),MAX(EV42*0.8*EV17,EV60*EV17),0),IF(OR(EX28=1,EX28=3),MAX(EV42*0.8*EV17,EV60*EV17),0)) ->  | FX117: =IF(FR117=0,0,IF(FA28=2,IF((EV46-VLOOKUP(EV96,EU90:FB92,8,FALSE))<=0,0,IF(EV46-SUM(FV117,FW117)>FR117,0,EV46-SUM(FV117,FW117))),0)) ->  | FY117: =IF(FR117=0,0,SUM(FV117,FW117,IF(FA28=2,FX117,0))) ->  | GA117: 11 | GL117: 11 | GO117: =IF(GM117=0,0,GM117*EV98/12) ->  | GP117: =ROUNDUP(PMT(EX98/12,EX97,-1000),2) ->  | GR117: =IF(GM117=0,"",IF(Calculos!EV41>=65,IF(Calculos!EY28=1,GM117,GM107)*EXTRAPRIMAEDAD,IF(OR(Calculos!EX28=1,Calculos!EX28=2),IF(Calculos!EZ28=1,IF(Calculos!EY28=1,GM117,GM107)*FACTORVIDA,IF(Calculos!EZ28=2,IF(Calculos!EY28=1,GM117,GM107)*EXTRAPRIMAMEDICA,IF(Calculos!EY28=1,GM117,GM107)*EXTRAPRIMAOCUPACIONAL)),0)))+IF(EZ60="NO",IF(OR(EX28=1,EX28=3),MAX(EV42*0.8*EV17,EV60*EV17),0),IF(OR(EX28=1,EX28=3),MAX(EV42*0.8*EV17,EV60*EV17),0)) ->  | GS117: =IF(GM117=0,0,IF(FA28=2,IF((EV46-VLOOKUP(EX96,EU90:FB92,8,FALSE))<=0,0,IF(EV46-SUM(GQ117,GR117)>GM117,0,EV46-SUM(GQ117,GR117))),0)) ->  | GT117: =IF(GM117=0,0,SUM(GQ117,GR117,IF(FA28=2,GS117,0))) ->  | GV117: 11
AW118: 12 | AZ118: =IF(AX118=0,0,AX118*AX98/12) ->  | BA118: =IF(AX118=0,0,ROUNDUP(PMT(AX98/12,AX97-AW117,-1000),2)) ->  | BC118: =IF(AX118=0,"",IF(Calculos!AX41>=65,IF(Calculos!BA28=1,AX118,AX107)*EXTRAPRIMAEDAD,IF(OR(Calculos!AZ28=1,Calculos!AZ28=2),IF(Calculos!BB28=1,IF(Calculos!BA28=1,AX118,AX107)*FACTORVIDA,IF(Calculos!BB28=2,IF(Calculos!BA28=1,AX118,AX107)*EXTRAPRIMAMEDICA,IF(Calculos!BA28=1,AX118,AX107)*EXTRAPRIMAOCUPACIONAL)),0)))+IF(BB60="NO",IF(OR(AZ28=1,AZ28=3),MAX(AX42*0.8*AX17,AX60*AX17),0),IF(OR(AZ28=1,AZ28=3),MAX(AX42*0.8*AX17,AX60*AX17),0)) ->  | BD118: =IF(AX118=0,0,IF(BC28=2,IF((AX46-VLOOKUP(AX96,AW90:BD92,8,FALSE))<=0,0,IF(AX46-SUM(BB118,BC118)>AX118,0,AX46-SUM(BB118,BC118))),0)) ->  | BE118: =IF(AX118=0,0,SUM(BB118,BC118,IF(BC28=2,BD118,0))) ->  | BH118: 12 | BK118: =IF(BI118=0,0,BI118*AX98/12) ->  | BL118: =IF(BI118=0,0,ROUNDUP(PMT(AY98/12,AY97-BH117,-1000),2)) ->  | BN118: =IF(BI118=0,"",IF(Calculos!AX41>=65,IF(Calculos!BA28=1,BI118,BI107)*EXTRAPRIMAEDAD,IF(OR(Calculos!AZ28=1,Calculos!AZ28=2),IF(Calculos!BB28=1,IF(Calculos!BA28=1,BI118,BI107)*FACTORVIDA,IF(Calculos!BB28=2,IF(Calculos!BA28=1,BI118,BI107)*EXTRAPRIMAMEDICA,IF(Calculos!BA28=1,BI118,BI107)*EXTRAPRIMAOCUPACIONAL)),0)))+IF(BB60="NO",IF(OR(AZ28=1,AZ28=3),MAX(AX42*0.8*AX17,AX60*AX17),0),IF(OR(AZ28=1,AZ28=3),MAX(AX42*0.8*AX17,AX60*AX17),0)) ->  | BO118: =IF(BI118=0,0,IF(BC28=2,IF((AX46-VLOOKUP(AX96,AW90:BD92,8,FALSE))<=0,0,IF(AX46-SUM(BM118,BN118)>BI118,0,AX46-SUM(BM118,BN118))),0)) ->  | BP118: =IF(BI118=0,0,SUM(BM118,BN118,IF(BC28=2,BO118,0))) ->  | BS118: 12 | BV118: =IF(BT118=0,0,BT118*AX98/12) ->  | BW118: =ROUNDUP(PMT(AZ98/12,AZ97,-1000),2) ->  | BY118: =IF(BT118=0,"",IF(Calculos!AX41>=65,IF(Calculos!BA28=1,BT118,BT107)*EXTRAPRIMAEDAD,IF(OR(Calculos!AZ28=1,Calculos!AZ28=2),IF(Calculos!BB28=1,IF(Calculos!BA28=1,BT118,BT107)*FACTORVIDA,IF(Calculos!BB28=2,IF(Calculos!BA28=1,BT118,BT107)*EXTRAPRIMAMEDICA,IF(Calculos!BA28=1,BT118,BT107)*EXTRAPRIMAOCUPACIONAL)),0)))+IF(BB60="NO",IF(OR(AZ28=1,AZ28=3),MAX(AX42*0.8*AX17,AX60*AX17),0),IF(OR(AZ28=1,AZ28=3),MAX(AX42*0.8*AX17,AX60*AX17),0)) ->  | BZ118: =IF(BT118=0,0,IF(BC28=2,IF((AX46-VLOOKUP(AZ96,AW90:BD92,8,FALSE))<=0,0,IF(AX46-SUM(BX118,BY118)>BT118,0,AX46-SUM(BX118,BY118))),0)) ->  | CA118: =IF(BT118=0,0,SUM(BX118,BY118,IF(BC28=2,BZ118,0))) ->  | CG118: AVALUO | CH118: =IF(CI113>=DB74,DD74,IF(CO5=5,VLOOKUP(CI83,DB69:DD74,3)/2,IF(OR(CO5<=4,CO5>5),VLOOKUP(CI83,DB69:DD74,3)))) -> 0 | CI118: =CH118/1.16 -> 0 | CK118: =IF(CL113>=DB74,DD74,IF(CO5=5,VLOOKUP(CL113,DB69:DD74,3)/2,IF(CO5<=4,VLOOKUP(CL113,DB69:DD74,3)))) -> 0 | CL118: =CK118/1.16 -> 0 | CN118: MERCADO ABIERTO | CS118: SEGMENTO PREFERENTE | CX118: MERCADO ABIERTO | DC118: SEGMENTO PREFERENTE | EU118: 12 | FA118: =IF(EV118=0,"",IF(Calculos!EV41>=65,IF(Calculos!EY28=1,EV118,EV107)*EXTRAPRIMAEDAD,IF(OR(Calculos!EX28=1,Calculos!EX28=2),IF(Calculos!EZ28=1,IF(Calculos!EY28=1,EV118,EV107)*FACTORVIDA,IF(Calculos!EZ28=2,IF(Calculos!EY28=1,EV118,EV107)*EXTRAPRIMAMEDICA,IF(Calculos!EY28=1,EV118,EV107)*EXTRAPRIMAOCUPACIONAL)),0)))+IF(EZ60="NO",IF(OR(EX28=1,EX28=3),MAX(EV42*0.8*EV17,EV60*EV17),0),IF(OR(EX28=1,EX28=3),MAX(EV42*0.8*EV17,EV60*EV17),0)) ->  | FB118: =IF(EV118=0,0,IF(FA28=2,IF((EV46-VLOOKUP(EV96,EU90:FB92,8,FALSE))<=0,0,IF(EV46-SUM(EZ118,FA118)>EV118,0,EV46-SUM(EZ118,FA118))),0)) ->  | FC118: =IF(EV118=0,0,SUM(EZ118,FA118,IF(FA28=2,FB118,0))) ->  | FE118: 12 | FQ118: 12 | FT118: =IF(FR118=0,0,FR118*EV98/12) ->  | FU118: =IF(FR118=0,0,ROUNDUP(PMT(EW98/12,EW97-FQ117,-1000),2)) ->  | FW118: =IF(FR118=0,"",IF(Calculos!EV41>=65,IF(Calculos!EY28=1,FR118,FR107)*EXTRAPRIMAEDAD,IF(OR(Calculos!EX28=1,Calculos!EX28=2),IF(Calculos!EZ28=1,IF(Calculos!EY28=1,FR118,FR107)*FACTORVIDA,IF(Calculos!EZ28=2,IF(Calculos!EY28=1,FR118,FR107)*EXTRAPRIMAMEDICA,IF(Calculos!EY28=1,FR118,FR107)*EXTRAPRIMAOCUPACIONAL)),0)))+IF(EZ60="NO",IF(OR(EX28=1,EX28=3),MAX(EV42*0.8*EV17,EV60*EV17),0),IF(OR(EX28=1,EX28=3),MAX(EV42*0.8*EV17,EV60*EV17),0)) ->  | FX118: =IF(FR118=0,0,IF(FA28=2,IF((EV46-VLOOKUP(EV96,EU90:FB92,8,FALSE))<=0,0,IF(EV46-SUM(FV118,FW118)>FR118,0,EV46-SUM(FV118,FW118))),0)) ->  | FY118: =IF(FR118=0,0,SUM(FV118,FW118,IF(FA28=2,FX118,0))) ->  | GA118: 12 | GL118: 12 | GO118: =IF(GM118=0,0,GM118*EV98/12) ->  | GP118: =ROUNDUP(PMT(EX98/12,EX97,-1000),2) ->  | GR118: =IF(GM118=0,"",IF(Calculos!EV41>=65,IF(Calculos!EY28=1,GM118,GM107)*EXTRAPRIMAEDAD,IF(OR(Calculos!EX28=1,Calculos!EX28=2),IF(Calculos!EZ28=1,IF(Calculos!EY28=1,GM118,GM107)*FACTORVIDA,IF(Calculos!EZ28=2,IF(Calculos!EY28=1,GM118,GM107)*EXTRAPRIMAMEDICA,IF(Calculos!EY28=1,GM118,GM107)*EXTRAPRIMAOCUPACIONAL)),0)))+IF(EZ60="NO",IF(OR(EX28=1,EX28=3),MAX(EV42*0.8*EV17,EV60*EV17),0),IF(OR(EX28=1,EX28=3),MAX(EV42*0.8*EV17,EV60*EV17),0)) ->  | GS118: =IF(GM118=0,0,IF(FA28=2,IF((EV46-VLOOKUP(EX96,EU90:FB92,8,FALSE))<=0,0,IF(EV46-SUM(GQ118,GR118)>GM118,0,EV46-SUM(GQ118,GR118))),0)) ->  | GT118: =IF(GM118=0,0,SUM(GQ118,GR118,IF(FA28=2,GS118,0))) ->  | GV118: 12
AW119: 13 | AZ119: =IF(AX119=0,0,AX119*AX98/12) ->  | BA119: =IF(AX119=0,0,ROUNDUP(PMT(AX98/12,AX97-AW118,-1000),2)) ->  | BC119: =IF(AX119=0,"",IF(Calculos!AX41>=65,IF(Calculos!BA28=1,AX119,AX107)*EXTRAPRIMAEDAD,IF(OR(Calculos!AZ28=1,Calculos!AZ28=2),IF(Calculos!BB28=1,IF(Calculos!BA28=1,AX119,AX107)*FACTORVIDA,IF(Calculos!BB28=2,IF(Calculos!BA28=1,AX119,AX107)*EXTRAPRIMAMEDICA,IF(Calculos!BA28=1,AX119,AX107)*EXTRAPRIMAOCUPACIONAL)),0)))+IF(BB60="NO",IF(OR(AZ28=1,AZ28=3),MAX(AX42*0.8*AX17,AX60*AX17),0),IF(OR(AZ28=1,AZ28=3),MAX(AX42*0.8*AX17,AX60*AX17),0)) ->  | BD119: =IF(AX119=0,0,IF(BC28=2,IF((AX46-VLOOKUP(AX96,AW90:BD92,8,FALSE))<=0,0,IF(AX46-SUM(BB119,BC119)>AX119,0,AX46-SUM(BB119,BC119))),0)) ->  | BE119: =IF(AX119=0,0,SUM(BB119,BC119,IF(BC28=2,BD119,0))) ->  | BH119: 13 | BK119: =IF(BI119=0,0,BI119*AX98/12) ->  | BL119: =IF(BI119=0,0,ROUNDUP(PMT(AY98/12,AY97-BH118,-1000),2)) ->  | BN119: =IF(BI119=0,"",IF(Calculos!AX41>=65,IF(Calculos!BA28=1,BI119,BI107)*EXTRAPRIMAEDAD,IF(OR(Calculos!AZ28=1,Calculos!AZ28=2),IF(Calculos!BB28=1,IF(Calculos!BA28=1,BI119,BI107)*FACTORVIDA,IF(Calculos!BB28=2,IF(Calculos!BA28=1,BI119,BI107)*EXTRAPRIMAMEDICA,IF(Calculos!BA28=1,BI119,BI107)*EXTRAPRIMAOCUPACIONAL)),0)))+IF(BB60="NO",IF(OR(AZ28=1,AZ28=3),MAX(AX42*0.8*AX17,AX60*AX17),0),IF(OR(AZ28=1,AZ28=3),MAX(AX42*0.8*AX17,AX60*AX17),0)) ->  | BO119: =IF(BI119=0,0,IF(BC28=2,IF((AX46-VLOOKUP(AX96,AW90:BD92,8,FALSE))<=0,0,IF(AX46-SUM(BM119,BN119)>BI119,0,AX46-SUM(BM119,BN119))),0)) ->  | BP119: =IF(BI119=0,0,SUM(BM119,BN119,IF(BC28=2,BO119,0))) ->  | BS119: 13 | BV119: =IF(BT119=0,0,BT119*AX98/12) ->  | BW119: =ROUNDUP(PMT(AZ98/12,AZ97,-1000),2) ->  | BY119: =IF(BT119=0,"",IF(Calculos!AX41>=65,IF(Calculos!BA28=1,BT119,BT107)*EXTRAPRIMAEDAD,IF(OR(Calculos!AZ28=1,Calculos!AZ28=2),IF(Calculos!BB28=1,IF(Calculos!BA28=1,BT119,BT107)*FACTORVIDA,IF(Calculos!BB28=2,IF(Calculos!BA28=1,BT119,BT107)*EXTRAPRIMAMEDICA,IF(Calculos!BA28=1,BT119,BT107)*EXTRAPRIMAOCUPACIONAL)),0)))+IF(BB60="NO",IF(OR(AZ28=1,AZ28=3),MAX(AX42*0.8*AX17,AX60*AX17),0),IF(OR(AZ28=1,AZ28=3),MAX(AX42*0.8*AX17,AX60*AX17),0)) ->  | BZ119: =IF(BT119=0,0,IF(BC28=2,IF((AX46-VLOOKUP(AZ96,AW90:BD92,8,FALSE))<=0,0,IF(AX46-SUM(BX119,BY119)>BT119,0,AX46-SUM(BX119,BY119))),0)) ->  | CA119: =IF(BT119=0,0,SUM(BX119,BY119,IF(BC28=2,BZ119,0))) ->  | CG119: COMISION | CH119: =CH115*CH109 ->  | CJ119: =IF(CP5=1,CH85<CK27,CH85<(CK26-CK27)) -> FALSE | CK119: =IF(CO5<=4,CK115*CK109,"$ 0.00") ->  | CM119: =IF(CP5=1,CH85<CK27,CH85<(CK26-CK27)) -> FALSE | CN119: AFORO | CO119: AFORO MIN | CP119: AFORO MAX | CQ119: TASA | CS119: AFORO | CT119: AFORO MIN | CU119: AFORO MAX | CV119: TASA | CX119: AFORO | CY119: AFORO MIN | CZ119: AFORO MAX | DA119: TASA | DC119: AFORO | DD119: AFORO MIN | DE119: AFORO MAX | DF119: TASA | EU119: 13 | FA119: =IF(EV119=0,"",IF(Calculos!EV41>=65,IF(Calculos!EY28=1,EV119,EV107)*EXTRAPRIMAEDAD,IF(OR(Calculos!EX28=1,Calculos!EX28=2),IF(Calculos!EZ28=1,IF(Calculos!EY28=1,EV119,EV107)*FACTORVIDA,IF(Calculos!EZ28=2,IF(Calculos!EY28=1,EV119,EV107)*EXTRAPRIMAMEDICA,IF(Calculos!EY28=1,EV119,EV107)*EXTRAPRIMAOCUPACIONAL)),0)))+IF(EZ60="NO",IF(OR(EX28=1,EX28=3),MAX(EV42*0.8*EV17,EV60*EV17),0),IF(OR(EX28=1,EX28=3),MAX(EV42*0.8*EV17,EV60*EV17),0)) ->  | FB119: =IF(EV119=0,0,IF(FA28=2,IF((EV46-VLOOKUP(EV96,EU90:FB92,8,FALSE))<=0,0,IF(EV46-SUM(EZ119,FA119)>EV119,0,EV46-SUM(EZ119,FA119))),0)) ->  | FC119: =IF(EV119=0,0,SUM(EZ119,FA119,IF(FA28=2,FB119,0))) ->  | FE119: 13 | FQ119: 13 | FT119: =IF(FR119=0,0,FR119*EV98/12) ->  | FU119: =IF(FR119=0,0,ROUNDUP(PMT(EW98/12,EW97-FQ118,-1000),2)) ->  | FW119: =IF(FR119=0,"",IF(Calculos!EV41>=65,IF(Calculos!EY28=1,FR119,FR107)*EXTRAPRIMAEDAD,IF(OR(Calculos!EX28=1,Calculos!EX28=2),IF(Calculos!EZ28=1,IF(Calculos!EY28=1,FR119,FR107)*FACTORVIDA,IF(Calculos!EZ28=2,IF(Calculos!EY28=1,FR119,FR107)*EXTRAPRIMAMEDICA,IF(Calculos!EY28=1,FR119,FR107)*EXTRAPRIMAOCUPACIONAL)),0)))+IF(EZ60="NO",IF(OR(EX28=1,EX28=3),MAX(EV42*0.8*EV17,EV60*EV17),0),IF(OR(EX28=1,EX28=3),MAX(EV42*0.8*EV17,EV60*EV17),0)) ->  | FX119: =IF(FR119=0,0,IF(FA28=2,IF((EV46-VLOOKUP(EV96,EU90:FB92,8,FALSE))<=0,0,IF(EV46-SUM(FV119,FW119)>FR119,0,EV46-SUM(FV119,FW119))),0)) ->  | FY119: =IF(FR119=0,0,SUM(FV119,FW119,IF(FA28=2,FX119,0))) ->  | GA119: 13 | GL119: 13 | GO119: =IF(GM119=0,0,GM119*EV98/12) ->  | GP119: =ROUNDUP(PMT(EX98/12,EX97,-1000),2) ->  | GR119: =IF(GM119=0,"",IF(Calculos!EV41>=65,IF(Calculos!EY28=1,GM119,GM107)*EXTRAPRIMAEDAD,IF(OR(Calculos!EX28=1,Calculos!EX28=2),IF(Calculos!EZ28=1,IF(Calculos!EY28=1,GM119,GM107)*FACTORVIDA,IF(Calculos!EZ28=2,IF(Calculos!EY28=1,GM119,GM107)*EXTRAPRIMAMEDICA,IF(Calculos!EY28=1,GM119,GM107)*EXTRAPRIMAOCUPACIONAL)),0)))+IF(EZ60="NO",IF(OR(EX28=1,EX28=3),MAX(EV42*0.8*EV17,EV60*EV17),0),IF(OR(EX28=1,EX28=3),MAX(EV42*0.8*EV17,EV60*EV17),0)) ->  | GS119: =IF(GM119=0,0,IF(FA28=2,IF((EV46-VLOOKUP(EX96,EU90:FB92,8,FALSE))<=0,0,IF(EV46-SUM(GQ119,GR119)>GM119,0,EV46-SUM(GQ119,GR119))),0)) ->  | GT119: =IF(GM119=0,0,SUM(GQ119,GR119,IF(FA28=2,GS119,0))) ->  | GV119: 13
AW120: 14 | AZ120: =IF(AX120=0,0,AX120*AX98/12) ->  | BA120: =IF(AX120=0,0,ROUNDUP(PMT(AX98/12,AX97-AW119,-1000),2)) ->  | BC120: =IF(AX120=0,"",IF(Calculos!AX41>=65,IF(Calculos!BA28=1,AX120,AX107)*EXTRAPRIMAEDAD,IF(OR(Calculos!AZ28=1,Calculos!AZ28=2),IF(Calculos!BB28=1,IF(Calculos!BA28=1,AX120,AX107)*FACTORVIDA,IF(Calculos!BB28=2,IF(Calculos!BA28=1,AX120,AX107)*EXTRAPRIMAMEDICA,IF(Calculos!BA28=1,AX120,AX107)*EXTRAPRIMAOCUPACIONAL)),0)))+IF(BB60="NO",IF(OR(AZ28=1,AZ28=3),MAX(AX42*0.8*AX17,AX60*AX17),0),IF(OR(AZ28=1,AZ28=3),MAX(AX42*0.8*AX17,AX60*AX17),0)) ->  | BD120: =IF(AX120=0,0,IF(BC28=2,IF((AX46-VLOOKUP(AX96,AW90:BD92,8,FALSE))<=0,0,IF(AX46-SUM(BB120,BC120)>AX120,0,AX46-SUM(BB120,BC120))),0)) ->  | BE120: =IF(AX120=0,0,SUM(BB120,BC120,IF(BC28=2,BD120,0))) ->  | BH120: 14 | BK120: =IF(BI120=0,0,BI120*AX98/12) ->  | BL120: =IF(BI120=0,0,ROUNDUP(PMT(AY98/12,AY97-BH119,-1000),2)) ->  | BN120: =IF(BI120=0,"",IF(Calculos!AX41>=65,IF(Calculos!BA28=1,BI120,BI107)*EXTRAPRIMAEDAD,IF(OR(Calculos!AZ28=1,Calculos!AZ28=2),IF(Calculos!BB28=1,IF(Calculos!BA28=1,BI120,BI107)*FACTORVIDA,IF(Calculos!BB28=2,IF(Calculos!BA28=1,BI120,BI107)*EXTRAPRIMAMEDICA,IF(Calculos!BA28=1,BI120,BI107)*EXTRAPRIMAOCUPACIONAL)),0)))+IF(BB60="NO",IF(OR(AZ28=1,AZ28=3),MAX(AX42*0.8*AX17,AX60*AX17),0),IF(OR(AZ28=1,AZ28=3),MAX(AX42*0.8*AX17,AX60*AX17),0)) ->  | BO120: =IF(BI120=0,0,IF(BC28=2,IF((AX46-VLOOKUP(AX96,AW90:BD92,8,FALSE))<=0,0,IF(AX46-SUM(BM120,BN120)>BI120,0,AX46-SUM(BM120,BN120))),0)) ->  | BP120: =IF(BI120=0,0,SUM(BM120,BN120,IF(BC28=2,BO120,0))) ->  | BS120: 14 | BV120: =IF(BT120=0,0,BT120*AX98/12) ->  | BW120: =ROUNDUP(PMT(AZ98/12,AZ97,-1000),2) ->  | BY120: =IF(BT120=0,"",IF(Calculos!AX41>=65,IF(Calculos!BA28=1,BT120,BT107)*EXTRAPRIMAEDAD,IF(OR(Calculos!AZ28=1,Calculos!AZ28=2),IF(Calculos!BB28=1,IF(Calculos!BA28=1,BT120,BT107)*FACTORVIDA,IF(Calculos!BB28=2,IF(Calculos!BA28=1,BT120,BT107)*EXTRAPRIMAMEDICA,IF(Calculos!BA28=1,BT120,BT107)*EXTRAPRIMAOCUPACIONAL)),0)))+IF(BB60="NO",IF(OR(AZ28=1,AZ28=3),MAX(AX42*0.8*AX17,AX60*AX17),0),IF(OR(AZ28=1,AZ28=3),MAX(AX42*0.8*AX17,AX60*AX17),0)) ->  | BZ120: =IF(BT120=0,0,IF(BC28=2,IF((AX46-VLOOKUP(AZ96,AW90:BD92,8,FALSE))<=0,0,IF(AX46-SUM(BX120,BY120)>BT120,0,AX46-SUM(BX120,BY120))),0)) ->  | CA120: =IF(BT120=0,0,SUM(BX120,BY120,IF(BC28=2,BZ120,0))) ->  | CG120: INGRESO | CH120: =VLOOKUP($CV$5,$CN$127:$CZ$129,13,0) ->  | CI120: 15000 | CJ120: =OR(CH111=CH115,CH101=CH115) ->  | CK120: =VLOOKUP($CW$5,$CN$132:$CZ$132,13,0) ->  | CL120: 15000 | CM120: =OR(CK81=CK85,CK82=CK85) -> TRUE | CN120: =$CR$5&$CQ$5 -> 11 | CO120: =+CO114 -> 0 | CP120: =+CP114 -> 0.7 | CQ120: =VLOOKUP(CN120,CP81:CW87,IF(AND(CI84="NO",CO5<3),2,IF(OR(CO5>7,CO5=4),4,IF(OR(CO5=3,CI84="SI"),3,2))),0) ->  | CS120: =$CR$5&$CQ$5 -> 11 | CT120: 0 | CU120: =IFERROR(IF(CZ5=1,IF($CK$26<8000000,VLOOKUP(CS114,$CP$81:$DC$87,9,0),IF($CK$26>14000000,VLOOKUP(CS114,$CP$81:$DC$87,11,0),VLOOKUP(CS114,$CP$81:$DC$87,10,0))),IF($CK$26<8000000,VLOOKUP(CS114,$CP$81:$DC$87,12,0),IF($CK$26>14000000,VLOOKUP(CS114,$CP$81:$DC$87,14,0),VLOOKUP(CS114,$CP$81:$DC$87,13,0)))),"") -> 0.7 | CV120: =IF(CP120="","",VLOOKUP(CN120,$CP$81:$CW$87,IF($CO$5=5,5,IF(AND(OR($CO$5=4,CO5>7),CH85<8000000),4,IF(AND(CI85="si",CH85<8000000),3,IF(AND($CO$5=4,CH85>=8000000),7,IF(CH85>=8000000,6,IF(AND($CO$5=5,CH85>=8000000),8,2)))))),0)) -> 0.105 | CX120: =$CR$5&$CQ$5 -> 11 | CY120: =+CO120 -> 0 | CZ120: 0.7 | DA120: =IF(CP120="","",VLOOKUP($CN$120,$CP$81:$CW$87,IF(AND($CO$5=4,CJ84<8000000),4,IF(AND(CI84="si",CJ84<8000000),3,IF(AND($CO$5=4,CJ84>=8000000),7,IF(CJ84>=8000000,6,IF(AND($CO$5=5,CJ84>=8000000),8,IF($CO$5=5,5,2)))))),0)) ->  | DC120: =$CR$5&$CQ$5 -> 11 | DD120: =+CT120 -> 0 | DE120: 0.7 | DF120: =IF(CP120="","",VLOOKUP(CN120,$CP$81:$CW$87,IF($CO$5=5,5,IF(AND(OR(CO5>7,$CO$5=4),CJ84<8000000),4,IF(AND(CI84="si",CJ84<8000000),3,IF(AND($CO$5=4,CJ84>=8000000),7,IF(CJ84>=8000000,6,IF(AND($CO$5=5,CJ84>=8000000),8,2)))))),0)) ->  | EU120: 14 | FA120: =IF(EV120=0,"",IF(Calculos!EV41>=65,IF(Calculos!EY28=1,EV120,EV107)*EXTRAPRIMAEDAD,IF(OR(Calculos!EX28=1,Calculos!EX28=2),IF(Calculos!EZ28=1,IF(Calculos!EY28=1,EV120,EV107)*FACTORVIDA,IF(Calculos!EZ28=2,IF(Calculos!EY28=1,EV120,EV107)*EXTRAPRIMAMEDICA,IF(Calculos!EY28=1,EV120,EV107)*EXTRAPRIMAOCUPACIONAL)),0)))+IF(EZ60="NO",IF(OR(EX28=1,EX28=3),MAX(EV42*0.8*EV17,EV60*EV17),0),IF(OR(EX28=1,EX28=3),MAX(EV42*0.8*EV17,EV60*EV17),0)) ->  | FB120: =IF(EV120=0,0,IF(FA28=2,IF((EV46-VLOOKUP(EV96,EU90:FB92,8,FALSE))<=0,0,IF(EV46-SUM(EZ120,FA120)>EV120,0,EV46-SUM(EZ120,FA120))),0)) ->  | FC120: =IF(EV120=0,0,SUM(EZ120,FA120,IF(FA28=2,FB120,0))) ->  | FE120: 14 | FQ120: 14 | FT120: =IF(FR120=0,0,FR120*EV98/12) ->  | FU120: =IF(FR120=0,0,ROUNDUP(PMT(EW98/12,EW97-FQ119,-1000),2)) ->  | FW120: =IF(FR120=0,"",IF(Calculos!EV41>=65,IF(Calculos!EY28=1,FR120,FR107)*EXTRAPRIMAEDAD,IF(OR(Calculos!EX28=1,Calculos!EX28=2),IF(Calculos!EZ28=1,IF(Calculos!EY28=1,FR120,FR107)*FACTORVIDA,IF(Calculos!EZ28=2,IF(Calculos!EY28=1,FR120,FR107)*EXTRAPRIMAMEDICA,IF(Calculos!EY28=1,FR120,FR107)*EXTRAPRIMAOCUPACIONAL)),0)))+IF(EZ60="NO",IF(OR(EX28=1,EX28=3),MAX(EV42*0.8*EV17,EV60*EV17),0),IF(OR(EX28=1,EX28=3),MAX(EV42*0.8*EV17,EV60*EV17),0)) ->  | FX120: =IF(FR120=0,0,IF(FA28=2,IF((EV46-VLOOKUP(EV96,EU90:FB92,8,FALSE))<=0,0,IF(EV46-SUM(FV120,FW120)>FR120,0,EV46-SUM(FV120,FW120))),0)) ->  | FY120: =IF(FR120=0,0,SUM(FV120,FW120,IF(FA28=2,FX120,0))) ->  | GA120: 14 | GL120: 14 | GO120: =IF(GM120=0,0,GM120*EV98/12) ->  | GP120: =ROUNDUP(PMT(EX98/12,EX97,-1000),2) ->  | GR120: =IF(GM120=0,"",IF(Calculos!EV41>=65,IF(Calculos!EY28=1,GM120,GM107)*EXTRAPRIMAEDAD,IF(OR(Calculos!EX28=1,Calculos!EX28=2),IF(Calculos!EZ28=1,IF(Calculos!EY28=1,GM120,GM107)*FACTORVIDA,IF(Calculos!EZ28=2,IF(Calculos!EY28=1,GM120,GM107)*EXTRAPRIMAMEDICA,IF(Calculos!EY28=1,GM120,GM107)*EXTRAPRIMAOCUPACIONAL)),0)))+IF(EZ60="NO",IF(OR(EX28=1,EX28=3),MAX(EV42*0.8*EV17,EV60*EV17),0),IF(OR(EX28=1,EX28=3),MAX(EV42*0.8*EV17,EV60*EV17),0)) ->  | GS120: =IF(GM120=0,0,IF(FA28=2,IF((EV46-VLOOKUP(EX96,EU90:FB92,8,FALSE))<=0,0,IF(EV46-SUM(GQ120,GR120)>GM120,0,EV46-SUM(GQ120,GR120))),0)) ->  | GT120: =IF(GM120=0,0,SUM(GQ120,GR120,IF(FA28=2,GS120,0))) ->  | GV120: 14
AW121: 15 | AZ121: =IF(AX121=0,0,AX121*AX98/12) ->  | BA121: =IF(AX121=0,0,ROUNDUP(PMT(AX98/12,AX97-AW120,-1000),2)) ->  | BC121: =IF(AX121=0,"",IF(Calculos!AX41>=65,IF(Calculos!BA28=1,AX121,AX107)*EXTRAPRIMAEDAD,IF(OR(Calculos!AZ28=1,Calculos!AZ28=2),IF(Calculos!BB28=1,IF(Calculos!BA28=1,AX121,AX107)*FACTORVIDA,IF(Calculos!BB28=2,IF(Calculos!BA28=1,AX121,AX107)*EXTRAPRIMAMEDICA,IF(Calculos!BA28=1,AX121,AX107)*EXTRAPRIMAOCUPACIONAL)),0)))+IF(BB60="NO",IF(OR(AZ28=1,AZ28=3),MAX(AX42*0.8*AX17,AX60*AX17),0),IF(OR(AZ28=1,AZ28=3),MAX(AX42*0.8*AX17,AX60*AX17),0)) ->  | BD121: =IF(AX121=0,0,IF(BC28=2,IF((AX46-VLOOKUP(AX96,AW90:BD92,8,FALSE))<=0,0,IF(AX46-SUM(BB121,BC121)>AX121,0,AX46-SUM(BB121,BC121))),0)) ->  | BE121: =IF(AX121=0,0,SUM(BB121,BC121,IF(BC28=2,BD121,0))) ->  | BH121: 15 | BK121: =IF(BI121=0,0,BI121*AX98/12) ->  | BL121: =IF(BI121=0,0,ROUNDUP(PMT(AY98/12,AY97-BH120,-1000),2)) ->  | BN121: =IF(BI121=0,"",IF(Calculos!AX41>=65,IF(Calculos!BA28=1,BI121,BI107)*EXTRAPRIMAEDAD,IF(OR(Calculos!AZ28=1,Calculos!AZ28=2),IF(Calculos!BB28=1,IF(Calculos!BA28=1,BI121,BI107)*FACTORVIDA,IF(Calculos!BB28=2,IF(Calculos!BA28=1,BI121,BI107)*EXTRAPRIMAMEDICA,IF(Calculos!BA28=1,BI121,BI107)*EXTRAPRIMAOCUPACIONAL)),0)))+IF(BB60="NO",IF(OR(AZ28=1,AZ28=3),MAX(AX42*0.8*AX17,AX60*AX17),0),IF(OR(AZ28=1,AZ28=3),MAX(AX42*0.8*AX17,AX60*AX17),0)) ->  | BO121: =IF(BI121=0,0,IF(BC28=2,IF((AX46-VLOOKUP(AX96,AW90:BD92,8,FALSE))<=0,0,IF(AX46-SUM(BM121,BN121)>BI121,0,AX46-SUM(BM121,BN121))),0)) ->  | BP121: =IF(BI121=0,0,SUM(BM121,BN121,IF(BC28=2,BO121,0))) ->  | BS121: 15 | BV121: =IF(BT121=0,0,BT121*AX98/12) ->  | BW121: =ROUNDUP(PMT(AZ98/12,AZ97,-1000),2) ->  | BY121: =IF(BT121=0,"",IF(Calculos!AX41>=65,IF(Calculos!BA28=1,BT121,BT107)*EXTRAPRIMAEDAD,IF(OR(Calculos!AZ28=1,Calculos!AZ28=2),IF(Calculos!BB28=1,IF(Calculos!BA28=1,BT121,BT107)*FACTORVIDA,IF(Calculos!BB28=2,IF(Calculos!BA28=1,BT121,BT107)*EXTRAPRIMAMEDICA,IF(Calculos!BA28=1,BT121,BT107)*EXTRAPRIMAOCUPACIONAL)),0)))+IF(BB60="NO",IF(OR(AZ28=1,AZ28=3),MAX(AX42*0.8*AX17,AX60*AX17),0),IF(OR(AZ28=1,AZ28=3),MAX(AX42*0.8*AX17,AX60*AX17),0)) ->  | BZ121: =IF(BT121=0,0,IF(BC28=2,IF((AX46-VLOOKUP(AZ96,AW90:BD92,8,FALSE))<=0,0,IF(AX46-SUM(BX121,BY121)>BT121,0,AX46-SUM(BX121,BY121))),0)) ->  | CA121: =IF(BT121=0,0,SUM(BX121,BY121,IF(BC28=2,BZ121,0))) ->  | CG121: MENSUALIDAD | CH121: =VLOOKUP(CV5,CN127:CW129,10,0) ->  | CK121: =VLOOKUP(CW5,CN132:CW132,10,0) ->  | CN121: =$CR$5&$CQ$5 -> 11 | CO121: =+CO115 -> 0.7000001 | CP121: 0.7999999 | CQ121: =VLOOKUP(CN121,CP88:CW94,IF(AND(CI84="NO",CO5<3),2,IF(OR(CO5>7,CO5=4),4,IF(OR(CO5=3,CI84="SI"),3,2))),0) ->  | CS121: =$CR$5&$CQ$5 -> 11 | CT121: =IF(CU114<0.65,"",IF(CU115="","",CU114+0.0000001)) -> 0.7000001 | CU121: =IFERROR(IF(CZ5=1,IF($CK$26<8000000,VLOOKUP(CS115,$CP$88:$DC$94,9,0),IF($CK$26>14000000,VLOOKUP(CS115,$CP$88:$DC$94,11,0),VLOOKUP(CS115,$CP$88:$DC$94,10,0))),IF($CK$26<8000000,VLOOKUP(CS115,$CP$88:$DC$94,12,0),IF($CK$26>14000000,VLOOKUP(CS115,$CP$88:$DC$94,14,0),VLOOKUP(CS115,$CP$88:$DC$94,13,0)))),"") -> 0.7999999 | CV121: =IF(CP120="","",VLOOKUP(CN120,$CP$88:$CW$94,IF($CO$5=5,5,IF(AND(OR(CO5>7,$CO$5=4),CH85<8000000),4,IF(AND(CI85="si",CH85<8000000),3,IF(AND($CO$5=4,CH85>=8000000),7,IF(CH85>=8000000,6,IF(AND($CO$5=5,CH85>=8000000),8,2)))))),0)) -> 0.105 | CX121: =$CR$5&$CQ$5 -> 11 | CY121: 0.7000001 | CZ121: 0.7999999 | DA121: =IF(CP121="","",VLOOKUP($CN$121,$CP$88:$CW$94,IF(AND($CO$5=4,CJ84<8000000),4,IF(AND(CI84="si",CJ84<8000000),3,IF(AND($CO$5=4,CJ84>=8000000),7,IF(CJ84>=8000000,6,IF(AND($CO$5=5,CJ84>=8000000),8,IF($CO$5=5,5,2)))))),0)) ->  | DC121: =$CR$5&$CQ$5 -> 11 | DD121: 0.7000001 | DE121: 0.7999999 | DF121: =IF(CP120="","",VLOOKUP(CN120,$CP$88:$CW$94,IF($CO$5=5,5,IF(AND(OR(CO5>7,$CO$5=4),CJ84<8000000),4,IF(AND(CI84="si",CJ84<8000000),3,IF(AND($CO$5=4,CJ84>=8000000),7,IF(CJ84>=8000000,6,IF(AND($CO$5=5,CJ84>=8000000),8,2)))))),0)) ->  | EU121: 15 | FA121: =IF(EV121=0,"",IF(Calculos!EV41>=65,IF(Calculos!EY28=1,EV121,EV107)*EXTRAPRIMAEDAD,IF(OR(Calculos!EX28=1,Calculos!EX28=2),IF(Calculos!EZ28=1,IF(Calculos!EY28=1,EV121,EV107)*FACTORVIDA,IF(Calculos!EZ28=2,IF(Calculos!EY28=1,EV121,EV107)*EXTRAPRIMAMEDICA,IF(Calculos!EY28=1,EV121,EV107)*EXTRAPRIMAOCUPACIONAL)),0)))+IF(EZ60="NO",IF(OR(EX28=1,EX28=3),MAX(EV42*0.8*EV17,EV60*EV17),0),IF(OR(EX28=1,EX28=3),MAX(EV42*0.8*EV17,EV60*EV17),0)) ->  | FB121: =IF(EV121=0,0,IF(FA28=2,IF((EV46-VLOOKUP(EV96,EU90:FB92,8,FALSE))<=0,0,IF(EV46-SUM(EZ121,FA121)>EV121,0,EV46-SUM(EZ121,FA121))),0)) ->  | FC121: =IF(EV121=0,0,SUM(EZ121,FA121,IF(FA28=2,FB121,0))) ->  | FE121: 15 | FQ121: 15 | FT121: =IF(FR121=0,0,FR121*EV98/12) ->  | FU121: =IF(FR121=0,0,ROUNDUP(PMT(EW98/12,EW97-FQ120,-1000),2)) ->  | FW121: =IF(FR121=0,"",IF(Calculos!EV41>=65,IF(Calculos!EY28=1,FR121,FR107)*EXTRAPRIMAEDAD,IF(OR(Calculos!EX28=1,Calculos!EX28=2),IF(Calculos!EZ28=1,IF(Calculos!EY28=1,FR121,FR107)*FACTORVIDA,IF(Calculos!EZ28=2,IF(Calculos!EY28=1,FR121,FR107)*EXTRAPRIMAMEDICA,IF(Calculos!EY28=1,FR121,FR107)*EXTRAPRIMAOCUPACIONAL)),0)))+IF(EZ60="NO",IF(OR(EX28=1,EX28=3),MAX(EV42*0.8*EV17,EV60*EV17),0),IF(OR(EX28=1,EX28=3),MAX(EV42*0.8*EV17,EV60*EV17),0)) ->  | FX121: =IF(FR121=0,0,IF(FA28=2,IF((EV46-VLOOKUP(EV96,EU90:FB92,8,FALSE))<=0,0,IF(EV46-SUM(FV121,FW121)>FR121,0,EV46-SUM(FV121,FW121))),0)) ->  | FY121: =IF(FR121=0,0,SUM(FV121,FW121,IF(FA28=2,FX121,0))) ->  | GA121: 15 | GL121: 15 | GO121: =IF(GM121=0,0,GM121*EV98/12) ->  | GP121: =ROUNDUP(PMT(EX98/12,EX97,-1000),2) ->  | GR121: =IF(GM121=0,"",IF(Calculos!EV41>=65,IF(Calculos!EY28=1,GM121,GM107)*EXTRAPRIMAEDAD,IF(OR(Calculos!EX28=1,Calculos!EX28=2),IF(Calculos!EZ28=1,IF(Calculos!EY28=1,GM121,GM107)*FACTORVIDA,IF(Calculos!EZ28=2,IF(Calculos!EY28=1,GM121,GM107)*EXTRAPRIMAMEDICA,IF(Calculos!EY28=1,GM121,GM107)*EXTRAPRIMAOCUPACIONAL)),0)))+IF(EZ60="NO",IF(OR(EX28=1,EX28=3),MAX(EV42*0.8*EV17,EV60*EV17),0),IF(OR(EX28=1,EX28=3),MAX(EV42*0.8*EV17,EV60*EV17),0)) ->  | GS121: =IF(GM121=0,0,IF(FA28=2,IF((EV46-VLOOKUP(EX96,EU90:FB92,8,FALSE))<=0,0,IF(EV46-SUM(GQ121,GR121)>GM121,0,EV46-SUM(GQ121,GR121))),0)) ->  | GT121: =IF(GM121=0,0,SUM(GQ121,GR121,IF(FA28=2,GS121,0))) ->  | GV121: 15
